Workbook

Sheet Cover
B6: Official Statistics Release
B7: Policy area: | C7: Children’s social care data in England 2017
B8: Theme: | C8: Social care
B9: Published on: | C9: 31 August 2017
B10: Coverage: | C10: England
B11: Period covered: | C11: ="Inspection outcomes for local authority children’s services inspections, as at "& Inspections_To&", published by "&Published_By -> Inspection outcomes for local authority children’s services inspections, as at 31 March 2017, published by 30 April 2017
C12: ="Inspection outcomes for all regulated, and other, children’s social care provision, "&Inspections_From &" to "&Inspections_To &", published by "&Published_By -> Inspection outcomes for all regulated, and other, children’s social care provision, 01 April 2016 to 31 March 2017, published by 30 April 2017
C13: ="Inspection outcome of most recent inspection for all regulated, and other, children’s social care provision, as at "&Inspections_To &", published by " &Published_By -> Inspection outcome of most recent inspection for all regulated, and other, children’s social care provision, as at 31 March 2017, published by 30 April 2017
C14: ="Information about the providers of children’s social care, including the numbers of providers and places, as at " &Inspections_To -> Information about the providers of children’s social care, including the numbers of providers and places, as at 31 March 2017
B15: Status: | C15: ="Final - inspections of local authority children’s services, as at " &Inspections_To -> Final - inspections of local authority children’s services, as at 31 March 2017
C16: ="Provisional - inspections of regulated, and other, children's social care provision, " &Inspections_From &" to " &Inspections_To -> Provisional - inspections of regulated, and other, children's social care provision, 01 April 2016 to 31 March 2017
C17: ="Final - inspections of regulated, and other, children's social care provision, as at " &Inspections_To -> Final - inspections of regulated, and other, children's social care provision, as at 31 March 2017
C18: ="Final - information about the providers of children’s social care, including the numbers of providers, as at " &Inspections_To -> Final - information about the providers of children’s social care, including the numbers of providers, as at 31 March 2017
C19: ="Revised - inspections of children's homes 01 April 2016 to 30 September 2016, published since 31 October 2016" -> Revised - inspections of children's homes 01 April 2016 to 30 September 2016, published since 31 October 2016
B20: Issued by: | C20: Office for Standards in Education, Children’s Services and Skills (Ofsted) 125 Kingsway London WC2B 6SE
B24: Chief Statistician: | C24: Helen Barugh
B25: Statistician: | C25: Adam King
B26: Public enquiries: | C26: If you have any comments or feedback on this publication, please contact the Social Care Data Team on 03000 130 020 or socialcaredata@ofsted.gov.uk
B27: Press enquiries: | C27: pressenquiries@ofsted.gov.uk
B28: Publication frequency: | C28: Annual
B29: Schedule of publication: | C29: www.gov.uk/government/statistics/announcements?utf8=%E2%9C%93&organisations%5B%5D=ofsted
B31: © Crown copyright 2017 You may use and re-use this information (not including logos) free of charge in any format or medium, under the terms of the Open Government Licence. To view this licence, visit: www.nationalarchives.gov.uk/doc/open-government-licence/
B32: Or write to the Information Policy Team, The National Archives, Kew, London, TW9 4DU
B33: Or email: psi@nationalarchives.gsi.gov.uk

Sheet Cover (Summer) (hidden)
B6: Official Statistics Release
B7: Policy area: | C7: Children’s social care data in England
B8: Theme: | C8: Social care
B9: Published on:
B10: Coverage: | C10: England
B11: Period covered: | C11: ="Inspection outcomes for local authority children’s services inspections, published by "&Published_By -> Inspection outcomes for local authority children’s services inspections, published by 30 April 2017
C12: ="Inspection outcomes for all regulated, and other, children’s social care provision, "&Inspections_From &" to "&Inspections_To &", published by "&Published_By -> Inspection outcomes for all regulated, and other, children’s social care provision, 01 April 2016 to 31 March 2017, published by 30 April 2017
C13: ="Inspection outcome of most recent inspection for all regulated, and other, children’s social care provision, as at "&Inspections_From & ", published by " &Published_By -> Inspection outcome of most recent inspection for all regulated, and other, children’s social care provision, as at 01 April 2016, published by 30 April 2017
C14: ="Information about the providers of children’s social care, including the numbers of providers and places, as at " &Inspections_To -> Information about the providers of children’s social care, including the numbers of providers and places, as at 31 March 2017
B15: Status: | C15: ="Final - inspections of local authority children’s services, to " &Inspections_To -> Final - inspections of local authority children’s services, to 31 March 2017
C16: ="Provisional - inspections of regulated, and other, children's social care provision, for " &Inspections_From & " to " &Inspections_To -> Provisional - inspections of regulated, and other, children's social care provision, for 01 April 2016 to 31 March 2017
C17: ="Final - inspections of regulated, and other, children's social care provision, as at " &Inspections_To -> Final - inspections of regulated, and other, children's social care provision, as at 31 March 2017
C18: ="Final - information about the providers of children’s social care, including the numbers of providers and places, as at " &Inspections_To -> Final - information about the providers of children’s social care, including the numbers of providers and places, as at 31 March 2017
C19: ="Revised - inspections of children's homes, " & Inspections_From & " to " & Inspections_To -> Revised - inspections of children's homes, 01 April 2016 to 31 March 2017
B20: Issued by: | C20: Office for Standards in Education, Children’s Services and Skills (Ofsted) 125 Kingsway London WC2B 6SE
B24: Chief Statistician: | C24: Helen Barugh
B25: Statistician: | C25: Adam King
B26: Public enquiries: | C26: If you have any comments or feedback on this publication, please contact the Social Care Data Team on 03000 130 020 or socialcaredata@ofsted.gov.uk
B27: Press enquiries: | C27: pressenquiries@ofsted.gov.uk
B28: Publication frequency: | C28: 2 times per year
B29: Schedule of publication: | C29: https://www.gov.uk/government/statistics/announcements?utf8=%E2%9C%93&organisations%5B%5D=ofsted
B31: © Crown copyright 2016 You may use and re-use this information (not including logos) free of charge in any format or medium, under the terms of the Open Government Licence. To view this licence, visit: http://www.nationalarchives.gov.uk/doc/open-government-licence/
B32: Or write to the Information Policy Team, The National Archives, Kew, London, TW9 4DU
B33: Or email: psi@nationalarchives.gsi.gov.uk

Sheet Contents
B1: Contents
B3: Worksheet title and link | C3: Description of contents of worksheet
B5: Notes | C5: These are notes about the document and data within it to aid the use and interpretation of the data.
B7: Glossary | C7: This is a list of terms found in the document with further explanations about what they mean.
B9: Meta-data | C9: This is a headline guide to what data is contained in each tab, with direct links to the tabs.
B11: LA Inspection | C11: This is an interactive table which shows inspection judgements for local authority inspections. It covers the current and two previous inspection frameworks. It has drop down options for; England/region/local authority and inspection type.
B13: Children's Social Care | C13: This is an interactive table which shows inspection judgements for all non-local authority inspections. It has numerous drop down options including; England/region/local authority, inspection period, social care provision type and inspection type.
B15: Sub-Judgements | C15: This is an interactive table which shows inspection sub-judgements for all non-local authority inspections. It has numerous drop down options including; England/region/local authority, inspection period, social care provision type and sector.
B17: LA level at 31 March 2017 | C17: This is a list of all the local authorities in England. Where they have received an inspection in the current cycle, their inspection judgements are shown.
B19: Provider level at 31 March 2017 | C19: ="This is a list of all active inspected social care provisions as at " & Inspections_To & " with the inspection judgements from their latest full inspection." -> This is a list of all active inspected social care provisions as at 31 March 2017 with the inspection judgements from their latest full inspection.
B21: Provider level in year 2016-17 | C21: ="This is a list of all social care provisions inspected between " & Inspections_From & " and " & Inspections_To & " with the inspection judgements from all the different types of inspections/visits. If a provision is inspected more than once in the year it has an entry for each inspection." -> This is a list of all social care provisions inspected between 01 April 2016 and 31 March 2017 with the inspection judgements from all the different types of inspections/visits. If a provision is inspected more than once in the year it has an entry for each inspection.
B23: Providers+places at 31 Mar 2017 | C23: ="This is a list of all active provisions as at "&Inspections_To&" with the number of places they have." -> This is a list of all active provisions as at 31 March 2017 with the number of places they have.
B25: Latest OE 31 March Time Series | C25: This is an interactive time series table and chart showing overall effectiveness of all the different types of social care provisions, as at 31 March each year.
B27: In year Time Series | C27: This is an interactive time series table and chart showing overall effectiveness of the larger provision types which have a one year inspection cycle, that is, children's homes and residential special schools. The inspection cycle runs from 1 April to 31 March each year. The children's homes data is broken down by children's homes sub-type.
B29: Providers + Places six monthly | C29: This is a table showing the providers and places data at six month intervals, since 30 September 2011.
B31: LA Children's Homes map | C31: This is a geographical representation of local authorities which do, and do not, operate any of the children's homes within their area, excluding short breaks only homes.
B33: Social Care in England 2016 data | C33: This is an external link to the Social Care in England 2016 data for comparison.

Sheet Contents (Summer) (hidden)
B1: Contents
B3: Worksheet title and link | C3: Description of contents of worksheet
B5: Notes | C5: These are notes about the document and data within it to aid the use and interpretation of the data.
B7: Glossary | C7: This is a list of terms found in the document with further explanations about what they mean.
B9: LA Inspection | C9: This is an interactive table which shows inspection judgements for local authority inspections. It covers the current and two previous inspection frameworks. It has drop down options for; England/region/local authority and inspection type.
B11: Children's Social Care | C11: This is an interactive table which shows inspection judgements for all non-local authority inspections. It has numerous drop down options including; England/region/local authority, inspection period, social care provision type and inspection type.
B13: Sub-Judgements | C13: This is an interactive table which shows inspection sub-judgements for all non-local authority inspections. It has numerous drop down options including; England/region/local authority, inspection period, social care provision type and sector.
B15: LA level at 30 Sep 2016 | C15: This is a list of all the local authorities in England. Where they have received an inspection in the current cycle, their inspection judgements are shown.
B17: Provider level at 30 Sep 2016 | C17: ="This is a list of all active inspected provisions as at " & Inspections_To & " with the inspection judgements from their latest full inspection." -> This is a list of all active inspected provisions as at 31 March 2017 with the inspection judgements from their latest full inspection.
B19: Provider level in year 2016-17 | C19: ="This is a list of all provisions inspected between " & Inspections_From & " and " & Inspections_To & " with the inspection judgements from all the different types of inspections/visits." -> This is a list of all provisions inspected between 01 April 2016 and 31 March 2017 with the inspection judgements from all the different types of inspections/visits.
B21: Providers+places at 31 March 2016 | C21: This is a list of all active provisions as at 31 March 2016 with the number of places they have.
B23: Latest OE 31 March Time Series | C23: This is an interactive time series table and chart showing overall effectiveness of all the different types of social care provisions, as at 31 March each year.
B25: In year CH time series | C25: This is an interactive time series table and chart showing overall effectiveness of all types of children's homes and residential special schools inspected each year from 1 April to 31 March; and broken down by children's homes sub-type.
B27: Providers + Places six monthly | C27: This is a table showing the providers and places data at six month intervals, since 30 September 2011.

Sheet Notes
B1: Notes
B3: Data
B4: The inspection outcomes data relates to inspections of:
B5: local authority (LA) services for children who need help and protection, children looked after and care leavers. The inspections of LA children’s services are carried out under the Single Inspection Framework (SIF)
B6: other children’s social care providers and residential accommodation for children in boarding schools and further education colleges.
B8: The providers and places data includes:
B9: children’s social care providers, for which Ofsted has a regulatory and inspection responsibility,
B10: providers of residential accommodation for children in special schools, boarding schools and further education colleges, for which Ofsted has an inspection responsibility.
B12: Notes to help use/interpret the data
B13: Monitoring visits are only shown in the interactive tables where an inspection judgement is made at the visit. Where no judgement is made the visits are not included in the tables, however they are included in the underlying provider level data for 2016-17.
B15: Where the term 'Residential special school (registered as a children's home)' is used, this refers to residential special schools that are registered as children's homes as they care for pupils for more than 295 days in a year.
B17: Secure training centres are not included in the tables as details regarding them and their inspections are not currently held in the main Ofsted database. They will be added to the database before the next release. Their details have been added manually to the underlying data. They do not appear in the time series charts.
B19: Residential holiday schemes for disabled children show different figures in the interactive tables compared to the underlying data and interactive chart. The tables show three less inspections than the underlying data and interactive charts. They were omitted in the interactive tables due to database issues and had to be manually added to the underlying data and interactive charts.
B21: Some children's home interim inspections have an overall effectiveness outcome of 'not judged'. This is because the home had no children present at the time of inspection and so could not receive an inspection judgement.
B23: The tables show the number of joiners and leavers for each social care provision type. It should be noted however that simply comparing these two will not show the actual change in the number of places each year. This is because a number or providers who are active at both the start and end of the period will change the number of places they are registered for. In addition, it is not always possible to easily distinguish residential special schools registered as children's homes from children's homes and as such changes in the numbers of places for these provision types are sometimes the result of updated information rather than new registrations or de-registrations.
B25: Ofsted has brought in a more standardised set of sub-judgements for all its social care inspections, in conjunction with changes to inspection frameworks, and these are reported in the tables and underlying data. When reporting on the latest inspection judgements, there are some inspections that took place before these standardised sub-judgements came in, and so their sub-judgements are not included as they are not comparable to the new sub-judgements.
B27: In the as at 31 March 2016 data we have used the 2016-17 inspection framework's sub judgement wording rather than the wording at the time of inspection. Where the sub judgements are looking at all provider types as one, we have used a standardised set of sub judgement names to best convey what that sub judgement covers.
B29: Caution should be used when comparing inspection judgements from year to year in the time series charts and tables. Inspection framework changes may have an impact on inspection judgements and so a changing grade profile from one year to the next may not solely indicate a change in the quality of provisions.
B31: Revisions
B32: Any revisions to the inspection data for 2016-17 will be included with the additional six monthly release (local authority and children’s homes inspections and outcomes only, published in December each year). This will include advisory notes about any impact to figures and findings from the first full release of provisional data. Revisions are published in line with Ofsted’s revisions policy for official statistics. For more information about the policy, please visit the Ofsted website or access the policy via the following link:
B33: www.gov.uk/government/publications/ofsted-standards-for-official-statistics
B35: Other available data
B36: Previously published data regarding LA inspections, children’s social care inspections and providers and places can be found at the following links on GOV.UK:
B37: www.gov.uk/government/collections/childrens-social-care-statistics
B38: and in the National Archives:
B39: www.webarchive.nationalarchives.gov.uk/20141124154759/http:/www.ofsted.gov.uk/resources/statistics
B40: These pages also contain data on adoption, fostering, children looked after placements and serious incident notifications which the reader may find relevant.
B42: Quality Report
B43: An explanation about key uses of these data and further contextual information is provided in the accompanying Quality and Methodology report. The report also provides information about the arrangements for quality assurance, strengths and limitations of the statistics:
B44: www.gov.uk/government/collections/childrens-social-care-statistics

Sheet Glossary
B1: Glossary
B3: Adoption agencies
B4: The focus of all adoption agencies is on placing children successfully into adoptive families who the agency recruits, assesses, prepares and supports, so they will meet the children’s needs and enable them to develop and achieve throughout their lives. The services maintained by local authorities are described in section 3(1) of the Adoption and Children Act 2002. Local authorities place children with adoptive families recruited and approved by themselves, by other local authorities or by voluntary adoption agencies who must register with Ofsted. Adoption agencies may also provide birth records, counselling and intermediary services to adoptees and birth relatives. There are three branches of voluntary adoption agencies in Wales which are inspected by Ofsted because their head offices are in England. These are not included in this publication.
B6: Adoption support agencies
B7: Adoption support agencies are defined by section 8 of the Adoption and Children Act 2002 and provide services to anyone touched by adoption and are registered with Ofsted. This includes counselling and help for children and adults to gain information about their adoption or to trace birth relatives. Adoption support agencies can be either organisations or individuals, and may be contracted by a local authority to provide support services.
B9: Boarding schools
B10: The majority of boarding schools are independent and belong to associations which are members of the Independent Schools Council. As both education and welfare in these schools are inspected by their own inspectorate, Ofsted does not inspect these schools and so they are not included in the data. The remainder are maintained boarding schools where both education and the welfare of boarders are the subject of Ofsted inspection and independent boarding schools which are members of the Bridge Schools Inspectorate or Schools Inspection Service and who receive their education inspections by these organisations and their welfare inspections by Ofsted.
B12: Children’s homes
B13: A children’s home is defined in section 1 of the Care Standards Act 2000, and is an establishment that provides care and accommodation wholly or mainly for children. Children’s homes vary in size and nature. They fulfil a range of purposes designed to meet the different needs of those children and young people who are assessed as needing a residential care placement. Some homes, for example, provide short-breaks which are needed to help support children and their family. Some residential special schools are registered as children’s homes because boarders are resident for more than 295 days per year.
B15: Fostering agencies
B16: Local authority fostering services are defined by section 4 of the Care Standards Act 2000. Local authority fostering agencies and independent fostering agencies recruit, prepare, assess, train and support foster carers. Independent fostering agencies (IFAs) are private companies or charities, which are registered with Ofsted and provide placements to children and young people with foster carers approved by them. IFAs work closely with local authorities to deliver these placements.
B18: Further education colleges with residential accommodation
B19: The care provision of further education colleges that provide, or arrange, residential accommodation for one or more students under the age of 18 years. Ofsted inspects these colleges under section 87 of the children act 1989 as amended by the Care Standards Act 2000. Where a college is registered as a care home, the residential provision is inspected by the Care Quality Commission rather than by Ofsted.
B21: Places
B22: The term ‘places’ used in this report refers to the number of places for which the social care provider has capacity. This number usually will not, therefore, be the same as the actual number of children who are receiving services from the provider. Ofsted holds data relating to places for: children's homes; secure children's homes; residential special schools; residential family centres; boarding schools; and further education colleges. For some of these providers Ofsted does not hold data relating to places. Where this is the case, the number of places has been estimated. For all other provision types, and aggregated provision types, places data is not available.
B24: Providers
B25: Children’s social care providers are those institutions or organisations or agencies that provide services to the relevant children and young people. The providers commented on within this report include children’s homes, secure children’s homes, residential special schools, residential family centres, boarding schools, residential further education colleges, secure training centres, residential holiday schemes for disabled children, adoption support agencies, voluntary adoption agencies, and independent fostering services.
B27: Residential family centres
B28: Residential family centres are defined in section 4(2) of the Care Standards Act 2000 as establishments at which: a) accommodation is provided for children and their parents; b) the parents’ capacity to respond to the children’s needs and to safeguard their welfare is monitored and assessed; and c) the parents are given such advice, guidance and counselling is considered necessary.
B30: Residential holiday schemes for disabled children
B31: A residential holiday scheme for disabled children provides care and accommodation wholly or mainly for disabled children for a specified period for the purposes of a holiday, or for recreational, sporting, cultural or educational purposes. Ofsted inspects these schemes under the Care Standards Act 2000, Part 2 (Extension of the Application of Part 2 to Holiday Schemes for Disabled Children) (England) Regulations 2013.
B33: Residential special schools
B34: Residential special schools are defined in section 59 of the Safeguarding Vulnerable Groups Act 2006. They vary in size and nature. The sector includes large non-maintained special schools which make provision for very specific needs and take children as full boarders from all over the country, to smaller more local providers catering for children with a range of different special needs and disabilities who may be resident at the school only during the week. Some residential special schools are registered as children’s homes because boarders are resident for more than 295 days per year. There are also a small number of independent residential special schools who also tend to cater for children with very specialist needs.
B36: Sector
B37: Sector refers to the type of provider that owns the children’s social care provision.
B39: Academy
B40: These are publicly funded independent schools who are run by trusts.
B42: Health Authority
B43: These are NHS Trust-run.
B45: Local Authority
B46: These are public bodies responsible for the children’s social care provision.
B48: Private
B49: These are for-profit organisations mostly with limited company status. These can also though be individually owned children’s social care provision and run for profit.
B51: Voluntary
B52: These are mostly not-for-profit organisations, mainly with charitable status. These can also be individually owned children’s social care provision and run on a not-for-profit basis.
B54: Secure children’s homes
B55: Secure children’s homes are defined by section 25 of the Children Act 1989. They accommodate children and young people who are remanded or have been sentenced for committing a criminal offence. They also accommodate children and young people who are placed there by a court because their behaviour is deemed to present a significant and immediate threat to their safety or the safety of others, unless they are placed in a secure environment. Ofsted inspections are conducted in accordance with the Care Standards Act 2000 and judgements in reports are made in relation to the outcomes for children set out in the Children Act 2004. The criteria are the same as those used to inspect non-secure children’s homes.
B57: Secure training centres
B58: Secure training centres are defined by section 43(1) (d) of the Prison Act 1952, as amended by Section 6(2) of the Criminal Justice and Public Order Act 1994. Ofsted has the power to inspect under section 146 Education and Inspections Act 2006 and inspects both the care and educational provision for children in three secure training centres. They accommodate young people between the ages of 12 and 17 who have been remanded or sentenced by the courts. The centres are under contract to the Youth Justice Board, which monitors their compliance with requirements. Ofsted does not regulate secure training centres but has an agreement with the Youth Justice Board to inspect care twice a year and education once a year.

Sheet Meta-data
C2: Local authorities | D2: All social care providers | E2: Children's homes only | F2: In year | G2: State of the nation
B3: LA inspection | C3: R | G3: R
B4: Children's Social Care | D4: R | F4: R | G4: R
B5: Sub-judgements | D5: R | F5: R | G5: R
B6: LA level at 31 Mar 2017 | C6: R | G6: R
B7: Provider level at 31 Mar 2017 | D7: R | G7: R
B8: Provider level in year 2016-17 | D8: R | F8: R
B9: Providers+places at 31 Mar 2017 | D9: R | G9: R
B10: Providers + places six monthly | D10: R | F10: R
B11: Latest OE 31 Mar Time Series | D11: R | E11: R | G11: R
B12: In Year Time series | D12: R | F12: R
B13: SIF sub-judgements | C13: R | G13: R
B14: LA Children's Homes map | C14: R | E14: R | G14: R

Sheet LA Inspection
B2: ="Statistical First Release Local Authority Inspections as at "&Inspections_To -> Statistical First Release Local Authority Inspections as at 31 March 2017
B4: Region: | E4: Local Authority:
B5: All | E5: All | G5: =IF(B5="All",TRUE,NOT(ISERROR(MATCH(E5,INDIRECT(SUBSTITUTE(SUBSTITUTE(B5," ","_"),",","")),0)))) -> TRUE
E7: Inspection Type:
E8: Single inspection framework
B10: Judgements | C10: Inspection Outcomes
C11: Outstanding | D11: Good | E11: Requires improvement / adequate | F11: Inadequate | G11: Not judged
B14: Overall Effectiveness (OE) | C14: =IF(ISERROR( VLOOKUP($E$8&$B$9&IF($E$5<>"All","All",$B$5)&$E$5,'LA FINAL RAW DATA'!$A:$I,5,0))=TRUE,0, VLOOKUP($E$8&$B$9&IF($E$5<>"All","All",$B$5)&$E$5,'LA FINAL RAW DATA'!$A:$I,5,0)) -> 2 | D14: =IF(ISERROR( VLOOKUP($E$8&$B$9&IF($E$5<>"All","All",$B$5)&$E$5,'LA FINAL RAW DATA'!$A:$I,6,0))=TRUE,0, VLOOKUP($E$8&$B$9&IF($E$5<>"All","All",$B$5)&$E$5,'LA FINAL RAW DATA'!$A:$I,6,0)) -> 35 | E14: =IF(ISERROR( VLOOKUP($E$8&$B$9&IF($E$5<>"All","All",$B$5)&$E$5,'LA FINAL RAW DATA'!$A:$I,7,0))=TRUE,0, VLOOKUP($E$8&$B$9&IF($E$5<>"All","All",$B$5)&$E$5,'LA FINAL RAW DATA'!$A:$I,7,0)) -> 60 | F14: =IF(ISERROR( VLOOKUP($E$8&$B$9&IF($E$5<>"All","All",$B$5)&$E$5,'LA FINAL RAW DATA'!$A:$I,8,0))=TRUE,0, VLOOKUP($E$8&$B$9&IF($E$5<>"All","All",$B$5)&$E$5,'LA FINAL RAW DATA'!$A:$I,8,0)) -> 30 | G14: =IF(ISERROR( VLOOKUP($E$8&$B$9&IF($E$5<>"All","All",$B$5)&$E$5,'LA FINAL RAW DATA'!$A:$I,9,0))=TRUE,0, VLOOKUP($E$8&$B$9&IF($E$5<>"All","All",$B$5)&$E$5,'LA FINAL RAW DATA'!$A:$I,9,0)) -> 0
B16: Children who need help and protection | C16: =IF(ISERROR( VLOOKUP($E$8&$B$9&" ["&$B16&"]"&IF($E$5<>"All","All",ddla)&$E$5,'LA FINAL RAW DATA'!$A:$I,5,0)),"", VLOOKUP($E$8&$B$9&" ["&$B16&"]"&IF($E$5<>"All","All",ddla)&$E$5,'LA FINAL RAW DATA'!$A:$I,5,0)) -> 0 | D16: =IF(ISERROR( VLOOKUP($E$8&$B$9&" ["&$B16&"]"&IF($E$5<>"All","All",ddla)&$E$5,'LA FINAL RAW DATA'!$A:$I,5,0)),"", VLOOKUP($E$8&$B$9&" ["&$B16&"]"&IF($E$5<>"All","All",ddla)&$E$5,'LA FINAL RAW DATA'!$A:$I,6,0)) -> 30 | E16: =IF(ISERROR( VLOOKUP($E$8&$B$9&" ["&$B16&"]"&IF($E$5<>"All","All",ddla)&$E$5,'LA FINAL RAW DATA'!$A:$I,5,0)),"", VLOOKUP($E$8&$B$9&" ["&$B16&"]"&IF($E$5<>"All","All",ddla)&$E$5,'LA FINAL RAW DATA'!$A:$I,7,0)) -> 70 | F16: =IF(ISERROR( VLOOKUP($E$8&$B$9&" ["&$B16&"]"&IF($E$5<>"All","All",ddla)&$E$5,'LA FINAL RAW DATA'!$A:$I,5,0)),"", VLOOKUP($E$8&$B$9&" ["&$B16&"]"&IF($E$5<>"All","All",ddla)&$E$5,'LA FINAL RAW DATA'!$A:$I,8,0)) -> 27 | G16: =IF(ISERROR( VLOOKUP($E$8&$B$9&" ["&$B16&"]"&IF($E$5<>"All","All",ddla)&$E$5,'LA FINAL RAW DATA'!$A:$I,5,0)),"", VLOOKUP($E$8&$B$9&" ["&$B16&"]"&IF($E$5<>"All","All",ddla)&$E$5,'LA FINAL RAW DATA'!$A:$I,9,0)) -> 0
B18: Children looked after and achieving permanence | C18: =IF(ISERROR( VLOOKUP($E$8&$B$9&" ["&$B18&"]"&IF($E$5<>"All","All",ddla)&$E$5,'LA FINAL RAW DATA'!$A:$I,5,0)),"", VLOOKUP($E$8&$B$9&" ["&$B18&"]"&IF($E$5<>"All","All",ddla)&$E$5,'LA FINAL RAW DATA'!$A:$I,5,0)) -> 2 | D18: =IF(ISERROR( VLOOKUP($E$8&$B$9&" ["&$B18&"]"&IF($E$5<>"All","All",ddla)&$E$5,'LA FINAL RAW DATA'!$A:$I,5,0)),"", VLOOKUP($E$8&$B$9&" ["&$B18&"]"&IF($E$5<>"All","All",ddla)&$E$5,'LA FINAL RAW DATA'!$A:$I,6,0)) -> 41 | E18: =IF(ISERROR( VLOOKUP($E$8&$B$9&" ["&$B18&"]"&IF($E$5<>"All","All",ddla)&$E$5,'LA FINAL RAW DATA'!$A:$I,5,0)),"", VLOOKUP($E$8&$B$9&" ["&$B18&"]"&IF($E$5<>"All","All",ddla)&$E$5,'LA FINAL RAW DATA'!$A:$I,7,0)) -> 70 | F18: =IF(ISERROR( VLOOKUP($E$8&$B$9&" ["&$B18&"]"&IF($E$5<>"All","All",ddla)&$E$5,'LA FINAL RAW DATA'!$A:$I,5,0)),"", VLOOKUP($E$8&$B$9&" ["&$B18&"]"&IF($E$5<>"All","All",ddla)&$E$5,'LA FINAL RAW DATA'!$A:$I,8,0)) -> 13 | G18: =IF(ISERROR( VLOOKUP($E$8&$B$9&" ["&$B18&"]"&IF($E$5<>"All","All",ddla)&$E$5,'LA FINAL RAW DATA'!$A:$I,5,0)),"", VLOOKUP($E$8&$B$9&" ["&$B18&"]"&IF($E$5<>"All","All",ddla)&$E$5,'LA FINAL RAW DATA'!$A:$I,9,0)) -> 1
B20: Adoption Performance | C20: =IF(ISERROR( VLOOKUP($E$8&$B$9&" [CLA Sub: "&$B20&"]"&IF($E$5<>"All","All",ddla)&$E$5,'LA FINAL RAW DATA'!$A:$I,5,0)),"", VLOOKUP($E$8&$B$9&" [CLA Sub: "&$B20&"]"&IF($E$5<>"All","All",ddla)&$E$5,'LA FINAL RAW DATA'!$A:$I,5,0)) -> 8 | D20: =IF(ISERROR( VLOOKUP($E$8&$B$9&" [CLA Sub: "&$B20&"]"&IF($E$5<>"All","All",ddla)&$E$5,'LA FINAL RAW DATA'!$A:$I,5,0)),"", VLOOKUP($E$8&$B$9&" [CLA Sub: "&$B20&"]"&IF($E$5<>"All","All",ddla)&$E$5,'LA FINAL RAW DATA'!$A:$I,6,0)) -> 62 | E20: =IF(ISERROR( VLOOKUP($E$8&$B$9&" [CLA Sub: "&$B20&"]"&IF($E$5<>"All","All",ddla)&$E$5,'LA FINAL RAW DATA'!$A:$I,5,0)),"", VLOOKUP($E$8&$B$9&" [CLA Sub: "&$B20&"]"&IF($E$5<>"All","All",ddla)&$E$5,'LA FINAL RAW DATA'!$A:$I,7,0)) -> 48 | F20: =IF(ISERROR( VLOOKUP($E$8&$B$9&" [CLA Sub: "&$B20&"]"&IF($E$5<>"All","All",ddla)&$E$5,'LA FINAL RAW DATA'!$A:$I,5,0)),"", VLOOKUP($E$8&$B$9&" [CLA Sub: "&$B20&"]"&IF($E$5<>"All","All",ddla)&$E$5,'LA FINAL RAW DATA'!$A:$I,8,0)) -> 7 | G20: =IF(ISERROR( VLOOKUP($E$8&$B$9&" [CLA Sub: "&$B20&"]"&IF($E$5<>"All","All",ddla)&$E$5,'LA FINAL RAW DATA'!$A:$I,5,0)),"", VLOOKUP($E$8&$B$9&" [CLA Sub: "&$B20&"]"&IF($E$5<>"All","All",ddla)&$E$5,'LA FINAL RAW DATA'!$A:$I,9,0)) -> 2
B22: Experiences and progress of care leavers | C22: =IF(ISERROR( VLOOKUP($E$8&$B$9&" [CLA Sub: "&$B22&"]"&IF($E$5<>"All","All",ddla)&$E$5,'LA FINAL RAW DATA'!$A:$I,5,0)),"", VLOOKUP($E$8&$B$9&" [CLA Sub: "&$B22&"]"&IF($E$5<>"All","All",ddla)&$E$5,'LA FINAL RAW DATA'!$A:$I,5,0)) -> 6 | D22: =IF(ISERROR( VLOOKUP($E$8&$B$9&" [CLA Sub: "&$B22&"]"&IF($E$5<>"All","All",ddla)&$E$5,'LA FINAL RAW DATA'!$A:$I,5,0)),"", VLOOKUP($E$8&$B$9&" [CLA Sub: "&$B22&"]"&IF($E$5<>"All","All",ddla)&$E$5,'LA FINAL RAW DATA'!$A:$I,6,0)) -> 44 | E22: =IF(ISERROR( VLOOKUP($E$8&$B$9&" [CLA Sub: "&$B22&"]"&IF($E$5<>"All","All",ddla)&$E$5,'LA FINAL RAW DATA'!$A:$I,5,0)),"", VLOOKUP($E$8&$B$9&" [CLA Sub: "&$B22&"]"&IF($E$5<>"All","All",ddla)&$E$5,'LA FINAL RAW DATA'!$A:$I,7,0)) -> 61 | F22: =IF(ISERROR( VLOOKUP($E$8&$B$9&" [CLA Sub: "&$B22&"]"&IF($E$5<>"All","All",ddla)&$E$5,'LA FINAL RAW DATA'!$A:$I,5,0)),"", VLOOKUP($E$8&$B$9&" [CLA Sub: "&$B22&"]"&IF($E$5<>"All","All",ddla)&$E$5,'LA FINAL RAW DATA'!$A:$I,8,0)) -> 15 | G22: =IF(ISERROR( VLOOKUP($E$8&$B$9&" [CLA Sub: "&$B22&"]"&IF($E$5<>"All","All",ddla)&$E$5,'LA FINAL RAW DATA'!$A:$I,5,0)),"", VLOOKUP($E$8&$B$9&" [CLA Sub: "&$B22&"]"&IF($E$5<>"All","All",ddla)&$E$5,'LA FINAL RAW DATA'!$A:$I,9,0)) -> 1
B24: Leadership, management and governance | C24: =IF(ISERROR( VLOOKUP($E$8&$B$9&" ["&$B24&"]"&IF($E$5<>"All","All",ddla)&$E$5,'LA FINAL RAW DATA'!$A:$I,5,0)),"", VLOOKUP($E$8&$B$9&" ["&$B24&"]"&IF($E$5<>"All","All",ddla)&$E$5,'LA FINAL RAW DATA'!$A:$I,5,0)) -> 8 | D24: =IF(ISERROR( VLOOKUP($E$8&$B$9&" ["&$B24&"]"&IF($E$5<>"All","All",ddla)&$E$5,'LA FINAL RAW DATA'!$A:$I,5,0)),"", VLOOKUP($E$8&$B$9&" ["&$B24&"]"&IF($E$5<>"All","All",ddla)&$E$5,'LA FINAL RAW DATA'!$A:$I,6,0)) -> 34 | E24: =IF(ISERROR( VLOOKUP($E$8&$B$9&" ["&$B24&"]"&IF($E$5<>"All","All",ddla)&$E$5,'LA FINAL RAW DATA'!$A:$I,5,0)),"", VLOOKUP($E$8&$B$9&" ["&$B24&"]"&IF($E$5<>"All","All",ddla)&$E$5,'LA FINAL RAW DATA'!$A:$I,7,0)) -> 58 | F24: =IF(ISERROR( VLOOKUP($E$8&$B$9&" ["&$B24&"]"&IF($E$5<>"All","All",ddla)&$E$5,'LA FINAL RAW DATA'!$A:$I,5,0)),"", VLOOKUP($E$8&$B$9&" ["&$B24&"]"&IF($E$5<>"All","All",ddla)&$E$5,'LA FINAL RAW DATA'!$A:$I,8,0)) -> 27 | G24: =IF(ISERROR( VLOOKUP($E$8&$B$9&" ["&$B24&"]"&IF($E$5<>"All","All",ddla)&$E$5,'LA FINAL RAW DATA'!$A:$I,5,0)),"", VLOOKUP($E$8&$B$9&" ["&$B24&"]"&IF($E$5<>"All","All",ddla)&$E$5,'LA FINAL RAW DATA'!$A:$I,9,0)) -> 0
B29: =IF(B5<>"All",B5,IF(E5<>"All",VLOOKUP(E5,'Region Lookups'!C:D,2,0),"All")) -> All
D31: Total number inspected | F31: Outstanding | H31: Good | J31: Requires Improvement/ Adequate | M31: Inadequate
F32: 6 | H32: 7 | J32: 8 | M32: 9
B33: England | D33: =SUM(F33:M33) -> 127 | F33: =IF(ISERROR(VLOOKUP($E$8&$B$9&"ALL"&"ALL",'LA FINAL RAW DATA'!$A:$I,5,0))=TRUE,"",VLOOKUP($E$8&$B$9&"ALL"&"ALL",'LA FINAL RAW DATA'!$A:$I,5,0)) -> 2 | H33: =IF(ISERROR(VLOOKUP($E$8&$B$9&"ALL"&"ALL",'LA FINAL RAW DATA'!$A:$I,6,0))=TRUE,"",VLOOKUP($E$8&$B$9&"ALL"&"ALL",'LA FINAL RAW DATA'!$A:$I,6,0)) -> 35 | J33: =IF(ISERROR(VLOOKUP($E$8&$B$9&"ALL"&"ALL",'LA FINAL RAW DATA'!$A:$I,7,0))=TRUE,"",VLOOKUP($E$8&$B$9&"ALL"&"ALL",'LA FINAL RAW DATA'!$A:$I,7,0)) -> 60 | M33: =IF(ISERROR(VLOOKUP($E$8&$B$9&"ALL"&"ALL",'LA FINAL RAW DATA'!$A:$I,8,0))=TRUE,"",VLOOKUP($E$8&$B$9&"ALL"&"ALL",'LA FINAL RAW DATA'!$A:$I,8,0)) -> 30
B35: =IFERROR(IF(B29="All",NA(),B29),"") ->  | D35: =IF(ISERROR(VLOOKUP($E$8&B35&"All",'LA FINAL RAW DATA'!$A:$I,5,0)),"",SUM(F35:M35)) ->  | F35: =IF(ISERROR(VLOOKUP($E$8&$B$9&$B$35&"ALL",'LA FINAL RAW DATA'!$A:$I,5,0))=TRUE,"",VLOOKUP($E$8&$B$9&$B$35&"ALL",'LA FINAL RAW DATA'!$A:$I,5,0)) ->  | H35: =IF(ISERROR(VLOOKUP($E$8&$B$9&$B$35&"ALL",'LA FINAL RAW DATA'!$A:$I,6,0))=TRUE,"",VLOOKUP($E$8&$B$9&$B$35&"ALL",'LA FINAL RAW DATA'!$A:$I,6,0)) ->  | J35: =IF(ISERROR(VLOOKUP($E$8&$B$9&$B$35&"ALL",'LA FINAL RAW DATA'!$A:$I,7,0))=TRUE,"",VLOOKUP($E$8&$B$9&$B$35&"ALL",'LA FINAL RAW DATA'!$A:$I,7,0)) ->  | M35: =IF(ISERROR(VLOOKUP($E$8&$B$9&$B$35&"ALL",'LA FINAL RAW DATA'!$A:$I,8,0))=TRUE,"",VLOOKUP($E$8&$B$9&$B$35&"ALL",'LA FINAL RAW DATA'!$A:$I,8,0)) -> 
A36: 1 | B36: =IFERROR(VLOOKUP($B$29&A36,'Region Lookups'!A:C,3,0),"") ->  | D36: =IF(ISERROR(VLOOKUP($E$8&"All"&$B36,'LA FINAL RAW DATA'!$A:$I,5,0)),"",SUM(F36:N36)) ->  | F36: =IF(ISERROR(VLOOKUP($E$8&$B$9&IF($B36<>"All","All",$B$5)&$B36,'LA FINAL RAW DATA'!$A:$I,5,0))=TRUE,IF(B36="","",0),VLOOKUP($E$8&$B$9&IF($B36<>"All","All",$B$5)&$B36,'LA FINAL RAW DATA'!$A:$I,5,0)) ->  | H36: =IF(ISERROR(VLOOKUP($E$8&$B$9&IF($B36<>"All","All",$B$5)&$B36,'LA FINAL RAW DATA'!$A:$I,6,0))=TRUE,IF(B36="","",0),VLOOKUP($E$8&$B$9&IF($B36<>"All","All",$B$5)&$B36,'LA FINAL RAW DATA'!$A:$I,6,0)) ->  | J36: =IF(ISERROR(VLOOKUP($E$8&$B$9&IF($B36<>"All","All",$B$5)&$B36,'LA FINAL RAW DATA'!$A:$I,7,0))=TRUE,IF(B36="","",0),VLOOKUP($E$8&$B$9&IF($B36<>"All","All",$B$5)&$B36,'LA FINAL RAW DATA'!$A:$I,7,0)) ->  | M36: =IF(ISERROR(VLOOKUP($E$8&$B$9&IF($B36<>"All","All",$B$5)&$B36,'LA FINAL RAW DATA'!$A:$I,8,0))=TRUE,IF(B36="","",0),VLOOKUP($E$8&$B$9&IF($B36<>"All","All",$B$5)&$B36,'LA FINAL RAW DATA'!$A:$I,8,0)) -> 
A37: 2 | B37: =IFERROR(VLOOKUP($B$29&A37,'Region Lookups'!A:C,3,0),"") ->  | D37: =IF(ISERROR(VLOOKUP($E$8&"All"&$B37,'LA FINAL RAW DATA'!$A:$I,5,0)),"",SUM(F37:N37)) ->  | F37: =IF(ISERROR(VLOOKUP($E$8&$B$9&IF($B37<>"All","All",$B$5)&$B37,'LA FINAL RAW DATA'!$A:$I,5,0))=TRUE,IF(B37="","",0),VLOOKUP($E$8&$B$9&IF($B37<>"All","All",$B$5)&$B37,'LA FINAL RAW DATA'!$A:$I,5,0)) ->  | H37: =IF(ISERROR(VLOOKUP($E$8&$B$9&IF($B37<>"All","All",$B$5)&$B37,'LA FINAL RAW DATA'!$A:$I,6,0))=TRUE,IF(B37="","",0),VLOOKUP($E$8&$B$9&IF($B37<>"All","All",$B$5)&$B37,'LA FINAL RAW DATA'!$A:$I,6,0)) ->  | J37: =IF(ISERROR(VLOOKUP($E$8&$B$9&IF($B37<>"All","All",$B$5)&$B37,'LA FINAL RAW DATA'!$A:$I,7,0))=TRUE,IF(B37="","",0),VLOOKUP($E$8&$B$9&IF($B37<>"All","All",$B$5)&$B37,'LA FINAL RAW DATA'!$A:$I,7,0)) ->  | M37: =IF(ISERROR(VLOOKUP($E$8&$B$9&IF($B37<>"All","All",$B$5)&$B37,'LA FINAL RAW DATA'!$A:$I,8,0))=TRUE,IF(B37="","",0),VLOOKUP($E$8&$B$9&IF($B37<>"All","All",$B$5)&$B37,'LA FINAL RAW DATA'!$A:$I,8,0)) -> 
A38: 3 | B38: =IFERROR(VLOOKUP($B$29&A38,'Region Lookups'!A:C,3,0),"") ->  | D38: =IF(ISERROR(VLOOKUP($E$8&"All"&$B38,'LA FINAL RAW DATA'!$A:$I,5,0)),"",SUM(F38:N38)) ->  | F38: =IF(ISERROR(VLOOKUP($E$8&$B$9&IF($B38<>"All","All",$B$5)&$B38,'LA FINAL RAW DATA'!$A:$I,5,0))=TRUE,IF(B38="","",0),VLOOKUP($E$8&$B$9&IF($B38<>"All","All",$B$5)&$B38,'LA FINAL RAW DATA'!$A:$I,5,0)) ->  | H38: =IF(ISERROR(VLOOKUP($E$8&$B$9&IF($B38<>"All","All",$B$5)&$B38,'LA FINAL RAW DATA'!$A:$I,6,0))=TRUE,IF(B38="","",0),VLOOKUP($E$8&$B$9&IF($B38<>"All","All",$B$5)&$B38,'LA FINAL RAW DATA'!$A:$I,6,0)) ->  | J38: =IF(ISERROR(VLOOKUP($E$8&$B$9&IF($B38<>"All","All",$B$5)&$B38,'LA FINAL RAW DATA'!$A:$I,7,0))=TRUE,IF(B38="","",0),VLOOKUP($E$8&$B$9&IF($B38<>"All","All",$B$5)&$B38,'LA FINAL RAW DATA'!$A:$I,7,0)) ->  | M38: =IF(ISERROR(VLOOKUP($E$8&$B$9&IF($B38<>"All","All",$B$5)&$B38,'LA FINAL RAW DATA'!$A:$I,8,0))=TRUE,IF(B38="","",0),VLOOKUP($E$8&$B$9&IF($B38<>"All","All",$B$5)&$B38,'LA FINAL RAW DATA'!$A:$I,8,0)) -> 
A39: 4 | B39: =IFERROR(VLOOKUP($B$29&A39,'Region Lookups'!A:C,3,0),"") ->  | D39: =IF(ISERROR(VLOOKUP($E$8&"All"&$B39,'LA FINAL RAW DATA'!$A:$I,5,0)),"",SUM(F39:N39)) ->  | F39: =IF(ISERROR(VLOOKUP($E$8&$B$9&IF($B39<>"All","All",$B$5)&$B39,'LA FINAL RAW DATA'!$A:$I,5,0))=TRUE,IF(B39="","",0),VLOOKUP($E$8&$B$9&IF($B39<>"All","All",$B$5)&$B39,'LA FINAL RAW DATA'!$A:$I,5,0)) ->  | H39: =IF(ISERROR(VLOOKUP($E$8&$B$9&IF($B39<>"All","All",$B$5)&$B39,'LA FINAL RAW DATA'!$A:$I,6,0))=TRUE,IF(B39="","",0),VLOOKUP($E$8&$B$9&IF($B39<>"All","All",$B$5)&$B39,'LA FINAL RAW DATA'!$A:$I,6,0)) ->  | J39: =IF(ISERROR(VLOOKUP($E$8&$B$9&IF($B39<>"All","All",$B$5)&$B39,'LA FINAL RAW DATA'!$A:$I,7,0))=TRUE,IF(B39="","",0),VLOOKUP($E$8&$B$9&IF($B39<>"All","All",$B$5)&$B39,'LA FINAL RAW DATA'!$A:$I,7,0)) ->  | M39: =IF(ISERROR(VLOOKUP($E$8&$B$9&IF($B39<>"All","All",$B$5)&$B39,'LA FINAL RAW DATA'!$A:$I,8,0))=TRUE,IF(B39="","",0),VLOOKUP($E$8&$B$9&IF($B39<>"All","All",$B$5)&$B39,'LA FINAL RAW DATA'!$A:$I,8,0)) -> 
A40: 5 | B40: =IFERROR(VLOOKUP($B$29&A40,'Region Lookups'!A:C,3,0),"") ->  | D40: =IF(ISERROR(VLOOKUP($E$8&"All"&$B40,'LA FINAL RAW DATA'!$A:$I,5,0)),"",SUM(F40:N40)) ->  | F40: =IF(ISERROR(VLOOKUP($E$8&$B$9&IF($B40<>"All","All",$B$5)&$B40,'LA FINAL RAW DATA'!$A:$I,5,0))=TRUE,IF(B40="","",0),VLOOKUP($E$8&$B$9&IF($B40<>"All","All",$B$5)&$B40,'LA FINAL RAW DATA'!$A:$I,5,0)) ->  | H40: =IF(ISERROR(VLOOKUP($E$8&$B$9&IF($B40<>"All","All",$B$5)&$B40,'LA FINAL RAW DATA'!$A:$I,6,0))=TRUE,IF(B40="","",0),VLOOKUP($E$8&$B$9&IF($B40<>"All","All",$B$5)&$B40,'LA FINAL RAW DATA'!$A:$I,6,0)) ->  | J40: =IF(ISERROR(VLOOKUP($E$8&$B$9&IF($B40<>"All","All",$B$5)&$B40,'LA FINAL RAW DATA'!$A:$I,7,0))=TRUE,IF(B40="","",0),VLOOKUP($E$8&$B$9&IF($B40<>"All","All",$B$5)&$B40,'LA FINAL RAW DATA'!$A:$I,7,0)) ->  | M40: =IF(ISERROR(VLOOKUP($E$8&$B$9&IF($B40<>"All","All",$B$5)&$B40,'LA FINAL RAW DATA'!$A:$I,8,0))=TRUE,IF(B40="","",0),VLOOKUP($E$8&$B$9&IF($B40<>"All","All",$B$5)&$B40,'LA FINAL RAW DATA'!$A:$I,8,0)) -> 
A41: 6 | B41: =IFERROR(VLOOKUP($B$29&A41,'Region Lookups'!A:C,3,0),"") ->  | D41: =IF(ISERROR(VLOOKUP($E$8&"All"&$B41,'LA FINAL RAW DATA'!$A:$I,5,0)),"",SUM(F41:N41)) ->  | F41: =IF(ISERROR(VLOOKUP($E$8&$B$9&IF($B41<>"All","All",$B$5)&$B41,'LA FINAL RAW DATA'!$A:$I,5,0))=TRUE,IF(B41="","",0),VLOOKUP($E$8&$B$9&IF($B41<>"All","All",$B$5)&$B41,'LA FINAL RAW DATA'!$A:$I,5,0)) ->  | H41: =IF(ISERROR(VLOOKUP($E$8&$B$9&IF($B41<>"All","All",$B$5)&$B41,'LA FINAL RAW DATA'!$A:$I,6,0))=TRUE,IF(B41="","",0),VLOOKUP($E$8&$B$9&IF($B41<>"All","All",$B$5)&$B41,'LA FINAL RAW DATA'!$A:$I,6,0)) ->  | J41: =IF(ISERROR(VLOOKUP($E$8&$B$9&IF($B41<>"All","All",$B$5)&$B41,'LA FINAL RAW DATA'!$A:$I,7,0))=TRUE,IF(B41="","",0),VLOOKUP($E$8&$B$9&IF($B41<>"All","All",$B$5)&$B41,'LA FINAL RAW DATA'!$A:$I,7,0)) ->  | M41: =IF(ISERROR(VLOOKUP($E$8&$B$9&IF($B41<>"All","All",$B$5)&$B41,'LA FINAL RAW DATA'!$A:$I,8,0))=TRUE,IF(B41="","",0),VLOOKUP($E$8&$B$9&IF($B41<>"All","All",$B$5)&$B41,'LA FINAL RAW DATA'!$A:$I,8,0)) -> 
A42: 7 | B42: =IFERROR(VLOOKUP($B$29&A42,'Region Lookups'!A:C,3,0),"") ->  | D42: =IF(ISERROR(VLOOKUP($E$8&"All"&$B42,'LA FINAL RAW DATA'!$A:$I,5,0)),"",SUM(F42:N42)) ->  | F42: =IF(ISERROR(VLOOKUP($E$8&$B$9&IF($B42<>"All","All",$B$5)&$B42,'LA FINAL RAW DATA'!$A:$I,5,0))=TRUE,IF(B42="","",0),VLOOKUP($E$8&$B$9&IF($B42<>"All","All",$B$5)&$B42,'LA FINAL RAW DATA'!$A:$I,5,0)) ->  | H42: =IF(ISERROR(VLOOKUP($E$8&$B$9&IF($B42<>"All","All",$B$5)&$B42,'LA FINAL RAW DATA'!$A:$I,6,0))=TRUE,IF(B42="","",0),VLOOKUP($E$8&$B$9&IF($B42<>"All","All",$B$5)&$B42,'LA FINAL RAW DATA'!$A:$I,6,0)) ->  | J42: =IF(ISERROR(VLOOKUP($E$8&$B$9&IF($B42<>"All","All",$B$5)&$B42,'LA FINAL RAW DATA'!$A:$I,7,0))=TRUE,IF(B42="","",0),VLOOKUP($E$8&$B$9&IF($B42<>"All","All",$B$5)&$B42,'LA FINAL RAW DATA'!$A:$I,7,0)) ->  | M42: =IF(ISERROR(VLOOKUP($E$8&$B$9&IF($B42<>"All","All",$B$5)&$B42,'LA FINAL RAW DATA'!$A:$I,8,0))=TRUE,IF(B42="","",0),VLOOKUP($E$8&$B$9&IF($B42<>"All","All",$B$5)&$B42,'LA FINAL RAW DATA'!$A:$I,8,0)) -> 
A43: 8 | B43: =IFERROR(VLOOKUP($B$29&A43,'Region Lookups'!A:C,3,0),"") ->  | D43: =IF(ISERROR(VLOOKUP($E$8&"All"&$B43,'LA FINAL RAW DATA'!$A:$I,5,0)),"",SUM(F43:N43)) ->  | F43: =IF(ISERROR(VLOOKUP($E$8&$B$9&IF($B43<>"All","All",$B$5)&$B43,'LA FINAL RAW DATA'!$A:$I,5,0))=TRUE,IF(B43="","",0),VLOOKUP($E$8&$B$9&IF($B43<>"All","All",$B$5)&$B43,'LA FINAL RAW DATA'!$A:$I,5,0)) ->  | H43: =IF(ISERROR(VLOOKUP($E$8&$B$9&IF($B43<>"All","All",$B$5)&$B43,'LA FINAL RAW DATA'!$A:$I,6,0))=TRUE,IF(B43="","",0),VLOOKUP($E$8&$B$9&IF($B43<>"All","All",$B$5)&$B43,'LA FINAL RAW DATA'!$A:$I,6,0)) ->  | J43: =IF(ISERROR(VLOOKUP($E$8&$B$9&IF($B43<>"All","All",$B$5)&$B43,'LA FINAL RAW DATA'!$A:$I,7,0))=TRUE,IF(B43="","",0),VLOOKUP($E$8&$B$9&IF($B43<>"All","All",$B$5)&$B43,'LA FINAL RAW DATA'!$A:$I,7,0)) ->  | M43: =IF(ISERROR(VLOOKUP($E$8&$B$9&IF($B43<>"All","All",$B$5)&$B43,'LA FINAL RAW DATA'!$A:$I,8,0))=TRUE,IF(B43="","",0),VLOOKUP($E$8&$B$9&IF($B43<>"All","All",$B$5)&$B43,'LA FINAL RAW DATA'!$A:$I,8,0)) -> 
A44: 9 | B44: =IFERROR(VLOOKUP($B$29&A44,'Region Lookups'!A:C,3,0),"") ->  | D44: =IF(ISERROR(VLOOKUP($E$8&"All"&$B44,'LA FINAL RAW DATA'!$A:$I,5,0)),"",SUM(F44:N44)) ->  | F44: =IF(ISERROR(VLOOKUP($E$8&$B$9&IF($B44<>"All","All",$B$5)&$B44,'LA FINAL RAW DATA'!$A:$I,5,0))=TRUE,IF(B44="","",0),VLOOKUP($E$8&$B$9&IF($B44<>"All","All",$B$5)&$B44,'LA FINAL RAW DATA'!$A:$I,5,0)) ->  | H44: =IF(ISERROR(VLOOKUP($E$8&$B$9&IF($B44<>"All","All",$B$5)&$B44,'LA FINAL RAW DATA'!$A:$I,6,0))=TRUE,IF(B44="","",0),VLOOKUP($E$8&$B$9&IF($B44<>"All","All",$B$5)&$B44,'LA FINAL RAW DATA'!$A:$I,6,0)) ->  | J44: =IF(ISERROR(VLOOKUP($E$8&$B$9&IF($B44<>"All","All",$B$5)&$B44,'LA FINAL RAW DATA'!$A:$I,7,0))=TRUE,IF(B44="","",0),VLOOKUP($E$8&$B$9&IF($B44<>"All","All",$B$5)&$B44,'LA FINAL RAW DATA'!$A:$I,7,0)) ->  | M44: =IF(ISERROR(VLOOKUP($E$8&$B$9&IF($B44<>"All","All",$B$5)&$B44,'LA FINAL RAW DATA'!$A:$I,8,0))=TRUE,IF(B44="","",0),VLOOKUP($E$8&$B$9&IF($B44<>"All","All",$B$5)&$B44,'LA FINAL RAW DATA'!$A:$I,8,0)) -> 
A45: 10 | B45: =IFERROR(VLOOKUP($B$29&A45,'Region Lookups'!A:C,3,0),"") ->  | D45: =IF(ISERROR(VLOOKUP($E$8&"All"&$B45,'LA FINAL RAW DATA'!$A:$I,5,0)),"",SUM(F45:N45)) ->  | F45: =IF(ISERROR(VLOOKUP($E$8&$B$9&IF($B45<>"All","All",$B$5)&$B45,'LA FINAL RAW DATA'!$A:$I,5,0))=TRUE,IF(B45="","",0),VLOOKUP($E$8&$B$9&IF($B45<>"All","All",$B$5)&$B45,'LA FINAL RAW DATA'!$A:$I,5,0)) ->  | H45: =IF(ISERROR(VLOOKUP($E$8&$B$9&IF($B45<>"All","All",$B$5)&$B45,'LA FINAL RAW DATA'!$A:$I,6,0))=TRUE,IF(B45="","",0),VLOOKUP($E$8&$B$9&IF($B45<>"All","All",$B$5)&$B45,'LA FINAL RAW DATA'!$A:$I,6,0)) ->  | J45: =IF(ISERROR(VLOOKUP($E$8&$B$9&IF($B45<>"All","All",$B$5)&$B45,'LA FINAL RAW DATA'!$A:$I,7,0))=TRUE,IF(B45="","",0),VLOOKUP($E$8&$B$9&IF($B45<>"All","All",$B$5)&$B45,'LA FINAL RAW DATA'!$A:$I,7,0)) ->  | M45: =IF(ISERROR(VLOOKUP($E$8&$B$9&IF($B45<>"All","All",$B$5)&$B45,'LA FINAL RAW DATA'!$A:$I,8,0))=TRUE,IF(B45="","",0),VLOOKUP($E$8&$B$9&IF($B45<>"All","All",$B$5)&$B45,'LA FINAL RAW DATA'!$A:$I,8,0)) -> 
A46: 11 | B46: =IFERROR(VLOOKUP($B$29&A46,'Region Lookups'!A:C,3,0),"") ->  | D46: =IF(ISERROR(VLOOKUP($E$8&"All"&$B46,'LA FINAL RAW DATA'!$A:$I,5,0)),"",SUM(F46:N46)) ->  | F46: =IF(ISERROR(VLOOKUP($E$8&$B$9&IF($B46<>"All","All",$B$5)&$B46,'LA FINAL RAW DATA'!$A:$I,5,0))=TRUE,IF(B46="","",0),VLOOKUP($E$8&$B$9&IF($B46<>"All","All",$B$5)&$B46,'LA FINAL RAW DATA'!$A:$I,5,0)) ->  | H46: =IF(ISERROR(VLOOKUP($E$8&$B$9&IF($B46<>"All","All",$B$5)&$B46,'LA FINAL RAW DATA'!$A:$I,6,0))=TRUE,IF(B46="","",0),VLOOKUP($E$8&$B$9&IF($B46<>"All","All",$B$5)&$B46,'LA FINAL RAW DATA'!$A:$I,6,0)) ->  | J46: =IF(ISERROR(VLOOKUP($E$8&$B$9&IF($B46<>"All","All",$B$5)&$B46,'LA FINAL RAW DATA'!$A:$I,7,0))=TRUE,IF(B46="","",0),VLOOKUP($E$8&$B$9&IF($B46<>"All","All",$B$5)&$B46,'LA FINAL RAW DATA'!$A:$I,7,0)) ->  | M46: =IF(ISERROR(VLOOKUP($E$8&$B$9&IF($B46<>"All","All",$B$5)&$B46,'LA FINAL RAW DATA'!$A:$I,8,0))=TRUE,IF(B46="","",0),VLOOKUP($E$8&$B$9&IF($B46<>"All","All",$B$5)&$B46,'LA FINAL RAW DATA'!$A:$I,8,0)) -> 
A47: 12 | B47: =IFERROR(VLOOKUP($B$29&A47,'Region Lookups'!A:C,3,0),"") ->  | D47: =IF(ISERROR(VLOOKUP($E$8&"All"&$B47,'LA FINAL RAW DATA'!$A:$I,5,0)),"",SUM(F47:N47)) ->  | F47: =IF(ISERROR(VLOOKUP($E$8&$B$9&IF($B47<>"All","All",$B$5)&$B47,'LA FINAL RAW DATA'!$A:$I,5,0))=TRUE,IF(B47="","",0),VLOOKUP($E$8&$B$9&IF($B47<>"All","All",$B$5)&$B47,'LA FINAL RAW DATA'!$A:$I,5,0)) ->  | H47: =IF(ISERROR(VLOOKUP($E$8&$B$9&IF($B47<>"All","All",$B$5)&$B47,'LA FINAL RAW DATA'!$A:$I,6,0))=TRUE,IF(B47="","",0),VLOOKUP($E$8&$B$9&IF($B47<>"All","All",$B$5)&$B47,'LA FINAL RAW DATA'!$A:$I,6,0)) ->  | J47: =IF(ISERROR(VLOOKUP($E$8&$B$9&IF($B47<>"All","All",$B$5)&$B47,'LA FINAL RAW DATA'!$A:$I,7,0))=TRUE,IF(B47="","",0),VLOOKUP($E$8&$B$9&IF($B47<>"All","All",$B$5)&$B47,'LA FINAL RAW DATA'!$A:$I,7,0)) ->  | M47: =IF(ISERROR(VLOOKUP($E$8&$B$9&IF($B47<>"All","All",$B$5)&$B47,'LA FINAL RAW DATA'!$A:$I,8,0))=TRUE,IF(B47="","",0),VLOOKUP($E$8&$B$9&IF($B47<>"All","All",$B$5)&$B47,'LA FINAL RAW DATA'!$A:$I,8,0)) -> 
A48: 13 | B48: =IFERROR(VLOOKUP($B$29&A48,'Region Lookups'!A:C,3,0),"") ->  | D48: =IF(ISERROR(VLOOKUP($E$8&"All"&$B48,'LA FINAL RAW DATA'!$A:$I,5,0)),"",SUM(F48:N48)) ->  | F48: =IF(ISERROR(VLOOKUP($E$8&$B$9&IF($B48<>"All","All",$B$5)&$B48,'LA FINAL RAW DATA'!$A:$I,5,0))=TRUE,IF(B48="","",0),VLOOKUP($E$8&$B$9&IF($B48<>"All","All",$B$5)&$B48,'LA FINAL RAW DATA'!$A:$I,5,0)) ->  | H48: =IF(ISERROR(VLOOKUP($E$8&$B$9&IF($B48<>"All","All",$B$5)&$B48,'LA FINAL RAW DATA'!$A:$I,6,0))=TRUE,IF(B48="","",0),VLOOKUP($E$8&$B$9&IF($B48<>"All","All",$B$5)&$B48,'LA FINAL RAW DATA'!$A:$I,6,0)) ->  | J48: =IF(ISERROR(VLOOKUP($E$8&$B$9&IF($B48<>"All","All",$B$5)&$B48,'LA FINAL RAW DATA'!$A:$I,7,0))=TRUE,IF(B48="","",0),VLOOKUP($E$8&$B$9&IF($B48<>"All","All",$B$5)&$B48,'LA FINAL RAW DATA'!$A:$I,7,0)) ->  | M48: =IF(ISERROR(VLOOKUP($E$8&$B$9&IF($B48<>"All","All",$B$5)&$B48,'LA FINAL RAW DATA'!$A:$I,8,0))=TRUE,IF(B48="","",0),VLOOKUP($E$8&$B$9&IF($B48<>"All","All",$B$5)&$B48,'LA FINAL RAW DATA'!$A:$I,8,0)) -> 
A49: 14 | B49: =IFERROR(VLOOKUP($B$29&A49,'Region Lookups'!A:C,3,0),"") ->  | D49: =IF(ISERROR(VLOOKUP($E$8&"All"&$B49,'LA FINAL RAW DATA'!$A:$I,5,0)),"",SUM(F49:N49)) ->  | F49: =IF(ISERROR(VLOOKUP($E$8&$B$9&IF($B49<>"All","All",$B$5)&$B49,'LA FINAL RAW DATA'!$A:$I,5,0))=TRUE,IF(B49="","",0),VLOOKUP($E$8&$B$9&IF($B49<>"All","All",$B$5)&$B49,'LA FINAL RAW DATA'!$A:$I,5,0)) ->  | H49: =IF(ISERROR(VLOOKUP($E$8&$B$9&IF($B49<>"All","All",$B$5)&$B49,'LA FINAL RAW DATA'!$A:$I,6,0))=TRUE,IF(B49="","",0),VLOOKUP($E$8&$B$9&IF($B49<>"All","All",$B$5)&$B49,'LA FINAL RAW DATA'!$A:$I,6,0)) ->  | J49: =IF(ISERROR(VLOOKUP($E$8&$B$9&IF($B49<>"All","All",$B$5)&$B49,'LA FINAL RAW DATA'!$A:$I,7,0))=TRUE,IF(B49="","",0),VLOOKUP($E$8&$B$9&IF($B49<>"All","All",$B$5)&$B49,'LA FINAL RAW DATA'!$A:$I,7,0)) ->  | M49: =IF(ISERROR(VLOOKUP($E$8&$B$9&IF($B49<>"All","All",$B$5)&$B49,'LA FINAL RAW DATA'!$A:$I,8,0))=TRUE,IF(B49="","",0),VLOOKUP($E$8&$B$9&IF($B49<>"All","All",$B$5)&$B49,'LA FINAL RAW DATA'!$A:$I,8,0)) -> 
A50: 15 | B50: =IFERROR(VLOOKUP($B$29&A50,'Region Lookups'!A:C,3,0),"") ->  | D50: =IF(ISERROR(VLOOKUP($E$8&"All"&$B50,'LA FINAL RAW DATA'!$A:$I,5,0)),"",SUM(F50:N50)) ->  | F50: =IF(ISERROR(VLOOKUP($E$8&$B$9&IF($B50<>"All","All",$B$5)&$B50,'LA FINAL RAW DATA'!$A:$I,5,0))=TRUE,IF(B50="","",0),VLOOKUP($E$8&$B$9&IF($B50<>"All","All",$B$5)&$B50,'LA FINAL RAW DATA'!$A:$I,5,0)) ->  | H50: =IF(ISERROR(VLOOKUP($E$8&$B$9&IF($B50<>"All","All",$B$5)&$B50,'LA FINAL RAW DATA'!$A:$I,6,0))=TRUE,IF(B50="","",0),VLOOKUP($E$8&$B$9&IF($B50<>"All","All",$B$5)&$B50,'LA FINAL RAW DATA'!$A:$I,6,0)) ->  | J50: =IF(ISERROR(VLOOKUP($E$8&$B$9&IF($B50<>"All","All",$B$5)&$B50,'LA FINAL RAW DATA'!$A:$I,7,0))=TRUE,IF(B50="","",0),VLOOKUP($E$8&$B$9&IF($B50<>"All","All",$B$5)&$B50,'LA FINAL RAW DATA'!$A:$I,7,0)) ->  | M50: =IF(ISERROR(VLOOKUP($E$8&$B$9&IF($B50<>"All","All",$B$5)&$B50,'LA FINAL RAW DATA'!$A:$I,8,0))=TRUE,IF(B50="","",0),VLOOKUP($E$8&$B$9&IF($B50<>"All","All",$B$5)&$B50,'LA FINAL RAW DATA'!$A:$I,8,0)) -> 
A51: 16 | B51: =IFERROR(VLOOKUP($B$29&A51,'Region Lookups'!A:C,3,0),"") ->  | D51: =IF(ISERROR(VLOOKUP($E$8&"All"&$B51,'LA FINAL RAW DATA'!$A:$I,5,0)),"",SUM(F51:N51)) ->  | F51: =IF(ISERROR(VLOOKUP($E$8&$B$9&IF($B51<>"All","All",$B$5)&$B51,'LA FINAL RAW DATA'!$A:$I,5,0))=TRUE,IF(B51="","",0),VLOOKUP($E$8&$B$9&IF($B51<>"All","All",$B$5)&$B51,'LA FINAL RAW DATA'!$A:$I,5,0)) ->  | H51: =IF(ISERROR(VLOOKUP($E$8&$B$9&IF($B51<>"All","All",$B$5)&$B51,'LA FINAL RAW DATA'!$A:$I,6,0))=TRUE,IF(B51="","",0),VLOOKUP($E$8&$B$9&IF($B51<>"All","All",$B$5)&$B51,'LA FINAL RAW DATA'!$A:$I,6,0)) ->  | J51: =IF(ISERROR(VLOOKUP($E$8&$B$9&IF($B51<>"All","All",$B$5)&$B51,'LA FINAL RAW DATA'!$A:$I,7,0))=TRUE,IF(B51="","",0),VLOOKUP($E$8&$B$9&IF($B51<>"All","All",$B$5)&$B51,'LA FINAL RAW DATA'!$A:$I,7,0)) ->  | M51: =IF(ISERROR(VLOOKUP($E$8&$B$9&IF($B51<>"All","All",$B$5)&$B51,'LA FINAL RAW DATA'!$A:$I,8,0))=TRUE,IF(B51="","",0),VLOOKUP($E$8&$B$9&IF($B51<>"All","All",$B$5)&$B51,'LA FINAL RAW DATA'!$A:$I,8,0)) -> 
A52: 17 | B52: =IFERROR(VLOOKUP($B$29&A52,'Region Lookups'!A:C,3,0),"") ->  | D52: =IF(ISERROR(VLOOKUP($E$8&"All"&$B52,'LA FINAL RAW DATA'!$A:$I,5,0)),"",SUM(F52:N52)) ->  | F52: =IF(ISERROR(VLOOKUP($E$8&$B$9&IF($B52<>"All","All",$B$5)&$B52,'LA FINAL RAW DATA'!$A:$I,5,0))=TRUE,IF(B52="","",0),VLOOKUP($E$8&$B$9&IF($B52<>"All","All",$B$5)&$B52,'LA FINAL RAW DATA'!$A:$I,5,0)) ->  | H52: =IF(ISERROR(VLOOKUP($E$8&$B$9&IF($B52<>"All","All",$B$5)&$B52,'LA FINAL RAW DATA'!$A:$I,6,0))=TRUE,IF(B52="","",0),VLOOKUP($E$8&$B$9&IF($B52<>"All","All",$B$5)&$B52,'LA FINAL RAW DATA'!$A:$I,6,0)) ->  | J52: =IF(ISERROR(VLOOKUP($E$8&$B$9&IF($B52<>"All","All",$B$5)&$B52,'LA FINAL RAW DATA'!$A:$I,7,0))=TRUE,IF(B52="","",0),VLOOKUP($E$8&$B$9&IF($B52<>"All","All",$B$5)&$B52,'LA FINAL RAW DATA'!$A:$I,7,0)) ->  | M52: =IF(ISERROR(VLOOKUP($E$8&$B$9&IF($B52<>"All","All",$B$5)&$B52,'LA FINAL RAW DATA'!$A:$I,8,0))=TRUE,IF(B52="","",0),VLOOKUP($E$8&$B$9&IF($B52<>"All","All",$B$5)&$B52,'LA FINAL RAW DATA'!$A:$I,8,0)) -> 
A53: 18 | B53: =IFERROR(VLOOKUP($B$29&A53,'Region Lookups'!A:C,3,0),"") ->  | D53: =IF(ISERROR(VLOOKUP($E$8&"All"&$B53,'LA FINAL RAW DATA'!$A:$I,5,0)),"",SUM(F53:N53)) ->  | F53: =IF(ISERROR(VLOOKUP($E$8&$B$9&IF($B53<>"All","All",$B$5)&$B53,'LA FINAL RAW DATA'!$A:$I,5,0))=TRUE,IF(B53="","",0),VLOOKUP($E$8&$B$9&IF($B53<>"All","All",$B$5)&$B53,'LA FINAL RAW DATA'!$A:$I,5,0)) ->  | H53: =IF(ISERROR(VLOOKUP($E$8&$B$9&IF($B53<>"All","All",$B$5)&$B53,'LA FINAL RAW DATA'!$A:$I,6,0))=TRUE,IF(B53="","",0),VLOOKUP($E$8&$B$9&IF($B53<>"All","All",$B$5)&$B53,'LA FINAL RAW DATA'!$A:$I,6,0)) ->  | J53: =IF(ISERROR(VLOOKUP($E$8&$B$9&IF($B53<>"All","All",$B$5)&$B53,'LA FINAL RAW DATA'!$A:$I,7,0))=TRUE,IF(B53="","",0),VLOOKUP($E$8&$B$9&IF($B53<>"All","All",$B$5)&$B53,'LA FINAL RAW DATA'!$A:$I,7,0)) ->  | M53: =IF(ISERROR(VLOOKUP($E$8&$B$9&IF($B53<>"All","All",$B$5)&$B53,'LA FINAL RAW DATA'!$A:$I,8,0))=TRUE,IF(B53="","",0),VLOOKUP($E$8&$B$9&IF($B53<>"All","All",$B$5)&$B53,'LA FINAL RAW DATA'!$A:$I,8,0)) -> 
A54: 19 | B54: =IFERROR(VLOOKUP($B$29&A54,'Region Lookups'!A:C,3,0),"") ->  | D54: =IF(ISERROR(VLOOKUP($E$8&"All"&$B54,'LA FINAL RAW DATA'!$A:$I,5,0)),"",SUM(F54:N54)) ->  | F54: =IF(ISERROR(VLOOKUP($E$8&$B$9&IF($B54<>"All","All",$B$5)&$B54,'LA FINAL RAW DATA'!$A:$I,5,0))=TRUE,IF(B54="","",0),VLOOKUP($E$8&$B$9&IF($B54<>"All","All",$B$5)&$B54,'LA FINAL RAW DATA'!$A:$I,5,0)) ->  | H54: =IF(ISERROR(VLOOKUP($E$8&$B$9&IF($B54<>"All","All",$B$5)&$B54,'LA FINAL RAW DATA'!$A:$I,6,0))=TRUE,IF(B54="","",0),VLOOKUP($E$8&$B$9&IF($B54<>"All","All",$B$5)&$B54,'LA FINAL RAW DATA'!$A:$I,6,0)) ->  | J54: =IF(ISERROR(VLOOKUP($E$8&$B$9&IF($B54<>"All","All",$B$5)&$B54,'LA FINAL RAW DATA'!$A:$I,7,0))=TRUE,IF(B54="","",0),VLOOKUP($E$8&$B$9&IF($B54<>"All","All",$B$5)&$B54,'LA FINAL RAW DATA'!$A:$I,7,0)) ->  | M54: =IF(ISERROR(VLOOKUP($E$8&$B$9&IF($B54<>"All","All",$B$5)&$B54,'LA FINAL RAW DATA'!$A:$I,8,0))=TRUE,IF(B54="","",0),VLOOKUP($E$8&$B$9&IF($B54<>"All","All",$B$5)&$B54,'LA FINAL RAW DATA'!$A:$I,8,0)) -> 
A55: 20 | B55: =IFERROR(VLOOKUP($B$29&A55,'Region Lookups'!A:C,3,0),"") ->  | D55: =IF(ISERROR(VLOOKUP($E$8&"All"&$B55,'LA FINAL RAW DATA'!$A:$I,5,0)),"",SUM(F55:N55)) ->  | F55: =IF(ISERROR(VLOOKUP($E$8&$B$9&IF($B55<>"All","All",$B$5)&$B55,'LA FINAL RAW DATA'!$A:$I,5,0))=TRUE,IF(B55="","",0),VLOOKUP($E$8&$B$9&IF($B55<>"All","All",$B$5)&$B55,'LA FINAL RAW DATA'!$A:$I,5,0)) ->  | H55: =IF(ISERROR(VLOOKUP($E$8&$B$9&IF($B55<>"All","All",$B$5)&$B55,'LA FINAL RAW DATA'!$A:$I,6,0))=TRUE,IF(B55="","",0),VLOOKUP($E$8&$B$9&IF($B55<>"All","All",$B$5)&$B55,'LA FINAL RAW DATA'!$A:$I,6,0)) ->  | J55: =IF(ISERROR(VLOOKUP($E$8&$B$9&IF($B55<>"All","All",$B$5)&$B55,'LA FINAL RAW DATA'!$A:$I,7,0))=TRUE,IF(B55="","",0),VLOOKUP($E$8&$B$9&IF($B55<>"All","All",$B$5)&$B55,'LA FINAL RAW DATA'!$A:$I,7,0)) ->  | M55: =IF(ISERROR(VLOOKUP($E$8&$B$9&IF($B55<>"All","All",$B$5)&$B55,'LA FINAL RAW DATA'!$A:$I,8,0))=TRUE,IF(B55="","",0),VLOOKUP($E$8&$B$9&IF($B55<>"All","All",$B$5)&$B55,'LA FINAL RAW DATA'!$A:$I,8,0)) -> 
A56: 21 | B56: =IFERROR(VLOOKUP($B$29&A56,'Region Lookups'!A:C,3,0),"") ->  | D56: =IF(ISERROR(VLOOKUP($E$8&"All"&$B56,'LA FINAL RAW DATA'!$A:$I,5,0)),"",SUM(F56:N56)) ->  | F56: =IF(ISERROR(VLOOKUP($E$8&$B$9&IF($B56<>"All","All",$B$5)&$B56,'LA FINAL RAW DATA'!$A:$I,5,0))=TRUE,IF(B56="","",0),VLOOKUP($E$8&$B$9&IF($B56<>"All","All",$B$5)&$B56,'LA FINAL RAW DATA'!$A:$I,5,0)) ->  | H56: =IF(ISERROR(VLOOKUP($E$8&$B$9&IF($B56<>"All","All",$B$5)&$B56,'LA FINAL RAW DATA'!$A:$I,6,0))=TRUE,IF(B56="","",0),VLOOKUP($E$8&$B$9&IF($B56<>"All","All",$B$5)&$B56,'LA FINAL RAW DATA'!$A:$I,6,0)) ->  | J56: =IF(ISERROR(VLOOKUP($E$8&$B$9&IF($B56<>"All","All",$B$5)&$B56,'LA FINAL RAW DATA'!$A:$I,7,0))=TRUE,IF(B56="","",0),VLOOKUP($E$8&$B$9&IF($B56<>"All","All",$B$5)&$B56,'LA FINAL RAW DATA'!$A:$I,7,0)) ->  | M56: =IF(ISERROR(VLOOKUP($E$8&$B$9&IF($B56<>"All","All",$B$5)&$B56,'LA FINAL RAW DATA'!$A:$I,8,0))=TRUE,IF(B56="","",0),VLOOKUP($E$8&$B$9&IF($B56<>"All","All",$B$5)&$B56,'LA FINAL RAW DATA'!$A:$I,8,0)) -> 
A57: 22 | B57: =IFERROR(VLOOKUP($B$29&A57,'Region Lookups'!A:C,3,0),"") ->  | D57: =IF(ISERROR(VLOOKUP($E$8&"All"&$B57,'LA FINAL RAW DATA'!$A:$I,5,0)),"",SUM(F57:N57)) ->  | F57: =IF(ISERROR(VLOOKUP($E$8&$B$9&IF($B57<>"All","All",$B$5)&$B57,'LA FINAL RAW DATA'!$A:$I,5,0))=TRUE,IF(B57="","",0),VLOOKUP($E$8&$B$9&IF($B57<>"All","All",$B$5)&$B57,'LA FINAL RAW DATA'!$A:$I,5,0)) ->  | H57: =IF(ISERROR(VLOOKUP($E$8&$B$9&IF($B57<>"All","All",$B$5)&$B57,'LA FINAL RAW DATA'!$A:$I,6,0))=TRUE,IF(B57="","",0),VLOOKUP($E$8&$B$9&IF($B57<>"All","All",$B$5)&$B57,'LA FINAL RAW DATA'!$A:$I,6,0)) ->  | J57: =IF(ISERROR(VLOOKUP($E$8&$B$9&IF($B57<>"All","All",$B$5)&$B57,'LA FINAL RAW DATA'!$A:$I,7,0))=TRUE,IF(B57="","",0),VLOOKUP($E$8&$B$9&IF($B57<>"All","All",$B$5)&$B57,'LA FINAL RAW DATA'!$A:$I,7,0)) ->  | M57: =IF(ISERROR(VLOOKUP($E$8&$B$9&IF($B57<>"All","All",$B$5)&$B57,'LA FINAL RAW DATA'!$A:$I,8,0))=TRUE,IF(B57="","",0),VLOOKUP($E$8&$B$9&IF($B57<>"All","All",$B$5)&$B57,'LA FINAL RAW DATA'!$A:$I,8,0)) -> 
A58: 23 | B58: =IFERROR(VLOOKUP($B$29&A58,'Region Lookups'!A:C,3,0),"") ->  | D58: =IF(ISERROR(VLOOKUP($E$8&"All"&$B58,'LA FINAL RAW DATA'!$A:$I,5,0)),"",SUM(F58:N58)) ->  | F58: =IF(ISERROR(VLOOKUP($E$8&$B$9&IF($B58<>"All","All",$B$5)&$B58,'LA FINAL RAW DATA'!$A:$I,5,0))=TRUE,IF(B58="","",0),VLOOKUP($E$8&$B$9&IF($B58<>"All","All",$B$5)&$B58,'LA FINAL RAW DATA'!$A:$I,5,0)) ->  | H58: =IF(ISERROR(VLOOKUP($E$8&$B$9&IF($B58<>"All","All",$B$5)&$B58,'LA FINAL RAW DATA'!$A:$I,6,0))=TRUE,IF(B58="","",0),VLOOKUP($E$8&$B$9&IF($B58<>"All","All",$B$5)&$B58,'LA FINAL RAW DATA'!$A:$I,6,0)) ->  | J58: =IF(ISERROR(VLOOKUP($E$8&$B$9&IF($B58<>"All","All",$B$5)&$B58,'LA FINAL RAW DATA'!$A:$I,7,0))=TRUE,IF(B58="","",0),VLOOKUP($E$8&$B$9&IF($B58<>"All","All",$B$5)&$B58,'LA FINAL RAW DATA'!$A:$I,7,0)) ->  | M58: =IF(ISERROR(VLOOKUP($E$8&$B$9&IF($B58<>"All","All",$B$5)&$B58,'LA FINAL RAW DATA'!$A:$I,8,0))=TRUE,IF(B58="","",0),VLOOKUP($E$8&$B$9&IF($B58<>"All","All",$B$5)&$B58,'LA FINAL RAW DATA'!$A:$I,8,0)) -> 
A59: 24 | B59: =IFERROR(VLOOKUP($B$29&A59,'Region Lookups'!A:C,3,0),"") ->  | D59: =IF(ISERROR(VLOOKUP($E$8&"All"&$B59,'LA FINAL RAW DATA'!$A:$I,5,0)),"",SUM(F59:N59)) ->  | F59: =IF(ISERROR(VLOOKUP($E$8&$B$9&IF($B59<>"All","All",$B$5)&$B59,'LA FINAL RAW DATA'!$A:$I,5,0))=TRUE,IF(B59="","",0),VLOOKUP($E$8&$B$9&IF($B59<>"All","All",$B$5)&$B59,'LA FINAL RAW DATA'!$A:$I,5,0)) ->  | H59: =IF(ISERROR(VLOOKUP($E$8&$B$9&IF($B59<>"All","All",$B$5)&$B59,'LA FINAL RAW DATA'!$A:$I,6,0))=TRUE,IF(B59="","",0),VLOOKUP($E$8&$B$9&IF($B59<>"All","All",$B$5)&$B59,'LA FINAL RAW DATA'!$A:$I,6,0)) ->  | J59: =IF(ISERROR(VLOOKUP($E$8&$B$9&IF($B59<>"All","All",$B$5)&$B59,'LA FINAL RAW DATA'!$A:$I,7,0))=TRUE,IF(B59="","",0),VLOOKUP($E$8&$B$9&IF($B59<>"All","All",$B$5)&$B59,'LA FINAL RAW DATA'!$A:$I,7,0)) ->  | M59: =IF(ISERROR(VLOOKUP($E$8&$B$9&IF($B59<>"All","All",$B$5)&$B59,'LA FINAL RAW DATA'!$A:$I,8,0))=TRUE,IF(B59="","",0),VLOOKUP($E$8&$B$9&IF($B59<>"All","All",$B$5)&$B59,'LA FINAL RAW DATA'!$A:$I,8,0)) -> 
A60: 25 | B60: =IFERROR(VLOOKUP($B$29&A60,'Region Lookups'!A:C,3,0),"") ->  | D60: =IF(ISERROR(VLOOKUP($E$8&"All"&$B60,'LA FINAL RAW DATA'!$A:$I,5,0)),"",SUM(F60:N60)) ->  | F60: =IF(ISERROR(VLOOKUP($E$8&$B$9&IF($B60<>"All","All",$B$5)&$B60,'LA FINAL RAW DATA'!$A:$I,5,0))=TRUE,IF(B60="","",0),VLOOKUP($E$8&$B$9&IF($B60<>"All","All",$B$5)&$B60,'LA FINAL RAW DATA'!$A:$I,5,0)) ->  | H60: =IF(ISERROR(VLOOKUP($E$8&$B$9&IF($B60<>"All","All",$B$5)&$B60,'LA FINAL RAW DATA'!$A:$I,6,0))=TRUE,IF(B60="","",0),VLOOKUP($E$8&$B$9&IF($B60<>"All","All",$B$5)&$B60,'LA FINAL RAW DATA'!$A:$I,6,0)) ->  | J60: =IF(ISERROR(VLOOKUP($E$8&$B$9&IF($B60<>"All","All",$B$5)&$B60,'LA FINAL RAW DATA'!$A:$I,7,0))=TRUE,IF(B60="","",0),VLOOKUP($E$8&$B$9&IF($B60<>"All","All",$B$5)&$B60,'LA FINAL RAW DATA'!$A:$I,7,0)) ->  | M60: =IF(ISERROR(VLOOKUP($E$8&$B$9&IF($B60<>"All","All",$B$5)&$B60,'LA FINAL RAW DATA'!$A:$I,8,0))=TRUE,IF(B60="","",0),VLOOKUP($E$8&$B$9&IF($B60<>"All","All",$B$5)&$B60,'LA FINAL RAW DATA'!$A:$I,8,0)) -> 
A61: 26 | B61: =IFERROR(VLOOKUP($B$29&A61,'Region Lookups'!A:C,3,0),"") ->  | D61: =IF(ISERROR(VLOOKUP($E$8&"All"&$B61,'LA FINAL RAW DATA'!$A:$I,5,0)),"",SUM(F61:N61)) ->  | F61: =IF(ISERROR(VLOOKUP($E$8&$B$9&IF($B61<>"All","All",$B$5)&$B61,'LA FINAL RAW DATA'!$A:$I,5,0))=TRUE,IF(B61="","",0),VLOOKUP($E$8&$B$9&IF($B61<>"All","All",$B$5)&$B61,'LA FINAL RAW DATA'!$A:$I,5,0)) ->  | H61: =IF(ISERROR(VLOOKUP($E$8&$B$9&IF($B61<>"All","All",$B$5)&$B61,'LA FINAL RAW DATA'!$A:$I,6,0))=TRUE,IF(B61="","",0),VLOOKUP($E$8&$B$9&IF($B61<>"All","All",$B$5)&$B61,'LA FINAL RAW DATA'!$A:$I,6,0)) ->  | J61: =IF(ISERROR(VLOOKUP($E$8&$B$9&IF($B61<>"All","All",$B$5)&$B61,'LA FINAL RAW DATA'!$A:$I,7,0))=TRUE,IF(B61="","",0),VLOOKUP($E$8&$B$9&IF($B61<>"All","All",$B$5)&$B61,'LA FINAL RAW DATA'!$A:$I,7,0)) ->  | M61: =IF(ISERROR(VLOOKUP($E$8&$B$9&IF($B61<>"All","All",$B$5)&$B61,'LA FINAL RAW DATA'!$A:$I,8,0))=TRUE,IF(B61="","",0),VLOOKUP($E$8&$B$9&IF($B61<>"All","All",$B$5)&$B61,'LA FINAL RAW DATA'!$A:$I,8,0)) -> 
A62: 27 | B62: =IFERROR(VLOOKUP($B$29&A62,'Region Lookups'!A:C,3,0),"") ->  | D62: =IF(ISERROR(VLOOKUP($E$8&"All"&$B62,'LA FINAL RAW DATA'!$A:$I,5,0)),"",SUM(F62:N62)) ->  | F62: =IF(ISERROR(VLOOKUP($E$8&$B$9&IF($B62<>"All","All",$B$5)&$B62,'LA FINAL RAW DATA'!$A:$I,5,0))=TRUE,IF(B62="","",0),VLOOKUP($E$8&$B$9&IF($B62<>"All","All",$B$5)&$B62,'LA FINAL RAW DATA'!$A:$I,5,0)) ->  | H62: =IF(ISERROR(VLOOKUP($E$8&$B$9&IF($B62<>"All","All",$B$5)&$B62,'LA FINAL RAW DATA'!$A:$I,6,0))=TRUE,IF(B62="","",0),VLOOKUP($E$8&$B$9&IF($B62<>"All","All",$B$5)&$B62,'LA FINAL RAW DATA'!$A:$I,6,0)) ->  | J62: =IF(ISERROR(VLOOKUP($E$8&$B$9&IF($B62<>"All","All",$B$5)&$B62,'LA FINAL RAW DATA'!$A:$I,7,0))=TRUE,IF(B62="","",0),VLOOKUP($E$8&$B$9&IF($B62<>"All","All",$B$5)&$B62,'LA FINAL RAW DATA'!$A:$I,7,0)) ->  | M62: =IF(ISERROR(VLOOKUP($E$8&$B$9&IF($B62<>"All","All",$B$5)&$B62,'LA FINAL RAW DATA'!$A:$I,8,0))=TRUE,IF(B62="","",0),VLOOKUP($E$8&$B$9&IF($B62<>"All","All",$B$5)&$B62,'LA FINAL RAW DATA'!$A:$I,8,0)) -> 
A63: 28 | B63: =IFERROR(VLOOKUP($B$29&A63,'Region Lookups'!A:C,3,0),"") ->  | D63: =IF(ISERROR(VLOOKUP($E$8&"All"&$B63,'LA FINAL RAW DATA'!$A:$I,5,0)),"",SUM(F63:N63)) ->  | F63: =IF(ISERROR(VLOOKUP($E$8&$B$9&IF($B63<>"All","All",$B$5)&$B63,'LA FINAL RAW DATA'!$A:$I,5,0))=TRUE,IF(B63="","",0),VLOOKUP($E$8&$B$9&IF($B63<>"All","All",$B$5)&$B63,'LA FINAL RAW DATA'!$A:$I,5,0)) ->  | H63: =IF(ISERROR(VLOOKUP($E$8&$B$9&IF($B63<>"All","All",$B$5)&$B63,'LA FINAL RAW DATA'!$A:$I,6,0))=TRUE,IF(B63="","",0),VLOOKUP($E$8&$B$9&IF($B63<>"All","All",$B$5)&$B63,'LA FINAL RAW DATA'!$A:$I,6,0)) ->  | J63: =IF(ISERROR(VLOOKUP($E$8&$B$9&IF($B63<>"All","All",$B$5)&$B63,'LA FINAL RAW DATA'!$A:$I,7,0))=TRUE,IF(B63="","",0),VLOOKUP($E$8&$B$9&IF($B63<>"All","All",$B$5)&$B63,'LA FINAL RAW DATA'!$A:$I,7,0)) ->  | M63: =IF(ISERROR(VLOOKUP($E$8&$B$9&IF($B63<>"All","All",$B$5)&$B63,'LA FINAL RAW DATA'!$A:$I,8,0))=TRUE,IF(B63="","",0),VLOOKUP($E$8&$B$9&IF($B63<>"All","All",$B$5)&$B63,'LA FINAL RAW DATA'!$A:$I,8,0)) -> 
A64: 29 | B64: =IFERROR(VLOOKUP($B$29&A64,'Region Lookups'!A:C,3,0),"") ->  | D64: =IF(ISERROR(VLOOKUP($E$8&"All"&$B64,'LA FINAL RAW DATA'!$A:$I,5,0)),"",SUM(F64:N64)) ->  | F64: =IF(ISERROR(VLOOKUP($E$8&$B$9&IF($B64<>"All","All",$B$5)&$B64,'LA FINAL RAW DATA'!$A:$I,5,0))=TRUE,IF(B64="","",0),VLOOKUP($E$8&$B$9&IF($B64<>"All","All",$B$5)&$B64,'LA FINAL RAW DATA'!$A:$I,5,0)) ->  | H64: =IF(ISERROR(VLOOKUP($E$8&$B$9&IF($B64<>"All","All",$B$5)&$B64,'LA FINAL RAW DATA'!$A:$I,6,0))=TRUE,IF(B64="","",0),VLOOKUP($E$8&$B$9&IF($B64<>"All","All",$B$5)&$B64,'LA FINAL RAW DATA'!$A:$I,6,0)) ->  | J64: =IF(ISERROR(VLOOKUP($E$8&$B$9&IF($B64<>"All","All",$B$5)&$B64,'LA FINAL RAW DATA'!$A:$I,7,0))=TRUE,IF(B64="","",0),VLOOKUP($E$8&$B$9&IF($B64<>"All","All",$B$5)&$B64,'LA FINAL RAW DATA'!$A:$I,7,0)) ->  | M64: =IF(ISERROR(VLOOKUP($E$8&$B$9&IF($B64<>"All","All",$B$5)&$B64,'LA FINAL RAW DATA'!$A:$I,8,0))=TRUE,IF(B64="","",0),VLOOKUP($E$8&$B$9&IF($B64<>"All","All",$B$5)&$B64,'LA FINAL RAW DATA'!$A:$I,8,0)) -> 
A65: 30 | B65: =IFERROR(VLOOKUP($B$29&A65,'Region Lookups'!A:C,3,0),"") ->  | D65: =IF(ISERROR(VLOOKUP($E$8&"All"&$B65,'LA FINAL RAW DATA'!$A:$I,5,0)),"",SUM(F65:N65)) ->  | F65: =IF(ISERROR(VLOOKUP($E$8&$B$9&IF($B65<>"All","All",$B$5)&$B65,'LA FINAL RAW DATA'!$A:$I,5,0))=TRUE,IF(B65="","",0),VLOOKUP($E$8&$B$9&IF($B65<>"All","All",$B$5)&$B65,'LA FINAL RAW DATA'!$A:$I,5,0)) ->  | H65: =IF(ISERROR(VLOOKUP($E$8&$B$9&IF($B65<>"All","All",$B$5)&$B65,'LA FINAL RAW DATA'!$A:$I,6,0))=TRUE,IF(B65="","",0),VLOOKUP($E$8&$B$9&IF($B65<>"All","All",$B$5)&$B65,'LA FINAL RAW DATA'!$A:$I,6,0)) ->  | J65: =IF(ISERROR(VLOOKUP($E$8&$B$9&IF($B65<>"All","All",$B$5)&$B65,'LA FINAL RAW DATA'!$A:$I,7,0))=TRUE,IF(B65="","",0),VLOOKUP($E$8&$B$9&IF($B65<>"All","All",$B$5)&$B65,'LA FINAL RAW DATA'!$A:$I,7,0)) ->  | M65: =IF(ISERROR(VLOOKUP($E$8&$B$9&IF($B65<>"All","All",$B$5)&$B65,'LA FINAL RAW DATA'!$A:$I,8,0))=TRUE,IF(B65="","",0),VLOOKUP($E$8&$B$9&IF($B65<>"All","All",$B$5)&$B65,'LA FINAL RAW DATA'!$A:$I,8,0)) -> 
A66: 31 | B66: =IFERROR(VLOOKUP($B$29&A66,'Region Lookups'!A:C,3,0),"") ->  | D66: =IF(ISERROR(VLOOKUP($E$8&"All"&$B66,'LA FINAL RAW DATA'!$A:$I,5,0)),"",SUM(F66:N66)) ->  | F66: =IF(ISERROR(VLOOKUP($E$8&$B$9&IF($B66<>"All","All",$B$5)&$B66,'LA FINAL RAW DATA'!$A:$I,5,0))=TRUE,IF(B66="","",0),VLOOKUP($E$8&$B$9&IF($B66<>"All","All",$B$5)&$B66,'LA FINAL RAW DATA'!$A:$I,5,0)) ->  | H66: =IF(ISERROR(VLOOKUP($E$8&$B$9&IF($B66<>"All","All",$B$5)&$B66,'LA FINAL RAW DATA'!$A:$I,6,0))=TRUE,IF(B66="","",0),VLOOKUP($E$8&$B$9&IF($B66<>"All","All",$B$5)&$B66,'LA FINAL RAW DATA'!$A:$I,6,0)) ->  | J66: =IF(ISERROR(VLOOKUP($E$8&$B$9&IF($B66<>"All","All",$B$5)&$B66,'LA FINAL RAW DATA'!$A:$I,7,0))=TRUE,IF(B66="","",0),VLOOKUP($E$8&$B$9&IF($B66<>"All","All",$B$5)&$B66,'LA FINAL RAW DATA'!$A:$I,7,0)) ->  | M66: =IF(ISERROR(VLOOKUP($E$8&$B$9&IF($B66<>"All","All",$B$5)&$B66,'LA FINAL RAW DATA'!$A:$I,8,0))=TRUE,IF(B66="","",0),VLOOKUP($E$8&$B$9&IF($B66<>"All","All",$B$5)&$B66,'LA FINAL RAW DATA'!$A:$I,8,0)) -> 
A67: 32 | B67: =IFERROR(VLOOKUP($B$29&A67,'Region Lookups'!A:C,3,0),"") ->  | D67: =IF(ISERROR(VLOOKUP($E$8&"All"&$B67,'LA FINAL RAW DATA'!$A:$I,5,0)),"",SUM(F67:N67)) ->  | F67: =IF(ISERROR(VLOOKUP($E$8&$B$9&IF($B67<>"All","All",$B$5)&$B67,'LA FINAL RAW DATA'!$A:$I,5,0))=TRUE,IF(B67="","",0),VLOOKUP($E$8&$B$9&IF($B67<>"All","All",$B$5)&$B67,'LA FINAL RAW DATA'!$A:$I,5,0)) ->  | H67: =IF(ISERROR(VLOOKUP($E$8&$B$9&IF($B67<>"All","All",$B$5)&$B67,'LA FINAL RAW DATA'!$A:$I,6,0))=TRUE,IF(B67="","",0),VLOOKUP($E$8&$B$9&IF($B67<>"All","All",$B$5)&$B67,'LA FINAL RAW DATA'!$A:$I,6,0)) ->  | J67: =IF(ISERROR(VLOOKUP($E$8&$B$9&IF($B67<>"All","All",$B$5)&$B67,'LA FINAL RAW DATA'!$A:$I,7,0))=TRUE,IF(B67="","",0),VLOOKUP($E$8&$B$9&IF($B67<>"All","All",$B$5)&$B67,'LA FINAL RAW DATA'!$A:$I,7,0)) ->  | M67: =IF(ISERROR(VLOOKUP($E$8&$B$9&IF($B67<>"All","All",$B$5)&$B67,'LA FINAL RAW DATA'!$A:$I,8,0))=TRUE,IF(B67="","",0),VLOOKUP($E$8&$B$9&IF($B67<>"All","All",$B$5)&$B67,'LA FINAL RAW DATA'!$A:$I,8,0)) -> 
A68: 33 | B68: =IFERROR(VLOOKUP($B$29&A68,'Region Lookups'!A:C,3,0),"") ->  | D68: =IF(ISERROR(VLOOKUP($E$8&"All"&$B68,'LA FINAL RAW DATA'!$A:$I,5,0)),"",SUM(F68:N68)) ->  | F68: =IF(ISERROR(VLOOKUP($E$8&$B$9&IF($B68<>"All","All",$B$5)&$B68,'LA FINAL RAW DATA'!$A:$I,5,0))=TRUE,IF(B68="","",0),VLOOKUP($E$8&$B$9&IF($B68<>"All","All",$B$5)&$B68,'LA FINAL RAW DATA'!$A:$I,5,0)) ->  | H68: =IF(ISERROR(VLOOKUP($E$8&$B$9&IF($B68<>"All","All",$B$5)&$B68,'LA FINAL RAW DATA'!$A:$I,6,0))=TRUE,IF(B68="","",0),VLOOKUP($E$8&$B$9&IF($B68<>"All","All",$B$5)&$B68,'LA FINAL RAW DATA'!$A:$I,6,0)) ->  | J68: =IF(ISERROR(VLOOKUP($E$8&$B$9&IF($B68<>"All","All",$B$5)&$B68,'LA FINAL RAW DATA'!$A:$I,7,0))=TRUE,IF(B68="","",0),VLOOKUP($E$8&$B$9&IF($B68<>"All","All",$B$5)&$B68,'LA FINAL RAW DATA'!$A:$I,7,0)) ->  | M68: =IF(ISERROR(VLOOKUP($E$8&$B$9&IF($B68<>"All","All",$B$5)&$B68,'LA FINAL RAW DATA'!$A:$I,8,0))=TRUE,IF(B68="","",0),VLOOKUP($E$8&$B$9&IF($B68<>"All","All",$B$5)&$B68,'LA FINAL RAW DATA'!$A:$I,8,0)) -> 
B69: =IFERROR(VLOOKUP($B$29&A69,'Region Lookups'!A:C,3,0),"") ->  | J69: =IF(ISERROR(VLOOKUP($E$8&$B$9&IF($B69<>"All","All",$B$5)&$B69,'LA FINAL RAW DATA'!$A:$I,7,0))=TRUE,"",VLOOKUP($E$8&$B$9&IF($B69<>"All","All",$B$5)&$B69,'LA FINAL RAW DATA'!$A:$I,7,0)) -> 
B70: =IFERROR(VLOOKUP($B$29&A70,'Region Lookups'!A:C,3,0),"") ->  | J70: =IF(ISERROR(VLOOKUP($E$8&$B$9&IF($B70<>"All","All",$B$5)&$B70,'LA FINAL RAW DATA'!$A:$I,7,0))=TRUE,"",VLOOKUP($E$8&$B$9&IF($B70<>"All","All",$B$5)&$B70,'LA FINAL RAW DATA'!$A:$I,7,0)) -> 
B71: =IFERROR(VLOOKUP($B$29&A71,'Region Lookups'!A:C,3,0),"") ->  | J71: =IF(ISERROR(VLOOKUP($E$8&$B$9&IF($B71<>"All","All",$B$5)&$B71,'LA FINAL RAW DATA'!$A:$I,7,0))=TRUE,"",VLOOKUP($E$8&$B$9&IF($B71<>"All","All",$B$5)&$B71,'LA FINAL RAW DATA'!$A:$I,7,0)) -> 
B72: =IFERROR(VLOOKUP($B$29&A72,'Region Lookups'!A:C,3,0),"") ->  | J72: =IF(ISERROR(VLOOKUP($E$8&$B$9&IF($B72<>"All","All",$B$5)&$B72,'LA FINAL RAW DATA'!$A:$I,7,0))=TRUE,"",VLOOKUP($E$8&$B$9&IF($B72<>"All","All",$B$5)&$B72,'LA FINAL RAW DATA'!$A:$I,7,0)) -> 
B73: =IFERROR(VLOOKUP($B$29&A73,'Region Lookups'!A:C,3,0),"") ->  | J73: =IF(ISERROR(VLOOKUP($E$8&$B$9&IF($B73<>"All","All",$B$5)&$B73,'LA FINAL RAW DATA'!$A:$I,7,0))=TRUE,"",VLOOKUP($E$8&$B$9&IF($B73<>"All","All",$B$5)&$B73,'LA FINAL RAW DATA'!$A:$I,7,0)) -> 
B74: =IFERROR(VLOOKUP($B$29&A74,'Region Lookups'!A:C,3,0),"") ->  | J74: =IF(ISERROR(VLOOKUP($E$8&$B$9&IF($B74<>"All","All",$B$5)&$B74,'LA FINAL RAW DATA'!$A:$I,7,0))=TRUE,"",VLOOKUP($E$8&$B$9&IF($B74<>"All","All",$B$5)&$B74,'LA FINAL RAW DATA'!$A:$I,7,0)) -> 
B75: =IFERROR(VLOOKUP($B$29&A75,'Region Lookups'!A:C,3,0),"") ->  | J75: =IF(ISERROR(VLOOKUP($E$8&$B$9&IF($B75<>"All","All",$B$5)&$B75,'LA FINAL RAW DATA'!$A:$I,7,0))=TRUE,"",VLOOKUP($E$8&$B$9&IF($B75<>"All","All",$B$5)&$B75,'LA FINAL RAW DATA'!$A:$I,7,0)) -> 
B76: =IFERROR(VLOOKUP($B$29&A76,'Region Lookups'!A:C,3,0),"") ->  | J76: =IF(ISERROR(VLOOKUP($E$8&$B$9&IF($B76<>"All","All",$B$5)&$B76,'LA FINAL RAW DATA'!$A:$I,7,0))=TRUE,"",VLOOKUP($E$8&$B$9&IF($B76<>"All","All",$B$5)&$B76,'LA FINAL RAW DATA'!$A:$I,7,0)) -> 
B77: =IFERROR(VLOOKUP($B$29&A77,'Region Lookups'!A:C,3,0),"") ->  | J77: =IF(ISERROR(VLOOKUP($E$8&$B$9&IF($B77<>"All","All",$B$5)&$B77,'LA FINAL RAW DATA'!$A:$I,7,0))=TRUE,"",VLOOKUP($E$8&$B$9&IF($B77<>"All","All",$B$5)&$B77,'LA FINAL RAW DATA'!$A:$I,7,0)) -> 
B78: =IFERROR(VLOOKUP($B$29&A78,'Region Lookups'!A:C,3,0),"") ->  | J78: =IF(ISERROR(VLOOKUP($E$8&$B$9&IF($B78<>"All","All",$B$5)&$B78,'LA FINAL RAW DATA'!$A:$I,7,0))=TRUE,"",VLOOKUP($E$8&$B$9&IF($B78<>"All","All",$B$5)&$B78,'LA FINAL RAW DATA'!$A:$I,7,0)) -> 
B79: =IFERROR(VLOOKUP($B$29&A79,'Region Lookups'!A:C,3,0),"") ->  | J79: =IF(ISERROR(VLOOKUP($E$8&$B$9&IF($B79<>"All","All",$B$5)&$B79,'LA FINAL RAW DATA'!$A:$I,7,0))=TRUE,"",VLOOKUP($E$8&$B$9&IF($B79<>"All","All",$B$5)&$B79,'LA FINAL RAW DATA'!$A:$I,7,0)) -> 
B80: =IFERROR(VLOOKUP($B$29&A80,'Region Lookups'!A:C,3,0),"") ->  | J80: =IF(ISERROR(VLOOKUP($E$8&$B$9&IF($B80<>"All","All",$B$5)&$B80,'LA FINAL RAW DATA'!$A:$I,7,0))=TRUE,"",VLOOKUP($E$8&$B$9&IF($B80<>"All","All",$B$5)&$B80,'LA FINAL RAW DATA'!$A:$I,7,0)) -> 
B81: =IFERROR(VLOOKUP($B$29&A81,'Region Lookups'!A:C,3,0),"") ->  | J81: =IF(ISERROR(VLOOKUP($E$8&$B$9&IF($B81<>"All","All",$B$5)&$B81,'LA FINAL RAW DATA'!$A:$I,7,0))=TRUE,"",VLOOKUP($E$8&$B$9&IF($B81<>"All","All",$B$5)&$B81,'LA FINAL RAW DATA'!$A:$I,7,0)) -> 
B82: =IFERROR(VLOOKUP($B$29&A82,'Region Lookups'!A:C,3,0),"") ->  | J82: =IF(ISERROR(VLOOKUP($E$8&$B$9&IF($B82<>"All","All",$B$5)&$B82,'LA FINAL RAW DATA'!$A:$I,7,0))=TRUE,"",VLOOKUP($E$8&$B$9&IF($B82<>"All","All",$B$5)&$B82,'LA FINAL RAW DATA'!$A:$I,7,0)) -> 
B83: =IFERROR(VLOOKUP($B$29&A83,'Region Lookups'!A:C,3,0),"") ->  | J83: =IF(ISERROR(VLOOKUP($E$8&$B$9&IF($B83<>"All","All",$B$5)&$B83,'LA FINAL RAW DATA'!$A:$I,7,0))=TRUE,"",VLOOKUP($E$8&$B$9&IF($B83<>"All","All",$B$5)&$B83,'LA FINAL RAW DATA'!$A:$I,7,0)) -> 
B84: =IFERROR(VLOOKUP($B$29&A84,'Region Lookups'!A:C,3,0),"") ->  | J84: =IF(ISERROR(VLOOKUP($E$8&$B$9&IF($B84<>"All","All",$B$5)&$B84,'LA FINAL RAW DATA'!$A:$I,7,0))=TRUE,"",VLOOKUP($E$8&$B$9&IF($B84<>"All","All",$B$5)&$B84,'LA FINAL RAW DATA'!$A:$I,7,0)) -> 
B85: =IFERROR(VLOOKUP($B$29&A85,'Region Lookups'!A:C,3,0),"") ->  | J85: =IF(ISERROR(VLOOKUP($E$8&$B$9&IF($B85<>"All","All",$B$5)&$B85,'LA FINAL RAW DATA'!$A:$I,7,0))=TRUE,"",VLOOKUP($E$8&$B$9&IF($B85<>"All","All",$B$5)&$B85,'LA FINAL RAW DATA'!$A:$I,7,0)) -> 
B86: =IFERROR(VLOOKUP($B$29&A86,'Region Lookups'!A:C,3,0),"") ->  | J86: =IF(ISERROR(VLOOKUP($E$8&$B$9&IF($B86<>"All","All",$B$5)&$B86,'LA FINAL RAW DATA'!$A:$I,7,0))=TRUE,"",VLOOKUP($E$8&$B$9&IF($B86<>"All","All",$B$5)&$B86,'LA FINAL RAW DATA'!$A:$I,7,0)) -> 
B87: =IFERROR(VLOOKUP($B$29&A87,'Region Lookups'!A:C,3,0),"") ->  | J87: =IF(ISERROR(VLOOKUP($E$8&$B$9&IF($B87<>"All","All",$B$5)&$B87,'LA FINAL RAW DATA'!$A:$I,7,0))=TRUE,"",VLOOKUP($E$8&$B$9&IF($B87<>"All","All",$B$5)&$B87,'LA FINAL RAW DATA'!$A:$I,7,0)) -> 
B88: =IFERROR(VLOOKUP($B$29&A88,'Region Lookups'!A:C,3,0),"") ->  | J88: =IF(ISERROR(VLOOKUP($E$8&$B$9&IF($B88<>"All","All",$B$5)&$B88,'LA FINAL RAW DATA'!$A:$I,7,0))=TRUE,"",VLOOKUP($E$8&$B$9&IF($B88<>"All","All",$B$5)&$B88,'LA FINAL RAW DATA'!$A:$I,7,0)) -> 
B89: =IFERROR(VLOOKUP($B$29&A89,'Region Lookups'!A:C,3,0),"") -> 
B90: =IFERROR(VLOOKUP($B$29&A90,'Region Lookups'!A:C,3,0),"") -> 

Sheet Children's Social Care
B2: Statistical First Release - Children's Social Care Provision (excluding inspections of Local Authorities)
D4: Region: | G4: Local Authority:
D5: All | G5: All | I5: =IF(D5="All",TRUE,NOT(ISERROR(MATCH(G5,INDIRECT(SUBSTITUTE(SUBSTITUTE(D5," ","_"),",","")),0)))) -> TRUE
D7: Date: | G7: Provision Type: | J7: Inspection Type:
D8: as at 31 March 2017 | G8: All | J8: Full Inspection
C9: =IF(LEFT(D8,5) = "as at","","year") ->  | D9: =VLOOKUP(D8,_PeriodLookup,2,0) -> 2017 | H9: =IF(LEFT(D8,5)="as at",TRUE,FALSE) -> TRUE
B10: Sector | C10: Total number of inspections | D10: Inspection Outcomes | H10: Number not inspected | I10: ="Number of Providers as at "&Inspections_To -> Number of Providers as at 31 March 2017 | J10: ="Number of Places as at "&Inspections_To -> Number of Places as at 31 March 2017 | K10: ="No of Joiners between "&Inspections_From&" and "&Inspections_To -> No of Joiners between 01 April 2016 and 31 March 2017 | M10: ="No of Leavers between "&Inspections_From&" and "&Inspections_To -> No of Leavers between 01 April 2016 and 31 March 2017
D11: =VLOOKUP(J8,_InspectionOutcomes,2,0) -> Outstanding | E11: =VLOOKUP(J8,_InspectionOutcomes,3,0) -> Good | F11: =VLOOKUP(J8,_InspectionOutcomes,4,0) -> Requires Improvement | G11: =VLOOKUP(J8,_InspectionOutcomes,5,0) -> Inadequate | K11: Providers | L11: Places | M11: Providers | N11: Places
A13: =$G$8&$G$5&$D$5&$B$13&$J$8&$D$9 -> AllAllAllAllFull Inspection2017 | B13: All | C13: =IF(OR($J$8="Emergency Inspection",$J$8="Monitoring Inspection"), IFERROR(VLOOKUP(A13,'Inspection Outcome data'!$A:$L,12,0),0), SUM(D13,E13,F13,G13)) -> 2688 | D13: =IF(ISERROR( VLOOKUP(A13,'Inspection Outcome data'!$A:$L,8,0))=TRUE,0, VLOOKUP(A13,'Inspection Outcome data'!$A:$L,8,0)) -> 550 | E13: =IF(ISERROR( VLOOKUP(A13,'Inspection Outcome data'!$A:$K,9,0))=TRUE,0, VLOOKUP(A13,'Inspection Outcome data'!$A:$K,9,0)) -> 1681 | F13: =IF(ISERROR( VLOOKUP(A13,'Inspection Outcome data'!$A:$K,10,0))=TRUE,0, VLOOKUP(A13,'Inspection Outcome data'!$A:$K,10,0)) -> 415 | G13: =IF(ISERROR( VLOOKUP(A13,'Inspection Outcome data'!$A:$K,11,0))=TRUE,0, VLOOKUP(A13,'Inspection Outcome data'!$A:$K,11,0)) -> 42 | H13: =IF(AND($H$9,$C13=0),0,IFERROR(I13-C13,"")) -> 178 | I13: =IF($H$9,IF(ISERROR( VLOOKUP($O13,pandp!$A:$I,8,0))=TRUE,0, VLOOKUP($O13,pandp!$A:$I,8,0)),"") -> 2866 | J13: =IF($H$9,IF(ISERROR( VLOOKUP($O13,pandp!$A:$K,9,0))=TRUE,0, VLOOKUP($O13,pandp!$A:$K,9,0)),"") -> 34497 | K13: =IF($H$9,IF(ISERROR( VLOOKUP($P13,pandpjoiners!$A:$I,8,0))=TRUE,0, VLOOKUP($P13,pandpjoiners!$A:$I,8,0)),"") -> 280 | L13: =IF($H$9,IF(ISERROR( VLOOKUP($P13,pandpjoiners!$A:$I,9,0))=TRUE,0, VLOOKUP($P13,pandpjoiners!$A:$I,9,0)),"") -> 2594 | M13: =IF($H$9,IF(ISERROR( VLOOKUP($P13,pandpleavers!$A:$I,8,0))=TRUE,0, VLOOKUP($P13,pandpleavers!$A:$I,8,0)),"") -> 191 | N13: =IF($H$9,IF(ISERROR( VLOOKUP($P13,pandpleavers!$A:$I,9,0))=TRUE,0, VLOOKUP($P13,pandpleavers!$A:$I,9,0)),"") -> 1495 | O13: =$G$8&$G$5&$D$5&$B$13&$D$9 -> AllAllAllAll2017 | P13: AllAllAllAll2016
A15: =$G$8&$G$5&$D$5&$B$15&$J$8&$D$9 -> AllAllAllLocal AuthorityFull Inspection2017 | B15: Local Authority | C15: =IF(OR($J$8="Emergency Inspection",$J$8="Monitoring Inspection"), IFERROR(VLOOKUP(A15,'Inspection Outcome data'!$A:$L,12,0),0), SUM(D15,E15,F15,G15)) -> 506 | D15: =IF(ISERROR( VLOOKUP(A15,'Inspection Outcome data'!$A:$L,8,0))=TRUE,0, VLOOKUP(A15,'Inspection Outcome data'!$A:$L,8,0)) -> 145 | E15: =IF(ISERROR( VLOOKUP(A15,'Inspection Outcome data'!$A:$K,9,0))=TRUE,0, VLOOKUP(A15,'Inspection Outcome data'!$A:$K,9,0)) -> 287 | F15: =IF(ISERROR( VLOOKUP(A15,'Inspection Outcome data'!$A:$K,10,0))=TRUE,0, VLOOKUP(A15,'Inspection Outcome data'!$A:$K,10,0)) -> 70 | G15: =IF(ISERROR( VLOOKUP(A15,'Inspection Outcome data'!$A:$K,11,0))=TRUE,0, VLOOKUP(A15,'Inspection Outcome data'!$A:$K,11,0)) -> 4 | H15: =IF(AND($H$9,$C15=0),0,IFERROR(I15-C15,"")) -> 7 | I15: =IF($H$9,IF(ISERROR( VLOOKUP($O15,pandp!$A:$J,8,0))=TRUE,0, VLOOKUP($O15,pandp!$A:$J,8,0)),"") -> 513 | J15: =IF($H$9,IF(ISERROR( VLOOKUP($O15,pandp!$A:$K,9,0))=TRUE,0, VLOOKUP($O15,pandp!$A:$K,9,0)),"") -> 6062 | K15: =IF($H$9,IF(ISERROR( VLOOKUP($P15,pandpjoiners!$A:$I,8,0))=TRUE,0, VLOOKUP($P15,pandpjoiners!$A:$I,8,0)),"") -> 14 | L15: =IF($H$9,IF(ISERROR( VLOOKUP($P15,pandpjoiners!$A:$I,9,0))=TRUE,0, VLOOKUP($P15,pandpjoiners!$A:$I,9,0)),"") -> 78 | M15: =IF($H$9,IF(ISERROR( VLOOKUP($P15,pandpleavers!$A:$I,8,0))=TRUE,0, VLOOKUP($P15,pandpleavers!$A:$I,8,0)),"") -> 37 | N15: =IF($H$9,IF(ISERROR( VLOOKUP($P15,pandpleavers!$A:$I,9,0))=TRUE,0, VLOOKUP($P15,pandpleavers!$A:$I,9,0)),"") -> 318 | O15: =$G$8&$G$5&$D$5&$B15&$D$9 -> AllAllAllLocal Authority2017 | P15: AllAllAllLocal Authority2016
A17: =$G$8&$G$5&$D$5&$B$17&$J$8&$D$9 -> AllAllAllPrivateFull Inspection2017 | B17: Private | C17: =IF(OR($J$8="Emergency Inspection",$J$8="Monitoring Inspection"), IFERROR(VLOOKUP(A17,'Inspection Outcome data'!$A:$L,12,0),0), SUM(D17,E17,F17,G17)) -> 1751 | D17: =IF(ISERROR( VLOOKUP(A17,'Inspection Outcome data'!$A:$K,8,0))=TRUE,0, VLOOKUP(A17,'Inspection Outcome data'!$A:$K,8,0)) -> 284 | E17: =IF(ISERROR( VLOOKUP(A17,'Inspection Outcome data'!$A:$K,9,0))=TRUE,0, VLOOKUP(A17,'Inspection Outcome data'!$A:$K,9,0)) -> 1139 | F17: =IF(ISERROR( VLOOKUP(A17,'Inspection Outcome data'!$A:$K,10,0))=TRUE,0, VLOOKUP(A17,'Inspection Outcome data'!$A:$K,10,0)) -> 300 | G17: =IF(ISERROR( VLOOKUP(A17,'Inspection Outcome data'!$A:$K,11,0))=TRUE,0, VLOOKUP(A17,'Inspection Outcome data'!$A:$K,11,0)) -> 28 | H17: =IF(AND($H$9,$C17 = 0),0,IFERROR(I17-C17,"")) -> 155 | I17: =IF($H$9,IF(ISERROR( VLOOKUP($O17,pandp!$A:$J,8,0))=TRUE,0, VLOOKUP($O17,pandp!$A:$J,8,0)),"") -> 1906 | J17: =IF($H$9,IF(ISERROR( VLOOKUP($O17,pandp!$A:$K,9,0))=TRUE,0, VLOOKUP($O17,pandp!$A:$K,9,0)),"") -> 13801 | K17: =IF($H$9,IF(ISERROR( VLOOKUP($P17,pandpjoiners!$A:$I,8,0))=TRUE,0, VLOOKUP($P17,pandpjoiners!$A:$I,8,0)),"") -> 246 | L17: =IF($H$9,IF(ISERROR( VLOOKUP($P17,pandpjoiners!$A:$I,9,0))=TRUE,0, VLOOKUP($P17,pandpjoiners!$A:$I,9,0)),"") -> 2247 | M17: =IF($H$9,IF(ISERROR( VLOOKUP($P17,pandpleavers!$A:$I,8,0))=TRUE,0, VLOOKUP($P17,pandpleavers!$A:$I,8,0)),"") -> 128 | N17: =IF($H$9,IF(ISERROR( VLOOKUP($P17,pandpleavers!$A:$I,9,0))=TRUE,0, VLOOKUP($P17,pandpleavers!$A:$I,9,0)),"") -> 783 | O17: =$G$8&$G$5&$D$5&$B17&$D$9 -> AllAllAllPrivate2017 | P17: AllAllAllPrivate2016
A19: =$G$8&$G$5&$D$5&$B$19&$J$8&$D$9 -> AllAllAllVoluntaryFull Inspection2017 | B19: Voluntary | C19: =IF(OR($J$8="Emergency Inspection",$J$8="Monitoring Inspection"), IFERROR(VLOOKUP(A19,'Inspection Outcome data'!$A:$L,12,0),0), SUM(D19,E19,F19,G19)) -> 366 | D19: =IF(ISERROR( VLOOKUP(A19,'Inspection Outcome data'!$A:$K,8,0))=TRUE,0, VLOOKUP(A19,'Inspection Outcome data'!$A:$K,8,0)) -> 96 | E19: =IF(ISERROR( VLOOKUP(A19,'Inspection Outcome data'!$A:$K,9,0))=TRUE,0, VLOOKUP(A19,'Inspection Outcome data'!$A:$K,9,0)) -> 221 | F19: =IF(ISERROR( VLOOKUP(A19,'Inspection Outcome data'!$A:$K,10,0))=TRUE,0, VLOOKUP(A19,'Inspection Outcome data'!$A:$K,10,0)) -> 40 | G19: =IF(ISERROR( VLOOKUP(A19,'Inspection Outcome data'!$A:$K,11,0))=TRUE,0, VLOOKUP(A19,'Inspection Outcome data'!$A:$K,11,0)) -> 9 | H19: =IF(AND($H$9,$C19 = 0),0,IFERROR(I19-C19,"")) -> 14 | I19: =IF($H$9,IF(ISERROR( VLOOKUP($O19,pandp!$A:$J,8,0))=TRUE,0, VLOOKUP($O19,pandp!$A:$J,8,0)),"") -> 380 | J19: =IF($H$9,IF(ISERROR( VLOOKUP($O19,pandp!$A:$K,9,0))=TRUE,0, VLOOKUP($O19,pandp!$A:$K,9,0)),"") -> 9542 | K19: =IF($H$9,IF(ISERROR( VLOOKUP($P19,pandpjoiners!$A:$I,8,0))=TRUE,0, VLOOKUP($P19,pandpjoiners!$A:$I,8,0)),"") -> 17 | L19: =IF($H$9,IF(ISERROR( VLOOKUP($P19,pandpjoiners!$A:$I,9,0))=TRUE,0, VLOOKUP($P19,pandpjoiners!$A:$I,9,0)),"") -> 218 | M19: =IF($H$9,IF(ISERROR( VLOOKUP($P19,pandpleavers!$A:$I,8,0))=TRUE,0, VLOOKUP($P19,pandpleavers!$A:$I,8,0)),"") -> 23 | N19: =IF($H$9,IF(ISERROR( VLOOKUP($P19,pandpleavers!$A:$I,9,0))=TRUE,0, VLOOKUP($P19,pandpleavers!$A:$I,9,0)),"") -> 227 | O19: =$G$8&$G$5&$D$5&$B19&$D$9 -> AllAllAllVoluntary2017 | P19: AllAllAllVoluntary2016
A21: =$G$8&$G$5&$D$5&$B$21&$J$8&$D$9 -> AllAllAllAcademyFull Inspection2017 | B21: Academy | C21: =IF(OR($J$8="Emergency Inspection",$J$8="Monitoring Inspection"), IFERROR(VLOOKUP(A21,'Inspection Outcome data'!$A:$L,12,0),0), SUM(D21,E21,F21,G21)) -> 57 | D21: =IF(ISERROR( VLOOKUP(A21,'Inspection Outcome data'!$A:$K,8,0))=TRUE,0, VLOOKUP(A21,'Inspection Outcome data'!$A:$K,8,0)) -> 25 | E21: =IF(ISERROR( VLOOKUP(A21,'Inspection Outcome data'!$A:$K,9,0))=TRUE,0, VLOOKUP(A21,'Inspection Outcome data'!$A:$K,9,0)) -> 27 | F21: =IF(ISERROR( VLOOKUP(A21,'Inspection Outcome data'!$A:$K,10,0))=TRUE,0, VLOOKUP(A21,'Inspection Outcome data'!$A:$K,10,0)) -> 4 | G21: =IF(ISERROR( VLOOKUP(A21,'Inspection Outcome data'!$A:$K,11,0))=TRUE,0, VLOOKUP(A21,'Inspection Outcome data'!$A:$K,11,0)) -> 1 | H21: =IF(AND($H$9,$C21 = 0),0,IFERROR(I21-C21,"")) -> 1 | I21: =IF($H$9,IF(ISERROR( VLOOKUP($O21,pandp!$A:$J,8,0))=TRUE,0, VLOOKUP($O21,pandp!$A:$J,8,0)),"") -> 58 | J21: =IF($H$9,IF(ISERROR( VLOOKUP($O21,pandp!$A:$K,9,0))=TRUE,0, VLOOKUP($O21,pandp!$A:$K,9,0)),"") -> 5029 | K21: =IF($H$9,IF(ISERROR( VLOOKUP($P21,pandpjoiners!$A:$I,8,0))=TRUE,0, VLOOKUP($P21,pandpjoiners!$A:$I,8,0)),"") -> 2 | L21: =IF($H$9,IF(ISERROR( VLOOKUP($P21,pandpjoiners!$A:$I,9,0))=TRUE,0, VLOOKUP($P21,pandpjoiners!$A:$I,9,0)),"") -> 36 | M21: =IF($H$9,IF(ISERROR( VLOOKUP($P21,pandpleavers!$A:$I,8,0))=TRUE,0, VLOOKUP($P21,pandpleavers!$A:$I,8,0)),"") -> 2 | N21: =IF($H$9,IF(ISERROR( VLOOKUP($P21,pandpleavers!$A:$I,9,0))=TRUE,0, VLOOKUP($P21,pandpleavers!$A:$I,9,0)),"") -> 162 | O21: =$G$8&$G$5&$D$5&$B21&$D$9 -> AllAllAllAcademy2017 | P21: AllAllAllAcademy2016
A23: =$G$8&$G$5&$D$5&$B$23&$J$8&$D$9 -> AllAllAllHealth AuthorityFull Inspection2017 | B23: Health Authority | C23: =IF(OR($J$8="Emergency Inspection",$J$8="Monitoring Inspection"), IFERROR(VLOOKUP(A23,'Inspection Outcome data'!$A:$L,12,0),0), SUM(D23,E23,F23,G23)) -> 8 | D23: =IF(ISERROR( VLOOKUP(A23,'Inspection Outcome data'!$A:$K,8,0))=TRUE,0, VLOOKUP(A23,'Inspection Outcome data'!$A:$K,8,0)) -> 0 | E23: =IF(ISERROR( VLOOKUP(A23,'Inspection Outcome data'!$A:$K,9,0))=TRUE,0, VLOOKUP(A23,'Inspection Outcome data'!$A:$K,9,0)) -> 7 | F23: =IF(ISERROR( VLOOKUP(A23,'Inspection Outcome data'!$A:$K,10,0))=TRUE,0, VLOOKUP(A23,'Inspection Outcome data'!$A:$K,10,0)) -> 1 | G23: =IF(ISERROR( VLOOKUP(A23,'Inspection Outcome data'!$A:$K,11,0))=TRUE,0, VLOOKUP(A23,'Inspection Outcome data'!$A:$K,11,0)) -> 0 | H23: =IF($H$9,I23-C23,"") -> 1 | I23: =IF($H$9,IF(ISERROR( VLOOKUP($O23,pandp!$A:$J,8,0))=TRUE,0, VLOOKUP($O23,pandp!$A:$J,8,0)),"") -> 9 | J23: =IF($H$9,IF(ISERROR( VLOOKUP($O23,pandp!$A:$K,9,0))=TRUE,0, VLOOKUP($O23,pandp!$A:$K,9,0)),"") -> 63 | K23: =IF($H$9,IF(ISERROR( VLOOKUP($P23,pandpjoiners!$A:$I,8,0))=TRUE,0, VLOOKUP($P23,pandpjoiners!$A:$I,8,0)),"") -> 1 | L23: =IF($H$9,IF(ISERROR( VLOOKUP($P23,pandpjoiners!$A:$I,9,0))=TRUE,0, VLOOKUP($P23,pandpjoiners!$A:$I,9,0)),"") -> 15 | M23: =IF($H$9,IF(ISERROR( VLOOKUP($P23,pandpleavers!$A:$I,8,0))=TRUE,0, VLOOKUP($P23,pandpleavers!$A:$I,8,0)),"") -> 1 | N23: =IF($H$9,IF(ISERROR( VLOOKUP($P23,pandpleavers!$A:$I,9,0))=TRUE,0, VLOOKUP($P23,pandpleavers!$A:$I,9,0)),"") -> 5 | O23: =$G$8&$G$5&$D$5&$B23&$D$9 -> AllAllAllHealth Authority2017 | P23: AllAllAllHealth Authority2016
B28: =IF(D5<>"All",D5,IF(_ddla<>"All",VLOOKUP(_ddla,'Region Lookups'!C:D,2,0),"All")) -> All
F29: 8 | H29: 9 | J29: 10
C30: Total number inspected | D30: Outstanding | E30: Good | F30: Requires Improvement | G30: Inadequate
D31: 6 | E31: 7 | F31: 8 | G31: 9
B32: England | C32: =SUM(D32:G32) -> 2688 | D32: =IF(ISERROR(VLOOKUP($G$8&"All"&"All"&"All"&$J$8&$D$9,'Inspection Outcome data'!$A:$K,8,0))=TRUE,0,VLOOKUP($G$8&"All"&"All"&"All"&$J$8&$D$9,'Inspection Outcome data'!$A:$K,8,0)) -> 550 | E32: =IF(ISERROR(VLOOKUP($G$8&"All"&"All"&"All"&$J$8&$D$9,'Inspection Outcome data'!$A:$K,9,0))=TRUE,0,VLOOKUP($G$8&"All"&"All"&"All"&$J$8&$D$9,'Inspection Outcome data'!$A:$K,9,0)) -> 1681 | F32: =IF(ISERROR(VLOOKUP($G$8&"All"&"All"&"All"&$J$8&$D$9,'Inspection Outcome data'!$A:$K,10,0))=TRUE,0,VLOOKUP($G$8&"All"&"All"&"All"&$J$8&$D$9,'Inspection Outcome data'!$A:$K,10,0)) -> 415 | G32: =IF(ISERROR(VLOOKUP($G$8&"All"&"All"&"All"&$J$8&$D$9,'Inspection Outcome data'!$A:$K,11,0))=TRUE,0,VLOOKUP($G$8&"All"&"All"&"All"&$J$8&$D$9,'Inspection Outcome data'!$A:$K,11,0)) -> 42
B34: =IFERROR(IF(B28="All",NA(),B28),"") ->  | C34: =IF(B34="","",IF(ISERROR(VLOOKUP($G$8&"All"&$B$34&$B$13&$J$8&$D$9,'Inspection Outcome data'!$A:$K,8,0)),"",SUM(D34:G34))) ->  | D34: =IF(B34="","",IFERROR(VLOOKUP($G$8&"All"&$B$34&$B$13&$J$8&$D$9,'Inspection Outcome data'!$A:$K,8,0),"")) ->  | E34: =IF(B34="","",IFERROR(VLOOKUP($G$8&"All"&$B$34&$B$13&$J$8&$D$9,'Inspection Outcome data'!$A:$K,9,0),"")) ->  | F34: =IF(B34="","",IFERROR(VLOOKUP($G$8&"All"&$B$34&$B$13&$J$8&$D$9,'Inspection Outcome data'!$A:$K,10,0),"")) ->  | G34: =IF(B34="","",IFERROR(VLOOKUP($G$8&"All"&$B$34&$B$13&$J$8&$D$9,'Inspection Outcome data'!$A:$K,11,0),"")) -> 
A35: 1 | B35: =IFERROR(VLOOKUP($B$28&A35,'Region Lookups'!A:C,3,0),"") ->  | C35: =IF(B34="","",IF(ISERROR(VLOOKUP($G$8&$B35&"All"&$B$13&$J$8&$D$9,'Inspection Outcome data'!$A:$K,8,0)),"",SUM(D35:G35))) ->  | D35: =IF(B34="","",IFERROR(VLOOKUP($G$8&$B35&"All"&$B$13&$J$8&$D$9,'Inspection Outcome data'!$A:$K,8,0),IF(B35="","",0))) ->  | E35: =IF(B34="","",IFERROR(VLOOKUP($G$8&$B35&"All"&$B$13&$J$8&$D$9,'Inspection Outcome data'!$A:$K,9,0),IF(B35="","",0))) ->  | F35: =IF(B34="","",IFERROR(VLOOKUP($G$8&$B35&"All"&$B$13&$J$8&$D$9,'Inspection Outcome data'!$A:$K,10,0),IF(B35="","",0))) ->  | G35: =IF(B34="","",IFERROR(VLOOKUP($G$8&$B35&"All"&$B$13&$J$8&$D$9,'Inspection Outcome data'!$A:$K,11,0),IF(B35="","",0))) -> 
A36: 2 | B36: =IFERROR(VLOOKUP($B$28&A36,'Region Lookups'!A:C,3,0),"") ->  | C36: =IF(B35="","",IF(ISERROR(VLOOKUP($G$8&$B36&"All"&$B$13&$J$8&$D$9,'Inspection Outcome data'!$A:$K,8,0)),"",SUM(D36:G36))) ->  | D36: =IF(B35="","",IFERROR(VLOOKUP($G$8&$B36&"All"&$B$13&$J$8&$D$9,'Inspection Outcome data'!$A:$K,8,0),IF(B36="","",0))) ->  | E36: =IF(B35="","",IFERROR(VLOOKUP($G$8&$B36&"All"&$B$13&$J$8&$D$9,'Inspection Outcome data'!$A:$K,9,0),IF(B36="","",0))) ->  | F36: =IF(B35="","",IFERROR(VLOOKUP($G$8&$B36&"All"&$B$13&$J$8&$D$9,'Inspection Outcome data'!$A:$K,10,0),IF(B36="","",0))) ->  | G36: =IF(B35="","",IFERROR(VLOOKUP($G$8&$B36&"All"&$B$13&$J$8&$D$9,'Inspection Outcome data'!$A:$K,11,0),IF(B36="","",0))) -> 
A37: 3 | B37: =IFERROR(VLOOKUP($B$28&A37,'Region Lookups'!A:C,3,0),"") ->  | C37: =IF(B36="","",IF(ISERROR(VLOOKUP($G$8&$B37&"All"&$B$13&$J$8&$D$9,'Inspection Outcome data'!$A:$K,8,0)),"",SUM(D37:G37))) ->  | D37: =IF(B36="","",IFERROR(VLOOKUP($G$8&$B37&"All"&$B$13&$J$8&$D$9,'Inspection Outcome data'!$A:$K,8,0),IF(B37="","",0))) ->  | E37: =IF(B36="","",IFERROR(VLOOKUP($G$8&$B37&"All"&$B$13&$J$8&$D$9,'Inspection Outcome data'!$A:$K,9,0),IF(B37="","",0))) ->  | F37: =IF(B36="","",IFERROR(VLOOKUP($G$8&$B37&"All"&$B$13&$J$8&$D$9,'Inspection Outcome data'!$A:$K,10,0),IF(B37="","",0))) ->  | G37: =IF(B36="","",IFERROR(VLOOKUP($G$8&$B37&"All"&$B$13&$J$8&$D$9,'Inspection Outcome data'!$A:$K,11,0),IF(B37="","",0))) -> 
A38: 4 | B38: =IFERROR(VLOOKUP($B$28&A38,'Region Lookups'!A:C,3,0),"") ->  | C38: =IF(B37="","",IF(ISERROR(VLOOKUP($G$8&$B38&"All"&$B$13&$J$8&$D$9,'Inspection Outcome data'!$A:$K,8,0)),"",SUM(D38:G38))) ->  | D38: =IF(B37="","",IFERROR(VLOOKUP($G$8&$B38&"All"&$B$13&$J$8&$D$9,'Inspection Outcome data'!$A:$K,8,0),IF(B38="","",0))) ->  | E38: =IF(B37="","",IFERROR(VLOOKUP($G$8&$B38&"All"&$B$13&$J$8&$D$9,'Inspection Outcome data'!$A:$K,9,0),IF(B38="","",0))) ->  | F38: =IF(B37="","",IFERROR(VLOOKUP($G$8&$B38&"All"&$B$13&$J$8&$D$9,'Inspection Outcome data'!$A:$K,10,0),IF(B38="","",0))) ->  | G38: =IF(B37="","",IFERROR(VLOOKUP($G$8&$B38&"All"&$B$13&$J$8&$D$9,'Inspection Outcome data'!$A:$K,11,0),IF(B38="","",0))) -> 
A39: 5 | B39: =IFERROR(VLOOKUP($B$28&A39,'Region Lookups'!A:C,3,0),"") ->  | C39: =IF(B38="","",IF(ISERROR(VLOOKUP($G$8&$B39&"All"&$B$13&$J$8&$D$9,'Inspection Outcome data'!$A:$K,8,0)),"",SUM(D39:G39))) ->  | D39: =IF(B38="","",IFERROR(VLOOKUP($G$8&$B39&"All"&$B$13&$J$8&$D$9,'Inspection Outcome data'!$A:$K,8,0),IF(B39="","",0))) ->  | E39: =IF(B38="","",IFERROR(VLOOKUP($G$8&$B39&"All"&$B$13&$J$8&$D$9,'Inspection Outcome data'!$A:$K,9,0),IF(B39="","",0))) ->  | F39: =IF(B38="","",IFERROR(VLOOKUP($G$8&$B39&"All"&$B$13&$J$8&$D$9,'Inspection Outcome data'!$A:$K,10,0),IF(B39="","",0))) ->  | G39: =IF(B38="","",IFERROR(VLOOKUP($G$8&$B39&"All"&$B$13&$J$8&$D$9,'Inspection Outcome data'!$A:$K,11,0),IF(B39="","",0))) -> 
A40: 6 | B40: =IFERROR(VLOOKUP($B$28&A40,'Region Lookups'!A:C,3,0),"") ->  | C40: =IF(B39="","",IF(ISERROR(VLOOKUP($G$8&$B40&"All"&$B$13&$J$8&$D$9,'Inspection Outcome data'!$A:$K,8,0)),"",SUM(D40:G40))) ->  | D40: =IF(B39="","",IFERROR(VLOOKUP($G$8&$B40&"All"&$B$13&$J$8&$D$9,'Inspection Outcome data'!$A:$K,8,0),IF(B40="","",0))) ->  | E40: =IF(B39="","",IFERROR(VLOOKUP($G$8&$B40&"All"&$B$13&$J$8&$D$9,'Inspection Outcome data'!$A:$K,9,0),IF(B40="","",0))) ->  | F40: =IF(B39="","",IFERROR(VLOOKUP($G$8&$B40&"All"&$B$13&$J$8&$D$9,'Inspection Outcome data'!$A:$K,10,0),IF(B40="","",0))) ->  | G40: =IF(B39="","",IFERROR(VLOOKUP($G$8&$B40&"All"&$B$13&$J$8&$D$9,'Inspection Outcome data'!$A:$K,11,0),IF(B40="","",0))) -> 
A41: 7 | B41: =IFERROR(VLOOKUP($B$28&A41,'Region Lookups'!A:C,3,0),"") ->  | C41: =IF(B40="","",IF(ISERROR(VLOOKUP($G$8&$B41&"All"&$B$13&$J$8&$D$9,'Inspection Outcome data'!$A:$K,8,0)),"",SUM(D41:G41))) ->  | D41: =IF(B40="","",IFERROR(VLOOKUP($G$8&$B41&"All"&$B$13&$J$8&$D$9,'Inspection Outcome data'!$A:$K,8,0),IF(B41="","",0))) ->  | E41: =IF(B40="","",IFERROR(VLOOKUP($G$8&$B41&"All"&$B$13&$J$8&$D$9,'Inspection Outcome data'!$A:$K,9,0),IF(B41="","",0))) ->  | F41: =IF(B40="","",IFERROR(VLOOKUP($G$8&$B41&"All"&$B$13&$J$8&$D$9,'Inspection Outcome data'!$A:$K,10,0),IF(B41="","",0))) ->  | G41: =IF(B40="","",IFERROR(VLOOKUP($G$8&$B41&"All"&$B$13&$J$8&$D$9,'Inspection Outcome data'!$A:$K,11,0),IF(B41="","",0))) -> 
A42: 8 | B42: =IFERROR(VLOOKUP($B$28&A42,'Region Lookups'!A:C,3,0),"") ->  | C42: =IF(B41="","",IF(ISERROR(VLOOKUP($G$8&$B42&"All"&$B$13&$J$8&$D$9,'Inspection Outcome data'!$A:$K,8,0)),"",SUM(D42:G42))) ->  | D42: =IF(B41="","",IFERROR(VLOOKUP($G$8&$B42&"All"&$B$13&$J$8&$D$9,'Inspection Outcome data'!$A:$K,8,0),IF(B42="","",0))) ->  | E42: =IF(B41="","",IFERROR(VLOOKUP($G$8&$B42&"All"&$B$13&$J$8&$D$9,'Inspection Outcome data'!$A:$K,9,0),IF(B42="","",0))) ->  | F42: =IF(B41="","",IFERROR(VLOOKUP($G$8&$B42&"All"&$B$13&$J$8&$D$9,'Inspection Outcome data'!$A:$K,10,0),IF(B42="","",0))) ->  | G42: =IF(B41="","",IFERROR(VLOOKUP($G$8&$B42&"All"&$B$13&$J$8&$D$9,'Inspection Outcome data'!$A:$K,11,0),IF(B42="","",0))) -> 
A43: 9 | B43: =IFERROR(VLOOKUP($B$28&A43,'Region Lookups'!A:C,3,0),"") ->  | C43: =IF(B42="","",IF(ISERROR(VLOOKUP($G$8&$B43&"All"&$B$13&$J$8&$D$9,'Inspection Outcome data'!$A:$K,8,0)),"",SUM(D43:G43))) ->  | D43: =IF(B42="","",IFERROR(VLOOKUP($G$8&$B43&"All"&$B$13&$J$8&$D$9,'Inspection Outcome data'!$A:$K,8,0),IF(B43="","",0))) ->  | E43: =IF(B42="","",IFERROR(VLOOKUP($G$8&$B43&"All"&$B$13&$J$8&$D$9,'Inspection Outcome data'!$A:$K,9,0),IF(B43="","",0))) ->  | F43: =IF(B42="","",IFERROR(VLOOKUP($G$8&$B43&"All"&$B$13&$J$8&$D$9,'Inspection Outcome data'!$A:$K,10,0),IF(B43="","",0))) ->  | G43: =IF(B42="","",IFERROR(VLOOKUP($G$8&$B43&"All"&$B$13&$J$8&$D$9,'Inspection Outcome data'!$A:$K,11,0),IF(B43="","",0))) -> 
A44: 10 | B44: =IFERROR(VLOOKUP($B$28&A44,'Region Lookups'!A:C,3,0),"") ->  | C44: =IF(B43="","",IF(ISERROR(VLOOKUP($G$8&$B44&"All"&$B$13&$J$8&$D$9,'Inspection Outcome data'!$A:$K,8,0)),"",SUM(D44:G44))) ->  | D44: =IF(B43="","",IFERROR(VLOOKUP($G$8&$B44&"All"&$B$13&$J$8&$D$9,'Inspection Outcome data'!$A:$K,8,0),IF(B44="","",0))) ->  | E44: =IF(B43="","",IFERROR(VLOOKUP($G$8&$B44&"All"&$B$13&$J$8&$D$9,'Inspection Outcome data'!$A:$K,9,0),IF(B44="","",0))) ->  | F44: =IF(B43="","",IFERROR(VLOOKUP($G$8&$B44&"All"&$B$13&$J$8&$D$9,'Inspection Outcome data'!$A:$K,10,0),IF(B44="","",0))) ->  | G44: =IF(B43="","",IFERROR(VLOOKUP($G$8&$B44&"All"&$B$13&$J$8&$D$9,'Inspection Outcome data'!$A:$K,11,0),IF(B44="","",0))) -> 
A45: 11 | B45: =IFERROR(VLOOKUP($B$28&A45,'Region Lookups'!A:C,3,0),"") ->  | C45: =IF(B44="","",IF(ISERROR(VLOOKUP($G$8&$B45&"All"&$B$13&$J$8&$D$9,'Inspection Outcome data'!$A:$K,8,0)),"",SUM(D45:G45))) ->  | D45: =IF(B44="","",IFERROR(VLOOKUP($G$8&$B45&"All"&$B$13&$J$8&$D$9,'Inspection Outcome data'!$A:$K,8,0),IF(B45="","",0))) ->  | E45: =IF(B44="","",IFERROR(VLOOKUP($G$8&$B45&"All"&$B$13&$J$8&$D$9,'Inspection Outcome data'!$A:$K,9,0),IF(B45="","",0))) ->  | F45: =IF(B44="","",IFERROR(VLOOKUP($G$8&$B45&"All"&$B$13&$J$8&$D$9,'Inspection Outcome data'!$A:$K,10,0),IF(B45="","",0))) ->  | G45: =IF(B44="","",IFERROR(VLOOKUP($G$8&$B45&"All"&$B$13&$J$8&$D$9,'Inspection Outcome data'!$A:$K,11,0),IF(B45="","",0))) -> 
A46: 12 | B46: =IFERROR(VLOOKUP($B$28&A46,'Region Lookups'!A:C,3,0),"") ->  | C46: =IF(B45="","",IF(ISERROR(VLOOKUP($G$8&$B46&"All"&$B$13&$J$8&$D$9,'Inspection Outcome data'!$A:$K,8,0)),"",SUM(D46:G46))) ->  | D46: =IF(B45="","",IFERROR(VLOOKUP($G$8&$B46&"All"&$B$13&$J$8&$D$9,'Inspection Outcome data'!$A:$K,8,0),IF(B46="","",0))) ->  | E46: =IF(B45="","",IFERROR(VLOOKUP($G$8&$B46&"All"&$B$13&$J$8&$D$9,'Inspection Outcome data'!$A:$K,9,0),IF(B46="","",0))) ->  | F46: =IF(B45="","",IFERROR(VLOOKUP($G$8&$B46&"All"&$B$13&$J$8&$D$9,'Inspection Outcome data'!$A:$K,10,0),IF(B46="","",0))) ->  | G46: =IF(B45="","",IFERROR(VLOOKUP($G$8&$B46&"All"&$B$13&$J$8&$D$9,'Inspection Outcome data'!$A:$K,11,0),IF(B46="","",0))) -> 
A47: 13 | B47: =IFERROR(VLOOKUP($B$28&A47,'Region Lookups'!A:C,3,0),"") ->  | C47: =IF(B46="","",IF(ISERROR(VLOOKUP($G$8&$B47&"All"&$B$13&$J$8&$D$9,'Inspection Outcome data'!$A:$K,8,0)),"",SUM(D47:G47))) ->  | D47: =IF(B46="","",IFERROR(VLOOKUP($G$8&$B47&"All"&$B$13&$J$8&$D$9,'Inspection Outcome data'!$A:$K,8,0),IF(B47="","",0))) ->  | E47: =IF(B46="","",IFERROR(VLOOKUP($G$8&$B47&"All"&$B$13&$J$8&$D$9,'Inspection Outcome data'!$A:$K,9,0),IF(B47="","",0))) ->  | F47: =IF(B46="","",IFERROR(VLOOKUP($G$8&$B47&"All"&$B$13&$J$8&$D$9,'Inspection Outcome data'!$A:$K,10,0),IF(B47="","",0))) ->  | G47: =IF(B46="","",IFERROR(VLOOKUP($G$8&$B47&"All"&$B$13&$J$8&$D$9,'Inspection Outcome data'!$A:$K,11,0),IF(B47="","",0))) -> 
A48: 14 | B48: =IFERROR(VLOOKUP($B$28&A48,'Region Lookups'!A:C,3,0),"") ->  | C48: =IF(B47="","",IF(ISERROR(VLOOKUP($G$8&$B48&"All"&$B$13&$J$8&$D$9,'Inspection Outcome data'!$A:$K,8,0)),"",SUM(D48:G48))) ->  | D48: =IF(B47="","",IFERROR(VLOOKUP($G$8&$B48&"All"&$B$13&$J$8&$D$9,'Inspection Outcome data'!$A:$K,8,0),IF(B48="","",0))) ->  | E48: =IF(B47="","",IFERROR(VLOOKUP($G$8&$B48&"All"&$B$13&$J$8&$D$9,'Inspection Outcome data'!$A:$K,9,0),IF(B48="","",0))) ->  | F48: =IF(B47="","",IFERROR(VLOOKUP($G$8&$B48&"All"&$B$13&$J$8&$D$9,'Inspection Outcome data'!$A:$K,10,0),IF(B48="","",0))) ->  | G48: =IF(B47="","",IFERROR(VLOOKUP($G$8&$B48&"All"&$B$13&$J$8&$D$9,'Inspection Outcome data'!$A:$K,11,0),IF(B48="","",0))) -> 
A49: 15 | B49: =IFERROR(VLOOKUP($B$28&A49,'Region Lookups'!A:C,3,0),"") ->  | C49: =IF(B48="","",IF(ISERROR(VLOOKUP($G$8&$B49&"All"&$B$13&$J$8&$D$9,'Inspection Outcome data'!$A:$K,8,0)),"",SUM(D49:G49))) ->  | D49: =IF(B48="","",IFERROR(VLOOKUP($G$8&$B49&"All"&$B$13&$J$8&$D$9,'Inspection Outcome data'!$A:$K,8,0),IF(B49="","",0))) ->  | E49: =IF(B48="","",IFERROR(VLOOKUP($G$8&$B49&"All"&$B$13&$J$8&$D$9,'Inspection Outcome data'!$A:$K,9,0),IF(B49="","",0))) ->  | F49: =IF(B48="","",IFERROR(VLOOKUP($G$8&$B49&"All"&$B$13&$J$8&$D$9,'Inspection Outcome data'!$A:$K,10,0),IF(B49="","",0))) ->  | G49: =IF(B48="","",IFERROR(VLOOKUP($G$8&$B49&"All"&$B$13&$J$8&$D$9,'Inspection Outcome data'!$A:$K,11,0),IF(B49="","",0))) -> 
A50: 16 | B50: =IFERROR(VLOOKUP($B$28&A50,'Region Lookups'!A:C,3,0),"") ->  | C50: =IF(B49="","",IF(ISERROR(VLOOKUP($G$8&$B50&"All"&$B$13&$J$8&$D$9,'Inspection Outcome data'!$A:$K,8,0)),"",SUM(D50:G50))) ->  | D50: =IF(B49="","",IFERROR(VLOOKUP($G$8&$B50&"All"&$B$13&$J$8&$D$9,'Inspection Outcome data'!$A:$K,8,0),IF(B50="","",0))) ->  | E50: =IF(B49="","",IFERROR(VLOOKUP($G$8&$B50&"All"&$B$13&$J$8&$D$9,'Inspection Outcome data'!$A:$K,9,0),IF(B50="","",0))) ->  | F50: =IF(B49="","",IFERROR(VLOOKUP($G$8&$B50&"All"&$B$13&$J$8&$D$9,'Inspection Outcome data'!$A:$K,10,0),IF(B50="","",0))) ->  | G50: =IF(B49="","",IFERROR(VLOOKUP($G$8&$B50&"All"&$B$13&$J$8&$D$9,'Inspection Outcome data'!$A:$K,11,0),IF(B50="","",0))) -> 
A51: 17 | B51: =IFERROR(VLOOKUP($B$28&A51,'Region Lookups'!A:C,3,0),"") ->  | C51: =IF(B50="","",IF(ISERROR(VLOOKUP($G$8&$B51&"All"&$B$13&$J$8&$D$9,'Inspection Outcome data'!$A:$K,8,0)),"",SUM(D51:G51))) ->  | D51: =IF(B50="","",IFERROR(VLOOKUP($G$8&$B51&"All"&$B$13&$J$8&$D$9,'Inspection Outcome data'!$A:$K,8,0),IF(B51="","",0))) ->  | E51: =IF(B50="","",IFERROR(VLOOKUP($G$8&$B51&"All"&$B$13&$J$8&$D$9,'Inspection Outcome data'!$A:$K,9,0),IF(B51="","",0))) ->  | F51: =IF(B50="","",IFERROR(VLOOKUP($G$8&$B51&"All"&$B$13&$J$8&$D$9,'Inspection Outcome data'!$A:$K,10,0),IF(B51="","",0))) ->  | G51: =IF(B50="","",IFERROR(VLOOKUP($G$8&$B51&"All"&$B$13&$J$8&$D$9,'Inspection Outcome data'!$A:$K,11,0),IF(B51="","",0))) -> 
A52: 18 | B52: =IFERROR(VLOOKUP($B$28&A52,'Region Lookups'!A:C,3,0),"") ->  | C52: =IF(B51="","",IF(ISERROR(VLOOKUP($G$8&$B52&"All"&$B$13&$J$8&$D$9,'Inspection Outcome data'!$A:$K,8,0)),"",SUM(D52:G52))) ->  | D52: =IF(B51="","",IFERROR(VLOOKUP($G$8&$B52&"All"&$B$13&$J$8&$D$9,'Inspection Outcome data'!$A:$K,8,0),IF(B52="","",0))) ->  | E52: =IF(B51="","",IFERROR(VLOOKUP($G$8&$B52&"All"&$B$13&$J$8&$D$9,'Inspection Outcome data'!$A:$K,9,0),IF(B52="","",0))) ->  | F52: =IF(B51="","",IFERROR(VLOOKUP($G$8&$B52&"All"&$B$13&$J$8&$D$9,'Inspection Outcome data'!$A:$K,10,0),IF(B52="","",0))) ->  | G52: =IF(B51="","",IFERROR(VLOOKUP($G$8&$B52&"All"&$B$13&$J$8&$D$9,'Inspection Outcome data'!$A:$K,11,0),IF(B52="","",0))) -> 
A53: 19 | B53: =IFERROR(VLOOKUP($B$28&A53,'Region Lookups'!A:C,3,0),"") ->  | C53: =IF(B52="","",IF(ISERROR(VLOOKUP($G$8&$B53&"All"&$B$13&$J$8&$D$9,'Inspection Outcome data'!$A:$K,8,0)),"",SUM(D53:G53))) ->  | D53: =IF(B52="","",IFERROR(VLOOKUP($G$8&$B53&"All"&$B$13&$J$8&$D$9,'Inspection Outcome data'!$A:$K,8,0),IF(B53="","",0))) ->  | E53: =IF(B52="","",IFERROR(VLOOKUP($G$8&$B53&"All"&$B$13&$J$8&$D$9,'Inspection Outcome data'!$A:$K,9,0),IF(B53="","",0))) ->  | F53: =IF(B52="","",IFERROR(VLOOKUP($G$8&$B53&"All"&$B$13&$J$8&$D$9,'Inspection Outcome data'!$A:$K,10,0),IF(B53="","",0))) ->  | G53: =IF(B52="","",IFERROR(VLOOKUP($G$8&$B53&"All"&$B$13&$J$8&$D$9,'Inspection Outcome data'!$A:$K,11,0),IF(B53="","",0))) -> 
A54: 20 | B54: =IFERROR(VLOOKUP($B$28&A54,'Region Lookups'!A:C,3,0),"") ->  | C54: =IF(B53="","",IF(ISERROR(VLOOKUP($G$8&$B54&"All"&$B$13&$J$8&$D$9,'Inspection Outcome data'!$A:$K,8,0)),"",SUM(D54:G54))) ->  | D54: =IF(B53="","",IFERROR(VLOOKUP($G$8&$B54&"All"&$B$13&$J$8&$D$9,'Inspection Outcome data'!$A:$K,8,0),IF(B54="","",0))) ->  | E54: =IF(B53="","",IFERROR(VLOOKUP($G$8&$B54&"All"&$B$13&$J$8&$D$9,'Inspection Outcome data'!$A:$K,9,0),IF(B54="","",0))) ->  | F54: =IF(B53="","",IFERROR(VLOOKUP($G$8&$B54&"All"&$B$13&$J$8&$D$9,'Inspection Outcome data'!$A:$K,10,0),IF(B54="","",0))) ->  | G54: =IF(B53="","",IFERROR(VLOOKUP($G$8&$B54&"All"&$B$13&$J$8&$D$9,'Inspection Outcome data'!$A:$K,11,0),IF(B54="","",0))) -> 
A55: 21 | B55: =IFERROR(VLOOKUP($B$28&A55,'Region Lookups'!A:C,3,0),"") ->  | C55: =IF(B54="","",IF(ISERROR(VLOOKUP($G$8&$B55&"All"&$B$13&$J$8&$D$9,'Inspection Outcome data'!$A:$K,8,0)),"",SUM(D55:G55))) ->  | D55: =IF(B54="","",IFERROR(VLOOKUP($G$8&$B55&"All"&$B$13&$J$8&$D$9,'Inspection Outcome data'!$A:$K,8,0),IF(B55="","",0))) ->  | E55: =IF(B54="","",IFERROR(VLOOKUP($G$8&$B55&"All"&$B$13&$J$8&$D$9,'Inspection Outcome data'!$A:$K,9,0),IF(B55="","",0))) ->  | F55: =IF(B54="","",IFERROR(VLOOKUP($G$8&$B55&"All"&$B$13&$J$8&$D$9,'Inspection Outcome data'!$A:$K,10,0),IF(B55="","",0))) ->  | G55: =IF(B54="","",IFERROR(VLOOKUP($G$8&$B55&"All"&$B$13&$J$8&$D$9,'Inspection Outcome data'!$A:$K,11,0),IF(B55="","",0))) -> 
A56: 22 | B56: =IFERROR(VLOOKUP($B$28&A56,'Region Lookups'!A:C,3,0),"") ->  | C56: =IF(B55="","",IF(ISERROR(VLOOKUP($G$8&$B56&"All"&$B$13&$J$8&$D$9,'Inspection Outcome data'!$A:$K,8,0)),"",SUM(D56:G56))) ->  | D56: =IF(B55="","",IFERROR(VLOOKUP($G$8&$B56&"All"&$B$13&$J$8&$D$9,'Inspection Outcome data'!$A:$K,8,0),IF(B56="","",0))) ->  | E56: =IF(B55="","",IFERROR(VLOOKUP($G$8&$B56&"All"&$B$13&$J$8&$D$9,'Inspection Outcome data'!$A:$K,9,0),IF(B56="","",0))) ->  | F56: =IF(B55="","",IFERROR(VLOOKUP($G$8&$B56&"All"&$B$13&$J$8&$D$9,'Inspection Outcome data'!$A:$K,10,0),IF(B56="","",0))) ->  | G56: =IF(B55="","",IFERROR(VLOOKUP($G$8&$B56&"All"&$B$13&$J$8&$D$9,'Inspection Outcome data'!$A:$K,11,0),IF(B56="","",0))) -> 
A57: 23 | B57: =IFERROR(VLOOKUP($B$28&A57,'Region Lookups'!A:C,3,0),"") ->  | C57: =IF(B56="","",IF(ISERROR(VLOOKUP($G$8&$B57&"All"&$B$13&$J$8&$D$9,'Inspection Outcome data'!$A:$K,8,0)),"",SUM(D57:G57))) ->  | D57: =IF(B56="","",IFERROR(VLOOKUP($G$8&$B57&"All"&$B$13&$J$8&$D$9,'Inspection Outcome data'!$A:$K,8,0),IF(B57="","",0))) ->  | E57: =IF(B56="","",IFERROR(VLOOKUP($G$8&$B57&"All"&$B$13&$J$8&$D$9,'Inspection Outcome data'!$A:$K,9,0),IF(B57="","",0))) ->  | F57: =IF(B56="","",IFERROR(VLOOKUP($G$8&$B57&"All"&$B$13&$J$8&$D$9,'Inspection Outcome data'!$A:$K,10,0),IF(B57="","",0))) ->  | G57: =IF(B56="","",IFERROR(VLOOKUP($G$8&$B57&"All"&$B$13&$J$8&$D$9,'Inspection Outcome data'!$A:$K,11,0),IF(B57="","",0))) -> 
A58: 24 | B58: =IFERROR(VLOOKUP($B$28&A58,'Region Lookups'!A:C,3,0),"") ->  | C58: =IF(B57="","",IF(ISERROR(VLOOKUP($G$8&$B58&"All"&$B$13&$J$8&$D$9,'Inspection Outcome data'!$A:$K,8,0)),"",SUM(D58:G58))) ->  | D58: =IF(B57="","",IFERROR(VLOOKUP($G$8&$B58&"All"&$B$13&$J$8&$D$9,'Inspection Outcome data'!$A:$K,8,0),IF(B58="","",0))) ->  | E58: =IF(B57="","",IFERROR(VLOOKUP($G$8&$B58&"All"&$B$13&$J$8&$D$9,'Inspection Outcome data'!$A:$K,9,0),IF(B58="","",0))) ->  | F58: =IF(B57="","",IFERROR(VLOOKUP($G$8&$B58&"All"&$B$13&$J$8&$D$9,'Inspection Outcome data'!$A:$K,10,0),IF(B58="","",0))) ->  | G58: =IF(B57="","",IFERROR(VLOOKUP($G$8&$B58&"All"&$B$13&$J$8&$D$9,'Inspection Outcome data'!$A:$K,11,0),IF(B58="","",0))) -> 
A59: 25 | B59: =IFERROR(VLOOKUP($B$28&A59,'Region Lookups'!A:C,3,0),"") ->  | C59: =IF(B58="","",IF(ISERROR(VLOOKUP($G$8&$B59&"All"&$B$13&$J$8&$D$9,'Inspection Outcome data'!$A:$K,8,0)),"",SUM(D59:G59))) ->  | D59: =IF(B58="","",IFERROR(VLOOKUP($G$8&$B59&"All"&$B$13&$J$8&$D$9,'Inspection Outcome data'!$A:$K,8,0),IF(B59="","",0))) ->  | E59: =IF(B58="","",IFERROR(VLOOKUP($G$8&$B59&"All"&$B$13&$J$8&$D$9,'Inspection Outcome data'!$A:$K,9,0),IF(B59="","",0))) ->  | F59: =IF(B58="","",IFERROR(VLOOKUP($G$8&$B59&"All"&$B$13&$J$8&$D$9,'Inspection Outcome data'!$A:$K,10,0),IF(B59="","",0))) ->  | G59: =IF(B58="","",IFERROR(VLOOKUP($G$8&$B59&"All"&$B$13&$J$8&$D$9,'Inspection Outcome data'!$A:$K,11,0),IF(B59="","",0))) -> 
A60: 26 | B60: =IFERROR(VLOOKUP($B$28&A60,'Region Lookups'!A:C,3,0),"") ->  | C60: =IF(B59="","",IF(ISERROR(VLOOKUP($G$8&$B60&"All"&$B$13&$J$8&$D$9,'Inspection Outcome data'!$A:$K,8,0)),"",SUM(D60:G60))) ->  | D60: =IF(B59="","",IFERROR(VLOOKUP($G$8&$B60&"All"&$B$13&$J$8&$D$9,'Inspection Outcome data'!$A:$K,8,0),IF(B60="","",0))) ->  | E60: =IF(B59="","",IFERROR(VLOOKUP($G$8&$B60&"All"&$B$13&$J$8&$D$9,'Inspection Outcome data'!$A:$K,9,0),IF(B60="","",0))) ->  | F60: =IF(B59="","",IFERROR(VLOOKUP($G$8&$B60&"All"&$B$13&$J$8&$D$9,'Inspection Outcome data'!$A:$K,10,0),IF(B60="","",0))) ->  | G60: =IF(B59="","",IFERROR(VLOOKUP($G$8&$B60&"All"&$B$13&$J$8&$D$9,'Inspection Outcome data'!$A:$K,11,0),IF(B60="","",0))) -> 
A61: 27 | B61: =IFERROR(VLOOKUP($B$28&A61,'Region Lookups'!A:C,3,0),"") ->  | C61: =IF(B60="","",IF(ISERROR(VLOOKUP($G$8&$B61&"All"&$B$13&$J$8&$D$9,'Inspection Outcome data'!$A:$K,8,0)),"",SUM(D61:G61))) ->  | D61: =IF(B60="","",IFERROR(VLOOKUP($G$8&$B61&"All"&$B$13&$J$8&$D$9,'Inspection Outcome data'!$A:$K,8,0),IF(B61="","",0))) ->  | E61: =IF(B60="","",IFERROR(VLOOKUP($G$8&$B61&"All"&$B$13&$J$8&$D$9,'Inspection Outcome data'!$A:$K,9,0),IF(B61="","",0))) ->  | F61: =IF(B60="","",IFERROR(VLOOKUP($G$8&$B61&"All"&$B$13&$J$8&$D$9,'Inspection Outcome data'!$A:$K,10,0),IF(B61="","",0))) ->  | G61: =IF(B60="","",IFERROR(VLOOKUP($G$8&$B61&"All"&$B$13&$J$8&$D$9,'Inspection Outcome data'!$A:$K,11,0),IF(B61="","",0))) -> 
A62: 28 | B62: =IFERROR(VLOOKUP($B$28&A62,'Region Lookups'!A:C,3,0),"") ->  | C62: =IF(B61="","",IF(ISERROR(VLOOKUP($G$8&$B62&"All"&$B$13&$J$8&$D$9,'Inspection Outcome data'!$A:$K,8,0)),"",SUM(D62:G62))) ->  | D62: =IF(B61="","",IFERROR(VLOOKUP($G$8&$B62&"All"&$B$13&$J$8&$D$9,'Inspection Outcome data'!$A:$K,8,0),IF(B62="","",0))) ->  | E62: =IF(B61="","",IFERROR(VLOOKUP($G$8&$B62&"All"&$B$13&$J$8&$D$9,'Inspection Outcome data'!$A:$K,9,0),IF(B62="","",0))) ->  | F62: =IF(B61="","",IFERROR(VLOOKUP($G$8&$B62&"All"&$B$13&$J$8&$D$9,'Inspection Outcome data'!$A:$K,10,0),IF(B62="","",0))) ->  | G62: =IF(B61="","",IFERROR(VLOOKUP($G$8&$B62&"All"&$B$13&$J$8&$D$9,'Inspection Outcome data'!$A:$K,11,0),IF(B62="","",0))) -> 
A63: 29 | B63: =IFERROR(VLOOKUP($B$28&A63,'Region Lookups'!A:C,3,0),"") ->  | C63: =IF(B62="","",IF(ISERROR(VLOOKUP($G$8&$B63&"All"&$B$13&$J$8&$D$9,'Inspection Outcome data'!$A:$K,8,0)),"",SUM(D63:G63))) ->  | D63: =IF(B62="","",IFERROR(VLOOKUP($G$8&$B63&"All"&$B$13&$J$8&$D$9,'Inspection Outcome data'!$A:$K,8,0),IF(B63="","",0))) ->  | E63: =IF(B62="","",IFERROR(VLOOKUP($G$8&$B63&"All"&$B$13&$J$8&$D$9,'Inspection Outcome data'!$A:$K,9,0),IF(B63="","",0))) ->  | F63: =IF(B62="","",IFERROR(VLOOKUP($G$8&$B63&"All"&$B$13&$J$8&$D$9,'Inspection Outcome data'!$A:$K,10,0),IF(B63="","",0))) ->  | G63: =IF(B62="","",IFERROR(VLOOKUP($G$8&$B63&"All"&$B$13&$J$8&$D$9,'Inspection Outcome data'!$A:$K,11,0),IF(B63="","",0))) -> 
A64: 30 | B64: =IFERROR(VLOOKUP($B$28&A64,'Region Lookups'!A:C,3,0),"") ->  | C64: =IF(B63="","",IF(ISERROR(VLOOKUP($G$8&$B64&"All"&$B$13&$J$8&$D$9,'Inspection Outcome data'!$A:$K,8,0)),"",SUM(D64:G64))) ->  | D64: =IF(B63="","",IFERROR(VLOOKUP($G$8&$B64&"All"&$B$13&$J$8&$D$9,'Inspection Outcome data'!$A:$K,8,0),IF(B64="","",0))) ->  | E64: =IF(B63="","",IFERROR(VLOOKUP($G$8&$B64&"All"&$B$13&$J$8&$D$9,'Inspection Outcome data'!$A:$K,9,0),IF(B64="","",0))) ->  | F64: =IF(B63="","",IFERROR(VLOOKUP($G$8&$B64&"All"&$B$13&$J$8&$D$9,'Inspection Outcome data'!$A:$K,10,0),IF(B64="","",0))) ->  | G64: =IF(B63="","",IFERROR(VLOOKUP($G$8&$B64&"All"&$B$13&$J$8&$D$9,'Inspection Outcome data'!$A:$K,11,0),IF(B64="","",0))) -> 
A65: 31 | B65: =IFERROR(VLOOKUP($B$28&A65,'Region Lookups'!A:C,3,0),"") ->  | C65: =IF(B64="","",IF(ISERROR(VLOOKUP($G$8&$B65&"All"&$B$13&$J$8&$D$9,'Inspection Outcome data'!$A:$K,8,0)),"",SUM(D65:G65))) ->  | D65: =IF(B64="","",IFERROR(VLOOKUP($G$8&$B65&"All"&$B$13&$J$8&$D$9,'Inspection Outcome data'!$A:$K,8,0),IF(B65="","",0))) ->  | E65: =IF(B64="","",IFERROR(VLOOKUP($G$8&$B65&"All"&$B$13&$J$8&$D$9,'Inspection Outcome data'!$A:$K,9,0),IF(B65="","",0))) ->  | F65: =IF(B64="","",IFERROR(VLOOKUP($G$8&$B65&"All"&$B$13&$J$8&$D$9,'Inspection Outcome data'!$A:$K,10,0),IF(B65="","",0))) ->  | G65: =IF(B64="","",IFERROR(VLOOKUP($G$8&$B65&"All"&$B$13&$J$8&$D$9,'Inspection Outcome data'!$A:$K,11,0),IF(B65="","",0))) -> 
A66: 32 | B66: =IFERROR(VLOOKUP($B$28&A66,'Region Lookups'!A:C,3,0),"") ->  | C66: =IF(B65="","",IF(ISERROR(VLOOKUP($G$8&$B66&"All"&$B$13&$J$8&$D$9,'Inspection Outcome data'!$A:$K,8,0)),"",SUM(D66:G66))) ->  | D66: =IF(B65="","",IFERROR(VLOOKUP($G$8&$B66&"All"&$B$13&$J$8&$D$9,'Inspection Outcome data'!$A:$K,8,0),IF(B66="","",0))) ->  | E66: =IF(B65="","",IFERROR(VLOOKUP($G$8&$B66&"All"&$B$13&$J$8&$D$9,'Inspection Outcome data'!$A:$K,9,0),IF(B66="","",0))) ->  | F66: =IF(B65="","",IFERROR(VLOOKUP($G$8&$B66&"All"&$B$13&$J$8&$D$9,'Inspection Outcome data'!$A:$K,10,0),IF(B66="","",0))) ->  | G66: =IF(B65="","",IFERROR(VLOOKUP($G$8&$B66&"All"&$B$13&$J$8&$D$9,'Inspection Outcome data'!$A:$K,11,0),IF(B66="","",0))) -> 
A67: 33 | B67: =IFERROR(VLOOKUP($B$28&A67,'Region Lookups'!A:C,3,0),"") ->  | C67: =IF(B66="","",IF(ISERROR(VLOOKUP($G$8&$B67&"All"&$B$13&$J$8&$D$9,'Inspection Outcome data'!$A:$K,8,0)),"",SUM(D67:G67))) ->  | D67: =IF(B66="","",IFERROR(VLOOKUP($G$8&$B67&"All"&$B$13&$J$8&$D$9,'Inspection Outcome data'!$A:$K,8,0),IF(B67="","",0))) ->  | E67: =IF(B66="","",IFERROR(VLOOKUP($G$8&$B67&"All"&$B$13&$J$8&$D$9,'Inspection Outcome data'!$A:$K,9,0),IF(B67="","",0))) ->  | F67: =IF(B66="","",IFERROR(VLOOKUP($G$8&$B67&"All"&$B$13&$J$8&$D$9,'Inspection Outcome data'!$A:$K,10,0),IF(B67="","",0))) ->  | G67: =IF(B66="","",IFERROR(VLOOKUP($G$8&$B67&"All"&$B$13&$J$8&$D$9,'Inspection Outcome data'!$A:$K,11,0),IF(B67="","",0))) -> 
B68: =IFERROR(VLOOKUP($B$28&A68,'Region Lookups'!A:C,3,0),"") -> 
B69: =IFERROR(VLOOKUP($B$28&A69,'Region Lookups'!A:C,3,0),"") -> 
B70: =IFERROR(VLOOKUP($B$28&A70,'Region Lookups'!A:C,3,0),"") -> 
B71: =IFERROR(VLOOKUP($B$28&A71,'Region Lookups'!A:C,3,0),"") -> 

Sheet Sub-Judgements
S1: 1
B2: Statistical First Release - Children's Social Care Provision (Sub-Judgements excluding inspections of Local Authorities) | S2: 2
S3: 3
C4: Region: | F4: Local Authority: | I4: Sector: | S4: 4
C5: All | F5: All | H5: =IF(C5="All",TRUE,NOT(ISERROR(MATCH(F5,INDIRECT(SUBSTITUTE(SUBSTITUTE(C5," ","_"),",","")),0)))) -> TRUE | I5: All | S5: 5
S6: 6
C7: Date: | F7: Provision Type:
C8: as at 31 March 2017 | F8: All
D9: =VLOOKUP(C8,_PeriodLookup,2,0) -> 2017 | H9: =IF(LEFT(C8,5)="as at",TRUE,FALSE) -> TRUE | I9: =LEFT(D7,5) -> 
B10: Judgements | C10: Total number of inspections | D10: Inspection Outcomes
D11: Outstanding | E11: Good | F11: Requires Improvement / Adequate | G11: Inadequate
A14: Overall effectiveness | B14: =IF(IF(ISERROR(VLOOKUP($D$9&$F$8&$S1,_Subjudgements,4,0))=TRUE,0,VLOOKUP($D$9&$F$8&$S1,_Subjudgements,4,0))=0,"",IF(ISERROR(VLOOKUP($D$9&$F$8&$S1,_Subjudgements,4,0))=TRUE,0,VLOOKUP($D$9&$F$8&$S1,_Subjudgements,4,0))) -> Overall effectiveness | C14: =IF($B14 = "","",IF(SUM(D14,E14,F14,G14)=0,0,SUM(D14,E14,F14,G14))) -> 2688 | D14: =IF($B$14="","",IF(ISERROR( VLOOKUP(A15,DataSubJudgements!$A:$K,8,0))=TRUE,0, VLOOKUP(A15,DataSubJudgements!$A:$K,8,0))) -> 550 | E14: =IF($B$14="","",IF(ISERROR( VLOOKUP(A15,DataSubJudgements!$A:$K,9,0))=TRUE,0, VLOOKUP(A15,DataSubJudgements!$A:$K,9,0))) -> 1681 | F14: =IF($B$14="","",IF(ISERROR( VLOOKUP(A15,DataSubJudgements!$A:$K,10,0))=TRUE,0, VLOOKUP(A15,DataSubJudgements!$A:$K,10,0))) -> 415 | G14: =IF($B$14="","",IF(ISERROR( VLOOKUP(A15,DataSubJudgements!$A:$K,11,0))=TRUE,0, VLOOKUP(A15,DataSubJudgements!$A:$K,11,0))) -> 42
A15: =$C$5&$F$5&$I$5&$F$8&$A$14&$D$9 -> AllAllAllAllOverall effectiveness2017
A17: Outcomes for children and young people | B17: =IF(IF(ISERROR(VLOOKUP($D$9&$F$8&$S2,_Subjudgements,4,0))=TRUE,0,VLOOKUP($D$9&$F$8&$S2,_Subjudgements,4,0))=0,"",IF(ISERROR(VLOOKUP($D$9&$F$8&$S2,_Subjudgements,4,0))=TRUE,0,VLOOKUP($D$9&$F$8&$S2,_Subjudgements,4,0))) -> Outcomes for children and young people | C17: =IF($B17 = "","",IF(SUM(D17,E17,F17,G17)=0,0,SUM(D17,E17,F17,G17))) -> 436 | D17: =IF($B$17="","",IF(ISERROR( VLOOKUP(A18,DataSubJudgements!$A:$K,8,0))=TRUE,0, VLOOKUP(A18,DataSubJudgements!$A:$K,8,0))) -> 155 | E17: =IF($B$17="","",IF(ISERROR( VLOOKUP(A18,DataSubJudgements!$A:$K,9,0))=TRUE,0, VLOOKUP(A18,DataSubJudgements!$A:$K,9,0))) -> 260 | F17: =IF($B$17="","",IF(ISERROR( VLOOKUP(A18,DataSubJudgements!$A:$K,10,0))=TRUE,0, VLOOKUP(A18,DataSubJudgements!$A:$K,10,0))) -> 16 | G17: =IF($B$17="","",IF(ISERROR( VLOOKUP(A18,DataSubJudgements!$A:$K,11,0))=TRUE,0, VLOOKUP(A18,DataSubJudgements!$A:$K,11,0))) -> 5
A18: =$C$5&$F$5&$I$5&$F$8&$A$17&$D$9 -> AllAllAllAllOutcomes for children and young people2017
A20: Quality of care | B20: =IF(IF(ISERROR(VLOOKUP($D$9&$F$8&$S3,_Subjudgements,4,0))=TRUE,0,VLOOKUP($D$9&$F$8&$S3,_Subjudgements,4,0))=0,"",IF(ISERROR(VLOOKUP($D$9&$F$8&$S3,_Subjudgements,4,0))=TRUE,0,VLOOKUP($D$9&$F$8&$S3,_Subjudgements,4,0))) -> Quality of care | C20: =IF($B20 = "","",IF(SUM(D20,E20,F20,G20)=0,0,SUM(D20,E20,F20,G20))) -> 653 | D20: =IF($B$20="","",IF(ISERROR( VLOOKUP(A21,DataSubJudgements!$A:$K,8,0))=TRUE,0, VLOOKUP(A21,DataSubJudgements!$A:$K,8,0))) -> 233 | E20: =IF($B$20="","",IF(ISERROR( VLOOKUP(A21,DataSubJudgements!$A:$K,9,0))=TRUE,0, VLOOKUP(A21,DataSubJudgements!$A:$K,9,0))) -> 330 | F20: =IF($B$20="","",IF(ISERROR( VLOOKUP(A21,DataSubJudgements!$A:$K,10,0))=TRUE,0, VLOOKUP(A21,DataSubJudgements!$A:$K,10,0))) -> 69 | G20: =IF($B$20="","",IF(ISERROR( VLOOKUP(A21,DataSubJudgements!$A:$K,11,0))=TRUE,0, VLOOKUP(A21,DataSubJudgements!$A:$K,11,0))) -> 21
A21: =$C$5&$F$5&$I$5&$F$8&$A$20&$D$9 -> AllAllAllAllQuality of care2017
A23: Safeguarding children and young people | B23: =IF(IF(ISERROR(VLOOKUP($D$9&$F$8&$S4,_Subjudgements,4,0))=TRUE,0,VLOOKUP($D$9&$F$8&$S4,_Subjudgements,4,0))=0,"",IF(ISERROR(VLOOKUP($D$9&$F$8&$S4,_Subjudgements,4,0))=TRUE,0,VLOOKUP($D$9&$F$8&$S4,_Subjudgements,4,0))) -> Safeguarding children and young people | C23: =IF($B23 = "","",IF(SUM(D23,E23,F23,G23)=0,0,SUM(D23,E23,F23,G23))) -> 2670 | D23: =IF($B$23="","",IF(ISERROR( VLOOKUP(A24,DataSubJudgements!$A:$K,8,0))=TRUE,0, VLOOKUP(A24,DataSubJudgements!$A:$K,8,0))) -> 445 | E23: =IF($B$23="","",IF(ISERROR( VLOOKUP(A24,DataSubJudgements!$A:$K,9,0))=TRUE,0, VLOOKUP(A24,DataSubJudgements!$A:$K,9,0))) -> 1665 | F23: =IF($B$23="","",IF(ISERROR( VLOOKUP(A24,DataSubJudgements!$A:$K,10,0))=TRUE,0, VLOOKUP(A24,DataSubJudgements!$A:$K,10,0))) -> 509 | G23: =IF($B$23="","",IF(ISERROR( VLOOKUP(A24,DataSubJudgements!$A:$K,11,0))=TRUE,0, VLOOKUP(A24,DataSubJudgements!$A:$K,11,0))) -> 51
A24: =$C$5&$F$5&$I$5&$F$8&$A$23&$D$9 -> AllAllAllAllSafeguarding children and young people2017
A26: Leadership and management | B26: =IF(IF(ISERROR(VLOOKUP($D$9&$F$8&$S5,_Subjudgements,4,0))=TRUE,0,VLOOKUP($D$9&$F$8&$S5,_Subjudgements,4,0))=0,"",IF(ISERROR(VLOOKUP($D$9&$F$8&$S5,_Subjudgements,4,0))=TRUE,0,VLOOKUP($D$9&$F$8&$S5,_Subjudgements,4,0))) -> Leadership and management | C26: =IF($B26 = "","",IF(SUM(D26,E26,F26,G26)=0,0,SUM(D26,E26,F26,G26))) -> 2671 | D26: =IF($B$26="","",IF(ISERROR( VLOOKUP(A27,DataSubJudgements!$A:$K,8,0))=TRUE,0, VLOOKUP(A27,DataSubJudgements!$A:$K,8,0))) -> 527 | E26: =IF($B$26="","",IF(ISERROR( VLOOKUP(A27,DataSubJudgements!$A:$K,9,0))=TRUE,0, VLOOKUP(A27,DataSubJudgements!$A:$K,9,0))) -> 1401 | F26: =IF($B$26="","",IF(ISERROR( VLOOKUP(A27,DataSubJudgements!$A:$K,10,0))=TRUE,0, VLOOKUP(A27,DataSubJudgements!$A:$K,10,0))) -> 608 | G26: =IF($B$26="","",IF(ISERROR( VLOOKUP(A27,DataSubJudgements!$A:$K,11,0))=TRUE,0, VLOOKUP(A27,DataSubJudgements!$A:$K,11,0))) -> 135
A27: =$C$5&$F$5&$I$5&$F$8&$A$26&$D$9 -> AllAllAllAllLeadership and management2017
A29: Outcomes in education and related learning activities | B29: =IF(IF(ISERROR(VLOOKUP($F$8&$S6,#REF!,4,0))=TRUE,0,VLOOKUP($F$8&$S6,#REF!,4,0))=0,"",IF(ISERROR(VLOOKUP($F$8&$S6,#REF!,4,0))=TRUE,0,VLOOKUP($F$8&$S6,#REF!,4,0))) ->  | C29: =IF(SUM(D29,E29,F29,G29)=0,"",SUM(D29,E29,F29,G29)) ->  | D29: =IF($B$29="","",IF(ISERROR(VLOOKUP($C$5&$F$5&$I$5&$F$8&$A$29&$D$9,DataSubJudgements!$A:$K,8,0))=TRUE,0,VLOOKUP($C$5&$F$5&$I$5&$F$8&$A$29&$D$9,DataSubJudgements!$A:$K,8,0))) ->  | E29: =IF($B$29="","",IF(ISERROR(VLOOKUP($C$5&$F$5&$I$5&$F$8&$A$29&$D$9,DataSubJudgements!$A:$K,9,0))=TRUE,0,VLOOKUP($C$5&$F$5&$I$5&$F$8&$A$29&$D$9,DataSubJudgements!$A:$K,9,0))) ->  | F29: =IF($B$29="","",IF(ISERROR(VLOOKUP($C$5&$F$5&$I$5&$F$8&$A$29&$D$9,DataSubJudgements!$A:$K,10,0))=TRUE,0,VLOOKUP($C$5&$F$5&$I$5&$F$8&$A$29&$D$9,DataSubJudgements!$A:$K,10,0))) ->  | G29: =IF($B$29="","",IF(ISERROR(VLOOKUP($C$5&$F$5&$I$5&$F$8&$A$29&$D$9,DataSubJudgements!$A:$K,11,0))=TRUE,0,VLOOKUP($C$5&$F$5&$I$5&$F$8&$A$29&$D$9,DataSubJudgements!$A:$K,11,0))) -> 
B35: =IF(C5<>"All",C5,IF(F5<>"All",VLOOKUP(F5,'Region Lookups'!C:D,2,0),"All")) -> All
F36: 8 | H36: 9 | J36: 10 | M36: 11
D37: Total number inspected | F37: Outstanding | H37: Good | J37: Requires Improvement/ Adequate | M37: Inadequate
F38: 6 | H38: 7 | J38: 8 | M38: 9
B39: England | D39: =IF(ISERROR(VLOOKUP("All"&"All"&$I$5&$F$8&$A$14&$D$9,DataSubJudgements!$A:$K,8,0)),"",SUM(F39:M39)) -> 2688 | F39: =IFERROR(VLOOKUP("All"&"All"&$I$5&$F$8&$A$14&$D$9,DataSubJudgements!$A:$K,8,0),"") -> 550 | H39: =IFERROR(VLOOKUP("All"&"All"&$I$5&$F$8&$A$14&$D$9,DataSubJudgements!$A:$K,9,0),"") -> 1681 | J39: =IFERROR(VLOOKUP("All"&"All"&$I$5&$F$8&$A$14&$D$9,DataSubJudgements!$A:$K,10,0),"") -> 415 | M39: =IFERROR(VLOOKUP("All"&"All"&$I$5&$F$8&$A$14&$D$9,DataSubJudgements!$A:$K,11,0),"") -> 42
B41: =IFERROR(IF(B35="All",NA(),B35),"") ->  | D41: =IF(ISERROR(VLOOKUP($B41&"All"&$I$5&$F$8&$A$14&$D$9,DataSubJudgements!$A:$K,8,0)),IF(B41="","",0),SUM(F41:M41)) ->  | F41: =IF(ISERROR(VLOOKUP($B41&"All"&$I$5&$F$8&$A$14&$D$9,DataSubJudgements!$A:$K,F$36,0)),IF($B41="","",0),VLOOKUP($B41&"All"&$I$5&$F$8&$A$14&$D$9,DataSubJudgements!$A:$K,F$36,0)) ->  | H41: =IF(ISERROR(VLOOKUP($B41&"All"&$I$5&$F$8&$A$14&$D$9,DataSubJudgements!$A:$K,H$36,0)),IF($B41="","",0),VLOOKUP($B41&"All"&$I$5&$F$8&$A$14&$D$9,DataSubJudgements!$A:$K,H$36,0)) ->  | J41: =IF(ISERROR(VLOOKUP($B41&"All"&$I$5&$F$8&$A$14&$D$9,DataSubJudgements!$A:$K,J$36,0)),IF($B41="","",0),VLOOKUP($B41&"All"&$I$5&$F$8&$A$14&$D$9,DataSubJudgements!$A:$K,J$36,0)) ->  | M41: =IF(ISERROR(VLOOKUP($B41&"All"&$I$5&$F$8&$A$14&$D$9,DataSubJudgements!$A:$K,M$36,0)),IF($B41="","",0),VLOOKUP($B41&"All"&$I$5&$F$8&$A$14&$D$9,DataSubJudgements!$A:$K,M$36,0)) -> 
A42: 1 | B42: =IFERROR(VLOOKUP($B$35&A42,'Region Lookups'!A:C,3,0),"") ->  | D42: =IF(ISERROR(VLOOKUP("All"&$B42&$I$5&$F$8&$A$14&$D$9,DataSubJudgements!$A:$K,8,0)),IF(B42="","",0),SUM(F42:M42)) ->  | F42: =IF(ISERROR(VLOOKUP("All"&$B42&$I$5&$F$8&$A$14&$D$9,DataSubJudgements!$A:$K,F$36,0)),IF($B42="","",0),VLOOKUP("All"&$B42&$I$5&$F$8&$A$14&$D$9,DataSubJudgements!$A:$K,F$36,0)) ->  | H42: =IF(ISERROR(VLOOKUP("All"&$B42&$I$5&$F$8&$A$14&$D$9,DataSubJudgements!$A:$K,H$36,0)),IF($B42="","",0),VLOOKUP("All"&$B42&$I$5&$F$8&$A$14&$D$9,DataSubJudgements!$A:$K,H$36,0)) ->  | J42: =IF(ISERROR(VLOOKUP("All"&$B42&$I$5&$F$8&$A$14&$D$9,DataSubJudgements!$A:$K,J$36,0)),IF($B42="","",0),VLOOKUP("All"&$B42&$I$5&$F$8&$A$14&$D$9,DataSubJudgements!$A:$K,J$36,0)) ->  | M42: =IF(ISERROR(VLOOKUP("All"&$B42&$I$5&$F$8&$A$14&$D$9,DataSubJudgements!$A:$K,M$36,0)),IF($B42="","",0),VLOOKUP("All"&$B42&$I$5&$F$8&$A$14&$D$9,DataSubJudgements!$A:$K,M$36,0)) -> 
A43: 2 | B43: =IFERROR(VLOOKUP($B$35&A43,'Region Lookups'!A:C,3,0),"") ->  | D43: =IF(ISERROR(VLOOKUP("All"&$B43&$I$5&$F$8&$A$14&$D$9,DataSubJudgements!$A:$K,8,0)),IF(B43="","",0),SUM(F43:M43)) ->  | F43: =IF(ISERROR(VLOOKUP("All"&$B43&$I$5&$F$8&$A$14&$D$9,DataSubJudgements!$A:$K,F$36,0)),IF($B43="","",0),VLOOKUP("All"&$B43&$I$5&$F$8&$A$14&$D$9,DataSubJudgements!$A:$K,F$36,0)) ->  | H43: =IF(ISERROR(VLOOKUP("All"&$B43&$I$5&$F$8&$A$14&$D$9,DataSubJudgements!$A:$K,H$36,0)),IF($B43="","",0),VLOOKUP("All"&$B43&$I$5&$F$8&$A$14&$D$9,DataSubJudgements!$A:$K,H$36,0)) ->  | J43: =IF(ISERROR(VLOOKUP("All"&$B43&$I$5&$F$8&$A$14&$D$9,DataSubJudgements!$A:$K,J$36,0)),IF($B43="","",0),VLOOKUP("All"&$B43&$I$5&$F$8&$A$14&$D$9,DataSubJudgements!$A:$K,J$36,0)) ->  | M43: =IF(ISERROR(VLOOKUP("All"&$B43&$I$5&$F$8&$A$14&$D$9,DataSubJudgements!$A:$K,M$36,0)),IF($B43="","",0),VLOOKUP("All"&$B43&$I$5&$F$8&$A$14&$D$9,DataSubJudgements!$A:$K,M$36,0)) -> 
A44: 3 | B44: =IFERROR(VLOOKUP($B$35&A44,'Region Lookups'!A:C,3,0),"") ->  | D44: =IF(ISERROR(VLOOKUP("All"&$B44&$I$5&$F$8&$A$14&$D$9,DataSubJudgements!$A:$K,8,0)),IF(B44="","",0),SUM(F44:M44)) ->  | F44: =IF(ISERROR(VLOOKUP("All"&$B44&$I$5&$F$8&$A$14&$D$9,DataSubJudgements!$A:$K,F$36,0)),IF($B44="","",0),VLOOKUP("All"&$B44&$I$5&$F$8&$A$14&$D$9,DataSubJudgements!$A:$K,F$36,0)) ->  | H44: =IF(ISERROR(VLOOKUP("All"&$B44&$I$5&$F$8&$A$14&$D$9,DataSubJudgements!$A:$K,H$36,0)),IF($B44="","",0),VLOOKUP("All"&$B44&$I$5&$F$8&$A$14&$D$9,DataSubJudgements!$A:$K,H$36,0)) ->  | J44: =IF(ISERROR(VLOOKUP("All"&$B44&$I$5&$F$8&$A$14&$D$9,DataSubJudgements!$A:$K,J$36,0)),IF($B44="","",0),VLOOKUP("All"&$B44&$I$5&$F$8&$A$14&$D$9,DataSubJudgements!$A:$K,J$36,0)) ->  | M44: =IF(ISERROR(VLOOKUP("All"&$B44&$I$5&$F$8&$A$14&$D$9,DataSubJudgements!$A:$K,M$36,0)),IF($B44="","",0),VLOOKUP("All"&$B44&$I$5&$F$8&$A$14&$D$9,DataSubJudgements!$A:$K,M$36,0)) -> 
A45: 4 | B45: =IFERROR(VLOOKUP($B$35&A45,'Region Lookups'!A:C,3,0),"") ->  | D45: =IF(ISERROR(VLOOKUP("All"&$B45&$I$5&$F$8&$A$14&$D$9,DataSubJudgements!$A:$K,8,0)),IF(B45="","",0),SUM(F45:M45)) ->  | F45: =IF(ISERROR(VLOOKUP("All"&$B45&$I$5&$F$8&$A$14&$D$9,DataSubJudgements!$A:$K,F$36,0)),IF($B45="","",0),VLOOKUP("All"&$B45&$I$5&$F$8&$A$14&$D$9,DataSubJudgements!$A:$K,F$36,0)) ->  | H45: =IF(ISERROR(VLOOKUP("All"&$B45&$I$5&$F$8&$A$14&$D$9,DataSubJudgements!$A:$K,H$36,0)),IF($B45="","",0),VLOOKUP("All"&$B45&$I$5&$F$8&$A$14&$D$9,DataSubJudgements!$A:$K,H$36,0)) ->  | J45: =IF(ISERROR(VLOOKUP("All"&$B45&$I$5&$F$8&$A$14&$D$9,DataSubJudgements!$A:$K,J$36,0)),IF($B45="","",0),VLOOKUP("All"&$B45&$I$5&$F$8&$A$14&$D$9,DataSubJudgements!$A:$K,J$36,0)) ->  | M45: =IF(ISERROR(VLOOKUP("All"&$B45&$I$5&$F$8&$A$14&$D$9,DataSubJudgements!$A:$K,M$36,0)),IF($B45="","",0),VLOOKUP("All"&$B45&$I$5&$F$8&$A$14&$D$9,DataSubJudgements!$A:$K,M$36,0)) -> 
A46: 5 | B46: =IFERROR(VLOOKUP($B$35&A46,'Region Lookups'!A:C,3,0),"") ->  | D46: =IF(ISERROR(VLOOKUP("All"&$B46&$I$5&$F$8&$A$14&$D$9,DataSubJudgements!$A:$K,8,0)),IF(B46="","",0),SUM(F46:M46)) ->  | F46: =IF(ISERROR(VLOOKUP("All"&$B46&$I$5&$F$8&$A$14&$D$9,DataSubJudgements!$A:$K,F$36,0)),IF($B46="","",0),VLOOKUP("All"&$B46&$I$5&$F$8&$A$14&$D$9,DataSubJudgements!$A:$K,F$36,0)) ->  | H46: =IF(ISERROR(VLOOKUP("All"&$B46&$I$5&$F$8&$A$14&$D$9,DataSubJudgements!$A:$K,H$36,0)),IF($B46="","",0),VLOOKUP("All"&$B46&$I$5&$F$8&$A$14&$D$9,DataSubJudgements!$A:$K,H$36,0)) ->  | J46: =IF(ISERROR(VLOOKUP("All"&$B46&$I$5&$F$8&$A$14&$D$9,DataSubJudgements!$A:$K,J$36,0)),IF($B46="","",0),VLOOKUP("All"&$B46&$I$5&$F$8&$A$14&$D$9,DataSubJudgements!$A:$K,J$36,0)) ->  | M46: =IF(ISERROR(VLOOKUP("All"&$B46&$I$5&$F$8&$A$14&$D$9,DataSubJudgements!$A:$K,M$36,0)),IF($B46="","",0),VLOOKUP("All"&$B46&$I$5&$F$8&$A$14&$D$9,DataSubJudgements!$A:$K,M$36,0)) -> 
A47: 6 | B47: =IFERROR(VLOOKUP($B$35&A47,'Region Lookups'!A:C,3,0),"") ->  | D47: =IF(ISERROR(VLOOKUP("All"&$B47&$I$5&$F$8&$A$14&$D$9,DataSubJudgements!$A:$K,8,0)),IF(B47="","",0),SUM(F47:M47)) ->  | F47: =IF(ISERROR(VLOOKUP("All"&$B47&$I$5&$F$8&$A$14&$D$9,DataSubJudgements!$A:$K,F$36,0)),IF($B47="","",0),VLOOKUP("All"&$B47&$I$5&$F$8&$A$14&$D$9,DataSubJudgements!$A:$K,F$36,0)) ->  | H47: =IF(ISERROR(VLOOKUP("All"&$B47&$I$5&$F$8&$A$14&$D$9,DataSubJudgements!$A:$K,H$36,0)),IF($B47="","",0),VLOOKUP("All"&$B47&$I$5&$F$8&$A$14&$D$9,DataSubJudgements!$A:$K,H$36,0)) ->  | J47: =IF(ISERROR(VLOOKUP("All"&$B47&$I$5&$F$8&$A$14&$D$9,DataSubJudgements!$A:$K,J$36,0)),IF($B47="","",0),VLOOKUP("All"&$B47&$I$5&$F$8&$A$14&$D$9,DataSubJudgements!$A:$K,J$36,0)) ->  | M47: =IF(ISERROR(VLOOKUP("All"&$B47&$I$5&$F$8&$A$14&$D$9,DataSubJudgements!$A:$K,M$36,0)),IF($B47="","",0),VLOOKUP("All"&$B47&$I$5&$F$8&$A$14&$D$9,DataSubJudgements!$A:$K,M$36,0)) -> 
A48: 7 | B48: =IFERROR(VLOOKUP($B$35&A48,'Region Lookups'!A:C,3,0),"") ->  | D48: =IF(ISERROR(VLOOKUP("All"&$B48&$I$5&$F$8&$A$14&$D$9,DataSubJudgements!$A:$K,8,0)),IF(B48="","",0),SUM(F48:M48)) ->  | F48: =IF(ISERROR(VLOOKUP("All"&$B48&$I$5&$F$8&$A$14&$D$9,DataSubJudgements!$A:$K,F$36,0)),IF($B48="","",0),VLOOKUP("All"&$B48&$I$5&$F$8&$A$14&$D$9,DataSubJudgements!$A:$K,F$36,0)) ->  | H48: =IF(ISERROR(VLOOKUP("All"&$B48&$I$5&$F$8&$A$14&$D$9,DataSubJudgements!$A:$K,H$36,0)),IF($B48="","",0),VLOOKUP("All"&$B48&$I$5&$F$8&$A$14&$D$9,DataSubJudgements!$A:$K,H$36,0)) ->  | J48: =IF(ISERROR(VLOOKUP("All"&$B48&$I$5&$F$8&$A$14&$D$9,DataSubJudgements!$A:$K,J$36,0)),IF($B48="","",0),VLOOKUP("All"&$B48&$I$5&$F$8&$A$14&$D$9,DataSubJudgements!$A:$K,J$36,0)) ->  | M48: =IF(ISERROR(VLOOKUP("All"&$B48&$I$5&$F$8&$A$14&$D$9,DataSubJudgements!$A:$K,M$36,0)),IF($B48="","",0),VLOOKUP("All"&$B48&$I$5&$F$8&$A$14&$D$9,DataSubJudgements!$A:$K,M$36,0)) -> 
A49: 8 | B49: =IFERROR(VLOOKUP($B$35&A49,'Region Lookups'!A:C,3,0),"") ->  | D49: =IF(ISERROR(VLOOKUP("All"&$B49&$I$5&$F$8&$A$14&$D$9,DataSubJudgements!$A:$K,8,0)),IF(B49="","",0),SUM(F49:M49)) ->  | F49: =IF(ISERROR(VLOOKUP("All"&$B49&$I$5&$F$8&$A$14&$D$9,DataSubJudgements!$A:$K,F$36,0)),IF($B49="","",0),VLOOKUP("All"&$B49&$I$5&$F$8&$A$14&$D$9,DataSubJudgements!$A:$K,F$36,0)) ->  | H49: =IF(ISERROR(VLOOKUP("All"&$B49&$I$5&$F$8&$A$14&$D$9,DataSubJudgements!$A:$K,H$36,0)),IF($B49="","",0),VLOOKUP("All"&$B49&$I$5&$F$8&$A$14&$D$9,DataSubJudgements!$A:$K,H$36,0)) ->  | J49: =IF(ISERROR(VLOOKUP("All"&$B49&$I$5&$F$8&$A$14&$D$9,DataSubJudgements!$A:$K,J$36,0)),IF($B49="","",0),VLOOKUP("All"&$B49&$I$5&$F$8&$A$14&$D$9,DataSubJudgements!$A:$K,J$36,0)) ->  | M49: =IF(ISERROR(VLOOKUP("All"&$B49&$I$5&$F$8&$A$14&$D$9,DataSubJudgements!$A:$K,M$36,0)),IF($B49="","",0),VLOOKUP("All"&$B49&$I$5&$F$8&$A$14&$D$9,DataSubJudgements!$A:$K,M$36,0)) -> 
A50: 9 | B50: =IFERROR(VLOOKUP($B$35&A50,'Region Lookups'!A:C,3,0),"") ->  | D50: =IF(ISERROR(VLOOKUP("All"&$B50&$I$5&$F$8&$A$14&$D$9,DataSubJudgements!$A:$K,8,0)),IF(B50="","",0),SUM(F50:M50)) ->  | F50: =IF(ISERROR(VLOOKUP("All"&$B50&$I$5&$F$8&$A$14&$D$9,DataSubJudgements!$A:$K,F$36,0)),IF($B50="","",0),VLOOKUP("All"&$B50&$I$5&$F$8&$A$14&$D$9,DataSubJudgements!$A:$K,F$36,0)) ->  | H50: =IF(ISERROR(VLOOKUP("All"&$B50&$I$5&$F$8&$A$14&$D$9,DataSubJudgements!$A:$K,H$36,0)),IF($B50="","",0),VLOOKUP("All"&$B50&$I$5&$F$8&$A$14&$D$9,DataSubJudgements!$A:$K,H$36,0)) ->  | J50: =IF(ISERROR(VLOOKUP("All"&$B50&$I$5&$F$8&$A$14&$D$9,DataSubJudgements!$A:$K,J$36,0)),IF($B50="","",0),VLOOKUP("All"&$B50&$I$5&$F$8&$A$14&$D$9,DataSubJudgements!$A:$K,J$36,0)) ->  | M50: =IF(ISERROR(VLOOKUP("All"&$B50&$I$5&$F$8&$A$14&$D$9,DataSubJudgements!$A:$K,M$36,0)),IF($B50="","",0),VLOOKUP("All"&$B50&$I$5&$F$8&$A$14&$D$9,DataSubJudgements!$A:$K,M$36,0)) -> 
A51: 10 | B51: =IFERROR(VLOOKUP($B$35&A51,'Region Lookups'!A:C,3,0),"") ->  | D51: =IF(ISERROR(VLOOKUP("All"&$B51&$I$5&$F$8&$A$14&$D$9,DataSubJudgements!$A:$K,8,0)),IF(B51="","",0),SUM(F51:M51)) ->  | F51: =IF(ISERROR(VLOOKUP("All"&$B51&$I$5&$F$8&$A$14&$D$9,DataSubJudgements!$A:$K,F$36,0)),IF($B51="","",0),VLOOKUP("All"&$B51&$I$5&$F$8&$A$14&$D$9,DataSubJudgements!$A:$K,F$36,0)) ->  | H51: =IF(ISERROR(VLOOKUP("All"&$B51&$I$5&$F$8&$A$14&$D$9,DataSubJudgements!$A:$K,H$36,0)),IF($B51="","",0),VLOOKUP("All"&$B51&$I$5&$F$8&$A$14&$D$9,DataSubJudgements!$A:$K,H$36,0)) ->  | J51: =IF(ISERROR(VLOOKUP("All"&$B51&$I$5&$F$8&$A$14&$D$9,DataSubJudgements!$A:$K,J$36,0)),IF($B51="","",0),VLOOKUP("All"&$B51&$I$5&$F$8&$A$14&$D$9,DataSubJudgements!$A:$K,J$36,0)) ->  | M51: =IF(ISERROR(VLOOKUP("All"&$B51&$I$5&$F$8&$A$14&$D$9,DataSubJudgements!$A:$K,M$36,0)),IF($B51="","",0),VLOOKUP("All"&$B51&$I$5&$F$8&$A$14&$D$9,DataSubJudgements!$A:$K,M$36,0)) -> 
A52: 11 | B52: =IFERROR(VLOOKUP($B$35&A52,'Region Lookups'!A:C,3,0),"") ->  | D52: =IF(ISERROR(VLOOKUP("All"&$B52&$I$5&$F$8&$A$14&$D$9,DataSubJudgements!$A:$K,8,0)),IF(B52="","",0),SUM(F52:M52)) ->  | F52: =IF(ISERROR(VLOOKUP("All"&$B52&$I$5&$F$8&$A$14&$D$9,DataSubJudgements!$A:$K,F$36,0)),IF($B52="","",0),VLOOKUP("All"&$B52&$I$5&$F$8&$A$14&$D$9,DataSubJudgements!$A:$K,F$36,0)) ->  | H52: =IF(ISERROR(VLOOKUP("All"&$B52&$I$5&$F$8&$A$14&$D$9,DataSubJudgements!$A:$K,H$36,0)),IF($B52="","",0),VLOOKUP("All"&$B52&$I$5&$F$8&$A$14&$D$9,DataSubJudgements!$A:$K,H$36,0)) ->  | J52: =IF(ISERROR(VLOOKUP("All"&$B52&$I$5&$F$8&$A$14&$D$9,DataSubJudgements!$A:$K,J$36,0)),IF($B52="","",0),VLOOKUP("All"&$B52&$I$5&$F$8&$A$14&$D$9,DataSubJudgements!$A:$K,J$36,0)) ->  | M52: =IF(ISERROR(VLOOKUP("All"&$B52&$I$5&$F$8&$A$14&$D$9,DataSubJudgements!$A:$K,M$36,0)),IF($B52="","",0),VLOOKUP("All"&$B52&$I$5&$F$8&$A$14&$D$9,DataSubJudgements!$A:$K,M$36,0)) -> 
A53: 12 | B53: =IFERROR(VLOOKUP($B$35&A53,'Region Lookups'!A:C,3,0),"") ->  | D53: =IF(ISERROR(VLOOKUP("All"&$B53&$I$5&$F$8&$A$14&$D$9,DataSubJudgements!$A:$K,8,0)),IF(B53="","",0),SUM(F53:M53)) ->  | F53: =IF(ISERROR(VLOOKUP("All"&$B53&$I$5&$F$8&$A$14&$D$9,DataSubJudgements!$A:$K,F$36,0)),IF($B53="","",0),VLOOKUP("All"&$B53&$I$5&$F$8&$A$14&$D$9,DataSubJudgements!$A:$K,F$36,0)) ->  | H53: =IF(ISERROR(VLOOKUP("All"&$B53&$I$5&$F$8&$A$14&$D$9,DataSubJudgements!$A:$K,H$36,0)),IF($B53="","",0),VLOOKUP("All"&$B53&$I$5&$F$8&$A$14&$D$9,DataSubJudgements!$A:$K,H$36,0)) ->  | J53: =IF(ISERROR(VLOOKUP("All"&$B53&$I$5&$F$8&$A$14&$D$9,DataSubJudgements!$A:$K,J$36,0)),IF($B53="","",0),VLOOKUP("All"&$B53&$I$5&$F$8&$A$14&$D$9,DataSubJudgements!$A:$K,J$36,0)) ->  | M53: =IF(ISERROR(VLOOKUP("All"&$B53&$I$5&$F$8&$A$14&$D$9,DataSubJudgements!$A:$K,M$36,0)),IF($B53="","",0),VLOOKUP("All"&$B53&$I$5&$F$8&$A$14&$D$9,DataSubJudgements!$A:$K,M$36,0)) -> 
A54: 13 | B54: =IFERROR(VLOOKUP($B$35&A54,'Region Lookups'!A:C,3,0),"") ->  | D54: =IF(ISERROR(VLOOKUP("All"&$B54&$I$5&$F$8&$A$14&$D$9,DataSubJudgements!$A:$K,8,0)),IF(B54="","",0),SUM(F54:M54)) ->  | F54: =IF(ISERROR(VLOOKUP("All"&$B54&$I$5&$F$8&$A$14&$D$9,DataSubJudgements!$A:$K,F$36,0)),IF($B54="","",0),VLOOKUP("All"&$B54&$I$5&$F$8&$A$14&$D$9,DataSubJudgements!$A:$K,F$36,0)) ->  | H54: =IF(ISERROR(VLOOKUP("All"&$B54&$I$5&$F$8&$A$14&$D$9,DataSubJudgements!$A:$K,H$36,0)),IF($B54="","",0),VLOOKUP("All"&$B54&$I$5&$F$8&$A$14&$D$9,DataSubJudgements!$A:$K,H$36,0)) ->  | J54: =IF(ISERROR(VLOOKUP("All"&$B54&$I$5&$F$8&$A$14&$D$9,DataSubJudgements!$A:$K,J$36,0)),IF($B54="","",0),VLOOKUP("All"&$B54&$I$5&$F$8&$A$14&$D$9,DataSubJudgements!$A:$K,J$36,0)) ->  | M54: =IF(ISERROR(VLOOKUP("All"&$B54&$I$5&$F$8&$A$14&$D$9,DataSubJudgements!$A:$K,M$36,0)),IF($B54="","",0),VLOOKUP("All"&$B54&$I$5&$F$8&$A$14&$D$9,DataSubJudgements!$A:$K,M$36,0)) -> 
A55: 14 | B55: =IFERROR(VLOOKUP($B$35&A55,'Region Lookups'!A:C,3,0),"") ->  | D55: =IF(ISERROR(VLOOKUP("All"&$B55&$I$5&$F$8&$A$14&$D$9,DataSubJudgements!$A:$K,8,0)),IF(B55="","",0),SUM(F55:M55)) ->  | F55: =IF(ISERROR(VLOOKUP("All"&$B55&$I$5&$F$8&$A$14&$D$9,DataSubJudgements!$A:$K,F$36,0)),IF($B55="","",0),VLOOKUP("All"&$B55&$I$5&$F$8&$A$14&$D$9,DataSubJudgements!$A:$K,F$36,0)) ->  | H55: =IF(ISERROR(VLOOKUP("All"&$B55&$I$5&$F$8&$A$14&$D$9,DataSubJudgements!$A:$K,H$36,0)),IF($B55="","",0),VLOOKUP("All"&$B55&$I$5&$F$8&$A$14&$D$9,DataSubJudgements!$A:$K,H$36,0)) ->  | J55: =IF(ISERROR(VLOOKUP("All"&$B55&$I$5&$F$8&$A$14&$D$9,DataSubJudgements!$A:$K,J$36,0)),IF($B55="","",0),VLOOKUP("All"&$B55&$I$5&$F$8&$A$14&$D$9,DataSubJudgements!$A:$K,J$36,0)) ->  | M55: =IF(ISERROR(VLOOKUP("All"&$B55&$I$5&$F$8&$A$14&$D$9,DataSubJudgements!$A:$K,M$36,0)),IF($B55="","",0),VLOOKUP("All"&$B55&$I$5&$F$8&$A$14&$D$9,DataSubJudgements!$A:$K,M$36,0)) -> 
A56: 15 | B56: =IFERROR(VLOOKUP($B$35&A56,'Region Lookups'!A:C,3,0),"") ->  | D56: =IF(ISERROR(VLOOKUP("All"&$B56&$I$5&$F$8&$A$14&$D$9,DataSubJudgements!$A:$K,8,0)),IF(B56="","",0),SUM(F56:M56)) ->  | F56: =IF(ISERROR(VLOOKUP("All"&$B56&$I$5&$F$8&$A$14&$D$9,DataSubJudgements!$A:$K,F$36,0)),IF($B56="","",0),VLOOKUP("All"&$B56&$I$5&$F$8&$A$14&$D$9,DataSubJudgements!$A:$K,F$36,0)) ->  | H56: =IF(ISERROR(VLOOKUP("All"&$B56&$I$5&$F$8&$A$14&$D$9,DataSubJudgements!$A:$K,H$36,0)),IF($B56="","",0),VLOOKUP("All"&$B56&$I$5&$F$8&$A$14&$D$9,DataSubJudgements!$A:$K,H$36,0)) ->  | J56: =IF(ISERROR(VLOOKUP("All"&$B56&$I$5&$F$8&$A$14&$D$9,DataSubJudgements!$A:$K,J$36,0)),IF($B56="","",0),VLOOKUP("All"&$B56&$I$5&$F$8&$A$14&$D$9,DataSubJudgements!$A:$K,J$36,0)) ->  | M56: =IF(ISERROR(VLOOKUP("All"&$B56&$I$5&$F$8&$A$14&$D$9,DataSubJudgements!$A:$K,M$36,0)),IF($B56="","",0),VLOOKUP("All"&$B56&$I$5&$F$8&$A$14&$D$9,DataSubJudgements!$A:$K,M$36,0)) -> 
A57: 16 | B57: =IFERROR(VLOOKUP($B$35&A57,'Region Lookups'!A:C,3,0),"") ->  | D57: =IF(ISERROR(VLOOKUP("All"&$B57&$I$5&$F$8&$A$14&$D$9,DataSubJudgements!$A:$K,8,0)),IF(B57="","",0),SUM(F57:M57)) ->  | F57: =IF(ISERROR(VLOOKUP("All"&$B57&$I$5&$F$8&$A$14&$D$9,DataSubJudgements!$A:$K,F$36,0)),IF($B57="","",0),VLOOKUP("All"&$B57&$I$5&$F$8&$A$14&$D$9,DataSubJudgements!$A:$K,F$36,0)) ->  | H57: =IF(ISERROR(VLOOKUP("All"&$B57&$I$5&$F$8&$A$14&$D$9,DataSubJudgements!$A:$K,H$36,0)),IF($B57="","",0),VLOOKUP("All"&$B57&$I$5&$F$8&$A$14&$D$9,DataSubJudgements!$A:$K,H$36,0)) ->  | J57: =IF(ISERROR(VLOOKUP("All"&$B57&$I$5&$F$8&$A$14&$D$9,DataSubJudgements!$A:$K,J$36,0)),IF($B57="","",0),VLOOKUP("All"&$B57&$I$5&$F$8&$A$14&$D$9,DataSubJudgements!$A:$K,J$36,0)) ->  | M57: =IF(ISERROR(VLOOKUP("All"&$B57&$I$5&$F$8&$A$14&$D$9,DataSubJudgements!$A:$K,M$36,0)),IF($B57="","",0),VLOOKUP("All"&$B57&$I$5&$F$8&$A$14&$D$9,DataSubJudgements!$A:$K,M$36,0)) -> 
A58: 17 | B58: =IFERROR(VLOOKUP($B$35&A58,'Region Lookups'!A:C,3,0),"") ->  | D58: =IF(ISERROR(VLOOKUP("All"&$B58&$I$5&$F$8&$A$14&$D$9,DataSubJudgements!$A:$K,8,0)),IF(B58="","",0),SUM(F58:M58)) ->  | F58: =IF(ISERROR(VLOOKUP("All"&$B58&$I$5&$F$8&$A$14&$D$9,DataSubJudgements!$A:$K,F$36,0)),IF($B58="","",0),VLOOKUP("All"&$B58&$I$5&$F$8&$A$14&$D$9,DataSubJudgements!$A:$K,F$36,0)) ->  | H58: =IF(ISERROR(VLOOKUP("All"&$B58&$I$5&$F$8&$A$14&$D$9,DataSubJudgements!$A:$K,H$36,0)),IF($B58="","",0),VLOOKUP("All"&$B58&$I$5&$F$8&$A$14&$D$9,DataSubJudgements!$A:$K,H$36,0)) ->  | J58: =IF(ISERROR(VLOOKUP("All"&$B58&$I$5&$F$8&$A$14&$D$9,DataSubJudgements!$A:$K,J$36,0)),IF($B58="","",0),VLOOKUP("All"&$B58&$I$5&$F$8&$A$14&$D$9,DataSubJudgements!$A:$K,J$36,0)) ->  | M58: =IF(ISERROR(VLOOKUP("All"&$B58&$I$5&$F$8&$A$14&$D$9,DataSubJudgements!$A:$K,M$36,0)),IF($B58="","",0),VLOOKUP("All"&$B58&$I$5&$F$8&$A$14&$D$9,DataSubJudgements!$A:$K,M$36,0)) -> 
A59: 18 | B59: =IFERROR(VLOOKUP($B$35&A59,'Region Lookups'!A:C,3,0),"") ->  | F59: =IF(ISERROR(VLOOKUP("All"&$B59&$I$5&$F$8&$A$14&$D$9,DataSubJudgements!$A:$K,F$36,0)),IF($B59="","",0),VLOOKUP("All"&$B59&$I$5&$F$8&$A$14&$D$9,DataSubJudgements!$A:$K,F$36,0)) ->  | H59: =IF(ISERROR(VLOOKUP("All"&$B59&$I$5&$F$8&$A$14&$D$9,DataSubJudgements!$A:$K,H$36,0)),IF($B59="","",0),VLOOKUP("All"&$B59&$I$5&$F$8&$A$14&$D$9,DataSubJudgements!$A:$K,H$36,0)) ->  | J59: =IF(ISERROR(VLOOKUP("All"&$B59&$I$5&$F$8&$A$14&$D$9,DataSubJudgements!$A:$K,J$36,0)),IF($B59="","",0),VLOOKUP("All"&$B59&$I$5&$F$8&$A$14&$D$9,DataSubJudgements!$A:$K,J$36,0)) ->  | M59: =IF(ISERROR(VLOOKUP("All"&$B59&$I$5&$F$8&$A$14&$D$9,DataSubJudgements!$A:$K,M$36,0)),IF($B59="","",0),VLOOKUP("All"&$B59&$I$5&$F$8&$A$14&$D$9,DataSubJudgements!$A:$K,M$36,0)) -> 
A60: 19 | B60: =IFERROR(VLOOKUP($B$35&A60,'Region Lookups'!A:C,3,0),"") ->  | D60: =IF(ISERROR(VLOOKUP("All"&$B60&$I$5&$F$8&$A$14&$D$9,DataSubJudgements!$A:$K,8,0)),IF(B60="","",0),SUM(F60:M60)) ->  | F60: =IF(ISERROR(VLOOKUP("All"&$B60&$I$5&$F$8&$A$14&$D$9,DataSubJudgements!$A:$K,F$36,0)),IF($B60="","",0),VLOOKUP("All"&$B60&$I$5&$F$8&$A$14&$D$9,DataSubJudgements!$A:$K,F$36,0)) ->  | H60: =IF(ISERROR(VLOOKUP("All"&$B60&$I$5&$F$8&$A$14&$D$9,DataSubJudgements!$A:$K,H$36,0)),IF($B60="","",0),VLOOKUP("All"&$B60&$I$5&$F$8&$A$14&$D$9,DataSubJudgements!$A:$K,H$36,0)) ->  | J60: =IF(ISERROR(VLOOKUP("All"&$B60&$I$5&$F$8&$A$14&$D$9,DataSubJudgements!$A:$K,J$36,0)),IF($B60="","",0),VLOOKUP("All"&$B60&$I$5&$F$8&$A$14&$D$9,DataSubJudgements!$A:$K,J$36,0)) ->  | M60: =IF(ISERROR(VLOOKUP("All"&$B60&$I$5&$F$8&$A$14&$D$9,DataSubJudgements!$A:$K,M$36,0)),IF($B60="","",0),VLOOKUP("All"&$B60&$I$5&$F$8&$A$14&$D$9,DataSubJudgements!$A:$K,M$36,0)) -> 
A61: 20 | B61: =IFERROR(VLOOKUP($B$35&A61,'Region Lookups'!A:C,3,0),"") ->  | D61: =IF(ISERROR(VLOOKUP("All"&$B61&$I$5&$F$8&$A$14&$D$9,DataSubJudgements!$A:$K,8,0)),IF(B61="","",0),SUM(F61:M61)) ->  | F61: =IF(ISERROR(VLOOKUP("All"&$B61&$I$5&$F$8&$A$14&$D$9,DataSubJudgements!$A:$K,F$36,0)),IF($B61="","",0),VLOOKUP("All"&$B61&$I$5&$F$8&$A$14&$D$9,DataSubJudgements!$A:$K,F$36,0)) ->  | H61: =IF(ISERROR(VLOOKUP("All"&$B61&$I$5&$F$8&$A$14&$D$9,DataSubJudgements!$A:$K,H$36,0)),IF($B61="","",0),VLOOKUP("All"&$B61&$I$5&$F$8&$A$14&$D$9,DataSubJudgements!$A:$K,H$36,0)) ->  | J61: =IF(ISERROR(VLOOKUP("All"&$B61&$I$5&$F$8&$A$14&$D$9,DataSubJudgements!$A:$K,J$36,0)),IF($B61="","",0),VLOOKUP("All"&$B61&$I$5&$F$8&$A$14&$D$9,DataSubJudgements!$A:$K,J$36,0)) ->  | M61: =IF(ISERROR(VLOOKUP("All"&$B61&$I$5&$F$8&$A$14&$D$9,DataSubJudgements!$A:$K,M$36,0)),IF($B61="","",0),VLOOKUP("All"&$B61&$I$5&$F$8&$A$14&$D$9,DataSubJudgements!$A:$K,M$36,0)) -> 
A62: 21 | B62: =IFERROR(VLOOKUP($B$35&A62,'Region Lookups'!A:C,3,0),"") ->  | D62: =IF(ISERROR(VLOOKUP("All"&$B62&$I$5&$F$8&$A$14&$D$9,DataSubJudgements!$A:$K,8,0)),IF(B62="","",0),SUM(F62:M62)) ->  | F62: =IF(ISERROR(VLOOKUP("All"&$B62&$I$5&$F$8&$A$14&$D$9,DataSubJudgements!$A:$K,F$36,0)),IF($B62="","",0),VLOOKUP("All"&$B62&$I$5&$F$8&$A$14&$D$9,DataSubJudgements!$A:$K,F$36,0)) ->  | H62: =IF(ISERROR(VLOOKUP("All"&$B62&$I$5&$F$8&$A$14&$D$9,DataSubJudgements!$A:$K,H$36,0)),IF($B62="","",0),VLOOKUP("All"&$B62&$I$5&$F$8&$A$14&$D$9,DataSubJudgements!$A:$K,H$36,0)) ->  | J62: =IF(ISERROR(VLOOKUP("All"&$B62&$I$5&$F$8&$A$14&$D$9,DataSubJudgements!$A:$K,J$36,0)),IF($B62="","",0),VLOOKUP("All"&$B62&$I$5&$F$8&$A$14&$D$9,DataSubJudgements!$A:$K,J$36,0)) ->  | M62: =IF(ISERROR(VLOOKUP("All"&$B62&$I$5&$F$8&$A$14&$D$9,DataSubJudgements!$A:$K,M$36,0)),IF($B62="","",0),VLOOKUP("All"&$B62&$I$5&$F$8&$A$14&$D$9,DataSubJudgements!$A:$K,M$36,0)) -> 
A63: 22 | B63: =IFERROR(VLOOKUP($B$35&A63,'Region Lookups'!A:C,3,0),"") ->  | D63: =IF(ISERROR(VLOOKUP("All"&$B63&$I$5&$F$8&$A$14&$D$9,DataSubJudgements!$A:$K,8,0)),IF(B63="","",0),SUM(F63:M63)) ->  | F63: =IF(ISERROR(VLOOKUP("All"&$B63&$I$5&$F$8&$A$14&$D$9,DataSubJudgements!$A:$K,F$36,0)),IF($B63="","",0),VLOOKUP("All"&$B63&$I$5&$F$8&$A$14&$D$9,DataSubJudgements!$A:$K,F$36,0)) ->  | H63: =IF(ISERROR(VLOOKUP("All"&$B63&$I$5&$F$8&$A$14&$D$9,DataSubJudgements!$A:$K,H$36,0)),IF($B63="","",0),VLOOKUP("All"&$B63&$I$5&$F$8&$A$14&$D$9,DataSubJudgements!$A:$K,H$36,0)) ->  | J63: =IF(ISERROR(VLOOKUP("All"&$B63&$I$5&$F$8&$A$14&$D$9,DataSubJudgements!$A:$K,J$36,0)),IF($B63="","",0),VLOOKUP("All"&$B63&$I$5&$F$8&$A$14&$D$9,DataSubJudgements!$A:$K,J$36,0)) ->  | M63: =IF(ISERROR(VLOOKUP("All"&$B63&$I$5&$F$8&$A$14&$D$9,DataSubJudgements!$A:$K,M$36,0)),IF($B63="","",0),VLOOKUP("All"&$B63&$I$5&$F$8&$A$14&$D$9,DataSubJudgements!$A:$K,M$36,0)) -> 
A64: 23 | B64: =IFERROR(VLOOKUP($B$35&A64,'Region Lookups'!A:C,3,0),"") ->  | D64: =IF(ISERROR(VLOOKUP("All"&$B64&$I$5&$F$8&$A$14&$D$9,DataSubJudgements!$A:$K,8,0)),IF(B64="","",0),SUM(F64:M64)) ->  | F64: =IF(ISERROR(VLOOKUP("All"&$B64&$I$5&$F$8&$A$14&$D$9,DataSubJudgements!$A:$K,F$36,0)),IF($B64="","",0),VLOOKUP("All"&$B64&$I$5&$F$8&$A$14&$D$9,DataSubJudgements!$A:$K,F$36,0)) ->  | H64: =IF(ISERROR(VLOOKUP("All"&$B64&$I$5&$F$8&$A$14&$D$9,DataSubJudgements!$A:$K,H$36,0)),IF($B64="","",0),VLOOKUP("All"&$B64&$I$5&$F$8&$A$14&$D$9,DataSubJudgements!$A:$K,H$36,0)) ->  | J64: =IF(ISERROR(VLOOKUP("All"&$B64&$I$5&$F$8&$A$14&$D$9,DataSubJudgements!$A:$K,J$36,0)),IF($B64="","",0),VLOOKUP("All"&$B64&$I$5&$F$8&$A$14&$D$9,DataSubJudgements!$A:$K,J$36,0)) ->  | M64: =IF(ISERROR(VLOOKUP("All"&$B64&$I$5&$F$8&$A$14&$D$9,DataSubJudgements!$A:$K,M$36,0)),IF($B64="","",0),VLOOKUP("All"&$B64&$I$5&$F$8&$A$14&$D$9,DataSubJudgements!$A:$K,M$36,0)) -> 
A65: 24 | B65: =IFERROR(VLOOKUP($B$35&A65,'Region Lookups'!A:C,3,0),"") ->  | D65: =IF(ISERROR(VLOOKUP("All"&$B65&$I$5&$F$8&$A$14&$D$9,DataSubJudgements!$A:$K,8,0)),IF(B65="","",0),SUM(F65:M65)) ->  | F65: =IF(ISERROR(VLOOKUP("All"&$B65&$I$5&$F$8&$A$14&$D$9,DataSubJudgements!$A:$K,F$36,0)),IF($B65="","",0),VLOOKUP("All"&$B65&$I$5&$F$8&$A$14&$D$9,DataSubJudgements!$A:$K,F$36,0)) ->  | H65: =IF(ISERROR(VLOOKUP("All"&$B65&$I$5&$F$8&$A$14&$D$9,DataSubJudgements!$A:$K,H$36,0)),IF($B65="","",0),VLOOKUP("All"&$B65&$I$5&$F$8&$A$14&$D$9,DataSubJudgements!$A:$K,H$36,0)) ->  | J65: =IF(ISERROR(VLOOKUP("All"&$B65&$I$5&$F$8&$A$14&$D$9,DataSubJudgements!$A:$K,J$36,0)),IF($B65="","",0),VLOOKUP("All"&$B65&$I$5&$F$8&$A$14&$D$9,DataSubJudgements!$A:$K,J$36,0)) ->  | M65: =IF(ISERROR(VLOOKUP("All"&$B65&$I$5&$F$8&$A$14&$D$9,DataSubJudgements!$A:$K,M$36,0)),IF($B65="","",0),VLOOKUP("All"&$B65&$I$5&$F$8&$A$14&$D$9,DataSubJudgements!$A:$K,M$36,0)) -> 
A66: 25 | B66: =IFERROR(VLOOKUP($B$35&A66,'Region Lookups'!A:C,3,0),"") ->  | D66: =IF(ISERROR(VLOOKUP("All"&$B66&$I$5&$F$8&$A$14&$D$9,DataSubJudgements!$A:$K,8,0)),IF(B66="","",0),SUM(F66:M66)) ->  | F66: =IF(ISERROR(VLOOKUP("All"&$B66&$I$5&$F$8&$A$14&$D$9,DataSubJudgements!$A:$K,F$36,0)),IF($B66="","",0),VLOOKUP("All"&$B66&$I$5&$F$8&$A$14&$D$9,DataSubJudgements!$A:$K,F$36,0)) ->  | H66: =IF(ISERROR(VLOOKUP("All"&$B66&$I$5&$F$8&$A$14&$D$9,DataSubJudgements!$A:$K,H$36,0)),IF($B66="","",0),VLOOKUP("All"&$B66&$I$5&$F$8&$A$14&$D$9,DataSubJudgements!$A:$K,H$36,0)) ->  | J66: =IF(ISERROR(VLOOKUP("All"&$B66&$I$5&$F$8&$A$14&$D$9,DataSubJudgements!$A:$K,J$36,0)),IF($B66="","",0),VLOOKUP("All"&$B66&$I$5&$F$8&$A$14&$D$9,DataSubJudgements!$A:$K,J$36,0)) ->  | M66: =IF(ISERROR(VLOOKUP("All"&$B66&$I$5&$F$8&$A$14&$D$9,DataSubJudgements!$A:$K,M$36,0)),IF($B66="","",0),VLOOKUP("All"&$B66&$I$5&$F$8&$A$14&$D$9,DataSubJudgements!$A:$K,M$36,0)) -> 
A67: 26 | B67: =IFERROR(VLOOKUP($B$35&A67,'Region Lookups'!A:C,3,0),"") ->  | D67: =IF(ISERROR(VLOOKUP("All"&$B67&$I$5&$F$8&$A$14&$D$9,DataSubJudgements!$A:$K,8,0)),IF(B67="","",0),SUM(F67:M67)) ->  | F67: =IF(ISERROR(VLOOKUP("All"&$B67&$I$5&$F$8&$A$14&$D$9,DataSubJudgements!$A:$K,F$36,0)),IF($B67="","",0),VLOOKUP("All"&$B67&$I$5&$F$8&$A$14&$D$9,DataSubJudgements!$A:$K,F$36,0)) ->  | H67: =IF(ISERROR(VLOOKUP("All"&$B67&$I$5&$F$8&$A$14&$D$9,DataSubJudgements!$A:$K,H$36,0)),IF($B67="","",0),VLOOKUP("All"&$B67&$I$5&$F$8&$A$14&$D$9,DataSubJudgements!$A:$K,H$36,0)) ->  | J67: =IF(ISERROR(VLOOKUP("All"&$B67&$I$5&$F$8&$A$14&$D$9,DataSubJudgements!$A:$K,J$36,0)),IF($B67="","",0),VLOOKUP("All"&$B67&$I$5&$F$8&$A$14&$D$9,DataSubJudgements!$A:$K,J$36,0)) ->  | M67: =IF(ISERROR(VLOOKUP("All"&$B67&$I$5&$F$8&$A$14&$D$9,DataSubJudgements!$A:$K,M$36,0)),IF($B67="","",0),VLOOKUP("All"&$B67&$I$5&$F$8&$A$14&$D$9,DataSubJudgements!$A:$K,M$36,0)) -> 
A68: 27 | B68: =IFERROR(VLOOKUP($B$35&A68,'Region Lookups'!A:C,3,0),"") ->  | D68: =IF(ISERROR(VLOOKUP("All"&$B68&$I$5&$F$8&$A$14&$D$9,DataSubJudgements!$A:$K,8,0)),IF(B68="","",0),SUM(F68:M68)) ->  | F68: =IF(ISERROR(VLOOKUP("All"&$B68&$I$5&$F$8&$A$14&$D$9,DataSubJudgements!$A:$K,F$36,0)),IF($B68="","",0),VLOOKUP("All"&$B68&$I$5&$F$8&$A$14&$D$9,DataSubJudgements!$A:$K,F$36,0)) ->  | H68: =IF(ISERROR(VLOOKUP("All"&$B68&$I$5&$F$8&$A$14&$D$9,DataSubJudgements!$A:$K,H$36,0)),IF($B68="","",0),VLOOKUP("All"&$B68&$I$5&$F$8&$A$14&$D$9,DataSubJudgements!$A:$K,H$36,0)) ->  | J68: =IF(ISERROR(VLOOKUP("All"&$B68&$I$5&$F$8&$A$14&$D$9,DataSubJudgements!$A:$K,J$36,0)),IF($B68="","",0),VLOOKUP("All"&$B68&$I$5&$F$8&$A$14&$D$9,DataSubJudgements!$A:$K,J$36,0)) ->  | M68: =IF(ISERROR(VLOOKUP("All"&$B68&$I$5&$F$8&$A$14&$D$9,DataSubJudgements!$A:$K,M$36,0)),IF($B68="","",0),VLOOKUP("All"&$B68&$I$5&$F$8&$A$14&$D$9,DataSubJudgements!$A:$K,M$36,0)) -> 
A69: 28 | B69: =IFERROR(VLOOKUP($B$35&A69,'Region Lookups'!A:C,3,0),"") ->  | D69: =IF(ISERROR(VLOOKUP("All"&$B69&$I$5&$F$8&$A$14&$D$9,DataSubJudgements!$A:$K,8,0)),IF(B69="","",0),SUM(F69:M69)) ->  | F69: =IF(ISERROR(VLOOKUP("All"&$B69&$I$5&$F$8&$A$14&$D$9,DataSubJudgements!$A:$K,F$36,0)),IF($B69="","",0),VLOOKUP("All"&$B69&$I$5&$F$8&$A$14&$D$9,DataSubJudgements!$A:$K,F$36,0)) ->  | H69: =IF(ISERROR(VLOOKUP("All"&$B69&$I$5&$F$8&$A$14&$D$9,DataSubJudgements!$A:$K,H$36,0)),IF($B69="","",0),VLOOKUP("All"&$B69&$I$5&$F$8&$A$14&$D$9,DataSubJudgements!$A:$K,H$36,0)) ->  | J69: =IF(ISERROR(VLOOKUP("All"&$B69&$I$5&$F$8&$A$14&$D$9,DataSubJudgements!$A:$K,J$36,0)),IF($B69="","",0),VLOOKUP("All"&$B69&$I$5&$F$8&$A$14&$D$9,DataSubJudgements!$A:$K,J$36,0)) ->  | M69: =IF(ISERROR(VLOOKUP("All"&$B69&$I$5&$F$8&$A$14&$D$9,DataSubJudgements!$A:$K,M$36,0)),IF($B69="","",0),VLOOKUP("All"&$B69&$I$5&$F$8&$A$14&$D$9,DataSubJudgements!$A:$K,M$36,0)) -> 
A70: 29 | B70: =IFERROR(VLOOKUP($B$35&A70,'Region Lookups'!A:C,3,0),"") ->  | D70: =IF(ISERROR(VLOOKUP("All"&$B70&$I$5&$F$8&$A$14&$D$9,DataSubJudgements!$A:$K,8,0)),IF(B70="","",0),SUM(F70:M70)) ->  | F70: =IF(ISERROR(VLOOKUP("All"&$B70&$I$5&$F$8&$A$14&$D$9,DataSubJudgements!$A:$K,F$36,0)),IF($B70="","",0),VLOOKUP("All"&$B70&$I$5&$F$8&$A$14&$D$9,DataSubJudgements!$A:$K,F$36,0)) ->  | H70: =IF(ISERROR(VLOOKUP("All"&$B70&$I$5&$F$8&$A$14&$D$9,DataSubJudgements!$A:$K,H$36,0)),IF($B70="","",0),VLOOKUP("All"&$B70&$I$5&$F$8&$A$14&$D$9,DataSubJudgements!$A:$K,H$36,0)) ->  | J70: =IF(ISERROR(VLOOKUP("All"&$B70&$I$5&$F$8&$A$14&$D$9,DataSubJudgements!$A:$K,J$36,0)),IF($B70="","",0),VLOOKUP("All"&$B70&$I$5&$F$8&$A$14&$D$9,DataSubJudgements!$A:$K,J$36,0)) ->  | M70: =IF(ISERROR(VLOOKUP("All"&$B70&$I$5&$F$8&$A$14&$D$9,DataSubJudgements!$A:$K,M$36,0)),IF($B70="","",0),VLOOKUP("All"&$B70&$I$5&$F$8&$A$14&$D$9,DataSubJudgements!$A:$K,M$36,0)) -> 
A71: 30 | B71: =IFERROR(VLOOKUP($B$35&A71,'Region Lookups'!A:C,3,0),"") ->  | D71: =IF(ISERROR(VLOOKUP("All"&$B71&$I$5&$F$8&$A$14&$D$9,DataSubJudgements!$A:$K,8,0)),IF(B71="","",0),SUM(F71:M71)) ->  | F71: =IF(ISERROR(VLOOKUP("All"&$B71&$I$5&$F$8&$A$14&$D$9,DataSubJudgements!$A:$K,F$36,0)),IF($B71="","",0),VLOOKUP("All"&$B71&$I$5&$F$8&$A$14&$D$9,DataSubJudgements!$A:$K,F$36,0)) ->  | H71: =IF(ISERROR(VLOOKUP("All"&$B71&$I$5&$F$8&$A$14&$D$9,DataSubJudgements!$A:$K,H$36,0)),IF($B71="","",0),VLOOKUP("All"&$B71&$I$5&$F$8&$A$14&$D$9,DataSubJudgements!$A:$K,H$36,0)) ->  | J71: =IF(ISERROR(VLOOKUP("All"&$B71&$I$5&$F$8&$A$14&$D$9,DataSubJudgements!$A:$K,J$36,0)),IF($B71="","",0),VLOOKUP("All"&$B71&$I$5&$F$8&$A$14&$D$9,DataSubJudgements!$A:$K,J$36,0)) ->  | M71: =IF(ISERROR(VLOOKUP("All"&$B71&$I$5&$F$8&$A$14&$D$9,DataSubJudgements!$A:$K,M$36,0)),IF($B71="","",0),VLOOKUP("All"&$B71&$I$5&$F$8&$A$14&$D$9,DataSubJudgements!$A:$K,M$36,0)) -> 
A72: 31 | B72: =IFERROR(VLOOKUP($B$35&A72,'Region Lookups'!A:C,3,0),"") ->  | D72: =IF(ISERROR(VLOOKUP("All"&$B72&$I$5&$F$8&$A$14&$D$9,DataSubJudgements!$A:$K,8,0)),IF(B72="","",0),SUM(F72:M72)) ->  | F72: =IF(ISERROR(VLOOKUP("All"&$B72&$I$5&$F$8&$A$14&$D$9,DataSubJudgements!$A:$K,F$36,0)),IF($B72="","",0),VLOOKUP("All"&$B72&$I$5&$F$8&$A$14&$D$9,DataSubJudgements!$A:$K,F$36,0)) ->  | H72: =IF(ISERROR(VLOOKUP("All"&$B72&$I$5&$F$8&$A$14&$D$9,DataSubJudgements!$A:$K,H$36,0)),IF($B72="","",0),VLOOKUP("All"&$B72&$I$5&$F$8&$A$14&$D$9,DataSubJudgements!$A:$K,H$36,0)) ->  | J72: =IF(ISERROR(VLOOKUP("All"&$B72&$I$5&$F$8&$A$14&$D$9,DataSubJudgements!$A:$K,J$36,0)),IF($B72="","",0),VLOOKUP("All"&$B72&$I$5&$F$8&$A$14&$D$9,DataSubJudgements!$A:$K,J$36,0)) ->  | M72: =IF(ISERROR(VLOOKUP("All"&$B72&$I$5&$F$8&$A$14&$D$9,DataSubJudgements!$A:$K,M$36,0)),IF($B72="","",0),VLOOKUP("All"&$B72&$I$5&$F$8&$A$14&$D$9,DataSubJudgements!$A:$K,M$36,0)) -> 
A73: 32 | B73: =IFERROR(VLOOKUP($B$35&A73,'Region Lookups'!A:C,3,0),"") ->  | D73: =IF(ISERROR(VLOOKUP("All"&$B73&$I$5&$F$8&$A$14&$D$9,DataSubJudgements!$A:$K,8,0)),IF(B73="","",0),SUM(F73:M73)) ->  | F73: =IF(ISERROR(VLOOKUP("All"&$B73&$I$5&$F$8&$A$14&$D$9,DataSubJudgements!$A:$K,F$36,0)),IF($B73="","",0),VLOOKUP("All"&$B73&$I$5&$F$8&$A$14&$D$9,DataSubJudgements!$A:$K,F$36,0)) ->  | H73: =IF(ISERROR(VLOOKUP("All"&$B73&$I$5&$F$8&$A$14&$D$9,DataSubJudgements!$A:$K,H$36,0)),IF($B73="","",0),VLOOKUP("All"&$B73&$I$5&$F$8&$A$14&$D$9,DataSubJudgements!$A:$K,H$36,0)) ->  | J73: =IF(ISERROR(VLOOKUP("All"&$B73&$I$5&$F$8&$A$14&$D$9,DataSubJudgements!$A:$K,J$36,0)),IF($B73="","",0),VLOOKUP("All"&$B73&$I$5&$F$8&$A$14&$D$9,DataSubJudgements!$A:$K,J$36,0)) ->  | M73: =IF(ISERROR(VLOOKUP("All"&$B73&$I$5&$F$8&$A$14&$D$9,DataSubJudgements!$A:$K,M$36,0)),IF($B73="","",0),VLOOKUP("All"&$B73&$I$5&$F$8&$A$14&$D$9,DataSubJudgements!$A:$K,M$36,0)) -> 
A74: 33 | B74: =IFERROR(VLOOKUP($B$35&A74,'Region Lookups'!A:C,3,0),"") ->  | D74: =IF(ISERROR(VLOOKUP("All"&$B74&$I$5&$F$8&$A$14&$D$9,DataSubJudgements!$A:$K,8,0)),IF(B74="","",0),SUM(F74:M74)) ->  | F74: =IF(ISERROR(VLOOKUP("All"&$B74&$I$5&$F$8&$A$14&$D$9,DataSubJudgements!$A:$K,F$36,0)),IF($B74="","",0),VLOOKUP("All"&$B74&$I$5&$F$8&$A$14&$D$9,DataSubJudgements!$A:$K,F$36,0)) ->  | H74: =IF(ISERROR(VLOOKUP("All"&$B74&$I$5&$F$8&$A$14&$D$9,DataSubJudgements!$A:$K,H$36,0)),IF($B74="","",0),VLOOKUP("All"&$B74&$I$5&$F$8&$A$14&$D$9,DataSubJudgements!$A:$K,H$36,0)) ->  | J74: =IF(ISERROR(VLOOKUP("All"&$B74&$I$5&$F$8&$A$14&$D$9,DataSubJudgements!$A:$K,J$36,0)),IF($B74="","",0),VLOOKUP("All"&$B74&$I$5&$F$8&$A$14&$D$9,DataSubJudgements!$A:$K,J$36,0)) ->  | M74: =IF(ISERROR(VLOOKUP("All"&$B74&$I$5&$F$8&$A$14&$D$9,DataSubJudgements!$A:$K,M$36,0)),IF($B74="","",0),VLOOKUP("All"&$B74&$I$5&$F$8&$A$14&$D$9,DataSubJudgements!$A:$K,M$36,0)) -> 
B75: =IFERROR(VLOOKUP($B$35&A75,'Region Lookups'!A:C,3,0),"") -> 
B76: =IFERROR(VLOOKUP($B$35&A76,'Region Lookups'!A:C,3,0),"") -> 
B77: =IFERROR(VLOOKUP($B$35&A77,'Region Lookups'!A:C,3,0),"") -> 
B78: =IFERROR(VLOOKUP($B$35&A78,'Region Lookups'!A:C,3,0),"") -> 
B79: =IFERROR(VLOOKUP($B$35&A79,'Region Lookups'!A:C,3,0),"") -> 
B80: =IFERROR(VLOOKUP($B$35&A80,'Region Lookups'!A:C,3,0),"") -> 

Sheet LA level at 31 Mar 2017
A1: Web link | B1: Local Authority Name | C1: Region | D1: Inspection Date | E1: Overall Judgement (OE) | F1: Children who need help and protection | G1: Children looked after and achieving permanence | H1: CLA Sub: Adoption Performance | I1: CLA Sub: Experiences and progress of care leavers | J1: Leadership, management and governance | K1: LSCB Overall Effectiveness | L1: Local authority type
A2: =IF(B2="","",HYPERLINK("http://reports.ofsted.gov.uk/local-authorities/barking-and-dagenham","Ofsted Local Authority Webpage")) -> Ofsted Local Authority Webpage | B2: Barking and Dagenham | C2: London | D2: 2014-05-22 | E2: Requires improvement | F2: Requires improvement | G2: Requires improvement | H2: Requires improvement | I2: Requires improvement | J2: Requires improvement | K2: Requires improvement | L2: London Borough
A3: =IF(B3="","",HYPERLINK("http://reports.ofsted.gov.uk/local-authorities/"&B3,"Ofsted Local Authority Webpage")) -> Ofsted Local Authority Webpage | B3: Barnet | C3: London | D3: NULL | E3: NULL | F3: NULL | G3: NULL | H3: NULL | I3: NULL | J3: NULL | K3: NULL | L3: London Borough
A4: =IF(B4="","",HYPERLINK("http://reports.ofsted.gov.uk/local-authorities/"&B4,"Ofsted Local Authority Webpage")) -> Ofsted Local Authority Webpage | B4: Barnsley | C4: Yorkshire and The Humber | D4: 2014-06-25 | E4: Requires improvement | F4: Requires improvement | G4: Requires improvement | H4: Requires improvement | I4: Good | J4: Requires improvement | K4: Requires improvement | L4: Metropolitan District
A5: =IF(B5="","",HYPERLINK("http://reports.ofsted.gov.uk/local-authorities/bath-and-ne-somerset","Ofsted Local Authority Webpage")) -> Ofsted Local Authority Webpage | B5: Bath and North East Somerset | C5: South West | D5: NULL | E5: NULL | F5: NULL | G5: NULL | H5: NULL | I5: NULL | J5: NULL | K5: NULL | L5: Unitary
A6: =IF(B6="","",HYPERLINK("http://reports.ofsted.gov.uk/local-authorities/Bedford","Ofsted Local Authority Webpage")) -> Ofsted Local Authority Webpage | B6: Bedford | C6: East of England | D6: 2017-02-16 | E6: Requires improvement | F6: Requires improvement | G6: Requires improvement | H6: Good | I6: Good | J6: Requires improvement | K6: Good | L6: Unitary
A7: =IF(B7="","",HYPERLINK("http://reports.ofsted.gov.uk/local-authorities/"&B7,"Ofsted Local Authority Webpage")) -> Ofsted Local Authority Webpage | B7: Bexley | C7: London | D7: 2014-04-02 | E7: Requires improvement | F7: Requires improvement | G7: Requires improvement | H7: Requires improvement | I7: Requires improvement | J7: Requires improvement | K7: Inadequate | L7: London Borough
A8: =IF(B8="","",HYPERLINK("http://reports.ofsted.gov.uk/local-authorities/"&B8,"Ofsted Local Authority Webpage")) -> Ofsted Local Authority Webpage | B8: Birmingham | C8: West Midlands | D8: 2016-10-06 | E8: Inadequate | F8: Inadequate | G8: Requires improvement | H8: Requires improvement | I8: Requires improvement | J8: Inadequate | K8: Inadequate | L8: Metropolitan District
A9: =IF(B9="","",HYPERLINK("http://reports.ofsted.gov.uk/local-authorities/blackburn-darwen","Ofsted Local Authority Webpage")) -> Ofsted Local Authority Webpage | B9: Blackburn with Darwen | C9: North West | D9: NULL | E9: NULL | F9: NULL | G9: NULL | H9: NULL | I9: NULL | J9: NULL | K9: NULL | L9: Unitary
A10: =IF(B10="","",HYPERLINK("http://reports.ofsted.gov.uk/local-authorities/"&B10,"Ofsted Local Authority Webpage")) -> Ofsted Local Authority Webpage | B10: Blackpool | C10: North West | D10: 2014-07-23 | E10: Requires improvement | F10: Requires improvement | G10: Requires improvement | H10: Requires improvement | I10: Requires improvement | J10: Requires improvement | K10: Requires improvement | L10: Unitary
A11: =IF(B11="","",HYPERLINK("http://reports.ofsted.gov.uk/local-authorities/"&B11,"Ofsted Local Authority Webpage")) -> Ofsted Local Authority Webpage | B11: Bolton | C11: North West | D11: 2014-02-05 | E11: Requires improvement | F11: Requires improvement | G11: Good | H11: Good | I11: Good | J11: Requires improvement | K11: Requires improvement | L11: Metropolitan District
A12: =IF(B12="","",HYPERLINK("http://reports.ofsted.gov.uk/local-authorities/"&B12,"Ofsted Local Authority Webpage")) -> Ofsted Local Authority Webpage | B12: Bournemouth | C12: South West | D12: 2014-05-21 | E12: Requires improvement | F12: Requires improvement | G12: Requires improvement | H12: Good | I12: Requires improvement | J12: Requires improvement | K12: Requires improvement | L12: Unitary
A13: =IF(B13="","",HYPERLINK("http://reports.ofsted.gov.uk/local-authorities/bracknell-forest","Ofsted Local Authority Webpage")) -> Ofsted Local Authority Webpage | B13: Bracknell Forest | C13: South East | D13: NULL | E13: NULL | F13: NULL | G13: NULL | H13: NULL | I13: NULL | J13: NULL | K13: NULL | L13: Unitary
A14: =IF(B14="","",HYPERLINK("http://reports.ofsted.gov.uk/local-authorities/"&B14,"Ofsted Local Authority Webpage")) -> Ofsted Local Authority Webpage | B14: Bradford | C14: Yorkshire and The Humber | D14: 2014-03-12 | E14: Requires improvement | F14: Requires improvement | G14: Good | H14: Good | I14: Good | J14: Good | K14: Good | L14: Metropolitan District
A15: =IF(B15="","",HYPERLINK("http://reports.ofsted.gov.uk/local-authorities/"&B15,"Ofsted Local Authority Webpage")) -> Ofsted Local Authority Webpage | B15: Brent | C15: London | D15: 2015-10-08 | E15: Requires improvement | F15: Requires improvement | G15: Requires improvement | H15: Good | I15: Requires improvement | J15: Requires improvement | K15: Requires improvement | L15: London Borough
A16: =IF(B16="","",HYPERLINK("http://reports.ofsted.gov.uk/local-authorities/brighton-and-hove","Ofsted Local Authority Webpage")) -> Ofsted Local Authority Webpage | B16: Brighton and Hove | C16: South East | D16: 2015-05-07 | E16: Requires improvement | F16: Requires improvement | G16: Good | H16: Good | I16: Good | J16: Good | K16: Good | L16: Unitary
A17: =IF(B17="","",HYPERLINK("http://reports.ofsted.gov.uk/local-authorities/bristol-city","Ofsted Local Authority Webpage")) -> Ofsted Local Authority Webpage | B17: Bristol | C17: South West | D17: 2014-10-22 | E17: Requires improvement | F17: Requires improvement | G17: Requires improvement | H17: Good | I17: Inadequate | J17: Requires improvement | K17: Requires improvement | L17: Unitary
A18: =IF(B18="","",HYPERLINK("http://reports.ofsted.gov.uk/local-authorities/"&B18,"Ofsted Local Authority Webpage")) -> Ofsted Local Authority Webpage | B18: Bromley | C18: London | D18: 2016-05-05 | E18: Inadequate | F18: Inadequate | G18: Inadequate | H18: Inadequate | I18: Inadequate | J18: Inadequate | K18: Requires improvement | L18: London Borough
A19: Ofsted Local Authority Webpage | B19: Buckinghamshire | C19: South East | D19: 2014-06-25 | E19: Inadequate | F19: Inadequate | G19: Inadequate | H19: Requires improvement | I19: Requires improvement | J19: Inadequate | K19: Inadequate | L19: Shire County
A20: Ofsted Local Authority Webpage | B20: Bury | C20: North West | D20: 2016-03-17 | E20: Requires improvement | F20: Good | G20: Requires improvement | H20: Good | I20: Requires improvement | J20: Good | K20: Good | L20: Metropolitan District
A21: Ofsted Local Authority Webpage | B21: Calderdale | C21: Yorkshire and The Humber | D21: 2015-02-04 | E21: Requires improvement | F21: Requires improvement | G21: Requires improvement | H21: Inadequate | I21: Requires improvement | J21: Requires improvement | K21: Requires improvement | L21: Metropolitan District
A22: Ofsted Local Authority Webpage | B22: Cambridgeshire | C22: East of England | D22: 2014-06-25 | E22: Good | F22: Requires improvement | G22: Good | H22: Good | I22: Good | J22: Good | K22: Good | L22: Shire County
A23: Ofsted Local Authority Webpage | B23: Camden | C23: London | D23: NULL | E23: NULL | F23: NULL | G23: NULL | H23: NULL | I23: NULL | J23: NULL | K23: NULL | L23: London Borough
A24: =IF(B24="","",HYPERLINK("http://reports.ofsted.gov.uk/local-authorities/central-bedfordshire","Ofsted Local Authority Webpage")) -> Ofsted Local Authority Webpage | B24: Central Bedfordshire | C24: East of England | D24: NULL | E24: NULL | F24: NULL | G24: NULL | H24: NULL | I24: NULL | J24: NULL | K24: NULL | L24: Unitary
A25: =IF(B25="","",HYPERLINK("http://reports.ofsted.gov.uk/local-authorities/cheshire-east","Ofsted Local Authority Webpage")) -> Ofsted Local Authority Webpage | B25: Cheshire East | C25: North West | D25: 2015-07-30 | E25: Requires improvement | F25: Requires improvement | G25: Requires improvement | H25: Good | I25: Requires improvement | J25: Requires improvement | K25: Requires improvement | L25: Unitary
A26: =IF(B26="","",HYPERLINK("http://reports.ofsted.gov.uk/local-authorities/cheshire-west-and-chester","Ofsted Local Authority Webpage")) -> Ofsted Local Authority Webpage | B26: Cheshire West and Chester | C26: North West | D26: 2015-12-17 | E26: Good | F26: Good | G26: Good | H26: Outstanding | I26: Good | J26: Outstanding | K26: Good | L26: Unitary
A27: =IF(B27="","",HYPERLINK("http://reports.ofsted.gov.uk/local-authorities/city-of-london","Ofsted Local Authority Webpage")) -> Ofsted Local Authority Webpage | B27: City of London | C27: London | D27: 2016-07-28 | E27: Good | F27: Good | G27: Good | H27: Not judged | I27: Good | J27: Outstanding | K27: Outstanding | L27: London Borough
A28: =IF(B28="","",HYPERLINK("http://reports.ofsted.gov.uk/local-authorities/"&B28,"Ofsted Local Authority Webpage")) -> Ofsted Local Authority Webpage | B28: Cornwall | C28: South West | D28: 2016-05-06 | E28: Good | F28: Requires improvement | G28: Good | H28: Good | I28: Good | J28: Good | K28: Requires improvement | L28: Unitary
A29: =IF(B29="","",HYPERLINK("http://reports.ofsted.gov.uk/local-authorities/"&B29,"Ofsted Local Authority Webpage")) -> Ofsted Local Authority Webpage | B29: Coventry | C29: West Midlands | D29: 2014-02-05 | E29: Inadequate | F29: Inadequate | G29: Requires improvement | H29: Requires improvement | I29: Requires improvement | J29: Inadequate | K29: Inadequate | L29: Metropolitan District
A30: =IF(B30="","",HYPERLINK("http://reports.ofsted.gov.uk/local-authorities/"&B30,"Ofsted Local Authority Webpage")) -> Ofsted Local Authority Webpage | B30: Croydon | C30: London | D30: NULL | E30: NULL | F30: NULL | G30: NULL | H30: NULL | I30: NULL | J30: NULL | K30: NULL | L30: London Borough
A31: =IF(B31="","",HYPERLINK("http://reports.ofsted.gov.uk/local-authorities/"&B31,"Ofsted Local Authority Webpage")) -> Ofsted Local Authority Webpage | B31: Cumbria | C31: North West | D31: 2015-03-25 | E31: Inadequate | F31: Requires improvement | G31: Inadequate | H31: Requires improvement | I31: Requires improvement | J31: Inadequate | K31: Requires improvement | L31: Shire County
A32: =IF(B32="","",HYPERLINK("http://reports.ofsted.gov.uk/local-authorities/"&B32,"Ofsted Local Authority Webpage")) -> Ofsted Local Authority Webpage | B32: Darlington | C32: North East | D32: 2015-07-16 | E32: Inadequate | F32: Inadequate | G32: Requires improvement | H32: Good | I32: Good | J32: Inadequate | K32: Requires improvement | L32: Unitary
A33: =IF(B33="","",HYPERLINK("http://reports.ofsted.gov.uk/local-authorities/derby","Ofsted Local Authority Webpage")) -> Ofsted Local Authority Webpage | B33: Derby | C33: East Midlands | D33: NULL | E33: NULL | F33: NULL | G33: NULL | H33: NULL | I33: NULL | J33: NULL | K33: NULL | L33: Unitary
A34: =IF(B34="","",HYPERLINK("http://reports.ofsted.gov.uk/local-authorities/"&B34,"Ofsted Local Authority Webpage")) -> Ofsted Local Authority Webpage | B34: Derbyshire | C34: East Midlands | D34: 2013-12-11 | E34: Good | F34: Good | G34: Good | H34: Good | I34: Good | J34: Good | K34: Requires improvement | L34: Shire County
A35: Ofsted Local Authority Webpage | B35: Devon | C35: South West | D35: 2015-03-18 | E35: Requires improvement | F35: Requires improvement | G35: Requires improvement | H35: Good | I35: Inadequate | J35: Requires improvement | K35: Inadequate | L35: Shire County
A36: Ofsted Local Authority Webpage | B36: Doncaster | C36: Yorkshire and The Humber | D36: 2015-10-08 | E36: Inadequate | F36: Inadequate | G36: Requires improvement | H36: Good | I36: Requires improvement | J36: Requires improvement | K36: Requires improvement | L36: Metropolitan District
A37: Ofsted Local Authority Webpage | B37: Dorset | C37: South West | D37: 2016-03-17 | E37: Requires improvement | F37: Requires improvement | G37: Requires improvement | H37: Good | I37: Requires improvement | J37: Requires improvement | K37: Inadequate | L37: Shire County
A38: Ofsted Local Authority Webpage | B38: Dudley | C38: West Midlands | D38: 2016-02-08 | E38: Inadequate | F38: Inadequate | G38: Inadequate | H38: Inadequate | I38: Requires improvement | J38: Inadequate | K38: Inadequate | L38: Metropolitan District
A39: Ofsted Local Authority Webpage | B39: Durham | C39: North East | D39: 2016-03-18 | E39: Requires improvement | F39: Requires improvement | G39: Requires improvement | H39: Good | I39: Good | J39: Requires improvement | K39: Good | L39: Unitary
A40: Ofsted Local Authority Webpage | B40: Ealing | C40: London | D40: 2016-07-07 | E40: Good | F40: Good | G40: Good | H40: Good | I40: Outstanding | J40: Good | K40: Requires improvement | L40: London Borough
A41: =IF(B41="","",HYPERLINK("http://reports.ofsted.gov.uk/local-authorities/east-riding-of-yorkshire","Ofsted Local Authority Webpage")) -> Ofsted Local Authority Webpage | B41: East Riding of Yorkshire | C41: Yorkshire and The Humber | D41: 2016-12-15 | E41: Good | F41: Good | G41: Good | H41: Good | I41: Outstanding | J41: Good | K41: Good | L41: Unitary
A42: =IF(B42="","",HYPERLINK("http://reports.ofsted.gov.uk/local-authorities/East-Sussex","Ofsted Local Authority Webpage")) -> Ofsted Local Authority Webpage | B42: East Sussex | C42: South East | D42: 2014-02-05 | E42: Good | F42: Good | G42: Good | H42: Outstanding | I42: Requires improvement | J42: Good | K42: Good | L42: Shire County
A43: =IF(B43="","",HYPERLINK("http://reports.ofsted.gov.uk/local-authorities/"&B43,"Ofsted Local Authority Webpage")) -> Ofsted Local Authority Webpage | B43: Enfield | C43: London | D43: 2015-02-11 | E43: Good | F43: Requires improvement | G43: Good | H43: Good | I43: Good | J43: Good | K43: Good | L43: London Borough
A44: Ofsted Local Authority Webpage | B44: Essex | C44: East of England | D44: 2014-02-05 | E44: Good | F44: Good | G44: Good | H44: Good | I44: Good | J44: Good | K44: Requires improvement | L44: Shire County
A45: Ofsted Local Authority Webpage | B45: Gateshead | C45: North East | D45: 2015-11-19 | E45: Good | F45: Good | G45: Good | H45: Good | I45: Requires improvement | J45: Good | K45: Requires improvement | L45: Metropolitan District
A46: Ofsted Local Authority Webpage | B46: Gloucestershire | C46: South West | D46: NULL | E46: NULL | F46: NULL | G46: NULL | H46: NULL | I46: NULL | J46: NULL | K46: NULL | L46: Shire County
A47: Ofsted Local Authority Webpage | B47: Greenwich | C47: London | D47: 2016-06-16 | E47: Good | F47: Good | G47: Good | H47: Good | I47: Good | J47: Good | K47: Good | L47: London Borough
A48: Ofsted Local Authority Webpage | B48: Hackney | C48: London | D48: 2016-07-28 | E48: Good | F48: Good | G48: Good | H48: Good | I48: Outstanding | J48: Good | K48: Outstanding | L48: London Borough
A49: Ofsted Local Authority Webpage | B49: Halton | C49: North West | D49: 2014-12-10 | E49: Requires improvement | F49: Requires improvement | G49: Good | H49: Good | I49: Good | J49: Requires improvement | K49: Requires improvement | L49: Unitary
A50: =IF(B50="","",HYPERLINK("http://reports.ofsted.gov.uk/local-authorities/hammersmith-and-fulham","Ofsted Local Authority Webpage")) -> Ofsted Local Authority Webpage | B50: Hammersmith and Fulham | C50: London | D50: 2016-02-04 | E50: Good | F50: Good | G50: Good | H50: Outstanding | I50: Good | J50: Outstanding | K50: Good | L50: London Borough
A51: =IF(B51="","",HYPERLINK("http://reports.ofsted.gov.uk/local-authorities/"&B51,"Ofsted Local Authority Webpage")) -> Ofsted Local Authority Webpage | B51: Hampshire | C51: South East | D51: 2014-03-12 | E51: Good | F51: Good | G51: Good | H51: Outstanding | I51: Good | J51: Outstanding | K51: Good | L51: Shire County
A52: Ofsted Local Authority Webpage | B52: Haringey | C52: London | D52: 2014-06-11 | E52: Requires improvement | F52: Requires improvement | G52: Requires improvement | H52: Requires improvement | I52: Requires improvement | J52: Requires improvement | K52: Requires improvement | L52: London Borough
A53: Ofsted Local Authority Webpage | B53: Harrow | C53: London | D53: 2017-02-09 | E53: Good | F53: Requires improvement | G53: Good | H53: Good | I53: Good | J53: Good | K53: Requires improvement | L53: London Borough
A54: Ofsted Local Authority Webpage | B54: Hartlepool | C54: North East | D54: 2013-12-11 | E54: Good | F54: Good | G54: Good | H54: Good | I54: Good | J54: Good | K54: Requires improvement | L54: Unitary
A55: Ofsted Local Authority Webpage | B55: Havering | C55: London | D55: 2016-10-20 | E55: Requires improvement | F55: Requires improvement | G55: Requires improvement | H55: Requires improvement | I55: Inadequate | J55: Requires improvement | K55: Requires improvement | L55: London Borough
A56: Ofsted Local Authority Webpage | B56: Herefordshire | C56: West Midlands | D56: 2014-05-21 | E56: Requires improvement | F56: Requires improvement | G56: Requires improvement | H56: Good | I56: Requires improvement | J56: Requires improvement | K56: Requires improvement | L56: Unitary
A57: Ofsted Local Authority Webpage | B57: Hertfordshire | C57: East of England | D57: 2015-10-08 | E57: Good | F57: Requires improvement | G57: Good | H57: Good | I57: Good | J57: Good | K57: Good | L57: Shire County
A58: Ofsted Local Authority Webpage | B58: Hillingdon | C58: London | D58: 2013-12-05 | E58: Requires improvement | F58: Requires improvement | G58: Requires improvement | H58: Good | I58: Requires improvement | J58: Requires improvement | K58: Requires improvement | L58: London Borough
A59: Ofsted Local Authority Webpage | B59: Hounslow | C59: London | D59: 2014-02-05 | E59: Requires improvement | F59: Requires improvement | G59: Requires improvement | H59: Requires improvement | I59: Requires improvement | J59: Requires improvement | K59: Requires improvement | L59: London Borough
A60: =IF(B60="","",HYPERLINK("http://reports.ofsted.gov.uk/local-authorities/isle-of-wight","Ofsted Local Authority Webpage")) -> Ofsted Local Authority Webpage | B60: Isle of Wight | C60: South East | D60: 2014-10-08 | E60: Requires improvement | F60: Requires improvement | G60: Requires improvement | H60: Requires improvement | I60: Requires improvement | J60: Requires improvement | K60: Requires improvement | L60: Unitary
A61: =IF(B61="","",HYPERLINK("http://reports.ofsted.gov.uk/local-authorities/isles-of-scilly","Ofsted Local Authority Webpage")) -> Ofsted Local Authority Webpage | B61: Isles of Scilly | C61: South West | D61: 2016-04-28 | E61: Good | F61: Good | G61: Not judged | H61: Not judged | I61: Not judged | J61: Good | K61: Requires improvement | L61: Unitary
A62: =IF(B62="","",HYPERLINK("http://reports.ofsted.gov.uk/local-authorities/"&B62,"Ofsted Local Authority Webpage")) -> Ofsted Local Authority Webpage | B62: Islington | C62: London | D62: NULL | E62: NULL | F62: NULL | G62: NULL | H62: NULL | I62: NULL | J62: NULL | K62: NULL | L62: London Borough
A63: =IF(B63="","",HYPERLINK("http://reports.ofsted.gov.uk/local-authorities/kensington-and-chelsea","Ofsted Local Authority Webpage")) -> Ofsted Local Authority Webpage | B63: Kensington and Chelsea | C63: London | D63: 2016-02-04 | E63: Outstanding | F63: Good | G63: Outstanding | H63: Outstanding | I63: Outstanding | J63: Outstanding | K63: Good | L63: London Borough
A64: =IF(B64="","",HYPERLINK("http://reports.ofsted.gov.uk/local-authorities/"&B64,"Ofsted Local Authority Webpage")) -> Ofsted Local Authority Webpage | B64: Kent | C64: South East | D64: NULL | E64: NULL | F64: NULL | G64: NULL | H64: NULL | I64: NULL | J64: NULL | K64: NULL | L64: Shire County
A65: =IF(B65="","",HYPERLINK("http://reports.ofsted.gov.uk/local-authorities/kingston-upon-hull","Ofsted Local Authority Webpage")) -> Ofsted Local Authority Webpage | B65: Kingston upon Hull | C65: Yorkshire and The Humber | D65: 2014-12-10 | E65: Requires improvement | F65: Requires improvement | G65: Requires improvement | H65: Requires improvement | I65: Requires improvement | J65: Requires improvement | K65: Requires improvement | L65: Unitary
A66: =IF(B66="","",HYPERLINK("http://reports.ofsted.gov.uk/local-authorities/kingston-upon-thames","Ofsted Local Authority Webpage")) -> Ofsted Local Authority Webpage | B66: Kingston upon Thames | C66: London | D66: 2015-06-18 | E66: Good | F66: Good | G66: Good | H66: Good | I66: Good | J66: Good | K66: Good | L66: London Borough
A67: =IF(B67="","",HYPERLINK("http://reports.ofsted.gov.uk/local-authorities/"&B67,"Ofsted Local Authority Webpage")) -> Ofsted Local Authority Webpage | B67: Kirklees | C67: Yorkshire and The Humber | D67: 2016-10-06 | E67: Inadequate | F67: Inadequate | G67: Inadequate | H67: Requires improvement | I67: Requires improvement | J67: Inadequate | K67: Inadequate | L67: Metropolitan District
A68: =IF(B68="","",HYPERLINK("http://reports.ofsted.gov.uk/local-authorities/"&B68,"Ofsted Local Authority Webpage")) -> Ofsted Local Authority Webpage | B68: Knowsley | C68: North West | D68: 2014-05-21 | E68: Inadequate | F68: Inadequate | G68: Requires improvement | H68: Inadequate | I68: Requires improvement | J68: Inadequate | K68: Inadequate | L68: Metropolitan District
A69: =IF(B69="","",HYPERLINK("http://reports.ofsted.gov.uk/local-authorities/"&B69,"Ofsted Local Authority Webpage")) -> Ofsted Local Authority Webpage | B69: Lambeth | C69: London | D69: 2015-03-18 | E69: Inadequate | F69: Requires improvement | G69: Inadequate | H69: Inadequate | I69: Requires improvement | J69: Inadequate | K69: Inadequate | L69: London Borough
A70: =IF(B70="","",HYPERLINK("http://reports.ofsted.gov.uk/local-authorities/"&B70,"Ofsted Local Authority Webpage")) -> Ofsted Local Authority Webpage | B70: Lancashire | C70: North West | D70: 2015-10-08 | E70: Inadequate | F70: Inadequate | G70: Requires improvement | H70: Requires improvement | I70: Inadequate | J70: Inadequate | K70: Good | L70: Shire County
A71: =IF(B71="","",HYPERLINK("http://reports.ofsted.gov.uk/local-authorities/"&B71,"Ofsted Local Authority Webpage")) -> Ofsted Local Authority Webpage | B71: Leeds | C71: Yorkshire and The Humber | D71: 2015-02-11 | E71: Good | F71: Good | G71: Good | H71: Good | I71: Good | J71: Outstanding | K71: Good | L71: Metropolitan District
A72: =IF(B72="","",HYPERLINK("http://reports.ofsted.gov.uk/local-authorities/leicester-city","Ofsted Local Authority Webpage")) -> Ofsted Local Authority Webpage | B72: Leicester | C72: East Midlands | D72: 2015-02-04 | E72: Inadequate | F72: Inadequate | G72: Requires improvement | H72: Good | I72: Requires improvement | J72: Inadequate | K72: Inadequate | L72: Unitary
A73: =IF(B73="","",HYPERLINK("http://reports.ofsted.gov.uk/local-authorities/"&B73,"Ofsted Local Authority Webpage")) -> Ofsted Local Authority Webpage | B73: Leicestershire | C73: East Midlands | D73: 2016-12-08 | E73: Requires improvement | F73: Requires improvement | G73: Requires improvement | H73: Requires improvement | I73: Requires improvement | J73: Requires improvement | K73: Good | L73: Shire County
A74: Ofsted Local Authority Webpage | B74: Lewisham | C74: London | D74: 2015-11-20 | E74: Requires improvement | F74: Requires improvement | G74: Good | H74: Good | I74: Good | J74: Requires improvement | K74: Requires improvement | L74: London Borough
A75: Ofsted Local Authority Webpage | B75: Lincolnshire | C75: East Midlands | D75: 2014-11-12 | E75: Good | F75: Good | G75: Good | H75: Outstanding | I75: Good | J75: Good | K75: Good | L75: Shire County
A76: Ofsted Local Authority Webpage | B76: Liverpool | C76: North West | D76: 2014-06-11 | E76: Requires improvement | F76: Requires improvement | G76: Requires improvement | H76: Requires improvement | I76: Requires improvement | J76: Requires improvement | K76: Requires improvement | L76: Metropolitan District
A77: Ofsted Local Authority Webpage | B77: Luton | C77: East of England | D77: 2016-02-04 | E77: Requires improvement | F77: Requires improvement | G77: Requires improvement | H77: Requires improvement | I77: Good | J77: Requires improvement | K77: Requires improvement | L77: Unitary
A78: Ofsted Local Authority Webpage | B78: Manchester | C78: North West | D78: 2014-07-16 | E78: Inadequate | F78: Inadequate | G78: Requires improvement | H78: Inadequate | I78: Requires improvement | J78: Inadequate | K78: Inadequate | L78: Metropolitan District
A79: Ofsted Local Authority Webpage | B79: Medway | C79: South East | D79: 2015-10-08 | E79: Requires improvement | F79: Requires improvement | G79: Requires improvement | H79: Requires improvement | I79: Good | J79: Requires improvement | K79: Requires improvement | L79: Unitary
A80: Ofsted Local Authority Webpage | B80: Merton | C80: London | D80: NULL | E80: NULL | F80: NULL | G80: NULL | H80: NULL | I80: NULL | J80: NULL | K80: NULL | L80: London Borough
A81: Ofsted Local Authority Webpage | B81: Middlesbrough | C81: North East | D81: 2015-12-17 | E81: Requires improvement | F81: Requires improvement | G81: Requires improvement | H81: Good | I81: Good | J81: Requires improvement | K81: Requires improvement | L81: Unitary
A82: =IF(B82="","",HYPERLINK("http://reports.ofsted.gov.uk/local-authorities/milton-keynes","Ofsted Local Authority Webpage")) -> Ofsted Local Authority Webpage | B82: Milton Keynes | C82: South East | D82: 2016-10-06 | E82: Requires improvement | F82: Requires improvement | G82: Requires improvement | H82: Requires improvement | I82: Requires improvement | J82: Requires improvement | K82: Requires improvement | L82: Unitary
A83: =IF(B83="","",HYPERLINK("http://reports.ofsted.gov.uk/local-authorities/newcastle-upon-tyne","Ofsted Local Authority Webpage")) -> Ofsted Local Authority Webpage | B83: Newcastle upon Tyne | C83: North East | D83: NULL | E83: NULL | F83: NULL | G83: NULL | H83: NULL | I83: NULL | J83: NULL | K83: NULL | L83: Metropolitan District
A84: =IF(B84="","",HYPERLINK("http://reports.ofsted.gov.uk/local-authorities/"&B84,"Ofsted Local Authority Webpage")) -> Ofsted Local Authority Webpage | B84: Newham | C84: London | D84: 2014-06-25 | E84: Requires improvement | F84: Requires improvement | G84: Requires improvement | H84: Good | I84: Good | J84: Requires improvement | K84: Good | L84: London Borough
A85: =IF(B85="","",HYPERLINK("http://reports.ofsted.gov.uk/local-authorities/"&B85,"Ofsted Local Authority Webpage")) -> Ofsted Local Authority Webpage | B85: Norfolk | C85: East of England | D85: 2015-07-30 | E85: Inadequate | F85: Requires improvement | G85: Inadequate | H85: Requires improvement | I85: Inadequate | J85: Requires improvement | K85: Requires improvement | L85: Shire County
A86: =IF(B86="","",HYPERLINK("http://reports.ofsted.gov.uk/local-authorities/north-east-lincolnshire","Ofsted Local Authority Webpage")) -> Ofsted Local Authority Webpage | B86: North East Lincolnshire | C86: Yorkshire and The Humber | D86: NULL | E86: NULL | F86: NULL | G86: NULL | H86: NULL | I86: NULL | J86: NULL | K86: NULL | L86: Unitary
A87: =IF(B87="","",HYPERLINK("http://reports.ofsted.gov.uk/local-authorities/north-lincolnshire","Ofsted Local Authority Webpage")) -> Ofsted Local Authority Webpage | B87: North Lincolnshire | C87: Yorkshire and The Humber | D87: NULL | E87: NULL | F87: NULL | G87: NULL | H87: NULL | I87: NULL | J87: NULL | K87: NULL | L87: Unitary
A88: =IF(B88="","",HYPERLINK("http://reports.ofsted.gov.uk/local-authorities/north-somerset","Ofsted Local Authority Webpage")) -> Ofsted Local Authority Webpage | B88: North Somerset | C88: South West | D88: NULL | E88: NULL | F88: NULL | G88: NULL | H88: NULL | I88: NULL | J88: NULL | K88: NULL | L88: Unitary
A89: =IF(B89="","",HYPERLINK("http://reports.ofsted.gov.uk/local-authorities/north-tyneside","Ofsted Local Authority Webpage")) -> Ofsted Local Authority Webpage | B89: North Tyneside | C89: North East | D89: NULL | E89: NULL | F89: NULL | G89: NULL | H89: NULL | I89: NULL | J89: NULL | K89: NULL | L89: Metropolitan District
A90: =IF(B90="","",HYPERLINK("http://reports.ofsted.gov.uk/local-authorities/north-yorkshire","Ofsted Local Authority Webpage")) -> Ofsted Local Authority Webpage | B90: North Yorkshire | C90: Yorkshire and The Humber | D90: 2014-05-21 | E90: Good | F90: Good | G90: Good | H90: Good | I90: Good | J90: Good | K90: Good | L90: Shire County
A91: =IF(B91="","",HYPERLINK("http://reports.ofsted.gov.uk/local-authorities/"&B91,"Ofsted Local Authority Webpage")) -> Ofsted Local Authority Webpage | B91: Northamptonshire | C91: East Midlands | D91: 2016-03-10 | E91: Requires improvement | F91: Requires improvement | G91: Requires improvement | H91: Requires improvement | I91: Requires improvement | J91: Requires improvement | K91: Requires improvement | L91: Shire County
A92: =IF(B92="","",HYPERLINK("http://reports.ofsted.gov.uk/local-authorities/"&B92,"Ofsted Local Authority Webpage")) -> Ofsted Local Authority Webpage | B92: Northumberland | C92: North East | D92: 2016-02-18 | E92: Requires improvement | F92: Requires improvement | G92: Requires improvement | H92: Good | I92: Requires improvement | J92: Requires improvement | K92: Good | L92: Unitary
A93: =IF(B93="","",HYPERLINK("http://reports.ofsted.gov.uk/local-authorities/nottingham","Ofsted Local Authority Webpage")) -> Ofsted Local Authority Webpage | B93: Nottingham | C93: East Midlands | D93: 2014-04-02 | E93: Requires improvement | F93: Requires improvement | G93: Requires improvement | H93: Requires improvement | I93: Requires improvement | J93: Requires improvement | K93: Requires improvement | L93: Unitary
A94: =IF(B94="","",HYPERLINK("http://reports.ofsted.gov.uk/local-authorities/"&B94,"Ofsted Local Authority Webpage")) -> Ofsted Local Authority Webpage | B94: Nottinghamshire | C94: East Midlands | D94: 2015-06-04 | E94: Good | F94: Good | G94: Good | H94: Good | I94: Requires improvement | J94: Good | K94: Good | L94: Shire County
A95: Ofsted Local Authority Webpage | B95: Oldham | C95: North West | D95: 2015-06-18 | E95: Requires improvement | F95: Requires improvement | G95: Requires improvement | H95: Good | I95: Requires improvement | J95: Requires improvement | K95: Requires improvement | L95: Metropolitan District
A96: Ofsted Local Authority Webpage | B96: Oxfordshire | C96: South East | D96: 2014-05-21 | E96: Good | F96: Good | G96: Good | H96: Good | I96: Good | J96: Good | K96: Good | L96: Shire County
A97: Ofsted Local Authority Webpage | B97: Peterborough | C97: East of England | D97: 2015-05-08 | E97: Requires improvement | F97: Requires improvement | G97: Requires improvement | H97: Good | I97: Requires improvement | J97: Requires improvement | K97: Good | L97: Unitary
A98: Ofsted Local Authority Webpage | B98: Plymouth | C98: South West | D98: 2014-11-12 | E98: Requires improvement | F98: Requires improvement | G98: Requires improvement | H98: Requires improvement | I98: Requires improvement | J98: Requires improvement | K98: Requires improvement | L98: Unitary
A99: Ofsted Local Authority Webpage | B99: Poole | C99: South West | D99: NULL | E99: NULL | F99: NULL | G99: NULL | H99: NULL | I99: NULL | J99: NULL | K99: NULL | L99: Unitary
A100: Ofsted Local Authority Webpage | B100: Portsmouth | C100: South East | D100: 2014-07-06 | E100: Requires improvement | F100: Requires improvement | G100: Good | H100: Good | I100: Requires improvement | J100: Good | K100: Good | L100: Unitary
A101: Ofsted Local Authority Webpage | B101: Reading | C101: South East | D101: 2016-06-16 | E101: Inadequate | F101: Inadequate | G101: Inadequate | H101: Requires improvement | I101: Requires improvement | J101: Inadequate | K101: Requires improvement | L101: Unitary
A102: Ofsted Local Authority Webpage | B102: Redbridge | C102: London | D102: 2016-10-06 | E102: Good | F102: Good | G102: Good | H102: Good | I102: Requires improvement | J102: Good | K102: Good | L102: London Borough
A103: =IF(B103="","",HYPERLINK("http://reports.ofsted.gov.uk/local-authorities/redcar-and-cleveland","Ofsted Local Authority Webpage")) -> Ofsted Local Authority Webpage | B103: Redcar and Cleveland | C103: North East | D103: 2017-02-09 | E103: Requires improvement | F103: Requires improvement | G103: Good | H103: Good | I103: Good | J103: Requires improvement | K103: Requires improvement | L103: Unitary
A104: =IF(B104="","",HYPERLINK("http://reports.ofsted.gov.uk/local-authorities/richmond-upon-thames","Ofsted Local Authority Webpage")) -> Ofsted Local Authority Webpage | B104: Richmond Upon Thames | C104: London | D104: NULL | E104: NULL | F104: NULL | G104: NULL | H104: NULL | I104: NULL | J104: NULL | K104: NULL | L104: London Borough
A105: =IF(B105="","",HYPERLINK("http://reports.ofsted.gov.uk/local-authorities/"&B105,"Ofsted Local Authority Webpage")) -> Ofsted Local Authority Webpage | B105: Rochdale | C105: North West | D105: 2014-10-22 | E105: Requires improvement | F105: Requires improvement | G105: Requires improvement | H105: Requires improvement | I105: Inadequate | J105: Requires improvement | K105: Requires improvement | L105: Metropolitan District
A106: Ofsted Local Authority Webpage | B106: Rotherham | C106: Yorkshire and The Humber | D106: 2014-10-08 | E106: Inadequate | F106: Inadequate | G106: Inadequate | H106: Requires improvement | I106: Inadequate | J106: Inadequate | K106: Inadequate | L106: Metropolitan District
A107: Ofsted Local Authority Webpage | B107: Rutland | C107: East Midlands | D107: 2016-12-07 | E107: Requires improvement | F107: Requires improvement | G107: Requires improvement | H107: Requires improvement | I107: Good | J107: Requires improvement | K107: Good | L107: Unitary
A108: Ofsted Local Authority Webpage | B108: Salford | C108: North West | D108: 2015-05-08 | E108: Good | F108: Good | G108: Good | H108: Requires improvement | I108: Good | J108: Good | K108: Good | L108: Metropolitan District
A109: Ofsted Local Authority Webpage | B109: Sandwell | C109: West Midlands | D109: 2015-02-19 | E109: Inadequate | F109: Inadequate | G109: Requires improvement | H109: Requires improvement | I109: Requires improvement | J109: Inadequate | K109: Inadequate | L109: Metropolitan District
A110: Ofsted Local Authority Webpage | B110: Sefton | C110: North West | D110: 2016-05-05 | E110: Requires improvement | F110: Requires improvement | G110: Requires improvement | H110: Requires improvement | I110: Requires improvement | J110: Requires improvement | K110: Inadequate | L110: Metropolitan District
A111: Ofsted Local Authority Webpage | B111: Sheffield | C111: Yorkshire and The Humber | D111: 2014-01-20 | E111: Requires improvement | F111: Good | G111: Requires improvement | H111: Requires improvement | I111: Good | J111: Good | K111: Good | L111: Metropolitan District
A112: Ofsted Local Authority Webpage | B112: Shropshire | C112: West Midlands | D112: NULL | E112: NULL | F112: NULL | G112: NULL | H112: NULL | I112: NULL | J112: NULL | K112: NULL | L112: Unitary
A113: Ofsted Local Authority Webpage | B113: Slough | C113: South East | D113: 2015-12-17 | E113: Inadequate | F113: Inadequate | G113: Inadequate | H113: Requires improvement | I113: Inadequate | J113: Inadequate | K113: Inadequate | L113: Unitary
A114: Ofsted Local Authority Webpage | B114: Solihull | C114: West Midlands | D114: 2016-05-19 | E114: Requires improvement | F114: Requires improvement | G114: Requires improvement | H114: Good | I114: Requires improvement | J114: Requires improvement | K114: Good | L114: Metropolitan District
A115: Ofsted Local Authority Webpage | B115: Somerset | C115: South West | D115: 2015-02-11 | E115: Inadequate | F115: Inadequate | G115: Inadequate | H115: Requires improvement | I115: Inadequate | J115: Inadequate | K115: Inadequate | L115: Shire County
A116: =IF(B116="","",HYPERLINK("http://reports.ofsted.gov.uk/local-authorities/south-gloucestershire","Ofsted Local Authority Webpage")) -> Ofsted Local Authority Webpage | B116: South Gloucestershire | C116: South West | D116: 2016-12-15 | E116: Inadequate | F116: Inadequate | G116: Requires improvement | H116: Good | I116: Requires improvement | J116: Inadequate | K116: Inadequate | L116: Unitary
A117: =IF(B117="","",HYPERLINK("http://reports.ofsted.gov.uk/local-authorities/south-tyneside","Ofsted Local Authority Webpage")) -> Ofsted Local Authority Webpage | B117: South Tyneside | C117: North East | D117: NULL | E117: NULL | F117: NULL | G117: NULL | H117: NULL | I117: NULL | J117: NULL | K117: NULL | L117: Metropolitan District
A118: =IF(B118="","",HYPERLINK("http://reports.ofsted.gov.uk/local-authorities/"&B118,"Ofsted Local Authority Webpage")) -> Ofsted Local Authority Webpage | B118: Southampton | C118: South East | D118: 2014-07-30 | E118: Requires improvement | F118: Requires improvement | G118: Requires improvement | H118: Requires improvement | I118: Inadequate | J118: Requires improvement | K118: Requires improvement | L118: Unitary
A119: =IF(B119="","",HYPERLINK("http://reports.ofsted.gov.uk/local-authorities/southend-sea","Ofsted Local Authority Webpage")) -> Ofsted Local Authority Webpage | B119: Southend on Sea | C119: East of England | D119: 2016-05-19 | E119: Requires improvement | F119: Requires improvement | G119: Requires improvement | H119: Good | I119: Good | J119: Requires improvement | K119: Requires improvement | L119: Unitary
A120: =IF(B120="","",HYPERLINK("http://reports.ofsted.gov.uk/local-authorities/"&B120,"Ofsted Local Authority Webpage")) -> Ofsted Local Authority Webpage | B120: Southwark | C120: London | D120: NULL | E120: NULL | F120: NULL | G120: NULL | H120: NULL | I120: NULL | J120: NULL | K120: NULL | L120: London Borough
A121: =IF(B121="","",HYPERLINK("http://reports.ofsted.gov.uk/local-authorities/st-helens","Ofsted Local Authority Webpage")) -> Ofsted Local Authority Webpage | B121: St Helens | C121: North West | D121: 2014-11-25 | E121: Requires improvement | F121: Requires improvement | G121: Requires improvement | H121: Requires improvement | I121: Requires improvement | J121: Requires improvement | K121: Requires improvement | L121: Metropolitan District
A122: =IF(B122="","",HYPERLINK("http://reports.ofsted.gov.uk/local-authorities/"&B122,"Ofsted Local Authority Webpage")) -> Ofsted Local Authority Webpage | B122: Staffordshire | C122: West Midlands | D122: 2014-02-05 | E122: Good | F122: Good | G122: Good | H122: Good | I122: Good | J122: Good | K122: Good | L122: Shire County
A123: =IF(B123="","",HYPERLINK("http://reports.ofsted.gov.uk/local-authorities/"&B123,"Ofsted Local Authority Webpage")) -> Ofsted Local Authority Webpage | B123: Stockport | C123: North West | D123: NULL | E123: NULL | F123: NULL | G123: NULL | H123: NULL | I123: NULL | J123: NULL | K123: NULL | L123: Metropolitan District
A124: =IF(B124="","",HYPERLINK("http://reports.ofsted.gov.uk/local-authorities/stockton-tees","Ofsted Local Authority Webpage")) -> Ofsted Local Authority Webpage | B124: Stockton-on-Tees | C124: North East | D124: 2016-06-16 | E124: Good | F124: Good | G124: Requires improvement | H124: Requires improvement | I124: Outstanding | J124: Good | K124: Requires improvement | L124: Unitary
A125: =IF(B125="","",HYPERLINK("http://reports.ofsted.gov.uk/local-authorities/stoke-trent","Ofsted Local Authority Webpage")) -> Ofsted Local Authority Webpage | B125: Stoke-on-Trent | C125: West Midlands | D125: 2015-06-25 | E125: Requires improvement | F125: Requires improvement | G125: Requires improvement | H125: Good | I125: Requires improvement | J125: Requires improvement | K125: Requires improvement | L125: Unitary
A126: =IF(B126="","",HYPERLINK("http://reports.ofsted.gov.uk/local-authorities/"&B126,"Ofsted Local Authority Webpage")) -> Ofsted Local Authority Webpage | B126: Suffolk | C126: East of England | D126: 2015-12-17 | E126: Good | F126: Requires improvement | G126: Good | H126: Good | I126: Requires improvement | J126: Good | K126: Good | L126: Shire County
A127: Ofsted Local Authority Webpage | B127: Sunderland | C127: North East | D127: 2015-06-04 | E127: Inadequate | F127: Inadequate | G127: Inadequate | H127: Inadequate | I127: Inadequate | J127: Inadequate | K127: Inadequate | L127: Metropolitan District
A128: Ofsted Local Authority Webpage | B128: Surrey | C128: South East | D128: 2014-11-12 | E128: Inadequate | F128: Inadequate | G128: Requires improvement | H128: Good | I128: Requires improvement | J128: Inadequate | K128: Requires improvement | L128: Shire County
A129: Ofsted Local Authority Webpage | B129: Sutton | C129: London | D129: 2016-12-08 | E129: Good | F129: Good | G129: Good | H129: Good | I129: Requires improvement | J129: Good | K129: Good | L129: London Borough
A130: Ofsted Local Authority Webpage | B130: Swindon | C130: South West | D130: 2014-04-02 | E130: Requires improvement | F130: Requires improvement | G130: Requires improvement | H130: Good | I130: Requires improvement | J130: Requires improvement | K130: Good | L130: Unitary
A131: Ofsted Local Authority Webpage | B131: Tameside | C131: North West | D131: 2016-10-20 | E131: Inadequate | F131: Inadequate | G131: Requires improvement | H131: Good | I131: Requires improvement | J131: Inadequate | K131: Requires improvement | L131: Metropolitan District
A132: =IF(B132="","",HYPERLINK("http://reports.ofsted.gov.uk/local-authorities/telford-and-wrekin","Ofsted Local Authority Webpage")) -> Ofsted Local Authority Webpage | B132: Telford and Wrekin | C132: West Midlands | D132: 2016-07-07 | E132: Requires improvement | F132: Requires improvement | G132: Requires improvement | H132: Good | I132: Good | J132: Requires improvement | K132: Good | L132: Unitary
A133: =IF(B133="","",HYPERLINK("http://reports.ofsted.gov.uk/local-authorities/"&B133,"Ofsted Local Authority Webpage")) -> Ofsted Local Authority Webpage | B133: Thurrock | C133: East of England | D133: 2016-03-17 | E133: Requires improvement | F133: Requires improvement | G133: Requires improvement | H133: Requires improvement | I133: Requires improvement | J133: Requires improvement | K133: Good | L133: Unitary
A134: =IF(B134="","",HYPERLINK("http://reports.ofsted.gov.uk/local-authorities/"&B134,"Ofsted Local Authority Webpage")) -> Ofsted Local Authority Webpage | B134: Torbay | C134: South West | D134: 2015-11-05 | E134: Inadequate | F134: Inadequate | G134: Requires improvement | H134: Requires improvement | I134: Requires improvement | J134: Inadequate | K134: Inadequate | L134: Unitary
A135: =IF(B135="","",HYPERLINK("http://reports.ofsted.gov.uk/local-authorities/tower-hamlets","Ofsted Local Authority Webpage")) -> Ofsted Local Authority Webpage | B135: Tower Hamlets | C135: London | D135: 2017-02-16 | E135: Inadequate | F135: Inadequate | G135: Requires improvement | H135: Requires improvement | I135: Requires improvement | J135: Inadequate | K135: Inadequate | L135: London Borough
A136: =IF(B136="","",HYPERLINK("http://reports.ofsted.gov.uk/local-authorities/"&B136,"Ofsted Local Authority Webpage")) -> Ofsted Local Authority Webpage | B136: Trafford | C136: North West | D136: 2015-02-18 | E136: Good | F136: Good | G136: Good | H136: Good | I136: Outstanding | J136: Outstanding | K136: Good | L136: Metropolitan District
A137: =IF(B137="","",HYPERLINK("http://reports.ofsted.gov.uk/local-authorities/"&B137,"Ofsted Local Authority Webpage")) -> Ofsted Local Authority Webpage | B137: Wakefield | C137: Yorkshire and The Humber | D137: 2016-07-28 | E137: Requires improvement | F137: Requires improvement | G137: Requires improvement | H137: Good | I137: Good | J137: Requires improvement | K137: Good | L137: Metropolitan District
A138: =IF(B138="","",HYPERLINK("http://reports.ofsted.gov.uk/local-authorities/"&B138,"Ofsted Local Authority Webpage")) -> Ofsted Local Authority Webpage | B138: Walsall | C138: West Midlands | D138: NULL | E138: NULL | F138: NULL | G138: NULL | H138: NULL | I138: NULL | J138: NULL | K138: NULL | L138: Metropolitan District
A139: =IF(B139="","",HYPERLINK("http://reports.ofsted.gov.uk/local-authorities/waltham-forest","Ofsted Local Authority Webpage")) -> Ofsted Local Authority Webpage | B139: Waltham Forest | C139: London | D139: 2014-11-26 | E139: Requires improvement | F139: Requires improvement | G139: Requires improvement | H139: Requires improvement | I139: Requires improvement | J139: Requires improvement | K139: Requires improvement | L139: London Borough
A140: =IF(B140="","",HYPERLINK("http://reports.ofsted.gov.uk/local-authorities/"&B140,"Ofsted Local Authority Webpage")) -> Ofsted Local Authority Webpage | B140: Wandsworth | C140: London | D140: 2015-12-17 | E140: Inadequate | F140: Inadequate | G140: Requires improvement | H140: Requires improvement | I140: Inadequate | J140: Inadequate | K140: Requires improvement | L140: London Borough
A141: =IF(B141="","",HYPERLINK("http://reports.ofsted.gov.uk/local-authorities/"&B141,"Ofsted Local Authority Webpage")) -> Ofsted Local Authority Webpage | B141: Warrington | C141: North West | D141: 2015-03-20 | E141: Requires improvement | F141: Requires improvement | G141: Good | H141: Good | I141: Good | J141: Requires improvement | K141: Requires improvement | L141: Unitary
A142: =IF(B142="","",HYPERLINK("http://reports.ofsted.gov.uk/local-authorities/"&B142,"Ofsted Local Authority Webpage")) -> Ofsted Local Authority Webpage | B142: Warwickshire | C142: West Midlands | D142: NULL | E142: NULL | F142: NULL | G142: NULL | H142: NULL | I142: NULL | J142: NULL | K142: NULL | L142: Shire County
A143: =IF(B143="","",HYPERLINK("http://reports.ofsted.gov.uk/local-authorities/west-berkshire","Ofsted Local Authority Webpage")) -> Ofsted Local Authority Webpage | B143: West Berkshire | C143: South East | D143: 2015-03-25 | E143: Inadequate | F143: Inadequate | G143: Requires improvement | H143: Requires improvement | I143: Requires improvement | J143: Requires improvement | K143: Requires improvement | L143: Unitary
A144: =IF(B144="","",HYPERLINK("http://reports.ofsted.gov.uk/local-authorities/west-sussex","Ofsted Local Authority Webpage")) -> Ofsted Local Authority Webpage | B144: West Sussex | C144: South East | D144: 2015-11-19 | E144: Requires improvement | F144: Requires improvement | G144: Requires improvement | H144: Requires improvement | I144: Requires improvement | J144: Requires improvement | K144: Requires improvement | L144: Shire County
A145: =IF(B145="","",HYPERLINK("http://reports.ofsted.gov.uk/local-authorities/"&B145,"Ofsted Local Authority Webpage")) -> Ofsted Local Authority Webpage | B145: Westminster | C145: London | D145: 2016-02-04 | E145: Outstanding | F145: Good | G145: Outstanding | H145: Outstanding | I145: Good | J145: Outstanding | K145: Good | L145: London Borough
A146: =IF(B146="","",HYPERLINK("http://reports.ofsted.gov.uk/local-authorities/"&B146,"Ofsted Local Authority Webpage")) -> Ofsted Local Authority Webpage | B146: Wigan | C146: North West | D146: 2017-02-09 | E146: Good | F146: Requires improvement | G146: Good | H146: Outstanding | I146: Good | J146: Good | K146: Requires improvement | L146: Metropolitan District
A147: =IF(B147="","",HYPERLINK("http://reports.ofsted.gov.uk/local-authorities/"&B147,"Ofsted Local Authority Webpage")) -> Ofsted Local Authority Webpage | B147: Wiltshire | C147: South West | D147: 2015-07-16 | E147: Requires improvement | F147: Requires improvement | G147: Requires improvement | H147: Requires improvement | I147: Requires improvement | J147: Requires improvement | K147: Requires improvement | L147: Unitary
A148: =IF(B148="","",HYPERLINK("http://reports.ofsted.gov.uk/local-authorities/windsor-and-maidenhead","Ofsted Local Authority Webpage")) -> Ofsted Local Authority Webpage | B148: Windsor and Maidenhead | C148: South East | D148: 2015-03-25 | E148: Requires improvement | F148: Requires improvement | G148: Requires improvement | H148: Requires improvement | I148: Requires improvement | J148: Requires improvement | K148: Requires improvement | L148: Unitary
A149: =IF(B149="","",HYPERLINK("http://reports.ofsted.gov.uk/local-authorities/"&B149,"Ofsted Local Authority Webpage")) -> Ofsted Local Authority Webpage | B149: Wirral | C149: North West | D149: 2016-07-28 | E149: Inadequate | F149: Inadequate | G149: Requires improvement | H149: Requires improvement | I149: Inadequate | J149: Inadequate | K149: Inadequate | L149: Metropolitan District
A150: =IF(B150="","",HYPERLINK("http://reports.ofsted.gov.uk/local-authorities/"&B150,"Ofsted Local Authority Webpage")) -> Ofsted Local Authority Webpage | B150: Wokingham | C150: South East | D150: 2015-11-05 | E150: Requires improvement | F150: Requires improvement | G150: Requires improvement | H150: Good | I150: Requires improvement | J150: Requires improvement | K150: Requires improvement | L150: Unitary
A151: =IF(B151="","",HYPERLINK("http://reports.ofsted.gov.uk/local-authorities/"&B151,"Ofsted Local Authority Webpage")) -> Ofsted Local Authority Webpage | B151: Wolverhampton | C151: West Midlands | D151: 2017-02-09 | E151: Good | F151: Requires improvement | G151: Good | H151: Good | I151: Good | J151: Good | K151: Requires improvement | L151: Metropolitan District
A152: =IF(B152="","",HYPERLINK("http://reports.ofsted.gov.uk/local-authorities/"&B152,"Ofsted Local Authority Webpage")) -> Ofsted Local Authority Webpage | B152: Worcestershire | C152: West Midlands | D152: 2016-11-17 | E152: Inadequate | F152: Inadequate | G152: Inadequate | H152: Requires improvement | I152: Inadequate | J152: Inadequate | K152: Requires improvement | L152: Shire County
A153: =IF(B153="","",HYPERLINK("http://reports.ofsted.gov.uk/local-authorities/"&B153,"Ofsted Local Authority Webpage")) -> Ofsted Local Authority Webpage | B153: York | C153: Yorkshire and The Humber | D153: 2016-12-08 | E153: Good | F153: Requires improvement | G153: Good | H153: Good | I153: Good | J153: Good | K153: Outstanding | L153: Unitary

Sheet Provider level at 31 Mar 2017
A1: Provider information | S1: Latest Full Inspection
A2: Web link | B2: URN | C2: Linked education URN | D2: Provision type | E2: Registration status | F2: Name | G2: Address 1 | H2: Address 2 | I2: Town | J2: County | K2: Postcode | L2: Ofsted Region | M2: Government Office Region | N2: Local authority | O2: Parliamentary constituency | P2: Sector | Q2: Places | R2: Short breaks only | S2: Event type | T2: Inspection date | U2: Publication date | V2: Event number | W2: Overall effectiveness | X2: Outcomes for children and young people | Y2: Quality of care | Z2: Safeguarding children and young people | AA2: Leadership and management
A3: =HYPERLINK("https://reports.ofsted.gov.uk/secure-training-centres/medway","Ofsted Social Care Provider Webpage") -> Ofsted Social Care Provider Webpage | B3: 1027076 | D3: Secure Training Centre | E3: Active | F3: Medway Secure Training Centre | G3: Sir Evelyn Road | I3: Rochester | J3: Kent | K3: ME1 3YB | L3: South East | M3: South East | N3: Medway | O3: Rochester and Strood | P3: Private | S3: Full inspection | T3: 2016-06-24 | U3: 2016-08-08 | V3: 10000029 | W3: Inadequate | X3: Requires improvement | Y3: Inadequate | Z3: Inadequate | AA3: Inadequate
A4: =HYPERLINK("https://reports.ofsted.gov.uk/secure-training-centres/oakhill","Ofsted Social Care Provider Webpage") -> Ofsted Social Care Provider Webpage | B4: 1027077 | D4: Secure Training Centre | E4: Active | F4: Oakhill Secure Training Centre | G4: Chalgrove Field Oakhill | I4: Milton Keynes | K4: MK5 6AJ | L4: South East | M4: South East | N4: Milton Keynes | O4: Milton Keynes South | P4: Private | S4: Full inspection | T4: 2017-01-20 | U4: 2017-03-07 | V4: 10010317 | W4: Requires improvement | X4: Good | Y4: Requires improvement | Z4: Requires improvement | AA4: Requires improvement
A5: =HYPERLINK("https://reports.ofsted.gov.uk/secure-training-centres/rainsbrook","Ofsted Social Care Provider Webpage") -> Ofsted Social Care Provider Webpage | B5: 1027078 | D5: Secure Training Centre | E5: Active | F5: Rainsbrook Secure Training Centre | G5: Willoughby | I5: Rugby | J5: Warwickshire | K5: CV23 8SY | L5: East Midlands | M5: East Midlands | N5: Northamptonshire | O5: Daventry | P5: Private | S5: Full inspection | T5: 2016-10-21 | U5: 2016-12-12 | V5: 10010318 | W5: Requires improvement | X5: Requires improvement | Y5: Requires improvement | Z5: Requires improvement | AA5: Inadequate
A6: =HYPERLINK("http://reports.ofsted.gov.uk/residential-holiday-schemes-for-disabled-children","Ofsted Social Care Provider Webpage") -> Ofsted Social Care Provider Webpage | B6: 1027081 | D6: Residential Holiday Scheme for Disabled Children | E6: Active | F6: Break-away | G6: REDACTED | H6: REDACTED | I6: REDACTED | J6: REDACTED | K6: REDACTED | L6: East of England | M6: East of England | N6: Norfolk | O6: Norwich North | P6: Voluntary | S6: Full inspection | T6: 2016-08-05 | U6: 2016-09-12 | V6: 10017911 | W6: Good
A7: Ofsted Social Care Provider Webpage | B7: 1027082 | D7: Residential Holiday Scheme for Disabled Children | E7: Active | F7: Heswall Disabled Children's Holiday Fund | G7: REDACTED | H7: REDACTED | I7: REDACTED | J7: REDACTED | K7: REDACTED | L7: East Midlands | M7: East Midlands | N7: Leicestershire | O7: South Leicestershire | P7: Voluntary | S7: Full inspection | T7: 2016-08-22 | U7: 2016-09-16 | V7: 10017915 | W7: Outstanding
A8: Ofsted Social Care Provider Webpage | B8: 1027083 | D8: Residential Holiday Scheme for Disabled Children | E8: Active | F8: The Newman Holiday Trust | G8: REDACTED | H8: REDACTED | I8: REDACTED | J8: REDACTED | K8: REDACTED | L8: West Midlands | M8: West Midlands | N8: Birmingham | O8: Sutton Coldfield | P8: Voluntary | S8: Full inspection | T8: 2016-08-12 | U8: 2016-09-14 | V8: 10017917 | W8: Outstanding
A9: Ofsted Social Care Provider Webpage | B9: 1027084 | D9: Residential Holiday Scheme for Disabled Children | E9: Active | F9: Action Breaks | G9: REDACTED | H9: REDACTED | I9: REDACTED | J9: REDACTED | K9: REDACTED | L9: South West | M9: South West | N9: North Somerset | O9: North Somerset | P9: Voluntary | S9: Full inspection | T9: 2016-11-04 | U9: 2016-12-02 | V9: 10017910 | W9: Good
A10: Ofsted Social Care Provider Webpage | B10: 1027090 | D10: Residential Holiday Scheme for Disabled Children | E10: Active | F10: National Deaf Children's Society | G10: REDACTED | H10: REDACTED | I10: REDACTED | J10: REDACTED | K10: REDACTED | L10: London | M10: London | N10: Islington | O10: Islington South and Finsbury | P10: Voluntary | S10: Full inspection | T10: 2017-03-06 | U10: 2017-03-30 | V10: 10017913 | W10: Good
A11: Ofsted Social Care Provider Webpage | B11: 1027091 | D11: Residential Holiday Scheme for Disabled Children | E11: Active | F11: Challengers Activity Overnighters | G11: REDACTED | H11: REDACTED | I11: REDACTED | J11: REDACTED | K11: REDACTED | L11: South East | M11: South East | N11: Surrey | O11: Guildford | P11: Private | S11: Full inspection | T11: 2016-08-24 | U11: 2016-09-23 | V11: 10017916 | W11: Good
A12: Ofsted Social Care Provider Webpage | B12: 1027092 | D12: Residential Holiday Scheme for Disabled Children | E12: Active | F12: The Ear Foundation for Deaf Teenagers | G12: REDACTED | H12: REDACTED | I12: REDACTED | J12: REDACTED | K12: REDACTED | L12: East Midlands | M12: East Midlands | N12: Nottingham | O12: Nottingham South | P12: Voluntary | S12: Full inspection | T12: 2016-07-29 | U12: 2016-09-08 | V12: 10012484 | W12: Outstanding
A13: Ofsted Social Care Provider Webpage | B13: 1027093 | D13: Residential Holiday Scheme for Disabled Children | E13: Active | F13: Over the Wall | G13: REDACTED | H13: REDACTED | I13: REDACTED | J13: REDACTED | K13: REDACTED | L13: South East | M13: South East | N13: Hampshire | O13: Havant | P13: Private | S13: Full inspection | T13: 2016-08-25 | U13: 2016-10-05 | V13: 10017873 | W13: Outstanding
A14: =HYPERLINK("http://reports.ofsted.gov.uk/inspection-reports/find-inspection-report/provider/CARE/1027158","Ofsted Social Care Provider Webpage") -> Ofsted Social Care Provider Webpage | B14: 1027158 | D14: Children's home | E14: Active | F14: REDACTED | G14: REDACTED | H14: REDACTED | I14: REDACTED | J14: REDACTED | K14: REDACTED | L14: East of England | M14: East of England | N14: Norfolk | O14: South West Norfolk | P14: Private | Q14: 6 | R14: Long term care only | S14: Full inspection | T14: 2016-11-25 | U14: 2017-01-16 | V14: 10015159 | W14: Good | Z14: Good | AA14: Good
A15: =HYPERLINK("http://reports.ofsted.gov.uk/inspection-reports/find-inspection-report/provider/CARE/1027164","Ofsted Social Care Provider Webpage") -> Ofsted Social Care Provider Webpage | B15: 1027164 | D15: Children's home | E15: Active | F15: REDACTED | G15: REDACTED | H15: REDACTED | I15: REDACTED | J15: REDACTED | K15: REDACTED | L15: North West | M15: North West | N15: Cheshire West and Chester | O15: Eddisbury | P15: Private | Q15: 5 | R15: Long term care only | S15: Full inspection | T15: 2017-02-01 | U15: 2017-02-23 | V15: 10015160 | W15: Good | Z15: Good | AA15: Good
A16: =HYPERLINK("http://reports.ofsted.gov.uk/inspection-reports/find-inspection-report/provider/CARE/1155757","Ofsted Social Care Provider Webpage") -> Ofsted Social Care Provider Webpage | B16: 1155757 | D16: Children's home | E16: Active | F16: REDACTED | G16: REDACTED | H16: REDACTED | I16: REDACTED | J16: REDACTED | K16: REDACTED | L16: North East, Yorkshire and the Humber | M16: North East | N16: Northumberland | O16: Wansbeck | P16: Local Authority | Q16: 3 | R16: Long term care only | S16: Full inspection | T16: 2016-12-07 | U16: 2017-02-07 | V16: 10015161 | W16: Good | Z16: Good | AA16: Good
A17: =HYPERLINK("http://reports.ofsted.gov.uk/inspection-reports/find-inspection-report/provider/CARE/1155761","Ofsted Social Care Provider Webpage") -> Ofsted Social Care Provider Webpage | B17: 1155761 | D17: Children's home | E17: Active | F17: REDACTED | G17: REDACTED | H17: REDACTED | I17: REDACTED | J17: REDACTED | K17: REDACTED | L17: South West | M17: South West | N17: Gloucestershire | O17: Gloucester | P17: Private | Q17: 3 | R17: Long term care only | S17: Full inspection | T17: 2016-07-27 | U17: 2016-08-23 | V17: 10018810 | W17: Requires improvement | Z17: Requires improvement | AA17: Requires improvement
A18: =HYPERLINK("http://reports.ofsted.gov.uk/inspection-reports/find-inspection-report/provider/CARE/1155768","Ofsted Social Care Provider Webpage") -> Ofsted Social Care Provider Webpage | B18: 1155768 | D18: Children's home | E18: Active | F18: REDACTED | G18: REDACTED | H18: REDACTED | I18: REDACTED | J18: REDACTED | K18: REDACTED | L18: West Midlands | M18: West Midlands | N18: Worcestershire | O18: Worcester | P18: Local Authority | Q18: 3 | R18: Long term care only | S18: Full inspection | T18: 2016-09-07 | U18: 2016-10-20 | V18: 10015163 | W18: Outstanding | Z18: Outstanding | AA18: Outstanding
A19: =HYPERLINK("http://reports.ofsted.gov.uk/inspection-reports/find-inspection-report/provider/CARE/1155775","Ofsted Social Care Provider Webpage") -> Ofsted Social Care Provider Webpage | B19: 1155775 | D19: Children's home | E19: Active | F19: REDACTED | G19: REDACTED | H19: REDACTED | I19: REDACTED | J19: REDACTED | K19: REDACTED | L19: North West | M19: North West | N19: Manchester | O19: Manchester, Gorton | P19: Private | Q19: 1 | R19: Long term care only | S19: Full inspection | T19: 2016-07-14 | U19: 2016-08-01 | V19: 10015164 | W19: Good | Z19: Good | AA19: Good
A20: =HYPERLINK("http://reports.ofsted.gov.uk/inspection-reports/find-inspection-report/provider/CARE/1155780","Ofsted Social Care Provider Webpage") -> Ofsted Social Care Provider Webpage | B20: 1155780 | D20: Children's home | E20: Active | F20: REDACTED | G20: REDACTED | H20: REDACTED | I20: REDACTED | J20: REDACTED | K20: REDACTED | L20: West Midlands | M20: West Midlands | N20: Shropshire | O20: North Shropshire | P20: Private | Q20: 4 | R20: Long term care only | S20: Full inspection | T20: 2016-08-02 | U20: 2016-09-15 | V20: 10019003 | W20: Good | Z20: Good | AA20: Good
A21: =HYPERLINK("http://reports.ofsted.gov.uk/inspection-reports/find-inspection-report/provider/CARE/1156098","Ofsted Social Care Provider Webpage") -> Ofsted Social Care Provider Webpage | B21: 1156098 | D21: Children's home | E21: Active | F21: REDACTED | G21: REDACTED | H21: REDACTED | I21: REDACTED | J21: REDACTED | K21: REDACTED | L21: North West | M21: North West | N21: Bolton | O21: Bolton South East | P21: Private | Q21: 3 | R21: Long term care only | S21: Full inspection | T21: 2016-11-29 | U21: 2017-01-24 | V21: 10018857 | W21: Good | Z21: Good | AA21: Good
A22: =HYPERLINK("http://reports.ofsted.gov.uk/inspection-reports/find-inspection-report/provider/CARE/1156103","Ofsted Social Care Provider Webpage") -> Ofsted Social Care Provider Webpage | B22: 1156103 | D22: Children's home | E22: Active | F22: REDACTED | G22: REDACTED | H22: REDACTED | I22: REDACTED | J22: REDACTED | K22: REDACTED | L22: West Midlands | M22: West Midlands | N22: Shropshire | O22: Shrewsbury and Atcham | P22: Private | Q22: 3 | R22: Long term care only | S22: Full inspection | T22: 2016-08-11 | U22: 2016-09-14 | V22: 10018821 | W22: Good | Z22: Good | AA22: Good
A23: =HYPERLINK("http://reports.ofsted.gov.uk/inspection-reports/find-inspection-report/provider/CARE/1156149","Ofsted Social Care Provider Webpage") -> Ofsted Social Care Provider Webpage | B23: 1156149 | D23: Independent Fostering Agency | E23: Active | F23: Parent And Child Fostering Assessments | G23: Alfa House Molesey Road | I23: Walton On Thames | K23: KT12 3PD | L23: South East | M23: South East | N23: Surrey | O23: Esher and Walton | P23: Private | S23: Full inspection | T23: 2016-06-10 | U23: 2016-07-05 | V23: 10011340 | W23: Good | X23: Good | Y23: Good | Z23: Good | AA23: Good
A24: =HYPERLINK("http://reports.ofsted.gov.uk/inspection-reports/find-inspection-report/provider/CARE/1159258","Ofsted Social Care Provider Webpage") -> Ofsted Social Care Provider Webpage | B24: 1159258 | D24: Children's home | E24: Active | F24: REDACTED | G24: REDACTED | H24: REDACTED | I24: REDACTED | J24: REDACTED | K24: REDACTED | L24: North West | M24: North West | N24: Manchester | O24: Blackley and Broughton | P24: Private | Q24: 3 | R24: Long term care only | S24: Full inspection | T24: 2016-04-27 | U24: 2016-07-20 | V24: 10015168 | W24: Requires improvement | Z24: Requires improvement | AA24: Requires improvement
A25: =HYPERLINK("http://reports.ofsted.gov.uk/inspection-reports/find-inspection-report/provider/CARE/1159262","Ofsted Social Care Provider Webpage") -> Ofsted Social Care Provider Webpage | B25: 1159262 | C25: 138602 | D25: Boarding School | E25: Active | F25: Kings Oxford | G25: St Joseph's Hall Temple Road | I25: Oxford | J25: Oxfordshire | K25: OX4 2UJ | L25: South East | M25: South East | N25: Oxfordshire | O25: Oxford East | P25: Private | Q25: 370 | S25: Full inspection | T25: 2016-10-07 | U25: 2016-11-17 | V25: 10019071 | W25: Good | Y25: Good | Z25: Requires improvement | AA25: Good
A26: =HYPERLINK("http://reports.ofsted.gov.uk/inspection-reports/find-inspection-report/provider/CARE/1159272","Ofsted Social Care Provider Webpage") -> Ofsted Social Care Provider Webpage | B26: 1159272 | D26: Children's home | E26: Active | F26: REDACTED | G26: REDACTED | H26: REDACTED | I26: REDACTED | J26: REDACTED | K26: REDACTED | L26: North East, Yorkshire and the Humber | M26: Yorkshire and The Humber | N26: North Yorkshire | O26: Selby and Ainsty | P26: Private | Q26: 4 | R26: Long term care only | S26: Full inspection | T26: 2016-10-12 | U26: 2016-11-28 | V26: 10015169 | W26: Good | Z26: Good | AA26: Good
A27: =HYPERLINK("http://reports.ofsted.gov.uk/inspection-reports/find-inspection-report/provider/CARE/1159380","Ofsted Social Care Provider Webpage") -> Ofsted Social Care Provider Webpage | B27: 1159380 | C27: 141957 | D27: Residential Special School | E27: Active | F27: Parkwood Hall Co-Operative Academy | G27: Parkwood Hall School Beechenlea Lane | I27: SWANLEY | J27: Kent | K27: BR8 8DR | L27: South East | M27: South East | N27: Kent | O27: Sevenoaks | P27: Academy | Q27: 40 | S27: Full inspection | T27: 2016-05-19 | U27: 2016-06-23 | V27: 10010681 | W27: Good | Y27: Good | Z27: Good | AA27: Good
A28: =HYPERLINK("http://reports.ofsted.gov.uk/inspection-reports/find-inspection-report/provider/CARE/1159385","Ofsted Social Care Provider Webpage") -> Ofsted Social Care Provider Webpage | B28: 1159385 | D28: Children's home | E28: Active | F28: REDACTED | G28: REDACTED | H28: REDACTED | I28: REDACTED | J28: REDACTED | K28: REDACTED | L28: West Midlands | M28: West Midlands | N28: Shropshire | O28: North Shropshire | P28: Private | Q28: 4 | R28: Long term care only | S28: Full inspection | T28: 2016-11-23 | U28: 2017-01-24 | V28: 10021910 | W28: Requires improvement | Z28: Requires improvement | AA28: Requires improvement
A29: =HYPERLINK("http://reports.ofsted.gov.uk/residential-holiday-schemes-for-disabled-children","Ofsted Social Care Provider Webpage") -> Ofsted Social Care Provider Webpage | B29: 1159390 | D29: Residential Holiday Scheme for Disabled Children | E29: Active | F29: Oundle School Mencap Holidays | G29: REDACTED | H29: REDACTED | I29: REDACTED | J29: REDACTED | K29: REDACTED | L29: London | M29: London | N29: Camden | O29: Hampstead and Kilburn | P29: Private | S29: Full inspection | T29: 2016-08-05 | U29: 2016-09-20 | V29: 10017914 | W29: Outstanding
A30: =HYPERLINK("http://reports.ofsted.gov.uk/inspection-reports/find-inspection-report/provider/CARE/1159397","Ofsted Social Care Provider Webpage") -> Ofsted Social Care Provider Webpage | B30: 1159397 | D30: Children's home | E30: Active | F30: REDACTED | G30: REDACTED | H30: REDACTED | I30: REDACTED | J30: REDACTED | K30: REDACTED | L30: North East, Yorkshire and the Humber | M30: Yorkshire and The Humber | N30: North Yorkshire | O30: Selby and Ainsty | P30: Private | Q30: 4 | R30: Long term care only | S30: Full inspection | T30: 2016-06-28 | U30: 2016-08-11 | V30: 10021100 | W30: Good | Z30: Good | AA30: Requires improvement
A31: =HYPERLINK("http://reports.ofsted.gov.uk/inspection-reports/find-inspection-report/provider/CARE/1159682","Ofsted Social Care Provider Webpage") -> Ofsted Social Care Provider Webpage | B31: 1159682 | D31: Children's home | E31: Active | F31: REDACTED | G31: REDACTED | H31: REDACTED | I31: REDACTED | J31: REDACTED | K31: REDACTED | L31: London | M31: London | N31: Islington | O31: Islington South and Finsbury | P31: Voluntary | Q31: 4 | R31: Long term care only | S31: Full inspection | T31: 2016-08-31 | U31: 2016-09-21 | V31: 10022073 | W31: Good | Z31: Requires improvement | AA31: Good
A32: =HYPERLINK("http://reports.ofsted.gov.uk/inspection-reports/find-inspection-report/provider/CARE/1159755","Ofsted Social Care Provider Webpage") -> Ofsted Social Care Provider Webpage | B32: 1159755 | D32: Children's home | E32: Active | F32: REDACTED | G32: REDACTED | H32: REDACTED | I32: REDACTED | J32: REDACTED | K32: REDACTED | L32: London | M32: London | N32: Ealing | O32: Ealing Central and Acton | P32: Voluntary | Q32: 4 | R32: Long term care only | S32: Full inspection | T32: 2016-06-07 | U32: 2016-06-27 | V32: 10015171 | W32: Good | Z32: Good | AA32: Good
A33: =HYPERLINK("http://reports.ofsted.gov.uk/inspection-reports/find-inspection-report/provider/CARE/1159763","Ofsted Social Care Provider Webpage") -> Ofsted Social Care Provider Webpage | B33: 1229534 | D33: Children's home | E33: Active | F33: REDACTED | G33: REDACTED | H33: REDACTED | I33: REDACTED | J33: REDACTED | K33: REDACTED | L33: North West | M33: North West | N33: Lancashire | O33: Hyndburn | P33: Private | Q33: 7 | R33: Long term care only | S33: Full inspection | T33: 2016-11-10 | U33: 2016-12-23 | V33: 10021577 | W33: Good | Z33: Good | AA33: Requires improvement
A34: =HYPERLINK("http://reports.ofsted.gov.uk/inspection-reports/find-inspection-report/provider/CARE/1159868","Ofsted Social Care Provider Webpage") -> Ofsted Social Care Provider Webpage | B34: 1159763 | D34: Children's home | E34: Active | F34: REDACTED | G34: REDACTED | H34: REDACTED | I34: REDACTED | J34: REDACTED | K34: REDACTED | L34: North East, Yorkshire and the Humber | M34: North East | N34: Darlington | O34: Sedgefield | P34: Private | Q34: 7 | R34: Long term care only | S34: Full inspection | T34: 2016-04-28 | U34: 2016-05-31 | V34: 10015172 | W34: Outstanding | Z34: Outstanding | AA34: Good
A35: =HYPERLINK("http://reports.ofsted.gov.uk/inspection-reports/find-inspection-report/provider/CARE/1159884","Ofsted Social Care Provider Webpage") -> Ofsted Social Care Provider Webpage | B35: 1159868 | D35: Children's home | E35: Active | F35: REDACTED | G35: REDACTED | H35: REDACTED | I35: REDACTED | J35: REDACTED | K35: REDACTED | L35: South West | M35: South West | N35: Dorset | O35: West Dorset | P35: Private | Q35: 3 | R35: Long term care only | S35: Full inspection | T35: 2016-04-27 | U35: 2016-05-17 | V35: 10018458 | W35: Requires improvement | Z35: Requires improvement | AA35: Good
A36: =HYPERLINK("http://reports.ofsted.gov.uk/inspection-reports/find-inspection-report/provider/CARE/1159903","Ofsted Social Care Provider Webpage") -> Ofsted Social Care Provider Webpage | B36: 1159884 | D36: Children's home | E36: Active | F36: REDACTED | G36: REDACTED | H36: REDACTED | I36: REDACTED | J36: REDACTED | K36: REDACTED | L36: North East, Yorkshire and the Humber | M36: North East | N36: Stockton-on-Tees | O36: Stockton North | P36: Private | Q36: 5 | R36: Long term care only | S36: Full inspection | T36: 2016-07-06 | U36: 2016-08-04 | V36: 10018242 | W36: Good | Z36: Good | AA36: Requires improvement
A37: =HYPERLINK("http://reports.ofsted.gov.uk/inspection-reports/find-inspection-report/provider/CARE/1164089","Ofsted Social Care Provider Webpage") -> Ofsted Social Care Provider Webpage | B37: 1159903 | D37: Children's home | E37: Active | F37: REDACTED | G37: REDACTED | H37: REDACTED | I37: REDACTED | J37: REDACTED | K37: REDACTED | L37: North West | M37: North West | N37: Salford | O37: Salford and Eccles | P37: Private | Q37: 5 | R37: Long term care only | S37: Full inspection | T37: 2016-10-18 | U37: 2016-12-20 | V37: 10015174 | W37: Good | Z37: Outstanding | AA37: Outstanding
A38: =HYPERLINK("http://reports.ofsted.gov.uk/inspection-reports/find-inspection-report/provider/CARE/1164379","Ofsted Social Care Provider Webpage") -> Ofsted Social Care Provider Webpage | B38: 1164089 | D38: Children's home | E38: Active | F38: REDACTED | G38: REDACTED | H38: REDACTED | I38: REDACTED | J38: REDACTED | K38: REDACTED | L38: East of England | M38: East of England | N38: Hertfordshire | O38: St Albans | P38: Private | Q38: 4 | R38: Long term care only | S38: Full inspection | T38: 2016-06-16 | U38: 2016-07-04 | V38: 10015175 | W38: Good | Z38: Good | AA38: Good
A39: =HYPERLINK("http://reports.ofsted.gov.uk/inspection-reports/find-inspection-report/provider/CARE/1166735","Ofsted Social Care Provider Webpage") -> Ofsted Social Care Provider Webpage | B39: 1164379 | D39: Children's home | E39: Active | F39: REDACTED | G39: REDACTED | H39: REDACTED | I39: REDACTED | J39: REDACTED | K39: REDACTED | L39: West Midlands | M39: West Midlands | N39: Sandwell | O39: West Bromwich East | P39: Private | Q39: 4 | R39: Long term care only | S39: Full inspection | T39: 2016-05-12 | U39: 2016-06-02 | V39: 10015176 | W39: Good | Z39: Good | AA39: Good
A40: =HYPERLINK("http://reports.ofsted.gov.uk/inspection-reports/find-inspection-report/provider/CARE/1179497","Ofsted Social Care Provider Webpage") -> Ofsted Social Care Provider Webpage | B40: 1166735 | D40: Adoption Support Agency | E40: Active | F40: The Tavistock Centre For Couple Relationships | G40: 70 Warren Street | I40: London | K40: W1T 5PB | L40: London | M40: London | N40: Camden | O40: Holborn and St Pancras | P40: Voluntary | S40: Full inspection | T40: 2016-09-15 | U40: 2016-10-12 | V40: 10012697 | W40: Good | X40: Good | Y40: Good | Z40: Good | AA40: Good
A41: =HYPERLINK("http://reports.ofsted.gov.uk/inspection-reports/find-inspection-report/provider/CARE/1183032","Ofsted Social Care Provider Webpage") -> Ofsted Social Care Provider Webpage | B41: 1179497 | D41: Children's home | E41: Active | F41: REDACTED | G41: REDACTED | H41: REDACTED | I41: REDACTED | J41: REDACTED | K41: REDACTED | L41: North West | M41: North West | N41: Blackburn with Darwen | O41: Blackburn | P41: Private | Q41: 1 | R41: Long term care only | S41: Full inspection | T41: 2016-09-14 | U41: 2016-10-07 | V41: 10015177 | W41: Good | Z41: Good | AA41: Good
A42: =HYPERLINK("http://reports.ofsted.gov.uk/inspection-reports/find-inspection-report/provider/CARE/1183069","Ofsted Social Care Provider Webpage") -> Ofsted Social Care Provider Webpage | B42: 1183032 | D42: Independent Fostering Agency | E42: Active | F42: Regional Foster Placements | G42: Unit C3A | H42: knoll Business Centre Old Shoreham Road | I42: Hove | K42: BN3 7GS | L42: South East | M42: South East | N42: Brighton and Hove | O42: Hove | P42: Private | S42: Full inspection | T42: 2016-12-09 | U42: 2017-01-30 | V42: 10020462 | W42: Good | X42: Good | Y42: Good | Z42: Good | AA42: Good
A43: =HYPERLINK("http://reports.ofsted.gov.uk/inspection-reports/find-inspection-report/provider/CARE/1183070","Ofsted Social Care Provider Webpage") -> Ofsted Social Care Provider Webpage | B43: 1183069 | D43: Children's home | E43: Active | F43: REDACTED | G43: REDACTED | H43: REDACTED | I43: REDACTED | J43: REDACTED | K43: REDACTED | L43: East of England | M43: East of England | N43: Suffolk | O43: Ipswich | P43: Private | Q43: 5 | R43: Long term care only | S43: Full inspection | T43: 2016-04-14 | U43: 2016-05-12 | V43: 10015179 | W43: Good | Z43: Good | AA43: Good
A44: =HYPERLINK("http://reports.ofsted.gov.uk/inspection-reports/find-inspection-report/provider/CARE/1183134","Ofsted Social Care Provider Webpage") -> Ofsted Social Care Provider Webpage | B44: 1183070 | D44: Children's home | E44: Active | F44: REDACTED | G44: REDACTED | H44: REDACTED | I44: REDACTED | J44: REDACTED | K44: REDACTED | L44: East Midlands | M44: East Midlands | N44: Derby | O44: Derby South | P44: Private | Q44: 5 | R44: Long term care only | S44: Full inspection | T44: 2016-04-27 | U44: 2016-05-26 | V44: 10015180 | W44: Requires improvement | Z44: Requires improvement | AA44: Requires improvement
A45: =HYPERLINK("http://reports.ofsted.gov.uk/inspection-reports/find-inspection-report/provider/CARE/1183136","Ofsted Social Care Provider Webpage") -> Ofsted Social Care Provider Webpage | B45: 1183134 | D45: Residential Family Centre | E45: Active | F45: Fairways Residential Family Centre | G45: 20 Salerno Road | I45: Southampton | J45: Hampshire | K45: SO16 5PJ | L45: South East | M45: South East | N45: Southampton | O45: Southampton, Test | P45: Private | Q45: 5 | S45: Full inspection | T45: 2016-06-22 | U45: 2016-07-26 | V45: 10011387 | W45: Good | Z45: Good | AA45: Good
A46: =HYPERLINK("http://reports.ofsted.gov.uk/inspection-reports/find-inspection-report/provider/CARE/1183173","Ofsted Social Care Provider Webpage") -> Ofsted Social Care Provider Webpage | B46: 1183136 | D46: Children's home | E46: Active | F46: REDACTED | G46: REDACTED | H46: REDACTED | I46: REDACTED | J46: REDACTED | K46: REDACTED | L46: East Midlands | M46: East Midlands | N46: Nottingham | O46: Nottingham North | P46: Voluntary | Q46: 2 | R46: Long term care only | S46: Full inspection | T46: 2017-01-24 | U46: 2017-02-10 | V46: 10015181 | W46: Good | Z46: Good | AA46: Good
A47: =HYPERLINK("http://reports.ofsted.gov.uk/inspection-reports/find-inspection-report/provider/CARE/1183197","Ofsted Social Care Provider Webpage") -> Ofsted Social Care Provider Webpage | B47: 1183173 | D47: Children's home | E47: Active | F47: REDACTED | G47: REDACTED | H47: REDACTED | I47: REDACTED | J47: REDACTED | K47: REDACTED | L47: East Midlands | M47: East Midlands | N47: Northamptonshire | O47: Wellingborough | P47: Private | Q47: 3 | R47: Long term care only | S47: Full inspection | T47: 2016-04-26 | U47: 2016-05-25 | V47: 10015182 | W47: Good | Z47: Good | AA47: Good
A48: =HYPERLINK("http://reports.ofsted.gov.uk/inspection-reports/find-inspection-report/provider/CARE/1183479","Ofsted Social Care Provider Webpage") -> Ofsted Social Care Provider Webpage | B48: 1183197 | D48: Children's home | E48: Active | F48: REDACTED | G48: REDACTED | H48: REDACTED | I48: REDACTED | J48: REDACTED | K48: REDACTED | L48: North East, Yorkshire and the Humber | M48: Yorkshire and The Humber | N48: Wakefield | O48: Hemsworth | P48: Private | Q48: 4 | R48: Long term care only | S48: Full inspection | T48: 2016-07-13 | U48: 2016-09-26 | V48: 10015183 | W48: Outstanding | Z48: Outstanding | AA48: Outstanding
A49: =HYPERLINK("http://reports.ofsted.gov.uk/inspection-reports/find-inspection-report/provider/CARE/1183494","Ofsted Social Care Provider Webpage") -> Ofsted Social Care Provider Webpage | B49: 1183479 | D49: Children's home | E49: Active | F49: REDACTED | G49: REDACTED | H49: REDACTED | I49: REDACTED | J49: REDACTED | K49: REDACTED | L49: South East | M49: South East | N49: Slough | O49: Slough | P49: Voluntary | Q49: 6 | R49: Short breaks only | S49: Full inspection | T49: 2016-08-10 | U49: 2016-09-14 | V49: 10015184 | W49: Good | Z49: Good | AA49: Requires improvement
A50: =HYPERLINK("http://reports.ofsted.gov.uk/inspection-reports/find-inspection-report/provider/CARE/1183495","Ofsted Social Care Provider Webpage") -> Ofsted Social Care Provider Webpage | B50: 1183494 | D50: Children's home | E50: Active | F50: REDACTED | G50: REDACTED | H50: REDACTED | I50: REDACTED | J50: REDACTED | K50: REDACTED | L50: South East | M50: South East | N50: Slough | O50: Slough | P50: Voluntary | Q50: 7 | R50: Long term care only | S50: Full inspection | T50: 2016-05-12 | U50: 2016-06-09 | V50: 10015185 | W50: Good | Z50: Good | AA50: Requires improvement
A51: =HYPERLINK("http://reports.ofsted.gov.uk/inspection-reports/find-inspection-report/provider/CARE/1183499","Ofsted Social Care Provider Webpage") -> Ofsted Social Care Provider Webpage | B51: 1183495 | D51: Independent Fostering Agency | E51: Active | F51: Slough Children's Services Trust | G51: Ground Floor West | H51: St Martin's Place 51 Bath Road | I51: Slough | J51: Buckinghamshire | K51: SL1 3UF | L51: South East | M51: South East | N51: Slough | O51: Slough | P51: Voluntary | S51: Full inspection | T51: 2016-12-09 | U51: 2017-02-13 | V51: 10010623 | W51: Requires improvement | X51: Good | Y51: Requires improvement | Z51: Requires improvement | AA51: Requires improvement
A52: =HYPERLINK("http://reports.ofsted.gov.uk/inspection-reports/find-inspection-report/provider/CARE/1183574","Ofsted Social Care Provider Webpage") -> Ofsted Social Care Provider Webpage | B52: 1183499 | D52: Voluntary Adoption Agency | E52: Active | F52: Slough Adoption Service | G52: 09487106 - Incorporated on 12 March 2015 Ground Floor West St Martin's Place 51 Bath Rd | I52: Slough | K52: SL1 3UF | L52: South East | M52: South East | N52: Slough | O52: Slough | P52: Voluntary | S52: Full inspection | T52: 2017-01-27 | U52: 2017-04-05 | V52: 10010741 | W52: Requires improvement | X52: Good | Y52: Requires improvement | Z52: Requires improvement | AA52: Good
A53: =HYPERLINK("http://reports.ofsted.gov.uk/inspection-reports/find-inspection-report/provider/CARE/1183605","Ofsted Social Care Provider Webpage") -> Ofsted Social Care Provider Webpage | B53: 1183574 | D53: Children's home | E53: Active | F53: REDACTED | G53: REDACTED | H53: REDACTED | I53: REDACTED | J53: REDACTED | K53: REDACTED | L53: North West | M53: North West | N53: Cheshire West and Chester | O53: City of Chester | P53: Local Authority | Q53: 5 | R53: Long term care only | S53: Full inspection | T53: 2016-09-28 | U53: 2016-11-25 | V53: 10021337 | W53: Requires improvement | Z53: Requires improvement | AA53: Requires improvement
A54: =HYPERLINK("http://reports.ofsted.gov.uk/inspection-reports/find-inspection-report/provider/CARE/1183618","Ofsted Social Care Provider Webpage") -> Ofsted Social Care Provider Webpage | B54: 1183605 | D54: Children's home | E54: Active | F54: REDACTED | G54: REDACTED | H54: REDACTED | I54: REDACTED | J54: REDACTED | K54: REDACTED | L54: North West | M54: North West | N54: Lancashire | O54: Lancaster and Fleetwood | P54: Private | Q54: 3 | R54: Long term care only | S54: Full inspection | T54: 2016-06-22 | U54: 2016-07-06 | V54: 10017647 | W54: Requires improvement | Z54: Requires improvement | AA54: Good
A55: =HYPERLINK("http://reports.ofsted.gov.uk/inspection-reports/find-inspection-report/provider/CARE/1183621","Ofsted Social Care Provider Webpage") -> Ofsted Social Care Provider Webpage | B55: 1183618 | D55: Children's home | E55: Active | F55: REDACTED | G55: REDACTED | H55: REDACTED | I55: REDACTED | J55: REDACTED | K55: REDACTED | L55: South West | M55: South West | N55: Cornwall | O55: Camborne and Redruth | P55: Voluntary | Q55: 1 | R55: Long term care only | S55: Full inspection | T55: 2016-04-13 | U55: 2016-05-03 | V55: 10015186 | W55: Good | Z55: Requires improvement | AA55: Requires improvement
A56: =HYPERLINK("http://reports.ofsted.gov.uk/inspection-reports/find-inspection-report/provider/CARE/1183799","Ofsted Social Care Provider Webpage") -> Ofsted Social Care Provider Webpage | B56: 1183621 | D56: Children's home | E56: Active | F56: REDACTED | G56: REDACTED | H56: REDACTED | I56: REDACTED | J56: REDACTED | K56: REDACTED | L56: East of England | M56: East of England | N56: Essex | O56: Harlow | P56: Private | Q56: 4 | R56: Long term care only | S56: Full inspection | T56: 2016-08-11 | U56: 2016-09-16 | V56: 10018275 | W56: Requires improvement | Z56: Requires improvement | AA56: Requires improvement
A57: =HYPERLINK("http://reports.ofsted.gov.uk/inspection-reports/find-inspection-report/provider/CARE/1183826","Ofsted Social Care Provider Webpage") -> Ofsted Social Care Provider Webpage | B57: 1183799 | D57: Children's home | E57: Active | F57: REDACTED | G57: REDACTED | H57: REDACTED | I57: REDACTED | J57: REDACTED | K57: REDACTED | L57: South East | M57: South East | N57: Slough | O57: Slough | P57: Private | Q57: 4 | R57: Long term care only | S57: Full inspection | T57: 2016-04-27 | U57: 2016-05-16 | V57: 10015187 | W57: Good | Z57: Good | AA57: Good
A58: =HYPERLINK("http://reports.ofsted.gov.uk/inspection-reports/find-inspection-report/provider/CARE/1183911","Ofsted Social Care Provider Webpage") -> Ofsted Social Care Provider Webpage | B58: 1183826 | D58: Children's home | E58: Active | F58: REDACTED | G58: REDACTED | H58: REDACTED | I58: REDACTED | J58: REDACTED | K58: REDACTED | L58: North East, Yorkshire and the Humber | M58: North East | N58: Sunderland | O58: Sunderland Central | P58: Private | Q58: 8 | R58: Short breaks only | S58: Full inspection | T58: 2016-09-26 | U58: 2016-10-28 | V58: 10018384 | W58: Good | Z58: Good | AA58: Requires improvement
A59: =HYPERLINK("http://reports.ofsted.gov.uk/inspection-reports/find-inspection-report/provider/CARE/1183931","Ofsted Social Care Provider Webpage") -> Ofsted Social Care Provider Webpage | B59: 1183911 | D59: Residential special school (registered as a children's home) | E59: Active | F59: REDACTED | G59: REDACTED | H59: REDACTED | I59: REDACTED | J59: REDACTED | K59: REDACTED | L59: North East, Yorkshire and the Humber | M59: Yorkshire and The Humber | N59: Calderdale | O59: Halifax | P59: Private | Q59: 12 | R59: Long term care only | S59: Full inspection | T59: 2016-09-28 | U59: 2016-10-21 | V59: 10022351 | W59: Requires improvement | Z59: Requires improvement | AA59: Requires improvement
A60: =HYPERLINK("http://reports.ofsted.gov.uk/inspection-reports/find-inspection-report/provider/CARE/1183936","Ofsted Social Care Provider Webpage") -> Ofsted Social Care Provider Webpage | B60: 1183931 | D60: Boarding School | E60: Active | F60: Abrar Academy | G60: 34-36 Garstang Road | I60: Preston | J60: Lancashire | K60: PR1 1NA | L60: North West | M60: North West | N60: Lancashire | O60: Preston | P60: Voluntary | Q60: 139 | S60: Full inspection | T60: 2016-12-01 | U60: 2017-01-17 | V60: 10025948 | W60: Requires improvement | Y60: Good | Z60: Requires improvement | AA60: Requires improvement
A61: =HYPERLINK("http://reports.ofsted.gov.uk/inspection-reports/find-inspection-report/provider/CARE/1183937","Ofsted Social Care Provider Webpage") -> Ofsted Social Care Provider Webpage | B61: 1183936 | D61: Children's home | E61: Active | F61: REDACTED | G61: REDACTED | H61: REDACTED | I61: REDACTED | J61: REDACTED | K61: REDACTED | L61: London | M61: London | N61: Bromley | O61: Bromley and Chislehurst | P61: Private | Q61: 6 | R61: Long term care only | S61: Full inspection | T61: 2016-11-10 | U61: 2016-12-22 | V61: 10015189 | W61: Good | Z61: Good | AA61: Requires improvement
A62: =HYPERLINK("http://reports.ofsted.gov.uk/inspection-reports/find-inspection-report/provider/CARE/1183960","Ofsted Social Care Provider Webpage") -> Ofsted Social Care Provider Webpage | B62: 1183937 | D62: Children's home | E62: Active | F62: REDACTED | G62: REDACTED | H62: REDACTED | I62: REDACTED | J62: REDACTED | K62: REDACTED | L62: East Midlands | M62: East Midlands | N62: Northamptonshire | O62: Kettering | P62: Private | Q62: 4 | R62: Long term care only | S62: Full inspection | T62: 2016-07-06 | U62: 2016-08-05 | V62: 10015190 | W62: Good | Z62: Good | AA62: Good
A63: =HYPERLINK("http://reports.ofsted.gov.uk/inspection-reports/find-inspection-report/provider/CARE/1184093","Ofsted Social Care Provider Webpage") -> Ofsted Social Care Provider Webpage | B63: 1183960 | D63: Independent Fostering Agency | E63: Active | F63: Merge Fostering Service Limited | G63: Office 3 | H63: Prudence Place Prudence Way | I63: Luton | J63: Bedfordshire | K63: LU2 9PE | L63: East of England | M63: East of England | N63: Luton | O63: Luton South | P63: Private | S63: Full inspection | T63: 2016-10-21 | U63: 2016-11-22 | V63: 10011325 | W63: Requires improvement | X63: Requires improvement | Y63: Requires improvement | Z63: Good | AA63: Requires improvement
A64: =HYPERLINK("http://reports.ofsted.gov.uk/inspection-reports/find-inspection-report/provider/CARE/1185488","Ofsted Social Care Provider Webpage") -> Ofsted Social Care Provider Webpage | B64: 1184093 | D64: Children's home | E64: Active | F64: REDACTED | G64: REDACTED | H64: REDACTED | I64: REDACTED | J64: REDACTED | K64: REDACTED | L64: North West | M64: North West | N64: Blackpool | O64: Blackpool North and Cleveleys | P64: Private | Q64: 3 | R64: Long term care only | S64: Full inspection | T64: 2016-07-05 | U64: 2016-08-24 | V64: 10018471 | W64: Good | Z64: Outstanding | AA64: Good
A65: =HYPERLINK("http://reports.ofsted.gov.uk/inspection-reports/find-inspection-report/provider/CARE/1185533","Ofsted Social Care Provider Webpage") -> Ofsted Social Care Provider Webpage | B65: 1185488 | D65: Children's home | E65: Active | F65: REDACTED | G65: REDACTED | H65: REDACTED | I65: REDACTED | J65: REDACTED | K65: REDACTED | L65: South East | M65: South East | N65: Reading | O65: Reading East | P65: Private | Q65: 4 | R65: Short breaks and long term care | S65: Full inspection | T65: 2016-04-27 | U65: 2016-05-12 | V65: 10015191 | W65: Good | Z65: Good | AA65: Good
A66: =HYPERLINK("http://reports.ofsted.gov.uk/inspection-reports/find-inspection-report/provider/CARE/1185765","Ofsted Social Care Provider Webpage") -> Ofsted Social Care Provider Webpage | B66: 1185539 | D66: Children's home | E66: Active | F66: REDACTED | G66: REDACTED | H66: REDACTED | I66: REDACTED | J66: REDACTED | K66: REDACTED | L66: North East, Yorkshire and the Humber | M66: Yorkshire and The Humber | N66: Calderdale | O66: Calder Valley | P66: Private | Q66: 1 | R66: Long term care only | S66: Full inspection | T66: 2016-04-13 | U66: 2016-05-04 | V66: 10018229 | W66: Good | Z66: Good | AA66: Good
A67: =HYPERLINK("http://reports.ofsted.gov.uk/inspection-reports/find-inspection-report/provider/CARE/1185768","Ofsted Social Care Provider Webpage") -> Ofsted Social Care Provider Webpage | B67: 1185765 | D67: Children's home | E67: Active | F67: REDACTED | G67: REDACTED | H67: REDACTED | I67: REDACTED | J67: REDACTED | K67: REDACTED | L67: West Midlands | M67: West Midlands | N67: Staffordshire | O67: Cannock Chase | P67: Private | Q67: 3 | R67: Long term care only | S67: Full inspection | T67: 2016-05-18 | U67: 2016-06-10 | V67: 10015192 | W67: Good | Z67: Good | AA67: Good
A68: =HYPERLINK("http://reports.ofsted.gov.uk/inspection-reports/find-inspection-report/provider/CARE/1185821","Ofsted Social Care Provider Webpage") -> Ofsted Social Care Provider Webpage | B68: 1185768 | D68: Children's home | E68: Active | F68: REDACTED | G68: REDACTED | H68: REDACTED | I68: REDACTED | J68: REDACTED | K68: REDACTED | L68: South West | M68: South West | N68: Somerset | O68: Bridgwater and West Somerset | P68: Private | Q68: 5 | R68: Long term care only | S68: Full inspection | T68: 2016-06-07 | U68: 2016-06-20 | V68: 10018248 | W68: Requires improvement | Z68: Requires improvement | AA68: Inadequate
A69: =HYPERLINK("http://reports.ofsted.gov.uk/inspection-reports/find-inspection-report/provider/CARE/1185828","Ofsted Social Care Provider Webpage") -> Ofsted Social Care Provider Webpage | B69: 1185821 | D69: Independent Fostering Agency | E69: Active | F69: The Fostering Foundation Limited - Wessex Region | G69: Suite 2 | H69: Swallow Court Devonshire Gate | I69: Tiverton | K69: EX16 7EJ | L69: South West | M69: South West | N69: Devon | O69: Tiverton and Honiton | P69: Private | S69: Full inspection | T69: 2016-09-16 | U69: 2016-10-14 | V69: 10011329 | W69: Good | X69: Good | Y69: Good | Z69: Good | AA69: Requires improvement
A70: =HYPERLINK("http://reports.ofsted.gov.uk/inspection-reports/find-inspection-report/provider/CARE/1205501","Ofsted Social Care Provider Webpage") -> Ofsted Social Care Provider Webpage | B70: 1185828 | D70: Children's home | E70: Active | F70: REDACTED | G70: REDACTED | H70: REDACTED | I70: REDACTED | J70: REDACTED | K70: REDACTED | L70: North West | M70: North West | N70: Wigan | O70: Wigan | P70: Private | Q70: 4 | R70: Long term care only | S70: Full inspection | T70: 2016-12-14 | U70: 2017-02-13 | V70: 10021580 | W70: Good | Z70: Good | AA70: Good
A71: =HYPERLINK("http://reports.ofsted.gov.uk/inspection-reports/find-inspection-report/provider/CARE/1211772","Ofsted Social Care Provider Webpage") -> Ofsted Social Care Provider Webpage | B71: 1205501 | D71: Children's home | E71: Active | F71: REDACTED | G71: REDACTED | H71: REDACTED | I71: REDACTED | J71: REDACTED | K71: REDACTED | L71: East Midlands | M71: East Midlands | N71: Nottinghamshire | O71: Newark | P71: Private | Q71: 6 | R71: Long term care only | S71: Full inspection | T71: 2016-11-02 | U71: 2016-12-22 | V71: 10023061 | W71: Requires improvement | Z71: Good | AA71: Inadequate
A72: =HYPERLINK("http://reports.ofsted.gov.uk/inspection-reports/find-inspection-report/provider/CARE/1212094","Ofsted Social Care Provider Webpage") -> Ofsted Social Care Provider Webpage | B72: 1211772 | D72: Children's home | E72: Active | F72: REDACTED | G72: REDACTED | H72: REDACTED | I72: REDACTED | J72: REDACTED | K72: REDACTED | L72: North East, Yorkshire and the Humber | M72: Yorkshire and The Humber | N72: North Yorkshire | O72: Richmond (Yorks) | P72: Private | Q72: 6 | R72: Long term care only | S72: Full inspection | T72: 2016-12-09 | U72: 2017-02-07 | V72: 10020638 | W72: Good | Z72: Requires improvement | AA72: Good
A73: =HYPERLINK("http://reports.ofsted.gov.uk/inspection-reports/find-inspection-report/provider/CARE/1212117","Ofsted Social Care Provider Webpage") -> Ofsted Social Care Provider Webpage | B73: 1212094 | D73: Children's home | E73: Active | F73: REDACTED | G73: REDACTED | H73: REDACTED | I73: REDACTED | J73: REDACTED | K73: REDACTED | L73: North West | M73: North West | N73: Salford | O73: Worsley and Eccles South | P73: Private | Q73: 4 | R73: Long term care only | S73: Full inspection | T73: 2016-09-28 | U73: 2016-11-02 | V73: 10022830 | W73: Good | Z73: Good | AA73: Requires improvement
A74: =HYPERLINK("http://reports.ofsted.gov.uk/inspection-reports/find-inspection-report/provider/CARE/1212704","Ofsted Social Care Provider Webpage") -> Ofsted Social Care Provider Webpage | B74: 1212117 | D74: Children's home | E74: Active | F74: REDACTED | G74: REDACTED | H74: REDACTED | I74: REDACTED | J74: REDACTED | K74: REDACTED | L74: East Midlands | M74: East Midlands | N74: Nottinghamshire | O74: Gedling | P74: Private | Q74: 3 | R74: Short breaks and long term care | S74: Full inspection | T74: 2016-05-11 | U74: 2016-06-03 | V74: 10015194 | W74: Good | Z74: Good | AA74: Good
A75: =HYPERLINK("http://reports.ofsted.gov.uk/inspection-reports/find-inspection-report/provider/CARE/1212708","Ofsted Social Care Provider Webpage") -> Ofsted Social Care Provider Webpage | B75: 1212704 | D75: Children's home | E75: Active | F75: REDACTED | G75: REDACTED | H75: REDACTED | I75: REDACTED | J75: REDACTED | K75: REDACTED | L75: North East, Yorkshire and the Humber | M75: Yorkshire and The Humber | N75: North Yorkshire | O75: Skipton and Ripon | P75: Private | Q75: 4 | R75: Long term care only | S75: Full inspection | T75: 2017-02-23 | U75: 2017-03-24 | V75: 10025932 | W75: Outstanding | Z75: Good | AA75: Good
A76: =HYPERLINK("http://reports.ofsted.gov.uk/inspection-reports/find-inspection-report/provider/CARE/1212899","Ofsted Social Care Provider Webpage") -> Ofsted Social Care Provider Webpage | B76: 1212708 | D76: Children's home | E76: Active | F76: REDACTED | G76: REDACTED | H76: REDACTED | I76: REDACTED | J76: REDACTED | K76: REDACTED | L76: East Midlands | M76: East Midlands | N76: Nottingham | O76: Nottingham North | P76: Private | Q76: 3 | R76: Long term care only | S76: Full inspection | T76: 2016-04-12 | U76: 2016-05-11 | V76: 10015195 | W76: Good | Z76: Good | AA76: Good
A77: =HYPERLINK("http://reports.ofsted.gov.uk/inspection-reports/find-inspection-report/provider/CARE/1213822","Ofsted Social Care Provider Webpage") -> Ofsted Social Care Provider Webpage | B77: 1213416 | D77: Children's home | E77: Active | F77: REDACTED | G77: REDACTED | H77: REDACTED | I77: REDACTED | J77: REDACTED | K77: REDACTED | L77: West Midlands | M77: West Midlands | N77: Shropshire | O77: Ludlow | P77: Private | Q77: 2 | R77: Long term care only | S77: Full inspection | T77: 2016-07-28 | U77: 2016-09-08 | V77: 10015196 | W77: Good | Z77: Good | AA77: Outstanding
A78: =HYPERLINK("http://reports.ofsted.gov.uk/inspection-reports/find-inspection-report/provider/CARE/1213828","Ofsted Social Care Provider Webpage") -> Ofsted Social Care Provider Webpage | B78: 1213822 | C78: 141512 | D78: Residential Special School | E78: Active | F78: Langham Oaks | G78: School Road Langham | I78: Colchester | J78: Essex | K78: CO4 5PA | L78: East of England | M78: East of England | N78: Essex | O78: Harwich and North Essex | P78: Academy | Q78: 28 | S78: Full inspection | T78: 2017-03-03 | U78: 2017-03-23 | V78: 10011219 | W78: Good | Y78: Good | Z78: Good | AA78: Requires improvement
A79: =HYPERLINK("http://reports.ofsted.gov.uk/inspection-reports/find-inspection-report/provider/CARE/1214266","Ofsted Social Care Provider Webpage") -> Ofsted Social Care Provider Webpage | B79: 1213828 | D79: Children's home | E79: Active | F79: REDACTED | G79: REDACTED | H79: REDACTED | I79: REDACTED | J79: REDACTED | K79: REDACTED | L79: North West | M79: North West | N79: St Helens | O79: St Helens North | P79: Private | Q79: 2 | R79: Long term care only | S79: Full inspection | T79: 2016-05-06 | U79: 2016-05-24 | V79: 10018227 | W79: Good | Z79: Good | AA79: Good
A80: =HYPERLINK("http://reports.ofsted.gov.uk/inspection-reports/find-inspection-report/provider/CARE/1214270","Ofsted Social Care Provider Webpage") -> Ofsted Social Care Provider Webpage | B80: 1214266 | D80: Children's home | E80: Active | F80: REDACTED | G80: REDACTED | H80: REDACTED | I80: REDACTED | J80: REDACTED | K80: REDACTED | L80: East Midlands | M80: East Midlands | N80: Leicestershire | O80: Harborough | P80: Private | Q80: 4 | R80: Long term care only | S80: Full inspection | T80: 2016-05-11 | U80: 2016-05-31 | V80: 10015197 | W80: Good | Z80: Good | AA80: Good
A81: =HYPERLINK("http://reports.ofsted.gov.uk/inspection-reports/find-inspection-report/provider/CARE/1214396","Ofsted Social Care Provider Webpage") -> Ofsted Social Care Provider Webpage | B81: 1214270 | D81: Children's home | E81: Active | F81: REDACTED | G81: REDACTED | H81: REDACTED | I81: REDACTED | J81: REDACTED | K81: REDACTED | L81: North West | M81: North West | N81: Cheshire East | O81: Macclesfield | P81: Private | Q81: 1 | R81: Long term care only | S81: Full inspection | T81: 2016-04-28 | U81: 2016-05-16 | V81: 10018255 | W81: Good | Z81: Good | AA81: Good
A82: =HYPERLINK("http://reports.ofsted.gov.uk/inspection-reports/find-inspection-report/provider/CARE/1214688","Ofsted Social Care Provider Webpage") -> Ofsted Social Care Provider Webpage | B82: 1214396 | D82: Children's home | E82: Active | F82: REDACTED | G82: REDACTED | H82: REDACTED | I82: REDACTED | J82: REDACTED | K82: REDACTED | L82: West Midlands | M82: West Midlands | N82: Herefordshire | O82: North Herefordshire | P82: Private | Q82: 2 | R82: Long term care only | S82: Full inspection | T82: 2016-07-28 | U82: 2016-08-25 | V82: 10018276 | W82: Good | Z82: Good | AA82: Good
A83: =HYPERLINK("http://reports.ofsted.gov.uk/residential-holiday-schemes-for-disabled-children","Ofsted Social Care Provider Webpage") -> Ofsted Social Care Provider Webpage | B83: 1214688 | D83: Children's home | E83: Active | F83: REDACTED | G83: REDACTED | H83: REDACTED | I83: REDACTED | J83: REDACTED | K83: REDACTED | L83: South East | M83: South East | N83: Southampton | O83: Southampton, Test | P83: Private | Q83: 5 | R83: Long term care only | S83: Full inspection | T83: 2016-04-21 | U83: 2016-05-12 | V83: 10015198 | W83: Requires improvement | Z83: Requires improvement | AA83: Requires improvement
A84: =HYPERLINK("http://reports.ofsted.gov.uk/inspection-reports/find-inspection-report/provider/CARE/1216505","Ofsted Social Care Provider Webpage") -> Ofsted Social Care Provider Webpage | B84: 1237027 | D84: Children's home | E84: Active | F84: REDACTED | G84: REDACTED | H84: REDACTED | I84: REDACTED | J84: REDACTED | K84: REDACTED | L84: London | M84: London | N84: Greenwich | O84: Eltham | P84: Private | Q84: 3 | R84: Long term care only | S84: Full inspection | T84: 2016-11-16 | U84: 2016-12-30 | V84: 10022391 | W84: Good | Z84: Good | AA84: Good
A85: =HYPERLINK("http://reports.ofsted.gov.uk/inspection-reports/find-inspection-report/provider/CARE/1216657","Ofsted Social Care Provider Webpage") -> Ofsted Social Care Provider Webpage | B85: 1215521 | D85: Children's home | E85: Active | F85: REDACTED | G85: REDACTED | H85: REDACTED | I85: REDACTED | J85: REDACTED | K85: REDACTED | L85: East Midlands | M85: East Midlands | N85: Nottingham | O85: Nottingham South | P85: Private | Q85: 3 | R85: Long term care only | S85: Full inspection | T85: 2016-05-25 | U85: 2016-06-17 | V85: 10015199 | W85: Outstanding | Z85: Outstanding | AA85: Outstanding
A86: =HYPERLINK("http://reports.ofsted.gov.uk/inspection-reports/find-inspection-report/provider/CARE/1220818","Ofsted Social Care Provider Webpage") -> Ofsted Social Care Provider Webpage | B86: 1216505 | D86: Children's home | E86: Active | F86: REDACTED | G86: REDACTED | H86: REDACTED | I86: REDACTED | J86: REDACTED | K86: REDACTED | L86: North East, Yorkshire and the Humber | M86: North East | N86: Newcastle upon Tyne | O86: Newcastle upon Tyne East | P86: Private | Q86: 5 | R86: Short breaks and long term care | S86: Full inspection | T86: 2016-11-09 | U86: 2016-12-09 | V86: 10021511 | W86: Requires improvement | Z86: Requires improvement | AA86: Requires improvement
A87: =HYPERLINK("http://reports.ofsted.gov.uk/inspection-reports/find-inspection-report/provider/CARE/1220887","Ofsted Social Care Provider Webpage") -> Ofsted Social Care Provider Webpage | B87: 1216657 | D87: Children's home | E87: Active | F87: REDACTED | G87: REDACTED | H87: REDACTED | I87: REDACTED | J87: REDACTED | K87: REDACTED | L87: East Midlands | M87: East Midlands | N87: Nottingham | O87: Nottingham East | P87: Voluntary | Q87: 2 | R87: Long term care only | S87: Full inspection | T87: 2016-05-04 | U87: 2016-06-01 | V87: 10018280 | W87: Good | Z87: Good | AA87: Outstanding
A88: =HYPERLINK("http://reports.ofsted.gov.uk/inspection-reports/find-inspection-report/provider/CARE/1221357","Ofsted Social Care Provider Webpage") -> Ofsted Social Care Provider Webpage | B88: 1220818 | D88: Children's home | E88: Active | F88: REDACTED | G88: REDACTED | H88: REDACTED | I88: REDACTED | J88: REDACTED | K88: REDACTED | L88: West Midlands | M88: West Midlands | N88: Staffordshire | O88: Burton | P88: Private | Q88: 5 | R88: Long term care only | S88: Full inspection | T88: 2016-08-12 | U88: 2016-09-26 | V88: 10018278 | W88: Requires improvement | Z88: Requires improvement | AA88: Requires improvement
A89: =HYPERLINK("http://reports.ofsted.gov.uk/inspection-reports/find-inspection-report/provider/CARE/1221437","Ofsted Social Care Provider Webpage") -> Ofsted Social Care Provider Webpage | B89: 1220887 | D89: Children's home | E89: Active | F89: REDACTED | G89: REDACTED | H89: REDACTED | I89: REDACTED | J89: REDACTED | K89: REDACTED | L89: West Midlands | M89: West Midlands | N89: Staffordshire | O89: Stafford | P89: Private | Q89: 3 | R89: Long term care only | S89: Full inspection | T89: 2016-06-09 | U89: 2016-06-23 | V89: 10015200 | W89: Good | Z89: Good | AA89: Good
A90: =HYPERLINK("http://reports.ofsted.gov.uk/inspection-reports/find-inspection-report/provider/CARE/1221446","Ofsted Social Care Provider Webpage") -> Ofsted Social Care Provider Webpage | B90: 1221357 | D90: Children's home | E90: Active | F90: REDACTED | G90: REDACTED | H90: REDACTED | I90: REDACTED | J90: REDACTED | K90: REDACTED | L90: North West | M90: North West | N90: Blackpool | O90: Blackpool South | P90: Private | Q90: 4 | R90: Long term care only | S90: Full inspection | T90: 2017-01-26 | U90: 2017-03-02 | V90: 10025917 | W90: Good | Z90: Requires improvement | AA90: Requires improvement
A91: =HYPERLINK("http://reports.ofsted.gov.uk/inspection-reports/find-inspection-report/provider/CARE/1221700","Ofsted Social Care Provider Webpage") -> Ofsted Social Care Provider Webpage | B91: 1221437 | D91: Children's home | E91: Active | F91: REDACTED | G91: REDACTED | H91: REDACTED | I91: REDACTED | J91: REDACTED | K91: REDACTED | L91: South West | M91: South West | N91: Dorset | O91: South Dorset | P91: Private | Q91: 5 | R91: Short breaks only | S91: Full inspection | T91: 2016-11-09 | U91: 2016-12-23 | V91: 10018818 | W91: Good | Z91: Good | AA91: Good
A92: =HYPERLINK("http://reports.ofsted.gov.uk/inspection-reports/find-inspection-report/provider/CARE/1222089","Ofsted Social Care Provider Webpage") -> Ofsted Social Care Provider Webpage | B92: 1221700 | D92: Children's home | E92: Active | F92: REDACTED | G92: REDACTED | H92: REDACTED | I92: REDACTED | J92: REDACTED | K92: REDACTED | L92: North West | M92: North West | N92: Lancashire | O92: Ribble Valley | P92: Private | Q92: 5 | R92: Long term care only | S92: Full inspection | T92: 2016-09-20 | U92: 2016-10-27 | V92: 10021582 | W92: Good | Z92: Good | AA92: Good
A93: =HYPERLINK("http://reports.ofsted.gov.uk/inspection-reports/find-inspection-report/provider/CARE/1223491","Ofsted Social Care Provider Webpage") -> Ofsted Social Care Provider Webpage | B93: 1222089 | D93: Children's home | E93: Active | F93: REDACTED | G93: REDACTED | H93: REDACTED | I93: REDACTED | J93: REDACTED | K93: REDACTED | L93: West Midlands | M93: West Midlands | N93: Stoke-on-Trent | O93: Stoke-on-Trent South | P93: Private | Q93: 4 | R93: Long term care only | S93: Full inspection | T93: 2016-04-28 | U93: 2016-05-27 | V93: 10018368 | W93: Good | Z93: Good | AA93: Good
A94: =HYPERLINK("http://reports.ofsted.gov.uk/inspection-reports/find-inspection-report/provider/CARE/1223501","Ofsted Social Care Provider Webpage") -> Ofsted Social Care Provider Webpage | B94: 1223201 | D94: Children's home | E94: Active | F94: REDACTED | G94: REDACTED | H94: REDACTED | I94: REDACTED | J94: REDACTED | K94: REDACTED | L94: North East, Yorkshire and the Humber | M94: Yorkshire and The Humber | N94: Leeds | O94: Leeds Central | P94: Local Authority | Q94: 4 | R94: Long term care only | S94: Full inspection | T94: 2016-06-09 | U94: 2016-07-04 | V94: 10019082 | W94: Outstanding | Z94: Outstanding | AA94: Outstanding
A95: =HYPERLINK("http://reports.ofsted.gov.uk/inspection-reports/find-inspection-report/provider/CARE/1223681","Ofsted Social Care Provider Webpage") -> Ofsted Social Care Provider Webpage | B95: 1223491 | D95: Children's home | E95: Active | F95: REDACTED | G95: REDACTED | H95: REDACTED | I95: REDACTED | J95: REDACTED | K95: REDACTED | L95: West Midlands | M95: West Midlands | N95: Shropshire | O95: North Shropshire | P95: Private | Q95: 3 | R95: Long term care only | S95: Full inspection | T95: 2016-11-23 | U95: 2017-01-18 | V95: 10021317 | W95: Requires improvement | Z95: Requires improvement | AA95: Requires improvement
A96: =HYPERLINK("http://reports.ofsted.gov.uk/inspection-reports/find-inspection-report/provider/CARE/1224093","Ofsted Social Care Provider Webpage") -> Ofsted Social Care Provider Webpage | B96: 1223501 | D96: Children's home | E96: Active | F96: REDACTED | G96: REDACTED | H96: REDACTED | I96: REDACTED | J96: REDACTED | K96: REDACTED | L96: North West | M96: North West | N96: Lancashire | O96: Fylde | P96: Private | Q96: 4 | R96: Long term care only | S96: Full inspection | T96: 2016-07-20 | U96: 2016-08-23 | V96: 10018261 | W96: Outstanding | Z96: Outstanding | AA96: Outstanding
A97: =HYPERLINK("http://reports.ofsted.gov.uk/inspection-reports/find-inspection-report/provider/CARE/1224251","Ofsted Social Care Provider Webpage") -> Ofsted Social Care Provider Webpage | B97: 1223681 | D97: Children's home | E97: Active | F97: REDACTED | G97: REDACTED | H97: REDACTED | I97: REDACTED | J97: REDACTED | K97: REDACTED | L97: North West | M97: North West | N97: Lancashire | O97: Burnley | P97: Private | Q97: 4 | R97: Long term care only | S97: Full inspection | T97: 2016-11-09 | U97: 2017-01-05 | V97: 10020818 | W97: Requires improvement | Z97: Requires improvement | AA97: Requires improvement
A98: =HYPERLINK("http://reports.ofsted.gov.uk/inspection-reports/find-inspection-report/provider/CARE/1224663","Ofsted Social Care Provider Webpage") -> Ofsted Social Care Provider Webpage | B98: 1224093 | D98: Children's home | E98: Active | F98: REDACTED | G98: REDACTED | H98: REDACTED | I98: REDACTED | J98: REDACTED | K98: REDACTED | L98: East of England | M98: East of England | N98: Hertfordshire | O98: Hemel Hempstead | P98: Private | Q98: 4 | R98: Long term care only | S98: Full inspection | T98: 2016-05-11 | U98: 2016-05-31 | V98: 10015201 | W98: Requires improvement | Z98: Good | AA98: Requires improvement
A99: =HYPERLINK("http://reports.ofsted.gov.uk/inspection-reports/find-inspection-report/provider/CARE/1224674","Ofsted Social Care Provider Webpage") -> Ofsted Social Care Provider Webpage | B99: 1224251 | D99: Children's home | E99: Active | F99: REDACTED | G99: REDACTED | H99: REDACTED | I99: REDACTED | J99: REDACTED | K99: REDACTED | L99: North West | M99: North West | N99: Wigan | O99: Makerfield | P99: Private | Q99: 2 | R99: Long term care only | S99: Full inspection | T99: 2016-09-01 | U99: 2016-10-06 | V99: 10018934 | W99: Good | Z99: Good | AA99: Good
A100: =HYPERLINK("http://reports.ofsted.gov.uk/inspection-reports/find-inspection-report/provider/CARE/1224685","Ofsted Social Care Provider Webpage") -> Ofsted Social Care Provider Webpage | B100: 1224663 | D100: Children's home | E100: Active | F100: REDACTED | G100: REDACTED | H100: REDACTED | I100: REDACTED | J100: REDACTED | K100: REDACTED | L100: East Midlands | M100: East Midlands | N100: Leicestershire | O100: Charnwood | P100: Private | Q100: 3 | R100: Long term care only | S100: Full inspection | T100: 2016-04-07 | U100: 2016-05-11 | V100: 10018050 | W100: Good | Z100: Good | AA100: Good
A101: =HYPERLINK("http://reports.ofsted.gov.uk/inspection-reports/find-inspection-report/provider/CARE/1225136","Ofsted Social Care Provider Webpage") -> Ofsted Social Care Provider Webpage | B101: 1224674 | D101: Children's home | E101: Active | F101: REDACTED | G101: REDACTED | H101: REDACTED | I101: REDACTED | J101: REDACTED | K101: REDACTED | L101: East Midlands | M101: East Midlands | N101: Rutland | O101: Rutland and Melton | P101: Private | Q101: 7 | R101: Long term care only | S101: Full inspection | T101: 2016-04-27 | U101: 2016-05-18 | V101: 10018138 | W101: Good | Z101: Good | AA101: Good
A102: =HYPERLINK("http://reports.ofsted.gov.uk/inspection-reports/find-inspection-report/provider/CARE/1225371","Ofsted Social Care Provider Webpage") -> Ofsted Social Care Provider Webpage | B102: 1224685 | D102: Independent Fostering Agency | E102: Active | F102: Shining Stars Fostering Agency Ltd | G102: The Lansdowne Building 2 Lansdowne Road | I102: CROYDON | K102: CR9 2ER | L102: London | M102: London | N102: Croydon | O102: Croydon Central | P102: Private | S102: Full inspection | T102: 2016-11-25 | U102: 2017-01-20 | V102: 10020305 | W102: Good | X102: Good | Y102: Good | Z102: Good | AA102: Good
A103: =HYPERLINK("http://reports.ofsted.gov.uk/inspection-reports/find-inspection-report/provider/CARE/1225624","Ofsted Social Care Provider Webpage") -> Ofsted Social Care Provider Webpage | B103: 1225136 | D103: Children's home | E103: Active | F103: REDACTED | G103: REDACTED | H103: REDACTED | I103: REDACTED | J103: REDACTED | K103: REDACTED | L103: North West | M103: North West | N103: Lancashire | O103: Preston | P103: Private | Q103: 4 | R103: Long term care only | S103: Full inspection | T103: 2016-10-13 | U103: 2016-11-25 | V103: 10021569 | W103: Requires improvement | Z103: Requires improvement | AA103: Requires improvement
A104: =HYPERLINK("http://reports.ofsted.gov.uk/inspection-reports/find-inspection-report/provider/CARE/1225887","Ofsted Social Care Provider Webpage") -> Ofsted Social Care Provider Webpage | B104: 1225371 | D104: Children's home | E104: Active | F104: REDACTED | G104: REDACTED | H104: REDACTED | I104: REDACTED | J104: REDACTED | K104: REDACTED | L104: North West | M104: North West | N104: Warrington | O104: Warrington South | P104: Private | Q104: 2 | R104: Long term care only | S104: Full inspection | T104: 2017-01-19 | U104: 2017-02-08 | V104: 10026792 | W104: Good | Z104: Good | AA104: Requires improvement
A105: =HYPERLINK("http://reports.ofsted.gov.uk/inspection-reports/find-inspection-report/provider/CARE/1226271","Ofsted Social Care Provider Webpage") -> Ofsted Social Care Provider Webpage | B105: 1225887 | D105: Children's home | E105: Active | F105: REDACTED | G105: REDACTED | H105: REDACTED | I105: REDACTED | J105: REDACTED | K105: REDACTED | L105: South East | M105: South East | N105: Kent | O105: Sittingbourne and Sheppey | P105: Private | Q105: 2 | R105: Short breaks and long term care | S105: Full inspection | T105: 2016-04-27 | U105: 2016-05-24 | V105: 10018839 | W105: Requires improvement | Z105: Good | AA105: Requires improvement
A106: =HYPERLINK("http://reports.ofsted.gov.uk/inspection-reports/find-inspection-report/provider/CARE/1226397","Ofsted Social Care Provider Webpage") -> Ofsted Social Care Provider Webpage | B106: 1226266 | D106: Children's home | E106: Active | F106: REDACTED | G106: REDACTED | H106: REDACTED | I106: REDACTED | J106: REDACTED | K106: REDACTED | L106: South East | M106: South East | N106: West Sussex | O106: Arundel and South Downs | P106: Private | Q106: 6 | R106: Long term care only | S106: Full inspection | T106: 2016-09-23 | U106: 2016-11-18 | V106: 10018379 | W106: Good | Z106: Good | AA106: Good
A107: =HYPERLINK("http://reports.ofsted.gov.uk/inspection-reports/find-inspection-report/provider/CARE/1226495","Ofsted Social Care Provider Webpage") -> Ofsted Social Care Provider Webpage | B107: 1226271 | D107: Adoption Support Agency | E107: Active | F107: The Adoption Consultancy 360 Ltd | G107: West Grange Clyst Heath | I107: Exeter | K107: EX2 7EY | L107: South West | M107: South West | N107: Devon | O107: East Devon | P107: Private | S107: Full inspection | T107: 2017-03-09 | U107: 2017-04-04 | V107: 10021559 | W107: Outstanding | X107: Outstanding | Y107: Outstanding | Z107: Outstanding | AA107: Outstanding
A108: =HYPERLINK("http://reports.ofsted.gov.uk/inspection-reports/find-inspection-report/provider/CARE/1226619","Ofsted Social Care Provider Webpage") -> Ofsted Social Care Provider Webpage | B108: 1226495 | D108: Children's home | E108: Active | F108: REDACTED | G108: REDACTED | H108: REDACTED | I108: REDACTED | J108: REDACTED | K108: REDACTED | L108: South East | M108: South East | N108: West Sussex | O108: East Worthing and Shoreham | P108: Private | Q108: 6 | R108: Long term care only | S108: Full inspection | T108: 2016-09-07 | U108: 2016-10-26 | V108: 10018377 | W108: Good | Z108: Outstanding | AA108: Outstanding
A109: =HYPERLINK("http://reports.ofsted.gov.uk/inspection-reports/find-inspection-report/provider/CARE/1226630","Ofsted Social Care Provider Webpage") -> Ofsted Social Care Provider Webpage | B109: 1226612 | D109: Children's home | E109: Active | F109: REDACTED | G109: REDACTED | H109: REDACTED | I109: REDACTED | J109: REDACTED | K109: REDACTED | L109: East of England | M109: East of England | N109: Essex | O109: Harlow | P109: Private | Q109: 3 | R109: Long term care only | S109: Full inspection | T109: 2016-12-21 | U109: 2017-01-25 | V109: 10021713 | W109: Good | Z109: Good | AA109: Good
A110: =HYPERLINK("http://reports.ofsted.gov.uk/inspection-reports/find-inspection-report/provider/CARE/1226858","Ofsted Social Care Provider Webpage") -> Ofsted Social Care Provider Webpage | B110: 1226630 | D110: Independent Fostering Agency | E110: Active | F110: Fusion Fostering South West | G110: Fusion Fostering Richmond House | I110: Taunton | K110: TA3 6BY | L110: South West | M110: South West | N110: Somerset | O110: Taunton Deane | P110: Private | S110: Full inspection | T110: 2017-02-10 | U110: 2017-02-24 | V110: 10017909 | W110: Good | X110: Good | Y110: Good | Z110: Good | AA110: Good
A111: =HYPERLINK("http://reports.ofsted.gov.uk/inspection-reports/find-inspection-report/provider/CARE/1226969","Ofsted Social Care Provider Webpage") -> Ofsted Social Care Provider Webpage | B111: 1226757 | D111: Children's home | E111: Active | F111: REDACTED | G111: REDACTED | H111: REDACTED | I111: REDACTED | J111: REDACTED | K111: REDACTED | L111: East of England | M111: East of England | N111: Thurrock | O111: South Basildon and East Thurrock | P111: Private | Q111: 3 | R111: Long term care only | S111: Full inspection | T111: 2016-07-21 | U111: 2016-08-17 | V111: 10018477 | W111: Good | Z111: Good | AA111: Requires improvement
A112: =HYPERLINK("http://reports.ofsted.gov.uk/inspection-reports/find-inspection-report/provider/CARE/1226975","Ofsted Social Care Provider Webpage") -> Ofsted Social Care Provider Webpage | B112: 1226969 | D112: Children's home | E112: Active | F112: REDACTED | G112: REDACTED | H112: REDACTED | I112: REDACTED | J112: REDACTED | K112: REDACTED | L112: East of England | M112: East of England | N112: Cambridgeshire | O112: South Cambridgeshire | P112: Voluntary | Q112: 4 | R112: Short breaks and long term care | S112: Full inspection | T112: 2016-04-26 | U112: 2016-05-12 | V112: 10018264 | W112: Requires improvement | Z112: Requires improvement | AA112: Requires improvement
A113: =HYPERLINK("http://reports.ofsted.gov.uk/inspection-reports/find-inspection-report/provider/CARE/1226977","Ofsted Social Care Provider Webpage") -> Ofsted Social Care Provider Webpage | B113: 1226971 | D113: Residential special school (registered as a children's home) | E113: Active | F113: REDACTED | G113: REDACTED | H113: REDACTED | I113: REDACTED | J113: REDACTED | K113: REDACTED | L113: South West | M113: South West | N113: South Gloucestershire | O113: Thornbury and Yate | P113: Voluntary | Q113: 12 | R113: Long term care only | S113: Full inspection | T113: 2017-01-19 | U113: 2017-02-07 | V113: 10020446 | W113: Requires improvement | Z113: Requires improvement | AA113: Inadequate
A114: =HYPERLINK("http://reports.ofsted.gov.uk/inspection-reports/find-inspection-report/provider/CARE/1226978","Ofsted Social Care Provider Webpage") -> Ofsted Social Care Provider Webpage | B114: 1226975 | D114: Children's home | E114: Active | F114: REDACTED | G114: REDACTED | H114: REDACTED | I114: REDACTED | J114: REDACTED | K114: REDACTED | L114: East Midlands | M114: East Midlands | N114: Leicestershire | O114: Bosworth | P114: Private | Q114: 3 | R114: Long term care only | S114: Full inspection | T114: 2016-09-28 | U114: 2016-10-19 | V114: 10018099 | W114: Good | Z114: Good | AA114: Requires improvement
A115: =HYPERLINK("http://reports.ofsted.gov.uk/inspection-reports/find-inspection-report/provider/CARE/1227060","Ofsted Social Care Provider Webpage") -> Ofsted Social Care Provider Webpage | B115: 1226977 | D115: Children's home | E115: Active | F115: REDACTED | G115: REDACTED | H115: REDACTED | I115: REDACTED | J115: REDACTED | K115: REDACTED | L115: South East | M115: South East | N115: Kent | O115: Dover | P115: Private | Q115: 2 | R115: Long term care only | S115: Full inspection | T115: 2016-07-07 | U115: 2016-08-11 | V115: 10018970 | W115: Good | Z115: Good | AA115: Good
A116: =HYPERLINK("http://reports.ofsted.gov.uk/inspection-reports/find-inspection-report/provider/CARE/1227330","Ofsted Social Care Provider Webpage") -> Ofsted Social Care Provider Webpage | B116: 1226978 | D116: Children's home | E116: Active | F116: REDACTED | G116: REDACTED | H116: REDACTED | I116: REDACTED | J116: REDACTED | K116: REDACTED | L116: North East, Yorkshire and the Humber | M116: Yorkshire and The Humber | N116: North Yorkshire | O116: Scarborough and Whitby | P116: Private | Q116: 2 | R116: Long term care only | S116: Full inspection | T116: 2016-09-20 | U116: 2016-10-27 | V116: 10021409 | W116: Good | Z116: Requires improvement | AA116: Good
A117: =HYPERLINK("http://reports.ofsted.gov.uk/inspection-reports/find-inspection-report/provider/CARE/1227335","Ofsted Social Care Provider Webpage") -> Ofsted Social Care Provider Webpage | B117: 1227060 | D117: Residential special school (registered as a children's home) | E117: Active | F117: REDACTED | G117: REDACTED | H117: REDACTED | I117: REDACTED | J117: REDACTED | K117: REDACTED | L117: North East, Yorkshire and the Humber | M117: Yorkshire and The Humber | N117: North Yorkshire | O117: Skipton and Ripon | P117: Private | Q117: 23 | R117: Long term care only | S117: Full inspection | T117: 2016-11-24 | U117: 2017-02-06 | V117: 10015203 | W117: Good | Z117: Good | AA117: Good
A118: =HYPERLINK("http://reports.ofsted.gov.uk/inspection-reports/find-inspection-report/provider/CARE/1227408","Ofsted Social Care Provider Webpage") -> Ofsted Social Care Provider Webpage | B118: 1227330 | D118: Children's home | E118: Active | F118: REDACTED | G118: REDACTED | H118: REDACTED | I118: REDACTED | J118: REDACTED | K118: REDACTED | L118: West Midlands | M118: West Midlands | N118: Telford and Wrekin | O118: The Wrekin | P118: Private | Q118: 3 | R118: Long term care only | S118: Full inspection | T118: 2016-10-25 | U118: 2016-11-30 | V118: 10021574 | W118: Good | Z118: Good | AA118: Good
A119: =HYPERLINK("http://reports.ofsted.gov.uk/inspection-reports/find-inspection-report/provider/CARE/1227596","Ofsted Social Care Provider Webpage") -> Ofsted Social Care Provider Webpage | B119: 1227335 | D119: Children's home | E119: Active | F119: REDACTED | G119: REDACTED | H119: REDACTED | I119: REDACTED | J119: REDACTED | K119: REDACTED | L119: North West | M119: North West | N119: Lancashire | O119: West Lancashire | P119: Private | Q119: 2 | R119: Long term care only | S119: Full inspection | T119: 2016-10-14 | U119: 2016-12-22 | V119: 10021564 | W119: Requires improvement | Z119: Requires improvement | AA119: Requires improvement
A120: =HYPERLINK("http://reports.ofsted.gov.uk/inspection-reports/find-inspection-report/provider/CARE/1227778","Ofsted Social Care Provider Webpage") -> Ofsted Social Care Provider Webpage | B120: 1227596 | D120: Children's home | E120: Active | F120: REDACTED | G120: REDACTED | H120: REDACTED | I120: REDACTED | J120: REDACTED | K120: REDACTED | L120: West Midlands | M120: West Midlands | N120: Staffordshire | O120: Stafford | P120: Private | Q120: 3 | R120: Long term care only | S120: Full inspection | T120: 2016-11-04 | U120: 2017-01-18 | V120: 10018791 | W120: Good | Z120: Outstanding | AA120: Outstanding
A121: =HYPERLINK("http://reports.ofsted.gov.uk/inspection-reports/find-inspection-report/provider/CARE/1227869","Ofsted Social Care Provider Webpage") -> Ofsted Social Care Provider Webpage | B121: 1227778 | D121: Independent Fostering Agency | E121: Active | F121: Aspirations Fostering Limited | G121: 114 High Street | I121: Rayleigh | J121: Essex | K121: SS6 7BY | L121: East of England | M121: East of England | N121: Essex | O121: Rayleigh and Wickford | P121: Private | S121: Full inspection | T121: 2017-03-17 | U121: 2017-04-11 | V121: 10021323 | W121: Good | X121: Good | Y121: Good | Z121: Good | AA121: Good
A122: =HYPERLINK("http://reports.ofsted.gov.uk/inspection-reports/find-inspection-report/provider/CARE/1228090","Ofsted Social Care Provider Webpage") -> Ofsted Social Care Provider Webpage | B122: 1227788 | D122: Children's home | E122: Active | F122: REDACTED | G122: REDACTED | H122: REDACTED | I122: REDACTED | J122: REDACTED | K122: REDACTED | L122: South West | M122: South West | N122: Somerset | O122: Somerton and Frome | P122: Private | Q122: 2 | R122: Long term care only | S122: Full inspection | T122: 2016-08-10 | U122: 2016-09-02 | V122: 10018455 | W122: Good | Z122: Good | AA122: Good
A123: =HYPERLINK("http://reports.ofsted.gov.uk/inspection-reports/find-inspection-report/provider/CARE/1228092","Ofsted Social Care Provider Webpage") -> Ofsted Social Care Provider Webpage | B123: 1228090 | D123: Children's home | E123: Active | F123: REDACTED | G123: REDACTED | H123: REDACTED | I123: REDACTED | J123: REDACTED | K123: REDACTED | L123: West Midlands | M123: West Midlands | N123: Birmingham | O123: Sutton Coldfield | P123: Private | Q123: 4 | R123: Long term care only | S123: Full inspection | T123: 2016-11-10 | U123: 2016-12-30 | V123: 10021576 | W123: Requires improvement | Z123: Requires improvement | AA123: Requires improvement
A124: =HYPERLINK("http://reports.ofsted.gov.uk/inspection-reports/find-inspection-report/provider/CARE/1228191","Ofsted Social Care Provider Webpage") -> Ofsted Social Care Provider Webpage | B124: 1228091 | D124: Children's home | E124: Active | F124: REDACTED | G124: REDACTED | H124: REDACTED | I124: REDACTED | J124: REDACTED | K124: REDACTED | L124: North West | M124: North West | N124: Cheshire West and Chester | O124: Ellesmere Port and Neston | P124: Private | Q124: 3 | R124: Long term care only | S124: Full inspection | T124: 2016-11-10 | U124: 2017-01-09 | V124: 10021843 | W124: Requires improvement | Z124: Requires improvement | AA124: Inadequate
A125: =HYPERLINK("http://reports.ofsted.gov.uk/inspection-reports/find-inspection-report/provider/CARE/1228522","Ofsted Social Care Provider Webpage") -> Ofsted Social Care Provider Webpage | B125: 1228092 | D125: Children's home | E125: Active | F125: REDACTED | G125: REDACTED | H125: REDACTED | I125: REDACTED | J125: REDACTED | K125: REDACTED | L125: East of England | M125: East of England | N125: Essex | O125: Witham | P125: Private | Q125: 4 | R125: Long term care only | S125: Full inspection | T125: 2016-09-07 | U125: 2016-10-05 | V125: 10020861 | W125: Good | Z125: Good | AA125: Good
A126: =HYPERLINK("http://reports.ofsted.gov.uk/inspection-reports/find-inspection-report/provider/CARE/1228523","Ofsted Social Care Provider Webpage") -> Ofsted Social Care Provider Webpage | B126: 1228191 | D126: Children's home | E126: Active | F126: REDACTED | G126: REDACTED | H126: REDACTED | I126: REDACTED | J126: REDACTED | K126: REDACTED | L126: West Midlands | M126: West Midlands | N126: Staffordshire | O126: Staffordshire Moorlands | P126: Private | Q126: 2 | R126: Long term care only | S126: Full inspection | T126: 2016-11-11 | U126: 2017-01-19 | V126: 10021575 | W126: Requires improvement | Z126: Requires improvement | AA126: Requires improvement
A127: =HYPERLINK("http://reports.ofsted.gov.uk/inspection-reports/find-inspection-report/provider/CARE/1228919","Ofsted Social Care Provider Webpage") -> Ofsted Social Care Provider Webpage | B127: 1228522 | D127: Children's home | E127: Active | F127: REDACTED | G127: REDACTED | H127: REDACTED | I127: REDACTED | J127: REDACTED | K127: REDACTED | L127: North West | M127: North West | N127: Lancashire | O127: Morecambe and Lunesdale | P127: Private | Q127: 5 | R127: Long term care only | S127: Full inspection | T127: 2016-08-05 | U127: 2016-09-16 | V127: 10017651 | W127: Good | Z127: Good | AA127: Good
A128: =HYPERLINK("http://reports.ofsted.gov.uk/inspection-reports/find-inspection-report/provider/CARE/1229229","Ofsted Social Care Provider Webpage") -> Ofsted Social Care Provider Webpage | B128: 1228919 | D128: Children's home | E128: Active | F128: REDACTED | G128: REDACTED | H128: REDACTED | I128: REDACTED | J128: REDACTED | K128: REDACTED | L128: South East | M128: South East | N128: East Sussex | O128: Bexhill and Battle | P128: Private | Q128: 2 | R128: Long term care only | S128: Full inspection | T128: 2016-09-01 | U128: 2016-09-21 | V128: 10020434 | W128: Good | Z128: Good | AA128: Good
A129: =HYPERLINK("http://reports.ofsted.gov.uk/inspection-reports/find-inspection-report/provider/CARE/1229417","Ofsted Social Care Provider Webpage") -> Ofsted Social Care Provider Webpage | B129: 1228921 | D129: Children's home | E129: Active | F129: REDACTED | G129: REDACTED | H129: REDACTED | I129: REDACTED | J129: REDACTED | K129: REDACTED | L129: North West | M129: North West | N129: Lancashire | O129: Fylde | P129: Private | Q129: 5 | R129: Short breaks only | S129: Full inspection | T129: 2016-12-07 | U129: 2017-02-03 | V129: 10021231 | W129: Good | Z129: Good | AA129: Good
A130: =HYPERLINK("http://reports.ofsted.gov.uk/inspection-reports/find-inspection-report/provider/CARE/1229534","Ofsted Social Care Provider Webpage") -> Ofsted Social Care Provider Webpage | B130: 1229229 | D130: Children's home | E130: Active | F130: REDACTED | G130: REDACTED | H130: REDACTED | I130: REDACTED | J130: REDACTED | K130: REDACTED | L130: East Midlands | M130: East Midlands | N130: Nottinghamshire | O130: Newark | P130: Private | Q130: 2 | R130: Long term care only | S130: Full inspection | T130: 2016-10-12 | U130: 2016-10-28 | V130: 10018179 | W130: Outstanding | Z130: Outstanding | AA130: Good
A131: =HYPERLINK("http://reports.ofsted.gov.uk/inspection-reports/find-inspection-report/provider/CARE/1229762","Ofsted Social Care Provider Webpage") -> Ofsted Social Care Provider Webpage | B131: 1229417 | D131: Children's home | E131: Active | F131: REDACTED | G131: REDACTED | H131: REDACTED | I131: REDACTED | J131: REDACTED | K131: REDACTED | L131: North East, Yorkshire and the Humber | M131: North East | N131: Middlesbrough | O131: Middlesbrough | P131: Private | Q131: 1 | R131: Long term care only | S131: Full inspection | T131: 2016-09-07 | U131: 2016-10-26 | V131: 10018271 | W131: Good | Z131: Good | AA131: Outstanding
A132: =HYPERLINK("http://reports.ofsted.gov.uk/residential-holiday-schemes-for-disabled-children","Ofsted Social Care Provider Webpage") -> Ofsted Social Care Provider Webpage | B132: 1229762 | D132: Children's home | E132: Active | F132: REDACTED | G132: REDACTED | H132: REDACTED | I132: REDACTED | J132: REDACTED | K132: REDACTED | L132: East Midlands | M132: East Midlands | N132: Leicestershire | O132: Charnwood | P132: Private | Q132: 2 | R132: Long term care only | S132: Full inspection | T132: 2016-09-02 | U132: 2016-09-29 | V132: 10018078 | W132: Outstanding | Z132: Outstanding | AA132: Outstanding
A133: =HYPERLINK("http://reports.ofsted.gov.uk/inspection-reports/find-inspection-report/provider/CARE/1229766","Ofsted Social Care Provider Webpage") -> Ofsted Social Care Provider Webpage | B133: 1229765 | D133: Residential Holiday Scheme for Disabled Children | E133: Active | F133: Imago Community | G133: REDACTED | H133: REDACTED | I133: REDACTED | J133: REDACTED | K133: REDACTED | L133: South East | M133: South East | N133: Kent | O133: Tunbridge Wells | P133: Private | S133: Full inspection | T133: 2016-11-22 | U133: 2017-01-18 | V133: 10020511 | W133: Good
A134: =HYPERLINK("http://reports.ofsted.gov.uk/inspection-reports/find-inspection-report/provider/CARE/1229977","Ofsted Social Care Provider Webpage") -> Ofsted Social Care Provider Webpage | B134: 1229766 | D134: Residential special school (registered as a children's home) | E134: Active | F134: REDACTED | G134: REDACTED | H134: REDACTED | I134: REDACTED | J134: REDACTED | K134: REDACTED | L134: East of England | M134: East of England | N134: Cambridgeshire | O134: South Cambridgeshire | P134: Private | Q134: 23 | R134: Short breaks and long term care | S134: Full inspection | T134: 2016-09-29 | U134: 2016-10-17 | V134: 10020472 | W134: Good | Z134: Good | AA134: Good
A135: =HYPERLINK("http://reports.ofsted.gov.uk/inspection-reports/find-inspection-report/provider/CARE/1230268","Ofsted Social Care Provider Webpage") -> Ofsted Social Care Provider Webpage | B135: 1229977 | D135: Children's home | E135: Active | F135: REDACTED | G135: REDACTED | H135: REDACTED | I135: REDACTED | J135: REDACTED | K135: REDACTED | L135: South East | M135: South East | N135: Oxfordshire | O135: Henley | P135: Local Authority | Q135: 6 | R135: Short breaks and long term care | S135: Full inspection | T135: 2017-02-17 | U135: 2017-03-28 | V135: 10025626 | W135: Requires improvement | Z135: Requires improvement | AA135: Requires improvement
A136: =HYPERLINK("http://reports.ofsted.gov.uk/inspection-reports/find-inspection-report/provider/CARE/1230415","Ofsted Social Care Provider Webpage") -> Ofsted Social Care Provider Webpage | B136: 1230411 | D136: Children's home | E136: Active | F136: REDACTED | G136: REDACTED | H136: REDACTED | I136: REDACTED | J136: REDACTED | K136: REDACTED | L136: South East | M136: South East | N136: Surrey | O136: Guildford | P136: Local Authority | Q136: 2 | R136: Short breaks only | S136: Full inspection | T136: 2016-09-16 | U136: 2016-10-17 | V136: 10020340 | W136: Requires improvement | Z136: Requires improvement | AA136: Requires improvement
A137: =HYPERLINK("http://reports.ofsted.gov.uk/inspection-reports/find-inspection-report/provider/CARE/1230416","Ofsted Social Care Provider Webpage") -> Ofsted Social Care Provider Webpage | B137: 1230415 | D137: Children's home | E137: Active | F137: REDACTED | G137: REDACTED | H137: REDACTED | I137: REDACTED | J137: REDACTED | K137: REDACTED | L137: West Midlands | M137: West Midlands | N137: Birmingham | O137: Birmingham, Perry Barr | P137: Private | Q137: 4 | R137: Long term care only | S137: Full inspection | T137: 2016-10-19 | U137: 2016-11-28 | V137: 10025689 | W137: Requires improvement | Z137: Requires improvement | AA137: Inadequate
A138: =HYPERLINK("http://reports.ofsted.gov.uk/inspection-reports/find-inspection-report/provider/CARE/1230725","Ofsted Social Care Provider Webpage") -> Ofsted Social Care Provider Webpage | B138: 1230416 | D138: Children's home | E138: Active | F138: REDACTED | G138: REDACTED | H138: REDACTED | I138: REDACTED | J138: REDACTED | K138: REDACTED | L138: East of England | M138: East of England | N138: Bedford | O138: North East Bedfordshire | P138: Private | Q138: 4 | R138: Long term care only | S138: Full inspection | T138: 2016-08-25 | U138: 2016-09-14 | V138: 10020707 | W138: Good | Z138: Good | AA138: Requires improvement
A139: =HYPERLINK("http://reports.ofsted.gov.uk/inspection-reports/find-inspection-report/provider/CARE/1231066","Ofsted Social Care Provider Webpage") -> Ofsted Social Care Provider Webpage | B139: 1230940 | D139: Children's home | E139: Active | F139: REDACTED | G139: REDACTED | H139: REDACTED | I139: REDACTED | J139: REDACTED | K139: REDACTED | L139: East Midlands | M139: East Midlands | N139: Northamptonshire | O139: Wellingborough | P139: Private | Q139: 5 | R139: Long term care only | S139: Full inspection | T139: 2017-02-21 | U139: 2017-03-10 | V139: 10020572 | W139: Outstanding | Z139: Outstanding | AA139: Outstanding
A140: =HYPERLINK("http://reports.ofsted.gov.uk/inspection-reports/find-inspection-report/provider/CARE/1231067","Ofsted Social Care Provider Webpage") -> Ofsted Social Care Provider Webpage | B140: 1231066 | D140: Children's home | E140: Active | F140: REDACTED | G140: REDACTED | H140: REDACTED | I140: REDACTED | J140: REDACTED | K140: REDACTED | L140: South West | M140: South West | N140: Devon | O140: Newton Abbot | P140: Private | Q140: 1 | R140: Long term care only | S140: Full inspection | T140: 2016-04-14 | U140: 2016-05-04 | V140: 10018287 | W140: Requires improvement | Z140: Good | AA140: Requires improvement
A141: =HYPERLINK("http://reports.ofsted.gov.uk/inspection-reports/find-inspection-report/provider/CARE/1231311","Ofsted Social Care Provider Webpage") -> Ofsted Social Care Provider Webpage | B141: 1231067 | D141: Children's home | E141: Active | F141: REDACTED | G141: REDACTED | H141: REDACTED | I141: REDACTED | J141: REDACTED | K141: REDACTED | L141: South West | M141: South West | N141: Devon | O141: Newton Abbot | P141: Private | Q141: 1 | R141: Long term care only | S141: Full inspection | T141: 2016-09-29 | U141: 2016-10-18 | V141: 10018289 | W141: Requires improvement | Z141: Requires improvement | AA141: Requires improvement
A142: =HYPERLINK("http://reports.ofsted.gov.uk/inspection-reports/find-inspection-report/provider/CARE/1231399","Ofsted Social Care Provider Webpage") -> Ofsted Social Care Provider Webpage | B142: 1231311 | D142: Children's home | E142: Active | F142: REDACTED | G142: REDACTED | H142: REDACTED | I142: REDACTED | J142: REDACTED | K142: REDACTED | L142: West Midlands | M142: West Midlands | N142: Telford and Wrekin | O142: The Wrekin | P142: Private | Q142: 3 | R142: Long term care only | S142: Full inspection | T142: 2017-02-14 | U142: 2017-03-02 | V142: 10025920 | W142: Requires improvement | Z142: Requires improvement | AA142: Requires improvement
A143: =HYPERLINK("http://reports.ofsted.gov.uk/inspection-reports/find-inspection-report/provider/CARE/1231404","Ofsted Social Care Provider Webpage") -> Ofsted Social Care Provider Webpage | B143: 1231399 | D143: Children's home | E143: Active | F143: REDACTED | G143: REDACTED | H143: REDACTED | I143: REDACTED | J143: REDACTED | K143: REDACTED | L143: North West | M143: North West | N143: Blackpool | O143: Blackpool North and Cleveleys | P143: Private | Q143: 4 | R143: Long term care only | S143: Full inspection | T143: 2016-11-22 | U143: 2017-01-16 | V143: 10025637 | W143: Good | Z143: Requires improvement | AA143: Good
A144: =HYPERLINK("http://reports.ofsted.gov.uk/residential-holiday-schemes-for-disabled-children","Ofsted Social Care Provider Webpage") -> Ofsted Social Care Provider Webpage | B144: 1231405 | D144: Children's home | E144: Active | F144: REDACTED | G144: REDACTED | H144: REDACTED | I144: REDACTED | J144: REDACTED | K144: REDACTED | L144: North West | M144: North West | N144: Lancashire | O144: Ribble Valley | P144: Local Authority | Q144: 6 | R144: Short breaks only | S144: Full inspection | T144: 2016-08-23 | U144: 2016-09-15 | V144: 10018918 | W144: Good | Z144: Good | AA144: Good
A145: =HYPERLINK("http://reports.ofsted.gov.uk/inspection-reports/find-inspection-report/provider/CARE/1231458","Ofsted Social Care Provider Webpage") -> Ofsted Social Care Provider Webpage | B145: 1231454 | D145: Residential Holiday Scheme for Disabled Children | E145: Active | F145: KIDS Delta House | G145: REDACTED | H145: REDACTED | I145: REDACTED | J145: REDACTED | K145: REDACTED | L145: South East | M145: South East | N145: Hampshire | O145: Fareham | P145: Voluntary | S145: Full inspection | T145: 2017-03-07 | U145: 2017-03-22 | V145: 10025625 | W145: Good
A146: =HYPERLINK("http://reports.ofsted.gov.uk/inspection-reports/find-inspection-report/provider/CARE/1231525","Ofsted Social Care Provider Webpage") -> Ofsted Social Care Provider Webpage | B146: 1231458 | D146: Children's home | E146: Active | F146: REDACTED | G146: REDACTED | H146: REDACTED | I146: REDACTED | J146: REDACTED | K146: REDACTED | L146: West Midlands | M146: West Midlands | N146: Birmingham | O146: Birmingham, Selly Oak | P146: Private | Q146: 3 | R146: Short breaks and long term care | S146: Full inspection | T146: 2016-10-26 | U146: 2016-12-30 | V146: 10021288 | W146: Good | Z146: Good | AA146: Good
A147: =HYPERLINK("http://reports.ofsted.gov.uk/inspection-reports/find-inspection-report/provider/CARE/1231812","Ofsted Social Care Provider Webpage") -> Ofsted Social Care Provider Webpage | B147: 1231525 | D147: Children's home | E147: Active | F147: REDACTED | G147: REDACTED | H147: REDACTED | I147: REDACTED | J147: REDACTED | K147: REDACTED | L147: North East, Yorkshire and the Humber | M147: Yorkshire and The Humber | N147: East Riding of Yorkshire | O147: Brigg and Goole | P147: Private | Q147: 1 | R147: Long term care only | S147: Full inspection | T147: 2016-10-04 | U147: 2016-11-08 | V147: 10021403 | W147: Good | Z147: Good | AA147: Good
A148: =HYPERLINK("http://reports.ofsted.gov.uk/inspection-reports/find-inspection-report/provider/CARE/1232200","Ofsted Social Care Provider Webpage") -> Ofsted Social Care Provider Webpage | B148: 1232171 | D148: Children's home | E148: Active | F148: REDACTED | G148: REDACTED | H148: REDACTED | I148: REDACTED | J148: REDACTED | K148: REDACTED | L148: North East, Yorkshire and the Humber | M148: Yorkshire and The Humber | N148: Doncaster | O148: Doncaster Central | P148: Private | Q148: 3 | R148: Long term care only | S148: Full inspection | T148: 2016-12-07 | U148: 2017-01-30 | V148: 10021406 | W148: Outstanding | Z148: Good | AA148: Good
A149: =HYPERLINK("http://reports.ofsted.gov.uk/inspection-reports/find-inspection-report/provider/CARE/1232271","Ofsted Social Care Provider Webpage") -> Ofsted Social Care Provider Webpage | B149: 1232200 | D149: Children's home | E149: Active | F149: REDACTED | G149: REDACTED | H149: REDACTED | I149: REDACTED | J149: REDACTED | K149: REDACTED | L149: East Midlands | M149: East Midlands | N149: Northamptonshire | O149: Wellingborough | P149: Private | Q149: 3 | R149: Long term care only | S149: Full inspection | T149: 2016-11-24 | U149: 2017-01-16 | V149: 10020924 | W149: Requires improvement | Z149: Requires improvement | AA149: Requires improvement
A150: =HYPERLINK("http://reports.ofsted.gov.uk/inspection-reports/find-inspection-report/provider/CARE/1232380","Ofsted Social Care Provider Webpage") -> Ofsted Social Care Provider Webpage | B150: 1232271 | D150: Children's home | E150: Active | F150: REDACTED | G150: REDACTED | H150: REDACTED | I150: REDACTED | J150: REDACTED | K150: REDACTED | L150: South West | M150: South West | N150: Gloucestershire | O150: Stroud | P150: Private | Q150: 4 | R150: Long term care only | S150: Full inspection | T150: 2017-02-14 | U150: 2017-03-09 | V150: 10021637 | W150: Good | Z150: Good | AA150: Good
A151: =HYPERLINK("http://reports.ofsted.gov.uk/inspection-reports/find-inspection-report/provider/CARE/1232649","Ofsted Social Care Provider Webpage") -> Ofsted Social Care Provider Webpage | B151: 1232380 | D151: Children's home | E151: Active | F151: REDACTED | G151: REDACTED | H151: REDACTED | I151: REDACTED | J151: REDACTED | K151: REDACTED | L151: North West | M151: North West | N151: Bolton | O151: Bolton North East | P151: Voluntary | Q151: 6 | R151: Short breaks only | S151: Full inspection | T151: 2016-04-28 | U151: 2016-06-06 | V151: 10018339 | W151: Outstanding | Z151: Good | AA151: Outstanding
A152: =HYPERLINK("http://reports.ofsted.gov.uk/inspection-reports/find-inspection-report/provider/CARE/1232650","Ofsted Social Care Provider Webpage") -> Ofsted Social Care Provider Webpage | B152: 1232649 | D152: Children's home | E152: Active | F152: REDACTED | G152: REDACTED | H152: REDACTED | I152: REDACTED | J152: REDACTED | K152: REDACTED | L152: North East, Yorkshire and the Humber | M152: North East | N152: Gateshead | O152: Blaydon | P152: Private | Q152: 5 | R152: Long term care only | S152: Full inspection | T152: 2016-11-23 | U152: 2017-01-17 | V152: 10021448 | W152: Good | Z152: Good | AA152: Good
A153: =HYPERLINK("http://reports.ofsted.gov.uk/inspection-reports/find-inspection-report/provider/CARE/1232651","Ofsted Social Care Provider Webpage") -> Ofsted Social Care Provider Webpage | B153: 1232650 | D153: Children's home | E153: Active | F153: REDACTED | G153: REDACTED | H153: REDACTED | I153: REDACTED | J153: REDACTED | K153: REDACTED | L153: North East, Yorkshire and the Humber | M153: Yorkshire and The Humber | N153: Doncaster | O153: Don Valley | P153: Private | Q153: 3 | R153: Long term care only | S153: Full inspection | T153: 2017-01-18 | U153: 2017-02-22 | V153: 10022680 | W153: Inadequate | Z153: Inadequate | AA153: Inadequate
A154: =HYPERLINK("http://reports.ofsted.gov.uk/inspection-reports/find-inspection-report/provider/CARE/1233307","Ofsted Social Care Provider Webpage") -> Ofsted Social Care Provider Webpage | B154: 1233003 | D154: Children's home | E154: Active | F154: REDACTED | G154: REDACTED | H154: REDACTED | I154: REDACTED | J154: REDACTED | K154: REDACTED | L154: South West | M154: South West | N154: Dorset | O154: Christchurch | P154: Private | Q154: 2 | R154: Short breaks and long term care | S154: Full inspection | T154: 2016-08-25 | U154: 2016-09-20 | V154: 10018814 | W154: Good | Z154: Requires improvement | AA154: Good
A155: =HYPERLINK("http://reports.ofsted.gov.uk/inspection-reports/find-inspection-report/provider/CARE/1233463","Ofsted Social Care Provider Webpage") -> Ofsted Social Care Provider Webpage | B155: 1233310 | D155: Children's home | E155: Active | F155: REDACTED | G155: REDACTED | H155: REDACTED | I155: REDACTED | J155: REDACTED | K155: REDACTED | L155: North West | M155: North West | N155: Bolton | O155: Bolton North East | P155: Voluntary | Q155: 3 | R155: Long term care only | S155: Full inspection | T155: 2016-12-15 | U155: 2017-01-30 | V155: 10025921 | W155: Requires improvement | Z155: Requires improvement | AA155: Requires improvement
A156: =HYPERLINK("http://reports.ofsted.gov.uk/inspection-reports/find-inspection-report/provider/CARE/1233894","Ofsted Social Care Provider Webpage") -> Ofsted Social Care Provider Webpage | B156: 1233463 | D156: Further Education College with Residential Accommodation | E156: Active | F156: Cornwall College | G156: Corporate Headquarters Cornwall College St Austell Tregonissey Road | I156: St Austell | J156: Cornwall | K156: PL25 4DJ | L156: South West | M156: South West | N156: Cornwall | O156: St Austell and Newquay | P156: Private | Q156: 296 | S156: Full inspection | T156: 2016-02-25 | U156: 2016-03-31 | V156: 10017754 | W156: Requires improvement | X156: Good | Y156: Requires improvement | Z156: Requires improvement | AA156: Requires improvement
A157: =HYPERLINK("http://reports.ofsted.gov.uk/inspection-reports/find-inspection-report/provider/CARE/1233899","Ofsted Social Care Provider Webpage") -> Ofsted Social Care Provider Webpage | B157: 1233894 | C157: 138333 | D157: Boarding School | E157: Active | F157: Kings Bournemouth | G157: 58 Braidley Road | I157: Bournemouth | J157: Dorset | K157: BH2 6LD | L157: South West | M157: South West | N157: Bournemouth | O157: Bournemouth West | P157: Private | Q157: 48 | S157: Full inspection | T157: 2016-12-15 | U157: 2017-02-14 | V157: 10021562 | W157: Requires improvement | Y157: Requires improvement | Z157: Requires improvement | AA157: Requires improvement
A158: =HYPERLINK("http://reports.ofsted.gov.uk/inspection-reports/find-inspection-report/provider/CARE/1234163","Ofsted Social Care Provider Webpage") -> Ofsted Social Care Provider Webpage | B158: 1233981 | D158: Children's home | E158: Active | F158: REDACTED | G158: REDACTED | H158: REDACTED | I158: REDACTED | J158: REDACTED | K158: REDACTED | L158: North East, Yorkshire and the Humber | M158: Yorkshire and The Humber | N158: Kirklees | O158: Huddersfield | P158: Private | Q158: 2 | R158: Long term care only | S158: Full inspection | T158: 2017-01-26 | U158: 2017-02-15 | V158: 10025529 | W158: Good | Z158: Good | AA158: Requires improvement
A159: =HYPERLINK("http://reports.ofsted.gov.uk/inspection-reports/find-inspection-report/provider/CARE/1234166","Ofsted Social Care Provider Webpage") -> Ofsted Social Care Provider Webpage | B159: 1234163 | D159: Children's home | E159: Active | F159: REDACTED | G159: REDACTED | H159: REDACTED | I159: REDACTED | J159: REDACTED | K159: REDACTED | L159: South East | M159: South East | N159: Kent | O159: Sittingbourne and Sheppey | P159: Private | Q159: 4 | R159: Short breaks and long term care | S159: Full inspection | T159: 2017-03-07 | U159: 2017-03-29 | V159: 10025933 | W159: Inadequate | Z159: Inadequate | AA159: Inadequate
